{"text_format":"1","workbook":"xlsx","n_sheets":7,"sheets":["Accueil","Saisie","État de santé","Principaux résultats","Courbes","Explications des tests médicaux","Guide utilisateur"],"not_rendered":{"charts":10,"images":18,"macros":1,"external_links":0,"defined_names":20,"comments":4,"pivot_tables":0},"unopened":[],"bounds":{"document_bytes":16777216,"sheet_cells":100000,"rows_first":2000,"rows_last":500,"rows_between":2000,"halvings":0,"cell_chars":16384,"cell_head_chars":4096},"cells_cut":0,"cells_raw":0,"read":"whole","date_system":"1900"}

{"sheet":"Accueil","index":0,"n_rows":37,"n_cols":7,"rows_kept":37,"cut":false,"hidden":false,"merged":[[36,2,36,3],[4,6,4,7],[5,6,5,7],[6,6,6,7],[7,6,7,7],[18,2,19,3],[12,2,13,3],[15,2,16,3],[4,8,4,9],[5,8,5,9],[6,8,6,9],[7,8,7,9],[24,13,25,13],[34,2,34,3],[35,2,35,3],[28,13,30,13],[14,13,16,13],[19,8,23,8],[25,8,28,8],[20,13,22,13],[14,8,16,8],[30,8,32,8],[27,2,28,3],[21,2,22,3],[24,2,25,3]]}
[null,null,null,null,"Outil de saisie et de présentation de vos données médicales"]
[null,null,null,null,"À l'usage des patients de Waldenström"]
[]
[null,null,"identifiants patient :","complétez les informations ci-dessous"]
[null,null,"Prénom  Nom :",null,null,null,"Dossier hôpital :"]
[null,null,"Date naissance :",null,null,null,"n°SS :"]
[null,null,"Oncologue :",null,null,null,"Diagnostiqué le :"]
[null,null,"Taille (cm) :",null,null,null,"Date dernier traitement :"]
[]
[]
[]
[]
[null,null,"Cliquez ici pour saisir vos analyses médicales et vos événements clés (symptomes, maladie, traitement..)\n"]
[]
[]
[null,null,"Cliquez ici pour saisir les Informations importantes sur votre état de santé"]
[]
[]
[null,null,"Cliquez ici pour visualiser, imprimer vos résultats les plus importantes pour le suivi de votre pathologie"]
[]
[]
[null,null,"Cliquez ici pour visualiser, imprimer les graphiques correspondants à vos principaux résultats"]
[]
[]
[null,null,"Cliquez ici pour accéder aux explications concernant les différentes analyses du tableau de saisie"]
[]
[]
[null,null,"Cliquez ici pour accéder Guide utilisateur pour l'utilisation de ce fichier"]
[]
[]
[]
[]
[]
[]
[null,null,"Analyses 2017_Excel 16-13-10_rev24-2 ",null,null,"version présentée à Limoges"]
[null,null,"Analyses 2017_Excel 16-13-10_rev24-3",null,null,"version corrigée après Limoges"]
[null,null,"Analyses 2017_Excel 16-13-10_rev24-4",null,null,"correction apercu impression page Explications tests médicaux"]

{"sheet":"Saisie","index":1,"n_rows":124,"n_cols":160,"rows_kept":124,"cut":false,"hidden":false,"merged":[[13,2,14,2],[11,158,11,159],[12,0,23,0],[0,58,2,107],[5,0,7,1],[0,12,2,36]]}
[null,null,{"$f":"Accueil!C4","v":"identifiants patient :"},null,null,null,null,null,null,null,null,null,"Page de saisie de vos analyses médicales\nSuivi hors traitement",null,null,null,null,null,null,null,null,null,null,null,null,null,null,null,null,null,null,null,null,null,null,null,null,null,null,null,null,null,null,null,null,null,null,null,null,null,null,null,null,null,null,null,null,null,"Page de saisie de vos analyses médicales\nSuivi en cours de traitement ou autre pathologie"]
[null,null,{"$f":"Accueil!C5","v":"Prénom  Nom :"},{"$f":"IF(Accueil!D5=\"\",\"\",Accueil!D5)","v":""}]
[null,null,{"$f":"Accueil!C6","v":"Date naissance :"},{"$f":"IF(Accueil!D6=\"\",\"\",Accueil!D6)","v":""}]
[null,null,{"$f":"Accueil!C8","v":"Taille (cm) :"},{"$f":"IF(Accueil!D8=\"\",\"Taille manquante dans Accueil!\",Accueil!D8)","v":"Taille manquante dans Accueil!"}]
[null,null,{"$f":"Accueil!C7","v":"Oncologue :"},{"$f":"IF(Accueil!D7=\"\",\"\",Accueil!D7)","v":""}]
["Cliquez pour ranger vos données dans l'ordre chronologique",null,{"$f":"Accueil!G5","v":"Dossier hôpital :"},{"$f":"IF(Accueil!I5=\"\",\"\",Accueil!I5)","v":""}]
[null,null,{"$f":"Accueil!G6","v":"n°SS :"},{"$f":"IF(Accueil!I6=\"\",\"\",Accueil!I6)","v":""},null,null,null,null,null,null,null,null,null,null,null,null,null,null,null,null,null,null,null,null,null,null,null,null,null,null,null,null,null,null,null,null,null,null,null,null,null,null,null,null,null,null,null,null,null,null,null,null,null,null,null,null,null,null,null,null,null,null,null,null,null,null,null,null,null,null,null,null,null,null,null,null,null,null,null,null,null,null,null,null,null,null,null,null,null,null,null,null,null,null,null,null,null,null,null,null,null,null,null,null,null,null,null,null,null,null,null,null,null,null,null,null,"doublon ?",null,null,null,null,null,null,null,null,null,null,null,null,null,null,null,null,null,null,null,null,null,null,null,null,null,null,null,"saignement","saignement","saignement","cardiaque"]
[null,null,{"$f":"Accueil!G7","v":"Diagnostiqué le :"},{"$f":"IF(Accueil!I7=\"\",\"\",Accueil!I7)","v":""}]
[]
[null,null,null,null,null,"GR","GR","GR","GR","GR","GR","GR","GR","Plaquettes","Plaquettes","Plaquettes","GB","GB","GB","GB","GB","GB","GB","GB","GB","GR","GR","GR","GR","GR","Inflammation","anémie","Inflammation","proteine","protéines","protéines","protéines","protéines","protéines","protéines","protéines","protéines","protéines","protéines","protéines","protéines","protéines","protéines","protéines","immunoGlo","immunoGlo","immunoGlo","immunoGlo","immunoGlo","foie","foie","foie","foie","foie","anémie","rein","rein","rein","rein","rein","rein","rein","rein",null,"rein","rein","rein",null,null,null,"coagulation","coagulation","coagulation","coagulation","coagulation","coagulation","coagulation","coagulation","foie","doublon","fer","on mesure quoi ?","fer","fer","fer","fer",null,"IgE ?",null,"doublon ?","iono","?","iono","?","iono","iono","iono","ion","ion","ion","gaz","ion","protéines","?","prostate","prostate","prostate","coagulation","coagulation","coagulation","agglutinine","sucre","sucre","iono","sucre","graisse","?","graisse","?","graisse","graisse","graisse","graisse","graisse","graisse","graisse","graisse","graisse","graisse","graisse","graisse","graisse","graisse","graisse","graisse","graisse","graisse","graisse","graisse","graisse","graisse","graisse","graisse","graisse","graisse","graisse","graisse","graisse","graisse","rein"]
[null,null,null,null,null,2,3,4,6,7,5,8,22,9,10,11,1,12,13,14,15,16,17,18,19,20,21,23,24,25,26,52,27,135,28,29,30,31,32,33,34,35,36,37,38,39,40,41,42,43,44,45,46,47,48,49,50,51,136,53,54,55,56,57,58,59,60,61,62,63,64,65,66,67,68,69,70,71,72,73,74,75,76,77,78,79,80,81,82,83,84,85,86,87,88,90,91,92,93,94,95,96,98,99,100,101,102,103,104,105,106,107,108,109,110,111,112,113,89,97,114,115,116,117,118,119,120,121,121,121,121,121,121,121,121,121,121,121,121,121,121,121,121,121,121,121,121,121,121,121,121,121,121,122,55]
["Naviguez dans cette page en cliquant sur ces boutons ou avec la barre de défilement horizontale",null,{"$f":"Accueil!G8","v":"Date dernier traitement :"},{"$f":"IF(Accueil!I8=\"\",\"\",Accueil!I8)","v":""},null,"Hématies \n(Erythrocytes)","Hémoglobine","Hématocrite","Vol. Globule. Moy.","C.C.M. Hb","T.C.M. Hb","Indice distrib. GR (anisocytose) IDR","Réticulocytes","Plaquettes","Volume Moyen Plaquettaire","Indice de distrib. Des plaq.","Leucocytes","Polynucléaires \nneutrophiles","Polynucléaires \néosinophiles","Polynucléaires \nbasophiles","dont granulocytes immatures","Lymphocytes","Monocytes","Myélocytes neutrophiles","Cellules lymphoplasmocytaires","Erythroblastes acidophiles","Erythroblastes","IRF","HFR","Teneur en Hb des réticulocytes","Vitesse de \nsédimentation 1h","Lactate Deshydro-genase (LDH)","CRP (Protéine C réactive)","Bêta-2 \nmicroglobuline","Protéines totales","Albumine","Albumine sérique","Alpha-1 globuline","Alpha-1 globuline","Alpha-2 globuline","Alpha-2 globuline","Béta-1 globuline","Béta-1 globuline","Béta-2 globuline","Béta-2 globuline","Gamma - globuline","Gamma - globuline","Estimation Pic monocl.","Rapport albumine/ globulines","Chaines libres immunoglobulines plasmatiques Kappa","Chaines libres immunoglobulines plasmatiques Lambda","IgM pondéral","IgA pondéral","IgG pondéral","Transaminase \nSGOT/ASAT","Transaminase \nSGPT/ALAT","PAL (phosphatase \nalcaline)","GGT (Gamma GT)","Bilirubine totale","Haptoglobine","Diurèse","Protéinurie","Protéinurie","Créatinine \nsanguine","Jaffe Cinétique compensée","Créatinine urinaire","Clairance calculée","Clairance calculée","Surface corporelle","Clairance rapportée à 1,73 m²","formule mdrd","formule CKD","Poids","Taille","IMC (indice Masse Corporelle)","Taux de \nProthrombine","INR","Temps de Quick Malade","Temps de Quick Témoin","Ratio Temps de Quick malade/témoin","Temps de Céphaline Activée Malade","Temps de Céphaline Activée Témoin","Rapport Malade/Témoin","Fibrinogène","VS","Fer sérique","Colorimétrie Hitachi Roche Diagnostics","Ferritine","Transferrine","Capacité Totale de Fixation du fer","Coefficient de saturation","Acide Folique","chimiluminescence DPC Immulite 2000","Vitamine B12","chimiluminescence DPC Immulite 2000","Calcium corrigé/protéines","Photométrie NM-BAPTA","Bicarbonate",null,"Sodium (sang)","Potassium (sang)","Chlore (sang)","Urée (sang)","Osmolarité calculée (sang)","Acide urique (sang)","CO2 Total","Trou anionique","Protéines (sang)","Spectrophotométrie","PSA","PSA libre","Rapport PSA libre/total","Sec. TCK","Sec. TCK témoin","Rapport TCK Patient/Témoin","Test de Combs","Glycémie","Enzymatique Hexokinase","Calcium","Glycémie","Cholestérol total","Colorimétrie enzymatique Roche Diagnostics","Triglycérides","Spectrophotométrie","HDL Cholestérol","HDL Cholestérol","Rapport Cholestérol \ntotal/HDL","LDL Cholestérol","LDL Cholestérol","LDL Cholestérol","LDL Cholestérol","LDL Cholestérol","LDL Cholestérol","LDL Cholestérol","LDL Cholestérol","LDL Cholestérol","LDL Cholestérol","LDL Cholestérol","LDL Cholestérol","LDL Cholestérol","LDL Cholestérol","LDL Cholestérol","LDL Cholestérol","LDL Cholestérol","LDL Cholestérol","LDL Cholestérol","LDL Cholestérol","LDL Cholestérol","LDL Cholestérol","LDL Cholestérol","LDL Cholestérol","LDL Cholestérol","LDL Cholestérol","Rapport Cholestérol HDL/LDL ","Protéinurie","Albuminurie","chaines libres immunoglobulines urinaires Kappa","chaines libres immunoglobulines urinaires Lambda"]
["Saisissez vos résultats ici\nune date = une ligne de résultats\n- Ajoutez vos données à la suite de la dernière ligne complétée\n- Ne renseignez que les valeurs que vous souhaitez suivre dans le temps",null,"Événements","Date ","unité"," T/l","g/dl","%","fl","g/dl"," pg","%","109/l","giga/l","fl","fl","/mm3","/mm3","/mm3","/mm3","g/l","/mm3","/mm3","%","%","% leuco.","g/l","%","%","pg","mm","UI/l","mg/l","mg/l","g/l","%","g/l","%","g/l","%","g/l","%","g/l","%","g/l","%","g/l","g/l",null,"mg/l","mg/l","g/l","g/l","g/L","Ul/l","Ul/l","U/L","U/L","µmol/L","g/L","l","g/24h","g/24h","µmol/l","mg/l","µmol/l","ml/s","ml/min","m²","ml/s","ml/min/1,73m2","ml/min/1,73m2","kg","cm","Kg/m²","%",null,"s","s",null,"s","s",null,"g/l","mm","µmol/l","µg/100ml","µg/l","g/l","µmol/l",null,"ng/ml","nmol/l","pg/ml","pmol/l","mmol/l","mg/l","mmol/l","mg/l","mmol/l","mmol/l","mmol/l","mmol/l","mosmol/L","µmol/L","mmol/l","mmol/l","g/L","g/l","µg/l","µg/l","%",null,null,null,null,"mmol/l","g/l","mmol/l","g/l","g/l","g/l","g/l","g/l","mmol/l","g/l",null,"g/l","g/l","mUl/l","pmol/L",null,"nmol/l","ng/ml","pg/ml","pmol/l","UI/l","UI/l","µg/l","nmol/l","mUl/l","mg/l","µmol/L","µmol/L","%","%",null,null,"g/l","%","mm3","mm3","µg/l",null,"g/24h",null,"mg/l","mg/l","Labo","Prescrit par"]
[null,null,"Événements importants : traitements, transfusions, maladies, symptomes…","(JJ/MM/AA)","min",4,{"$f":"IF(G13=\"g/l\",120,IF(G13=\"g/dl\",12,\"\"))","v":12},36,85,{"$f":"IF(J13=\"g/l\",320, IF(J13=\"g/dl\",32,\"\"))","v":32},27,11,20,150,8.6999999999999993,8,4000,1800,null,null,null,1500,150,null,null,null,null,null,null,null,0,150,null,null,58,55.8,36,2.9,1,7.1,4,4.7,3,3.2,2,11.1,8,null,1,"3,3","5,7",0.4,0.7,7,10,10,40,10,2,0.9,null,null,0.05,50,7,null,null,null,null,1.3,60,60,null,null,18.5,70,null,null,null,0.93,27,null,0.8,1.8,null,10.6,59,30,1.9,45,0.2,3,7,193,142,2.12,84,22,null,135,3.5,95,2.5,270,208,21,5,64,null,null,null,null,null,null,null,null,4.0999999999999996,0.74,2.1,0.7,null,1.2,null,null,null,0.4,null,1.6,null,0.26,12,null,75,30,191,141,1.5,1.7000000000000002,1.9300000000000002,6.7,98,null,null,null,null,null,null,null,37,90]
[null,null,null,"ex : 25/12/2014","max",5.4,{"$f":"IF(G13=\"g/l\",160,IF(G13=\"g/dl\",16,\"\"))","v":16},50,95,{"$f":"IF(J13=\"g/l\",360, IF(J13=\"g/dl\",36,\"\"))","v":36},32,16,120,400,11.9,17,10000,7000,500,200,null,4000,1000,1.4,null,null,null,null,null,null,20,400,5,2.5,83,66.099999999999994,50,4.9000000000000004,5,11.8,8,7.2,5.5,6.5,5,18.8,16,null,null,"19,4","26,3",2.2999999999999998,4,16,40,41,150,60,22,2.6,null,0.15,0.15,104,12,null,null,null,null,null,null,null,null,null,25,100,null,null,null,1.1200000000000001,39,null,1.2,3.5,20,28.3,158,300,3.04,100,0.55000000000000004,17,39,982,723,2.52,102,30,null,145,5,105,7,320,428,32,15,82,0.45,4,null,25,null,null,null,null,6.1,1.1000000000000001,2.75,1.1000000000000001,2,2,2,1.75,1.3,null,5,null,null,null,null,null,null,null,null,null,null,null,null,null,null,null,null,null,null,null,null,null,null,null,null,null,null,"H:5 /F:4.4",0.15,null,10,5]
[null,null,null,null,{"$f":"IF(AND(G16<>\"\",D16=\"\"),\"date manquante!\",\"\")","v":""},null,null,null,null,null,null,null,null,null,null,null,null,null,null,null,null,null,null,null,null,null,null,null,null,null,null,null,null,null,null,null,null,null,null,null,null,null,null,null,null,null,null,null,null,null,null,null,null,null,null,null,null,null,null,null,null,null,null,null,null,null,null,null,null,null,null,null,null,null,{"$f":"IF(BU16>0,IF($D$4>90,BU16*10000/($D$4*$D$4),BU16*704.1/($D$4*$D$4)),\"\")","v":""}]
[null,null,null,null,"",null,null,null,null,null,null,null,null,null,null,null,null,null,null,null,null,null,null,null,null,null,null,null,null,null,null,null,null,null,null,null,null,null,null,null,null,null,null,null,null,null,null,null,null,null,null,null,null,null,null,null,null,null,null,null,null,null,null,null,null,null,null,null,null,null,null,null,null,null,""]
[null,null,null,null,"",null,null,null,null,null,null,null,null,null,null,null,null,null,null,null,null,null,null,null,null,null,null,null,null,null,null,null,null,null,null,null,null,null,null,null,null,null,null,null,null,null,null,null,null,null,null,null,null,null,null,null,null,null,null,null,null,null,null,null,null,null,null,null,null,null,null,null,null,null,""]
[null,null,null,null,"",null,null,null,null,null,null,null,null,null,null,null,null,null,null,null,null,null,null,null,null,null,null,null,null,null,null,null,null,null,null,null,null,null,null,null,null,null,null,null,null,null,null,null,null,null,null,null,null,null,null,null,null,null,null,null,null,null,null,null,null,null,null,null,null,null,null,null,null,null,""]
[null,null,null,null,"",null,null,null,null,null,null,null,null,null,null,null,null,null,null,null,null,null,null,null,null,null,null,null,null,null,null,null,null,null,null,null,null,null,null,null,null,null,null,null,null,null,null,null,null,null,null,null,null,null,null,null,null,null,null,null,null,null,null,null,null,null,null,null,null,null,null,null,null,null,""]
[null,null,null,null,"",null,null,null,null,null,null,null,null,null,null,null,null,null,null,null,null,null,null,null,null,null,null,null,null,null,null,null,null,null,null,null,null,null,null,null,null,null,null,null,null,null,null,null,null,null,null,null,null,null,null,null,null,null,null,null,null,null,null,null,null,null,null,null,null,null,null,null,null,null,""]
[null,null,null,null,"",null,null,null,null,null,null,null,null,null,null,null,null,null,null,null,null,null,null,null,null,null,null,null,null,null,null,null,null,null,null,null,null,null,null,null,null,null,null,null,null,null,null,null,null,null,null,null,null,null,null,null,null,null,null,null,null,null,null,null,null,null,null,null,null,null,null,null,null,null,""]
[null,null,null,null,"",null,null,null,null,null,null,null,null,null,null,null,null,null,null,null,null,null,null,null,null,null,null,null,null,null,null,null,null,null,null,null,null,null,null,null,null,null,null,null,null,null,null,null,null,null,null,null,null,null,null,null,null,null,null,null,null,null,null,null,null,null,null,null,null,null,null,null,null,null,""]
[null,null,null,null,"",null,null,null,null,null,null,null,null,null,null,null,null,null,null,null,null,null,null,null,null,null,null,null,null,null,null,null,null,null,null,null,null,null,null,null,null,null,null,null,null,null,null,null,null,null,null,null,null,null,null,null,null,null,null,null,null,null,null,null,null,null,null,null,null,null,null,null,null,null,""]
[null,null,null,null,"",null,null,null,null,null,null,null,null,null,null,null,null,null,null,null,null,null,null,null,null,null,null,null,null,null,null,null,null,null,null,null,null,null,null,null,null,null,null,null,null,null,null,null,null,null,null,null,null,null,null,null,null,null,null,null,null,null,null,null,null,null,null,null,null,null,null,null,null,null,""]
[null,null,null,null,"",null,null,null,null,null,null,null,null,null,null,null,null,null,null,null,null,null,null,null,null,null,null,null,null,null,null,null,null,null,null,null,null,null,null,null,null,null,null,null,null,null,null,null,null,null,null,null,null,null,null,null,null,null,null,null,null,null,null,null,null,null,null,null,null,null,null,null,null,null,""]
[null,null,null,null,"",null,null,null,null,null,null,null,null,null,null,null,null,null,null,null,null,null,null,null,null,null,null,null,null,null,null,null,null,null,null,null,null,null,null,null,null,null,null,null,null,null,null,null,null,null,null,null,null,null,null,null,null,null,null,null,null,null,null,null,null,null,null,null,null,null,null,null,null,null,""]
[null,null,null,null,"",null,null,null,null,null,null,null,null,null,null,null,null,null,null,null,null,null,null,null,null,null,null,null,null,null,null,null,null,null,null,null,null,null,null,null,null,null,null,null,null,null,null,null,null,null,null,null,null,null,null,null,null,null,null,null,null,null,null,null,null,null,null,null,null,null,null,null,null,null,""]
[null,null,null,null,"",null,null,null,null,null,null,null,null,null,null,null,null,null,null,null,null,null,null,null,null,null,null,null,null,null,null,null,null,null,null,null,null,null,null,null,null,null,null,null,null,null,null,null,null,null,null,null,null,null,null,null,null,null,null,null,null,null,null,null,null,null,null,null,null,null,null,null,null,null,""]
[null,null,null,null,"",null,null,null,null,null,null,null,null,null,null,null,null,null,null,null,null,null,null,null,null,null,null,null,null,null,null,null,null,null,null,null,null,null,null,null,null,null,null,null,null,null,null,null,null,null,null,null,null,null,null,null,null,null,null,null,null,null,null,null,null,null,null,null,null,null,null,null,null,null,""]
[null,null,null,null,"",null,null,null,null,null,null,null,null,null,null,null,null,null,null,null,null,null,null,null,null,null,null,null,null,null,null,null,null,null,null,null,null,null,null,null,null,null,null,null,null,null,null,null,null,null,null,null,null,null,null,null,null,null,null,null,null,null,null,null,null,null,null,null,null,null,null,null,null,null,""]
[null,null,null,null,"",null,null,null,null,null,null,null,null,null,null,null,null,null,null,null,null,null,null,null,null,null,null,null,null,null,null,null,null,null,null,null,null,null,null,null,null,null,null,null,null,null,null,null,null,null,null,null,null,null,null,null,null,null,null,null,null,null,null,null,null,null,null,null,null,null,null,null,null,null,""]
[null,null,null,null,"",null,null,null,null,null,null,null,null,null,null,null,null,null,null,null,null,null,null,null,null,null,null,null,null,null,null,null,null,null,null,null,null,null,null,null,null,null,null,null,null,null,null,null,null,null,null,null,null,null,null,null,null,null,null,null,null,null,null,null,null,null,null,null,null,null,null,null,null,null,""]
[null,null,null,null,"",null,null,null,null,null,null,null,null,null,null,null,null,null,null,null,null,null,null,null,null,null,null,null,null,null,null,null,null,null,null,null,null,null,null,null,null,null,null,null,null,null,null,null,null,null,null,null,null,null,null,null,null,null,null,null,null,null,null,null,null,null,null,null,null,null,null,null,null,null,""]
[null,null,null,null,"",null,null,null,null,null,null,null,null,null,null,null,null,null,null,null,null,null,null,null,null,null,null,null,null,null,null,null,null,null,null,null,null,null,null,null,null,null,null,null,null,null,null,null,null,null,null,null,null,null,null,null,null,null,null,null,null,null,null,null,null,null,null,null,null,null,null,null,null,null,""]
[null,null,null,null,"",null,null,null,null,null,null,null,null,null,null,null,null,null,null,null,null,null,null,null,null,null,null,null,null,null,null,null,null,null,null,null,null,null,null,null,null,null,null,null,null,null,null,null,null,null,null,null,null,null,null,null,null,null,null,null,null,null,null,null,null,null,null,null,null,null,null,null,null,null,""]
[null,null,null,null,"",null,null,null,null,null,null,null,null,null,null,null,null,null,null,null,null,null,null,null,null,null,null,null,null,null,null,null,null,null,null,null,null,null,null,null,null,null,null,null,null,null,null,null,null,null,null,null,null,null,null,null,null,null,null,null,null,null,null,null,null,null,null,null,null,null,null,null,null,null,""]
[null,null,null,null,"",null,null,null,null,null,null,null,null,null,null,null,null,null,null,null,null,null,null,null,null,null,null,null,null,null,null,null,null,null,null,null,null,null,null,null,null,null,null,null,null,null,null,null,null,null,null,null,null,null,null,null,null,null,null,null,null,null,null,null,null,null,null,null,null,null,null,null,null,null,""]
[null,null,null,null,"",null,null,null,null,null,null,null,null,null,null,null,null,null,null,null,null,null,null,null,null,null,null,null,null,null,null,null,null,null,null,null,null,null,null,null,null,null,null,null,null,null,null,null,null,null,null,null,null,null,null,null,null,null,null,null,null,null,null,null,null,null,null,null,null,null,null,null,null,null,""]
[null,null,null,null,"",null,null,null,null,null,null,null,null,null,null,null,null,null,null,null,null,null,null,null,null,null,null,null,null,null,null,null,null,null,null,null,null,null,null,null,null,null,null,null,null,null,null,null,null,null,null,null,null,null,null,null,null,null,null,null,null,null,null,null,null,null,null,null,null,null,null,null,null,null,""]
[null,null,null,null,"",null,null,null,null,null,null,null,null,null,null,null,null,null,null,null,null,null,null,null,null,null,null,null,null,null,null,null,null,null,null,null,null,null,null,null,null,null,null,null,null,null,null,null,null,null,null,null,null,null,null,null,null,null,null,null,null,null,null,null,null,null,null,null,null,null,null,null,null,null,""]
[null,null,null,null,"",null,null,null,null,null,null,null,null,null,null,null,null,null,null,null,null,null,null,null,null,null,null,null,null,null,null,null,null,null,null,null,null,null,null,null,null,null,null,null,null,null,null,null,null,null,null,null,null,null,null,null,null,null,null,null,null,null,null,null,null,null,null,null,null,null,null,null,null,null,""]
[null,null,null,null,"",null,null,null,null,null,null,null,null,null,null,null,null,null,null,null,null,null,null,null,null,null,null,null,null,null,null,null,null,null,null,null,null,null,null,null,null,null,null,null,null,null,null,null,null,null,null,null,null,null,null,null,null,null,null,null,null,null,null,null,null,null,null,null,null,null,null,null,null,null,""]
[null,null,null,null,"",null,null,null,null,null,null,null,null,null,null,null,null,null,null,null,null,null,null,null,null,null,null,null,null,null,null,null,null,null,null,null,null,null,null,null,null,null,null,null,null,null,null,null,null,null,null,null,null,null,null,null,null,null,null,null,null,null,null,null,null,null,null,null,null,null,null,null,null,null,""]
[null,null,null,null,"",null,null,null,null,null,null,null,null,null,null,null,null,null,null,null,null,null,null,null,null,null,null,null,null,null,null,null,null,null,null,null,null,null,null,null,null,null,null,null,null,null,null,null,null,null,null,null,null,null,null,null,null,null,null,null,null,null,null,null,null,null,null,null,null,null,null,null,null,null,""]
[null,null,null,null,"",null,null,null,null,null,null,null,null,null,null,null,null,null,null,null,null,null,null,null,null,null,null,null,null,null,null,null,null,null,null,null,null,null,null,null,null,null,null,null,null,null,null,null,null,null,null,null,null,null,null,null,null,null,null,null,null,null,null,null,null,null,null,null,null,null,null,null,null,null,""]
[null,null,null,null,"",null,null,null,null,null,null,null,null,null,null,null,null,null,null,null,null,null,null,null,null,null,null,null,null,null,null,null,null,null,null,null,null,null,null,null,null,null,null,null,null,null,null,null,null,null,null,null,null,null,null,null,null,null,null,null,null,null,null,null,null,null,null,null,null,null,null,null,null,null,""]
[null,null,null,null,{"$f":"IF(AND(G48<>\"\",D48=\"\"),\"date manquante!\",\"\")","v":""},null,null,null,null,null,null,null,null,null,null,null,null,null,null,null,null,null,null,null,null,null,null,null,null,null,null,null,null,null,null,null,null,null,null,null,null,null,null,null,null,null,null,null,null,null,null,null,null,null,null,null,null,null,null,null,null,null,null,null,null,null,null,null,null,null,null,null,null,null,{"$f":"IF(BU48>0,IF($D$4>90,BU48*10000/($D$4*$D$4),BU48*704.1/($D$4*$D$4)),\"\")","v":""}]
[null,null,null,null,"",null,null,null,null,null,null,null,null,null,null,null,null,null,null,null,null,null,null,null,null,null,null,null,null,null,null,null,null,null,null,null,null,null,null,null,null,null,null,null,null,null,null,null,null,null,null,null,null,null,null,null,null,null,null,null,null,null,null,null,null,null,null,null,null,null,null,null,null,null,""]
[null,null,null,null,"",null,null,null,null,null,null,null,null,null,null,null,null,null,null,null,null,null,null,null,null,null,null,null,null,null,null,null,null,null,null,null,null,null,null,null,null,null,null,null,null,null,null,null,null,null,null,null,null,null,null,null,null,null,null,null,null,null,null,null,null,null,null,null,null,null,null,null,null,null,""]
[null,null,null,null,"",null,null,null,null,null,null,null,null,null,null,null,null,null,null,null,null,null,null,null,null,null,null,null,null,null,null,null,null,null,null,null,null,null,null,null,null,null,null,null,null,null,null,null,null,null,null,null,null,null,null,null,null,null,null,null,null,null,null,null,null,null,null,null,null,null,null,null,null,null,""]
[null,null,null,null,"",null,null,null,null,null,null,null,null,null,null,null,null,null,null,null,null,null,null,null,null,null,null,null,null,null,null,null,null,null,null,null,null,null,null,null,null,null,null,null,null,null,null,null,null,null,null,null,null,null,null,null,null,null,null,null,null,null,null,null,null,null,null,null,null,null,null,null,null,null,""]
[null,null,null,null,"",null,null,null,null,null,null,null,null,null,null,null,null,null,null,null,null,null,null,null,null,null,null,null,null,null,null,null,null,null,null,null,null,null,null,null,null,null,null,null,null,null,null,null,null,null,null,null,null,null,null,null,null,null,null,null,null,null,null,null,null,null,null,null,null,null,null,null,null,null,""]
[null,null,null,null,"",null,null,null,null,null,null,null,null,null,null,null,null,null,null,null,null,null,null,null,null,null,null,null,null,null,null,null,null,null,null,null,null,null,null,null,null,null,null,null,null,null,null,null,null,null,null,null,null,null,null,null,null,null,null,null,null,null,null,null,null,null,null,null,null,null,null,null,null,null,""]
[null,null,null,null,"",null,null,null,null,null,null,null,null,null,null,null,null,null,null,null,null,null,null,null,null,null,null,null,null,null,null,null,null,null,null,null,null,null,null,null,null,null,null,null,null,null,null,null,null,null,null,null,null,null,null,null,null,null,null,null,null,null,null,null,null,null,null,null,null,null,null,null,null,null,""]
[null,null,null,null,"",null,null,null,null,null,null,null,null,null,null,null,null,null,null,null,null,null,null,null,null,null,null,null,null,null,null,null,null,null,null,null,null,null,null,null,null,null,null,null,null,null,null,null,null,null,null,null,null,null,null,null,null,null,null,null,null,null,null,null,null,null,null,null,null,null,null,null,null,null,""]
[null,null,null,null,"",null,null,null,null,null,null,null,null,null,null,null,null,null,null,null,null,null,null,null,null,null,null,null,null,null,null,null,null,null,null,null,null,null,null,null,null,null,null,null,null,null,null,null,null,null,null,null,null,null,null,null,null,null,null,null,null,null,null,null,null,null,null,null,null,null,null,null,null,null,""]
[null,null,null,null,"",null,null,null,null,null,null,null,null,null,null,null,null,null,null,null,null,null,null,null,null,null,null,null,null,null,null,null,null,null,null,null,null,null,null,null,null,null,null,null,null,null,null,null,null,null,null,null,null,null,null,null,null,null,null,null,null,null,null,null,null,null,null,null,null,null,null,null,null,null,""]
[null,null,null,null,"",null,null,null,null,null,null,null,null,null,null,null,null,null,null,null,null,null,null,null,null,null,null,null,null,null,null,null,null,null,null,null,null,null,null,null,null,null,null,null,null,null,null,null,null,null,null,null,null,null,null,null,null,null,null,null,null,null,null,null,null,null,null,null,null,null,null,null,null,null,""]
[null,null,null,null,"",null,null,null,null,null,null,null,null,null,null,null,null,null,null,null,null,null,null,null,null,null,null,null,null,null,null,null,null,null,null,null,null,null,null,null,null,null,null,null,null,null,null,null,null,null,null,null,null,null,null,null,null,null,null,null,null,null,null,null,null,null,null,null,null,null,null,null,null,null,""]
[null,null,null,null,"",null,null,null,null,null,null,null,null,null,null,null,null,null,null,null,null,null,null,null,null,null,null,null,null,null,null,null,null,null,null,null,null,null,null,null,null,null,null,null,null,null,null,null,null,null,null,null,null,null,null,null,null,null,null,null,null,null,null,null,null,null,null,null,null,null,null,null,null,null,""]
[null,null,null,null,"",null,null,null,null,null,null,null,null,null,null,null,null,null,null,null,null,null,null,null,null,null,null,null,null,null,null,null,null,null,null,null,null,null,null,null,null,null,null,null,null,null,null,null,null,null,null,null,null,null,null,null,null,null,null,null,null,null,null,null,null,null,null,null,null,null,null,null,null,null,""]
[null,null,null,null,"",null,null,null,null,null,null,null,null,null,null,null,null,null,null,null,null,null,null,null,null,null,null,null,null,null,null,null,null,null,null,null,null,null,null,null,null,null,null,null,null,null,null,null,null,null,null,null,null,null,null,null,null,null,null,null,null,null,null,null,null,null,null,null,null,null,null,null,null,null,""]
[null,null,null,null,"",null,null,null,null,null,null,null,null,null,null,null,null,null,null,null,null,null,null,null,null,null,null,null,null,null,null,null,null,null,null,null,null,null,null,null,null,null,null,null,null,null,null,null,null,null,null,null,null,null,null,null,null,null,null,null,null,null,null,null,null,null,null,null,null,null,null,null,null,null,""]
[null,null,null,null,"",null,null,null,null,null,null,null,null,null,null,null,null,null,null,null,null,null,null,null,null,null,null,null,null,null,null,null,null,null,null,null,null,null,null,null,null,null,null,null,null,null,null,null,null,null,null,null,null,null,null,null,null,null,null,null,null,null,null,null,null,null,null,null,null,null,null,null,null,null,""]
[null,null,null,null,"",null,null,null,null,null,null,null,null,null,null,null,null,null,null,null,null,null,null,null,null,null,null,null,null,null,null,null,null,null,null,null,null,null,null,null,null,null,null,null,null,null,null,null,null,null,null,null,null,null,null,null,null,null,null,null,null,null,null,null,null,null,null,null,null,null,null,null,null,null,""]
[null,null,null,null,"",null,null,null,null,null,null,null,null,null,null,null,null,null,null,null,null,null,null,null,null,null,null,null,null,null,null,null,null,null,null,null,null,null,null,null,null,null,null,null,null,null,null,null,null,null,null,null,null,null,null,null,null,null,null,null,null,null,null,null,null,null,null,null,null,null,null,null,null,null,""]
[null,null,null,null,"",null,null,null,null,null,null,null,null,null,null,null,null,null,null,null,null,null,null,null,null,null,null,null,null,null,null,null,null,null,null,null,null,null,null,null,null,null,null,null,null,null,null,null,null,null,null,null,null,null,null,null,null,null,null,null,null,null,null,null,null,null,null,null,null,null,null,null,null,null,""]
[null,null,null,null,"",null,null,null,null,null,null,null,null,null,null,null,null,null,null,null,null,null,null,null,null,null,null,null,null,null,null,null,null,null,null,null,null,null,null,null,null,null,null,null,null,null,null,null,null,null,null,null,null,null,null,null,null,null,null,null,null,null,null,null,null,null,null,null,null,null,null,null,null,null,""]
[null,null,null,null,"",null,null,null,null,null,null,null,null,null,null,null,null,null,null,null,null,null,null,null,null,null,null,null,null,null,null,null,null,null,null,null,null,null,null,null,null,null,null,null,null,null,null,null,null,null,null,null,null,null,null,null,null,null,null,null,null,null,null,null,null,null,null,null,null,null,null,null,null,null,""]
[null,null,null,null,"",null,null,null,null,null,null,null,null,null,null,null,null,null,null,null,null,null,null,null,null,null,null,null,null,null,null,null,null,null,null,null,null,null,null,null,null,null,null,null,null,null,null,null,null,null,null,null,null,null,null,null,null,null,null,null,null,null,null,null,null,null,null,null,null,null,null,null,null,null,""]
[null,null,null,null,"",null,null,null,null,null,null,null,null,null,null,null,null,null,null,null,null,null,null,null,null,null,null,null,null,null,null,null,null,null,null,null,null,null,null,null,null,null,null,null,null,null,null,null,null,null,null,null,null,null,null,null,null,null,null,null,null,null,null,null,null,null,null,null,null,null,null,null,null,null,""]
[null,null,null,null,"",null,null,null,null,null,null,null,null,null,null,null,null,null,null,null,null,null,null,null,null,null,null,null,null,null,null,null,null,null,null,null,null,null,null,null,null,null,null,null,null,null,null,null,null,null,null,null,null,null,null,null,null,null,null,null,null,null,null,null,null,null,null,null,null,null,null,null,null,null,""]
[null,null,null,null,"",null,null,null,null,null,null,null,null,null,null,null,null,null,null,null,null,null,null,null,null,null,null,null,null,null,null,null,null,null,null,null,null,null,null,null,null,null,null,null,null,null,null,null,null,null,null,null,null,null,null,null,null,null,null,null,null,null,null,null,null,null,null,null,null,null,null,null,null,null,""]
[null,null,null,null,"",null,null,null,null,null,null,null,null,null,null,null,null,null,null,null,null,null,null,null,null,null,null,null,null,null,null,null,null,null,null,null,null,null,null,null,null,null,null,null,null,null,null,null,null,null,null,null,null,null,null,null,null,null,null,null,null,null,null,null,null,null,null,null,null,null,null,null,null,null,""]
[null,null,null,null,"",null,null,null,null,null,null,null,null,null,null,null,null,null,null,null,null,null,null,null,null,null,null,null,null,null,null,null,null,null,null,null,null,null,null,null,null,null,null,null,null,null,null,null,null,null,null,null,null,null,null,null,null,null,null,null,null,null,null,null,null,null,null,null,null,null,null,null,null,null,""]
[null,null,null,null,"",null,null,null,null,null,null,null,null,null,null,null,null,null,null,null,null,null,null,null,null,null,null,null,null,null,null,null,null,null,null,null,null,null,null,null,null,null,null,null,null,null,null,null,null,null,null,null,null,null,null,null,null,null,null,null,null,null,null,null,null,null,null,null,null,null,null,null,null,null,""]
[null,null,null,null,"",null,null,null,null,null,null,null,null,null,null,null,null,null,null,null,null,null,null,null,null,null,null,null,null,null,null,null,null,null,null,null,null,null,null,null,null,null,null,null,null,null,null,null,null,null,null,null,null,null,null,null,null,null,null,null,null,null,null,null,null,null,null,null,null,null,null,null,null,null,""]
[null,null,null,null,"",null,null,null,null,null,null,null,null,null,null,null,null,null,null,null,null,null,null,null,null,null,null,null,null,null,null,null,null,null,null,null,null,null,null,null,null,null,null,null,null,null,null,null,null,null,null,null,null,null,null,null,null,null,null,null,null,null,null,null,null,null,null,null,null,null,null,null,null,null,""]
[null,null,null,null,{"$f":"IF(AND(G80<>\"\",D80=\"\"),\"date manquante!\",\"\")","v":""},null,null,null,null,null,null,null,null,null,null,null,null,null,null,null,null,null,null,null,null,null,null,null,null,null,null,null,null,null,null,null,null,null,null,null,null,null,null,null,null,null,null,null,null,null,null,null,null,null,null,null,null,null,null,null,null,null,null,null,null,null,null,null,null,null,null,null,null,null,{"$f":"IF(BU80>0,IF($D$4>90,BU80*10000/($D$4*$D$4),BU80*704.1/($D$4*$D$4)),\"\")","v":""}]
[null,null,null,null,"",null,null,null,null,null,null,null,null,null,null,null,null,null,null,null,null,null,null,null,null,null,null,null,null,null,null,null,null,null,null,null,null,null,null,null,null,null,null,null,null,null,null,null,null,null,null,null,null,null,null,null,null,null,null,null,null,null,null,null,null,null,null,null,null,null,null,null,null,null,""]
[null,null,null,null,"",null,null,null,null,null,null,null,null,null,null,null,null,null,null,null,null,null,null,null,null,null,null,null,null,null,null,null,null,null,null,null,null,null,null,null,null,null,null,null,null,null,null,null,null,null,null,null,null,null,null,null,null,null,null,null,null,null,null,null,null,null,null,null,null,null,null,null,null,null,""]
[null,null,null,null,"",null,null,null,null,null,null,null,null,null,null,null,null,null,null,null,null,null,null,null,null,null,null,null,null,null,null,null,null,null,null,null,null,null,null,null,null,null,null,null,null,null,null,null,null,null,null,null,null,null,null,null,null,null,null,null,null,null,null,null,null,null,null,null,null,null,null,null,null,null,""]
[null,null,null,null,"",null,null,null,null,null,null,null,null,null,null,null,null,null,null,null,null,null,null,null,null,null,null,null,null,null,null,null,null,null,null,null,null,null,null,null,null,null,null,null,null,null,null,null,null,null,null,null,null,null,null,null,null,null,null,null,null,null,null,null,null,null,null,null,null,null,null,null,null,null,""]
[null,null,null,null,"",null,null,null,null,null,null,null,null,null,null,null,null,null,null,null,null,null,null,null,null,null,null,null,null,null,null,null,null,null,null,null,null,null,null,null,null,null,null,null,null,null,null,null,null,null,null,null,null,null,null,null,null,null,null,null,null,null,null,null,null,null,null,null,null,null,null,null,null,null,""]
[null,null,null,null,"",null,null,null,null,null,null,null,null,null,null,null,null,null,null,null,null,null,null,null,null,null,null,null,null,null,null,null,null,null,null,null,null,null,null,null,null,null,null,null,null,null,null,null,null,null,null,null,null,null,null,null,null,null,null,null,null,null,null,null,null,null,null,null,null,null,null,null,null,null,""]
[null,null,null,null,"",null,null,null,null,null,null,null,null,null,null,null,null,null,null,null,null,null,null,null,null,null,null,null,null,null,null,null,null,null,null,null,null,null,null,null,null,null,null,null,null,null,null,null,null,null,null,null,null,null,null,null,null,null,null,null,null,null,null,null,null,null,null,null,null,null,null,null,null,null,""]
[null,null,null,null,"",null,null,null,null,null,null,null,null,null,null,null,null,null,null,null,null,null,null,null,null,null,null,null,null,null,null,null,null,null,null,null,null,null,null,null,null,null,null,null,null,null,null,null,null,null,null,null,null,null,null,null,null,null,null,null,null,null,null,null,null,null,null,null,null,null,null,null,null,null,""]
[null,null,null,null,"",null,null,null,null,null,null,null,null,null,null,null,null,null,null,null,null,null,null,null,null,null,null,null,null,null,null,null,null,null,null,null,null,null,null,null,null,null,null,null,null,null,null,null,null,null,null,null,null,null,null,null,null,null,null,null,null,null,null,null,null,null,null,null,null,null,null,null,null,null,""]
[null,null,null,null,"",null,null,null,null,null,null,null,null,null,null,null,null,null,null,null,null,null,null,null,null,null,null,null,null,null,null,null,null,null,null,null,null,null,null,null,null,null,null,null,null,null,null,null,null,null,null,null,null,null,null,null,null,null,null,null,null,null,null,null,null,null,null,null,null,null,null,null,null,null,""]
[null,null,null,null,"",null,null,null,null,null,null,null,null,null,null,null,null,null,null,null,null,null,null,null,null,null,null,null,null,null,null,null,null,null,null,null,null,null,null,null,null,null,null,null,null,null,null,null,null,null,null,null,null,null,null,null,null,null,null,null,null,null,null,null,null,null,null,null,null,null,null,null,null,null,""]
[null,null,null,null,"",null,null,null,null,null,null,null,null,null,null,null,null,null,null,null,null,null,null,null,null,null,null,null,null,null,null,null,null,null,null,null,null,null,null,null,null,null,null,null,null,null,null,null,null,null,null,null,null,null,null,null,null,null,null,null,null,null,null,null,null,null,null,null,null,null,null,null,null,null,""]
[null,null,null,null,"",null,null,null,null,null,null,null,null,null,null,null,null,null,null,null,null,null,null,null,null,null,null,null,null,null,null,null,null,null,null,null,null,null,null,null,null,null,null,null,null,null,null,null,null,null,null,null,null,null,null,null,null,null,null,null,null,null,null,null,null,null,null,null,null,null,null,null,null,null,""]
[null,null,null,null,"",null,null,null,null,null,null,null,null,null,null,null,null,null,null,null,null,null,null,null,null,null,null,null,null,null,null,null,null,null,null,null,null,null,null,null,null,null,null,null,null,null,null,null,null,null,null,null,null,null,null,null,null,null,null,null,null,null,null,null,null,null,null,null,null,null,null,null,null,null,""]
[null,null,null,null,"",null,null,null,null,null,null,null,null,null,null,null,null,null,null,null,null,null,null,null,null,null,null,null,null,null,null,null,null,null,null,null,null,null,null,null,null,null,null,null,null,null,null,null,null,null,null,null,null,null,null,null,null,null,null,null,null,null,null,null,null,null,null,null,null,null,null,null,null,null,""]
[null,null,null,null,"",null,null,null,null,null,null,null,null,null,null,null,null,null,null,null,null,null,null,null,null,null,null,null,null,null,null,null,null,null,null,null,null,null,null,null,null,null,null,null,null,null,null,null,null,null,null,null,null,null,null,null,null,null,null,null,null,null,null,null,null,null,null,null,null,null,null,null,null,null,""]
[null,null,null,null,"",null,null,null,null,null,null,null,null,null,null,null,null,null,null,null,null,null,null,null,null,null,null,null,null,null,null,null,null,null,null,null,null,null,null,null,null,null,null,null,null,null,null,null,null,null,null,null,null,null,null,null,null,null,null,null,null,null,null,null,null,null,null,null,null,null,null,null,null,null,""]
[null,null,null,null,"",null,null,null,null,null,null,null,null,null,null,null,null,null,null,null,null,null,null,null,null,null,null,null,null,null,null,null,null,null,null,null,null,null,null,null,null,null,null,null,null,null,null,null,null,null,null,null,null,null,null,null,null,null,null,null,null,null,null,null,null,null,null,null,null,null,null,null,null,null,""]
[null,null,null,null,"",null,null,null,null,null,null,null,null,null,null,null,null,null,null,null,null,null,null,null,null,null,null,null,null,null,null,null,null,null,null,null,null,null,null,null,null,null,null,null,null,null,null,null,null,null,null,null,null,null,null,null,null,null,null,null,null,null,null,null,null,null,null,null,null,null,null,null,null,null,""]
[null,null,null,null,"",null,null,null,null,null,null,null,null,null,null,null,null,null,null,null,null,null,null,null,null,null,null,null,null,null,null,null,null,null,null,null,null,null,null,null,null,null,null,null,null,null,null,null,null,null,null,null,null,null,null,null,null,null,null,null,null,null,null,null,null,null,null,null,null,null,null,null,null,null,""]
[null,null,null,null,"",null,null,null,null,null,null,null,null,null,null,null,null,null,null,null,null,null,null,null,null,null,null,null,null,null,null,null,null,null,null,null,null,null,null,null,null,null,null,null,null,null,null,null,null,null,null,null,null,null,null,null,null,null,null,null,null,null,null,null,null,null,null,null,null,null,null,null,null,null,""]
[null,null,null,null,"",null,null,null,null,null,null,null,null,null,null,null,null,null,null,null,null,null,null,null,null,null,null,null,null,null,null,null,null,null,null,null,null,null,null,null,null,null,null,null,null,null,null,null,null,null,null,null,null,null,null,null,null,null,null,null,null,null,null,null,null,null,null,null,null,null,null,null,null,null,""]
[null,null,null,null,"",null,null,null,null,null,null,null,null,null,null,null,null,null,null,null,null,null,null,null,null,null,null,null,null,null,null,null,null,null,null,null,null,null,null,null,null,null,null,null,null,null,null,null,null,null,null,null,null,null,null,null,null,null,null,null,null,null,null,null,null,null,null,null,null,null,null,null,null,null,""]
[null,null,null,null,"",null,null,null,null,null,null,null,null,null,null,null,null,null,null,null,null,null,null,null,null,null,null,null,null,null,null,null,null,null,null,null,null,null,null,null,null,null,null,null,null,null,null,null,null,null,null,null,null,null,null,null,null,null,null,null,null,null,null,null,null,null,null,null,null,null,null,null,null,null,""]
[null,null,null,null,"",null,null,null,null,null,null,null,null,null,null,null,null,null,null,null,null,null,null,null,null,null,null,null,null,null,null,null,null,null,null,null,null,null,null,null,null,null,null,null,null,null,null,null,null,null,null,null,null,null,null,null,null,null,null,null,null,null,null,null,null,null,null,null,null,null,null,null,null,null,""]
[null,null,null,null,"",null,null,null,null,null,null,null,null,null,null,null,null,null,null,null,null,null,null,null,null,null,null,null,null,null,null,null,null,null,null,null,null,null,null,null,null,null,null,null,null,null,null,null,null,null,null,null,null,null,null,null,null,null,null,null,null,null,null,null,null,null,null,null,null,null,null,null,null,null,""]
[null,null,null,null,"",null,null,null,null,null,null,null,null,null,null,null,null,null,null,null,null,null,null,null,null,null,null,null,null,null,null,null,null,null,null,null,null,null,null,null,null,null,null,null,null,null,null,null,null,null,null,null,null,null,null,null,null,null,null,null,null,null,null,null,null,null,null,null,null,null,null,null,null,null,""]
[null,null,null,null,"",null,null,null,null,null,null,null,null,null,null,null,null,null,null,null,null,null,null,null,null,null,null,null,null,null,null,null,null,null,null,null,null,null,null,null,null,null,null,null,null,null,null,null,null,null,null,null,null,null,null,null,null,null,null,null,null,null,null,null,null,null,null,null,null,null,null,null,null,null,""]
[null,null,null,null,"",null,null,null,null,null,null,null,null,null,null,null,null,null,null,null,null,null,null,null,null,null,null,null,null,null,null,null,null,null,null,null,null,null,null,null,null,null,null,null,null,null,null,null,null,null,null,null,null,null,null,null,null,null,null,null,null,null,null,null,null,null,null,null,null,null,null,null,null,null,""]
[null,null,null,null,"",null,null,null,null,null,null,null,null,null,null,null,null,null,null,null,null,null,null,null,null,null,null,null,null,null,null,null,null,null,null,null,null,null,null,null,null,null,null,null,null,null,null,null,null,null,null,null,null,null,null,null,null,null,null,null,null,null,null,null,null,null,null,null,null,null,null,null,null,null,""]
[null,null,null,null,"",null,null,null,null,null,null,null,null,null,null,null,null,null,null,null,null,null,null,null,null,null,null,null,null,null,null,null,null,null,null,null,null,null,null,null,null,null,null,null,null,null,null,null,null,null,null,null,null,null,null,null,null,null,null,null,null,null,null,null,null,null,null,null,null,null,null,null,null,null,""]
[null,null,null,null,{"$f":"IF(AND(G112<>\"\",D112=\"\"),\"date manquante!\",\"\")","v":""},null,null,null,null,null,null,null,null,null,null,null,null,null,null,null,null,null,null,null,null,null,null,null,null,null,null,null,null,null,null,null,null,null,null,null,null,null,null,null,null,null,null,null,null,null,null,null,null,null,null,null,null,null,null,null,null,null,null,null,null,null,null,null,null,null,null,null,null,null,{"$f":"IF(BU112>0,IF($D$4>90,BU112*10000/($D$4*$D$4),BU112*704.1/($D$4*$D$4)),\"\")","v":""}]
[null,null,null,null,"",null,null,null,null,null,null,null,null,null,null,null,null,null,null,null,null,null,null,null,null,null,null,null,null,null,null,null,null,null,null,null,null,null,null,null,null,null,null,null,null,null,null,null,null,null,null,null,null,null,null,null,null,null,null,null,null,null,null,null,null,null,null,null,null,null,null,null,null,null,""]
[null,null,null,null,"",null,null,null,null,null,null,null,null,null,null,null,null,null,null,null,null,null,null,null,null,null,null,null,null,null,null,null,null,null,null,null,null,null,null,null,null,null,null,null,null,null,null,null,null,null,null,null,null,null,null,null,null,null,null,null,null,null,null,null,null,null,null,null,null,null,null,null,null,null,""]
[null,null,null,null,"",null,null,null,null,null,null,null,null,null,null,null,null,null,null,null,null,null,null,null,null,null,null,null,null,null,null,null,null,null,null,null,null,null,null,null,null,null,null,null,null,null,null,null,null,null,null,null,null,null,null,null,null,null,null,null,null,null,null,null,null,null,null,null,null,null,null,null,null,null,""]
[null,null,null,null,"",null,null,null,null,null,null,null,null,null,null,null,null,null,null,null,null,null,null,null,null,null,null,null,null,null,null,null,null,null,null,null,null,null,null,null,null,null,null,null,null,null,null,null,null,null,null,null,null,null,null,null,null,null,null,null,null,null,null,null,null,null,null,null,null,null,null,null,null,null,""]
[null,null,null,null,"",null,null,null,null,null,null,null,null,null,null,null,null,null,null,null,null,null,null,null,null,null,null,null,null,null,null,null,null,null,null,null,null,null,null,null,null,null,null,null,null,null,null,null,null,null,null,null,null,null,null,null,null,null,null,null,null,null,null,null,null,null,null,null,null,null,null,null,null,null,""]
[null,null,null,null,"",null,null,null,null,null,null,null,null,null,null,null,null,null,null,null,null,null,null,null,null,null,null,null,null,null,null,null,null,null,null,null,null,null,null,null,null,null,null,null,null,null,null,null,null,null,null,null,null,null,null,null,null,null,null,null,null,null,null,null,null,null,null,null,null,null,null,null,null,null,""]
[null,null,null,null,"",null,null,null,null,null,null,null,null,null,null,null,null,null,null,null,null,null,null,null,null,null,null,null,null,null,null,null,null,null,null,null,null,null,null,null,null,null,null,null,null,null,null,null,null,null,null,null,null,null,null,null,null,null,null,null,null,null,null,null,null,null,null,null,null,null,null,null,null,null,""]
[null,null,null,null,"",null,null,null,null,null,null,null,null,null,null,null,null,null,null,null,null,null,null,null,null,null,null,null,null,null,null,null,null,null,null,null,null,null,null,null,null,null,null,null,null,null,null,null,null,null,null,null,null,null,null,null,null,null,null,null,null,null,null,null,null,null,null,null,null,null,null,null,null,null,""]
[null,null,null,null,"",null,null,null,null,null,null,null,null,null,null,null,null,null,null,null,null,null,null,null,null,null,null,null,null,null,null,null,null,null,null,null,null,null,null,null,null,null,null,null,null,null,null,null,null,null,null,null,null,null,null,null,null,null,null,null,null,null,null,null,null,null,null,null,null,null,null,null,null,null,""]
[null,null,null,null,"",null,null,null,null,null,null,null,null,null,null,null,null,null,null,null,null,null,null,null,null,null,null,null,null,null,null,null,null,null,null,null,null,null,null,null,null,null,null,null,null,null,null,null,null,null,null,null,null,null,null,null,null,null,null,null,null,null,null,null,null,null,null,null,null,null,null,null,null,null,""]
[null,null,null,null,"",null,null,null,null,null,null,null,null,null,null,null,null,null,null,null,null,null,null,null,null,null,null,null,null,null,null,null,null,null,null,null,null,null,null,null,null,null,null,null,null,null,null,null,null,null,null,null,null,null,null,null,null,null,null,null,null,null,null,null,null,null,null,null,null,null,null,null,null,null,""]
[null,null,null,null,"",null,null,null,null,null,null,null,null,null,null,null,null,null,null,null,null,null,null,null,null,null,null,null,null,null,null,null,null,null,null,null,null,null,null,null,null,null,null,null,null,null,null,null,null,null,null,null,null,null,null,null,null,null,null,null,null,null,null,null,null,null,null,null,null,null,null,null,null,null,""]

{"sheet":"État de santé","index":2,"n_rows":105,"n_cols":31,"rows_kept":105,"cut":false,"hidden":false,"merged":[[2,3,2,4],[7,5,7,6],[3,7,3,8],[4,7,4,8],[2,7,2,9]]}
[null,null,null,null,null,null,"Informations importantes sur votre état de santé",null,null,null,null,null,null,null,"Cliquez pour retourner à la page d'accueil",null,null,null,null,null,null,null,null,null,null,null,null,null,null,null,"nature"]
[null,null,{"$f":"Accueil!C5","v":"Prénom  Nom :"},{"$f":"IF(Accueil!D5=\"\",\"\",Accueil!D5)","v":""},null,null,{"$f":"Accueil!G5","v":"Dossier hôpital :"},{"$f":"IF(Accueil!I5=\"\",\"\",Accueil!I5)","v":""},null,null,"Taille (cm) :",{"$f":"IF(Accueil!D8=\"\",\"saisissez votre taille dans Accueil!\",Accueil!D8)","v":"saisissez votre taille dans Accueil!"},"<= entrer votre taille dans la page Accueil"]
[null,null,{"$f":"Accueil!C6","v":"Date naissance :"},{"$f":"IF(Accueil!D6=\"\",\"\",Accueil!D6)","v":""},null,null,{"$f":"Accueil!G6","v":"n°SS :"},{"$f":"IF(Accueil!I6=\"\",\"\",Accueil!I6)","v":""},null,null,"Autres pathologies :",null,"<= indiquez ici vos autres pathologies",null,null,{"$f":"Accueil!C5","v":"Prénom  Nom :"},{"$f":"IF(Accueil!D5=\"\",\"\",Accueil!D5)","v":""},{"$f":"Accueil!G5","v":"Dossier hôpital :"},{"$f":"IF(Accueil!I5=\"\",\"\",Accueil!I5)","v":""}]
[null,null,{"$f":"Accueil!C7","v":"Oncologue :"},{"$f":"IF(Accueil!D7=\"\",\"\",Accueil!D7)","v":""},null,null,{"$f":"Accueil!G7","v":"Diagnostiqué le :"},{"$f":"IF(Accueil!I7=\"\",\"\",Accueil!I7)","v":""},null,null,null,null,"<= indiquez ici vos autres pathologies",null,null,{"$f":"Accueil!C6","v":"Date naissance :"},{"$f":"IF(Accueil!D6=\"\",\"\",Accueil!D6)","v":""},{"$f":"Accueil!G6","v":"n°SS :"},{"$f":"IF(Accueil!I6=\"\",\"\",Accueil!I6)","v":""}]
[null,null,null,null,null,null,{"$f":"Accueil!G8","v":"Date dernier traitement :"},{"$f":"IF(Accueil!I8=\"\",\"\",Accueil!I8)","v":""},null,null,null,null,"<= indiquez ici vos autres pathologies",null,null,{"$f":"Accueil!C7","v":"Oncologue :"},{"$f":"IF(Accueil!D7=\"\",\"\",Accueil!D7)","v":""},{"$f":"Accueil!G7","v":"Diagnostiqué le :"},{"$f":"IF(Accueil!I7=\"\",\"\",Accueil!I7)","v":""}]
[null,null,null,null,null,null,null,null,null,null,null,null,null,null,null,null,null,{"$f":"Accueil!G8","v":"Date dernier traitement :"},{"$f":"IF(Accueil!I8=\"\",\"\",Accueil!I8)","v":""},null,null,null,null,null,null,null,null,null,null,null,"soins"]
[null,"Vos constantes",null,null,null,null,null,"Vos problèmes de santé",null,null,null,null,null,null,"Vos consultations",null,null,null,null,null,null,null,null,null,null,null,null,null,null,null,"Chimio"]
[null,"Date","Poids","IMC","Battement","Tension artérielle",null,"Fièvre","douleur","Fatigue","symptomes","Traitement","nature",null,"Date","Nom","Lieu","Spécialité","Traitement prescrit","Posologie","Résumé de la consultation",null,null,null,null,null,null,null,null,null,"Ibrutinib"]
[null,null,null,null,"cardiaque","Systolique","Diastolique",null,"échelle","échelle","ou maladies","détail","soins",null,null,null,null,null,null,null,null,null,null,null,null,null,null,null,null,null,"Transfusion"]
[null," (JJ/MM/AAAA)","kg",null,"nbre/mn","mmHg","mmHg",null,null,null,null,null,"en cours",null," (JJ/MM/AAAA)",null,null,null,null,null,null,null,null,null,null,null,null,null,null,null,"Wait and Watch"]
[null,"ex: 01/03/2016",null,"poids/taille²",null,"50-180","50-110","36-41","1-10","1-10","texte libre","texte libre","texte libre",null,"ex: 01/03/16","ex: V. Leblond","ex: hopital Saléptrière","ex : hématologue","texte libre","texte libre","texte libre",null,null,null,null,null,null,null,null,null,"Traitement hors wald"]
[null,null,null,{"$f":"IF(C12>0,IF($L$2>90,C12*10000/($L$2*$L$2),C12*704.1/($L$2*$L$2)),\"\")","v":""},null,null,null,null,null,null,null,null,null,null,null,null,null,null,null,null,null,null,null,null,null,null,null,null,null,null,"Immunothérapie (rituximab)"]
[null,null,null,{"$f":"IF(C13>0,IF($L$2>90,C13*10000/($L$2*$L$2),C13*704.1/($L$2*$L$2)),\"\")","v":""},null,null,null,null,null,null,null,null,null,null,null,null,null,null,null,null,null,null,null,null,null,null,null,null,null,null,"autre"]
[null,null,null,""]
[null,null,null,""]
[null,null,null,""]
[null,null,null,""]
[null,null,null,""]
[null,null,null,""]
[null,null,null,""]
[null,null,null,""]
[null,null,null,""]
[null,null,null,""]
[null,null,null,""]
[null,null,null,""]
[null,null,null,""]
[null,null,null,""]
[null,null,null,""]
[null,null,null,""]
[null,null,null,""]
[null,null,null,""]
[null,null,null,""]
[null,null,null,""]
[null,null,null,""]
[null,null,null,""]
[null,null,null,""]
[null,null,null,""]
[null,null,null,""]
[null,null,null,""]
[null,null,null,""]
[null,null,null,""]
[null,null,null,""]
[null,null,null,""]
[null,null,null,""]
[null,null,null,""]
[null,null,null,""]
[null,null,null,""]
[null,null,null,""]
[null,null,null,""]
[null,null,null,""]
[null,null,null,""]
[null,null,null,""]
[null,null,null,""]
[null,null,null,""]
[null,null,null,""]
[null,null,null,""]
[null,null,null,""]
[null,null,null,""]
[null,null,null,""]
[null,null,null,""]
[null,null,null,""]
[null,null,null,""]
[null,null,null,""]
[null,null,null,""]
[null,null,null,""]
[null,null,null,""]
[null,null,null,""]
[null,null,null,""]
[null,null,null,""]
[null,null,null,""]
[null,null,null,""]
[null,null,null,""]
[null,null,null,""]
[null,null,null,""]
[null,null,null,""]
[null,null,null,""]
[null,null,null,{"$f":"IF(C77>0,IF($L$2>90,C77*10000/($L$2*$L$2),C77*704.1/($L$2*$L$2)),\"\")","v":""}]
[null,null,null,""]
[null,null,null,""]
[null,null,null,""]
[null,null,null,""]
[null,null,null,""]
[null,null,null,""]
[null,null,null,""]
[null,null,null,""]
[null,null,null,""]
[null,null,null,""]
[null,null,null,""]
[null,null,null,""]
[null,null,null,""]
[null,null,null,""]
[null,null,null,""]
[null,null,null,""]
[null,null,null,""]
[null,null,null,""]
[null,null,null,""]
[null,null,null,""]
[null,null,null,""]
[null,null,null,""]
[null,null,null,""]
[null,null,null,""]
[null,null,null,""]
[null,null,null,""]
[null,null,null,""]
[null,null,null,""]

{"sheet":"Principaux résultats","index":3,"n_rows":120,"n_cols":48,"rows_kept":120,"cut":false,"hidden":false,"merged":[[1,15,2,15],[5,18,7,18],[1,5,1,7],[6,27,6,28],[6,31,6,32],[3,31,3,32],[4,27,4,28],[4,31,4,32],[5,27,5,28],[5,31,5,32],[7,14,10,14],[7,15,10,15],[4,8,4,9],[5,17,7,17],[8,13,10,13],[4,4,4,5],[5,8,5,9],[6,8,6,9],[1,1,2,1],[0,5,0,7],[4,2,4,3],[5,2,5,3],[6,2,6,3],[5,4,5,5],[6,4,6,5],[3,6,3,7],[4,6,4,7],[5,6,5,7],[6,6,6,7]]}
[null,"Cliquez pour afficher toutes les colonnes",null,null,null,"Vous pouvez masquer les colonnes que vous ne souhaitez pas visualiser en cliquant sur les boutons",null,null,null,null,null,null,null,null,null,null,null,null,null,null,null,null,null,null,"Données pour les courbes"]
[null,"Cliquez pour retourner à la page d'accueil",null,null,null,"Cliquez pour ranger vos données dans l'ordre chronologique"]
[]
[null,null,{"$f":"Accueil!C4","v":"identifiants patient :"},null,null,null,{"$f":"Accueil!G5","v":"Dossier hôpital :"},null,{"$f":"IF(Accueil!I5=\"\",\"\",Accueil!I5)","v":""},null,null,null,null,null,null,null,null,null,null,null,null,null,null,null,null,null,null,null,null,null,null,null,null,null,null,null,null,null,{"$f":"IF(Accueil!S8=\"\",\"\",Accueil!S8)","v":""}]
[null,null,{"$f":"Accueil!C5","v":"Prénom  Nom :"},null,{"$f":"IF(Accueil!D5=\"\",\"\",Accueil!D5)","v":""},null,{"$f":"Accueil!G6","v":"n°SS :"},null,{"$f":"IF(Accueil!I6=\"\",\"\",Accueil!I6)","v":""},null,null,null,null,null,null,null,null,null,null,null,null,null,null,null,null,null,null,{"$f":"IF(Accueil!S5=\"\",\"\",Accueil!S5)","v":""},null,null,null,null,null,null,null,null,null,null,{"$f":"IF(Accueil!S9=\"\",\"\",Accueil!S9)","v":""}]
[null,null,{"$f":"Accueil!C6","v":"Date naissance :"},null,{"$f":"IF(Accueil!D6=\"\",\"\",Accueil!D6)","v":""},null,{"$f":"Accueil!G7","v":"Diagnostiqué le :"},null,{"$f":"IF(Accueil!I7=\"\",\"\",Accueil!I7)","v":""},null,null,null,null,null,null,null,null,"récuparation valeur du pic Alpha ou Beta courbe","récuparation valeur du pic Alpha ou Beta",null,null,null,null,null,null,null,null,{"$f":"IF(Accueil!S6=\"\",\"\",Accueil!S6)","v":""}]
[null,null,{"$f":"Accueil!C7","v":"Oncologue :"},null,{"$f":"IF(Accueil!D7=\"\",\"\",Accueil!D7)","v":""},null,{"$f":"Accueil!G8","v":"Date dernier traitement :"},null,{"$f":"IF(Accueil!I8=\"\",\"\",Accueil!I8)","v":""},null,null,"plutôt suivi en phase de traitement ",null,null,null,null,null,null,null,"Identification pic Alpha ou Béta",null,null,null,null,null,null,null,{"$f":"IF(Accueil!S7=\"\",\"\",Accueil!S7)","v":""}]
[null,null,"Date",{"$f":"Saisie!Q12","v":"Leucocytes"},{"$f":"Saisie!G12","v":"Hémoglobine"},{"$f":"Saisie!AV12","v":"Estimation Pic monocl."},{"$f":"Saisie!N12","v":"Plaquettes"},"Immuno globulines Alpha ou Beta",{"$f":"Saisie!AU12","v":"Gamma - globuline"},{"$f":"Saisie!BL12","v":"Créatinine \nsanguine"},{"$f":"Saisie!AG12","v":"CRP (Protéine C réactive)"},{"$f":"Saisie!V12","v":"Lymphocytes"},{"$f":"Saisie!R12","v":"Polynucléaires \nneutrophiles"},{"$f":"Saisie!C13","v":"Événements"},"Labo","Prescrit par",null,null,null,"Alpha-1 ou Alpha-2 globuline","Béta-1 ou Béta-2 globuline",null,"min leucocyte","max leucocyte",{"$f":"IF(Saisie!Q12=0,#N/A,Saisie!Q12)","v":"Leucocytes"},"min hemoglobine","max hemoglobine",{"$f":"IF(Saisie!G12=0,#N/A,Saisie!G12)","v":"Hémoglobine"},{"$f":"IF(Saisie!AV12=0,#N/A,Saisie!AV12)","v":"Estimation Pic monocl."},"min plaquette","max plaquettes",{"$f":"IF(Saisie!N12=0,#N/A,Saisie!N12)","v":"Plaquettes"},"Globuline","min globuline","max globuline",{"$f":"Saisie!AU12","v":"Gamma - globuline"},"min créatinine","max créatinine",{"$f":"IF(Saisie!BL12=0,#N/A,Saisie!BL12)","v":"Créatinine \nsanguine"},"max CRP",{"$f":"IF(Saisie!AG12=0,#N/A,Saisie!AG12)","v":"CRP (Protéine C réactive)"},"min lymphocytes","max lymphocytes",{"$f":"IF(Saisie!V12=0,#N/A,Saisie!V12)","v":"Lymphocytes"},"min neutro","max neutro",{"$f":"IF(Saisie!R12=0,#N/A,Saisie!R12)","v":"Polynucléaires \nneutrophiles"},"date pour les courbes"]
[null,null,"JJ/MM/AAAA",{"$f":"Saisie!Q13","v":"/mm3"},{"$f":"Saisie!G13","v":"g/dl"},{"$f":"Saisie!AV13","v":"g/l"},{"$f":"Saisie!N13","v":"giga/l"},"g/l",{"$f":"Saisie!AU13","v":"g/l"},{"$f":"Saisie!BL13","v":"µmol/l"},{"$f":"Saisie!AG13","v":"mg/l"},{"$f":"Saisie!V13","v":"/mm3"},{"$f":"Saisie!R13","v":"/mm3"},{"$f":"Saisie!C14","v":"Événements importants : traitements, transfusions, maladies, symptomes…"},null,null,null,null,null,null,null,null,null,null,{"$f":"IF(Saisie!Q13=0,#N/A,Saisie!Q13)","v":"/mm3"},null,null,{"$f":"IF(Saisie!G13=0,#N/A,Saisie!G13)","v":"g/dl"},{"$f":"IF(Saisie!AV13=0,#N/A,Saisie!AV13)","v":"g/l"},null,null,{"$f":"IF(Saisie!N13=0,#N/A,Saisie!N13)","v":"giga/l"},"g/l",null,null,{"$f":"Saisie!AU13","v":"g/l"},null,null,{"$f":"IF(Saisie!BL13=0,#N/A,Saisie!BL13)","v":"µmol/l"},null,{"$f":"IF(Saisie!AG13=0,#N/A,Saisie!AG13)","v":"mg/l"},null,null,{"$f":"IF(Saisie!V13=0,#N/A,Saisie!V13)","v":"/mm3"},null,null,{"$f":"IF(Saisie!R13=0,#N/A,Saisie!R13)","v":"/mm3"}]
[null,null,"min",{"$f":"Saisie!Q14","v":4000},{"$f":"Saisie!G14","v":12},{"$f":"Saisie!AV14","v":0},{"$f":"Saisie!N14","v":150},{"$f":"IF(COUNT(T12:T26)<>0,\"Alpha1 ou Alpha 2\",\"\")","v":""},{"$f":"Saisie!AU14","v":8},{"$f":"Saisie!BL14","v":50},{"$f":"Saisie!AG14","v":0},{"$f":"Saisie!V14","v":1500},{"$f":"Saisie!R14","v":1800},null,null,null,null,"globulines","globulines",null,null,null,null,null,{"$f":"IF(Saisie!Q14=0,#N/A,Saisie!Q14)","v":4000},null,null,{"$f":"IF(Saisie!G14=0,#N/A,Saisie!G14)","v":12},{"$f":"IF(Saisie!AV14=0,#N/A,Saisie!AV14)","v":{"$error":"#N/A"}},null,null,{"$f":"IF(Saisie!N14=0,#N/A,Saisie!N14)","v":150},{"$f":"IF(COUNT(AY12:AY26)<>0,\"Alpha1 ou Alpha 2\",\"\")","v":""},null,null,{"$f":"Saisie!AU14","v":8},null,null,{"$f":"IF(Saisie!BL14=0,#N/A,Saisie!BL14)","v":50},null,{"$f":"IF(Saisie!AG14=0,#N/A,Saisie!AG14)","v":{"$error":"#N/A"}},null,null,{"$f":"IF(Saisie!V14=0,#N/A,Saisie!V14)","v":1500},null,null,{"$f":"IF(Saisie!R14=0,#N/A,Saisie!R14)","v":1800}]
[null,null,"max",{"$f":"Saisie!Q15","v":10000},{"$f":"Saisie!G15","v":16},{"$f":"Saisie!AV15","v":0},{"$f":"Saisie!N15","v":400},{"$f":"IF(COUNT(U12:U26)<>0,\"Beta 1 ou Beta 2\",\"\")","v":""},{"$f":"Saisie!AU15","v":16},{"$f":"Saisie!BL15","v":104},{"$f":"Saisie!AG15","v":5},{"$f":"Saisie!V15","v":4000},{"$f":"Saisie!R15","v":7000},null,null,null,null,null,null,null,null,null,null,null,{"$f":"IF(Saisie!Q15=0,#N/A,Saisie!Q15)","v":10000},null,null,{"$f":"IF(Saisie!G15=0,#N/A,Saisie!G15)","v":16},{"$f":"IF(Saisie!AV15=0,#N/A,Saisie!AV15)","v":{"$error":"#N/A"}},null,null,{"$f":"IF(Saisie!N15=0,#N/A,Saisie!N15)","v":400},{"$f":"IF(COUNT(AZ12:AZ26)<>0,\"Beta 1 ou Beta 2\",\"\")","v":""},null,null,{"$f":"Saisie!AU15","v":16},null,null,{"$f":"IF(Saisie!BL15=0,#N/A,Saisie!BL15)","v":104},null,{"$f":"IF(Saisie!AG15=0,#N/A,Saisie!AG15)","v":5},null,null,{"$f":"IF(Saisie!V15=0,#N/A,Saisie!V15)","v":4000},null,null,{"$f":"IF(Saisie!R15=0,#N/A,Saisie!R15)","v":7000}]
[null,null,{"$f":"IF(Saisie!D16=0,\"\",Saisie!D16)","v":""},{"$f":"IF(Saisie!Q16=0,\"\",Saisie!Q16)","v":""},{"$f":"IF(Saisie!G16=0,\"\",Saisie!G16)","v":""},{"$f":"IF(Saisie!AV16=0,\"\",Saisie!AV16)","v":""},{"$f":"IF(Saisie!N16=0,\"\",Saisie!N16)","v":""},{"$f":"S12","v":""},{"$f":"IF(Saisie!AU16=0,\"\",Saisie!AU16)","v":""},{"$f":"IF(Saisie!BL16=0,\"\",Saisie!BL16)","v":""},{"$f":"IF(Saisie!AG16=0,\"\",Saisie!AG16)","v":""},{"$f":"IF(Saisie!V16=0,\"\",Saisie!V16)","v":""},{"$f":"IF(Saisie!R16=0,\"\",Saisie!R16)","v":""},{"$f":"IF(Saisie!C16=0,\"\",Saisie!C16)","v":""},{"$f":"IF(Saisie!FC16=0,\"\",Saisie!FC16)","v":""},{"$f":"IF(Saisie!FD16=0,\"\",Saisie!FD16)","v":""},null,{"$f":"IF(S12=\"\",#N/A,S12)","v":{"$error":"#N/A"}},{"$f":"IF(ISNA(T12), IF(ISNA(U12),\"\",U12),T12)","v":""},{"$f":"IF(Saisie!AM16>Saisie!$AM$15,Saisie!AM16,IF(Saisie!AO16>Saisie!$AO$15,Saisie!AO16,#N/A))","v":{"$error":"#N/A"}},{"$f":"IF(Saisie!AQ16>Saisie!$AQ$15,Saisie!AQ16,IF(Saisie!AS16>Saisie!$AS$15,Saisie!AS16,#N/A))","v":{"$error":"#N/A"}},null,{"$f":"$Y$10","v":4000},{"$f":"$Y$11","v":10000},{"$f":"IF(Saisie!Q16=0,#N/A,Saisie!Q16)","v":{"$error":"#N/A"}},{"$f":"$AB$10","v":12},{"$f":"$AB$11","v":16},{"$f":"IF(Saisie!G16=0,#N/A,Saisie!G16)","v":{"$error":"#N/A"}},{"$f":"IF(Saisie!AV16=0,#N/A,Saisie!AV16)","v":{"$error":"#N/A"}},{"$f":"$AF$10","v":150},{"$f":"$AF$11","v":400},{"$f":"IF(Saisie!N16=0,#N/A,Saisie!N16)","v":{"$error":"#N/A"}},{"$f":"IF(T12<>\"#N/A\",T12,IF(U12<>\"#N/A\",U12,\"\"))","v":{"$error":"#N/A"}},{"$f":"$AJ$10","v":8},{"$f":"$AJ$11","v":16},{"$f":"IF(Saisie!AU16=0,#N/A,Saisie!AU16)","v":{"$error":"#N/A"}},{"$f":"$AM$10","v":50},{"$f":"$AM$11","v":104},{"$f":"IF(Saisie!BL16=0,#N/A,Saisie!BL16)","v":{"$error":"#N/A"}},{"$f":"$AO$11","v":5},{"$f":"IF(Saisie!AG16=0,#N/A,Saisie!AG16)","v":{"$error":"#N/A"}},{"$f":"$AR$10","v":1500},{"$f":"$AR$11","v":4000},{"$f":"IF(Saisie!V16=0,#N/A,Saisie!V16)","v":{"$error":"#N/A"}},{"$f":"$AU$10","v":1800},{"$f":"$AU$11","v":7000},{"$f":"IF(Saisie!R16=0,#N/A,Saisie!R16)","v":{"$error":"#N/A"}},{"$f":"IF(C12=\"\",#N/A,C12)","v":{"$error":"#N/A"}}]
[null,null,{"$f":"IF(Saisie!D17=0,\"\",Saisie!D17)","v":""},{"$f":"IF(Saisie!Q17=0,\"\",Saisie!Q17)","v":""},{"$f":"IF(Saisie!G17=0,\"\",Saisie!G17)","v":""},{"$f":"IF(Saisie!AV17=0,\"\",Saisie!AV17)","v":""},{"$f":"IF(Saisie!N17=0,\"\",Saisie!N17)","v":""},{"$f":"S13","v":""},{"$f":"IF(Saisie!AU17=0,\"\",Saisie!AU17)","v":""},{"$f":"IF(Saisie!BL17=0,\"\",Saisie!BL17)","v":""},{"$f":"IF(Saisie!AG17=0,\"\",Saisie!AG17)","v":""},{"$f":"IF(Saisie!V17=0,\"\",Saisie!V17)","v":""},{"$f":"IF(Saisie!R17=0,\"\",Saisie!R17)","v":""},{"$f":"IF(Saisie!C17=0,\"\",Saisie!C17)","v":""},{"$f":"IF(Saisie!FC17=0,\"\",Saisie!FC17)","v":""},{"$f":"IF(Saisie!FD17=0,\"\",Saisie!FD17)","v":""},null,{"$f":"IF(S13=\"\",#N/A,S13)","v":{"$error":"#N/A"}},{"$f":"IF(ISNA(T13), IF(ISNA(U13),\"\",U13),T13)","v":""},{"$f":"IF(Saisie!AM17>Saisie!$AM$15,Saisie!AM17,IF(Saisie!AO17>Saisie!$AO$15,Saisie!AO17,#N/A))","v":{"$error":"#N/A"}},{"$f":"IF(Saisie!AQ17>Saisie!$AQ$15,Saisie!AQ17,IF(Saisie!AS17>Saisie!$AS$15,Saisie!AS17,#N/A))","v":{"$error":"#N/A"}},null,{"$f":"$Y$10","v":4000},{"$f":"$Y$11","v":10000},{"$f":"IF(Saisie!Q17=0,#N/A,Saisie!Q17)","v":{"$error":"#N/A"}},{"$f":"$AB$10","v":12},{"$f":"$AB$11","v":16},{"$f":"IF(Saisie!G17=0,#N/A,Saisie!G17)","v":{"$error":"#N/A"}},{"$f":"IF(Saisie!AV17=0,#N/A,Saisie!AV17)","v":{"$error":"#N/A"}},{"$f":"$AF$10","v":150},{"$f":"$AF$11","v":400},{"$f":"IF(Saisie!N17=0,#N/A,Saisie!N17)","v":{"$error":"#N/A"}},{"$f":"IF(T13<>\"#N/A\",T13,IF(U13<>\"#N/A\",U13,\"\"))","v":{"$error":"#N/A"}},{"$f":"$AJ$10","v":8},{"$f":"$AJ$11","v":16},{"$f":"IF(Saisie!AU17=0,#N/A,Saisie!AU17)","v":{"$error":"#N/A"}},{"$f":"$AM$10","v":50},{"$f":"$AM$11","v":104},{"$f":"IF(Saisie!BL17=0,#N/A,Saisie!BL17)","v":{"$error":"#N/A"}},{"$f":"$AO$11","v":5},{"$f":"IF(Saisie!AG17=0,#N/A,Saisie!AG17)","v":{"$error":"#N/A"}},{"$f":"$AR$10","v":1500},{"$f":"$AR$11","v":4000},{"$f":"IF(Saisie!V17=0,#N/A,Saisie!V17)","v":{"$error":"#N/A"}},{"$f":"$AU$10","v":1800},{"$f":"$AU$11","v":7000},{"$f":"IF(Saisie!R17=0,#N/A,Saisie!R17)","v":{"$error":"#N/A"}},{"$f":"IF(C13=\"\",#N/A,C13)","v":{"$error":"#N/A"}}]
[null,null,{"$f":"IF(Saisie!D18=0,\"\",Saisie!D18)","v":""},{"$f":"IF(Saisie!Q18=0,\"\",Saisie!Q18)","v":""},{"$f":"IF(Saisie!G18=0,\"\",Saisie!G18)","v":""},{"$f":"IF(Saisie!AV18=0,\"\",Saisie!AV18)","v":""},{"$f":"IF(Saisie!N18=0,\"\",Saisie!N18)","v":""},"",{"$f":"IF(Saisie!AU18=0,\"\",Saisie!AU18)","v":""},{"$f":"IF(Saisie!BL18=0,\"\",Saisie!BL18)","v":""},{"$f":"IF(Saisie!AG18=0,\"\",Saisie!AG18)","v":""},{"$f":"IF(Saisie!V18=0,\"\",Saisie!V18)","v":""},{"$f":"IF(Saisie!R18=0,\"\",Saisie!R18)","v":""},{"$f":"IF(Saisie!C18=0,\"\",Saisie!C18)","v":""},{"$f":"IF(Saisie!FC18=0,\"\",Saisie!FC18)","v":""},{"$f":"IF(Saisie!FD18=0,\"\",Saisie!FD18)","v":""},null,{"$error":"#N/A"},{"$f":"IF(ISNA(T14), IF(ISNA(U14),\"\",U14),T14)","v":""},{"$f":"IF(Saisie!AM18>Saisie!$AM$15,Saisie!AM18,IF(Saisie!AO18>Saisie!$AO$15,Saisie!AO18,#N/A))","v":{"$error":"#N/A"}},{"$f":"IF(Saisie!AQ18>Saisie!$AQ$15,Saisie!AQ18,IF(Saisie!AS18>Saisie!$AS$15,Saisie!AS18,#N/A))","v":{"$error":"#N/A"}},null,4000,10000,{"$f":"IF(Saisie!Q18=0,#N/A,Saisie!Q18)","v":{"$error":"#N/A"}},12,16,{"$f":"IF(Saisie!G18=0,#N/A,Saisie!G18)","v":{"$error":"#N/A"}},{"$f":"IF(Saisie!AV18=0,#N/A,Saisie!AV18)","v":{"$error":"#N/A"}},150,400,{"$f":"IF(Saisie!N18=0,#N/A,Saisie!N18)","v":{"$error":"#N/A"}},{"$error":"#N/A"},8,16,{"$f":"IF(Saisie!AU18=0,#N/A,Saisie!AU18)","v":{"$error":"#N/A"}},50,104,{"$f":"IF(Saisie!BL18=0,#N/A,Saisie!BL18)","v":{"$error":"#N/A"}},5,{"$f":"IF(Saisie!AG18=0,#N/A,Saisie!AG18)","v":{"$error":"#N/A"}},1500,4000,{"$f":"IF(Saisie!V18=0,#N/A,Saisie!V18)","v":{"$error":"#N/A"}},1800,7000,{"$f":"IF(Saisie!R18=0,#N/A,Saisie!R18)","v":{"$error":"#N/A"}},{"$error":"#N/A"}]
[null,null,{"$f":"IF(Saisie!D19=0,\"\",Saisie!D19)","v":""},{"$f":"IF(Saisie!Q19=0,\"\",Saisie!Q19)","v":""},{"$f":"IF(Saisie!G19=0,\"\",Saisie!G19)","v":""},{"$f":"IF(Saisie!AV19=0,\"\",Saisie!AV19)","v":""},{"$f":"IF(Saisie!N19=0,\"\",Saisie!N19)","v":""},"",{"$f":"IF(Saisie!AU19=0,\"\",Saisie!AU19)","v":""},{"$f":"IF(Saisie!BL19=0,\"\",Saisie!BL19)","v":""},{"$f":"IF(Saisie!AG19=0,\"\",Saisie!AG19)","v":""},{"$f":"IF(Saisie!V19=0,\"\",Saisie!V19)","v":""},{"$f":"IF(Saisie!R19=0,\"\",Saisie!R19)","v":""},{"$f":"IF(Saisie!C19=0,\"\",Saisie!C19)","v":""},{"$f":"IF(Saisie!FC19=0,\"\",Saisie!FC19)","v":""},{"$f":"IF(Saisie!FD19=0,\"\",Saisie!FD19)","v":""},null,{"$error":"#N/A"},"",{"$f":"IF(Saisie!AM19>Saisie!$AM$15,Saisie!AM19,IF(Saisie!AO19>Saisie!$AO$15,Saisie!AO19,#N/A))","v":{"$error":"#N/A"}},{"$f":"IF(Saisie!AQ19>Saisie!$AQ$15,Saisie!AQ19,IF(Saisie!AS19>Saisie!$AS$15,Saisie!AS19,#N/A))","v":{"$error":"#N/A"}},null,4000,10000,{"$f":"IF(Saisie!Q19=0,#N/A,Saisie!Q19)","v":{"$error":"#N/A"}},12,16,{"$f":"IF(Saisie!G19=0,#N/A,Saisie!G19)","v":{"$error":"#N/A"}},{"$f":"IF(Saisie!AV19=0,#N/A,Saisie!AV19)","v":{"$error":"#N/A"}},150,400,{"$f":"IF(Saisie!N19=0,#N/A,Saisie!N19)","v":{"$error":"#N/A"}},{"$error":"#N/A"},8,16,{"$f":"IF(Saisie!AU19=0,#N/A,Saisie!AU19)","v":{"$error":"#N/A"}},50,104,{"$f":"IF(Saisie!BL19=0,#N/A,Saisie!BL19)","v":{"$error":"#N/A"}},5,{"$f":"IF(Saisie!AG19=0,#N/A,Saisie!AG19)","v":{"$error":"#N/A"}},1500,4000,{"$f":"IF(Saisie!V19=0,#N/A,Saisie!V19)","v":{"$error":"#N/A"}},1800,7000,{"$f":"IF(Saisie!R19=0,#N/A,Saisie!R19)","v":{"$error":"#N/A"}},{"$error":"#N/A"}]
[null,null,{"$f":"IF(Saisie!D20=0,\"\",Saisie!D20)","v":""},{"$f":"IF(Saisie!Q20=0,\"\",Saisie!Q20)","v":""},{"$f":"IF(Saisie!G20=0,\"\",Saisie!G20)","v":""},{"$f":"IF(Saisie!AV20=0,\"\",Saisie!AV20)","v":""},{"$f":"IF(Saisie!N20=0,\"\",Saisie!N20)","v":""},"",{"$f":"IF(Saisie!AU20=0,\"\",Saisie!AU20)","v":""},{"$f":"IF(Saisie!BL20=0,\"\",Saisie!BL20)","v":""},{"$f":"IF(Saisie!AG20=0,\"\",Saisie!AG20)","v":""},{"$f":"IF(Saisie!V20=0,\"\",Saisie!V20)","v":""},{"$f":"IF(Saisie!R20=0,\"\",Saisie!R20)","v":""},{"$f":"IF(Saisie!C20=0,\"\",Saisie!C20)","v":""},{"$f":"IF(Saisie!FC20=0,\"\",Saisie!FC20)","v":""},{"$f":"IF(Saisie!FD20=0,\"\",Saisie!FD20)","v":""},null,{"$error":"#N/A"},"",{"$f":"IF(Saisie!AM20>Saisie!$AM$15,Saisie!AM20,IF(Saisie!AO20>Saisie!$AO$15,Saisie!AO20,#N/A))","v":{"$error":"#N/A"}},{"$f":"IF(Saisie!AQ20>Saisie!$AQ$15,Saisie!AQ20,IF(Saisie!AS20>Saisie!$AS$15,Saisie!AS20,#N/A))","v":{"$error":"#N/A"}},null,4000,10000,{"$f":"IF(Saisie!Q20=0,#N/A,Saisie!Q20)","v":{"$error":"#N/A"}},12,16,{"$f":"IF(Saisie!G20=0,#N/A,Saisie!G20)","v":{"$error":"#N/A"}},{"$f":"IF(Saisie!AV20=0,#N/A,Saisie!AV20)","v":{"$error":"#N/A"}},150,400,{"$f":"IF(Saisie!N20=0,#N/A,Saisie!N20)","v":{"$error":"#N/A"}},{"$error":"#N/A"},8,16,{"$f":"IF(Saisie!AU20=0,#N/A,Saisie!AU20)","v":{"$error":"#N/A"}},50,104,{"$f":"IF(Saisie!BL20=0,#N/A,Saisie!BL20)","v":{"$error":"#N/A"}},5,{"$f":"IF(Saisie!AG20=0,#N/A,Saisie!AG20)","v":{"$error":"#N/A"}},1500,4000,{"$f":"IF(Saisie!V20=0,#N/A,Saisie!V20)","v":{"$error":"#N/A"}},1800,7000,{"$f":"IF(Saisie!R20=0,#N/A,Saisie!R20)","v":{"$error":"#N/A"}},{"$error":"#N/A"}]
[null,null,{"$f":"IF(Saisie!D21=0,\"\",Saisie!D21)","v":""},{"$f":"IF(Saisie!Q21=0,\"\",Saisie!Q21)","v":""},{"$f":"IF(Saisie!G21=0,\"\",Saisie!G21)","v":""},{"$f":"IF(Saisie!AV21=0,\"\",Saisie!AV21)","v":""},{"$f":"IF(Saisie!N21=0,\"\",Saisie!N21)","v":""},"",{"$f":"IF(Saisie!AU21=0,\"\",Saisie!AU21)","v":""},{"$f":"IF(Saisie!BL21=0,\"\",Saisie!BL21)","v":""},{"$f":"IF(Saisie!AG21=0,\"\",Saisie!AG21)","v":""},{"$f":"IF(Saisie!V21=0,\"\",Saisie!V21)","v":""},{"$f":"IF(Saisie!R21=0,\"\",Saisie!R21)","v":""},{"$f":"IF(Saisie!C21=0,\"\",Saisie!C21)","v":""},{"$f":"IF(Saisie!FC21=0,\"\",Saisie!FC21)","v":""},{"$f":"IF(Saisie!FD21=0,\"\",Saisie!FD21)","v":""},null,{"$error":"#N/A"},"",{"$f":"IF(Saisie!AM21>Saisie!$AM$15,Saisie!AM21,IF(Saisie!AO21>Saisie!$AO$15,Saisie!AO21,#N/A))","v":{"$error":"#N/A"}},{"$f":"IF(Saisie!AQ21>Saisie!$AQ$15,Saisie!AQ21,IF(Saisie!AS21>Saisie!$AS$15,Saisie!AS21,#N/A))","v":{"$error":"#N/A"}},null,4000,10000,{"$f":"IF(Saisie!Q21=0,#N/A,Saisie!Q21)","v":{"$error":"#N/A"}},12,16,{"$f":"IF(Saisie!G21=0,#N/A,Saisie!G21)","v":{"$error":"#N/A"}},{"$f":"IF(Saisie!AV21=0,#N/A,Saisie!AV21)","v":{"$error":"#N/A"}},150,400,{"$f":"IF(Saisie!N21=0,#N/A,Saisie!N21)","v":{"$error":"#N/A"}},{"$error":"#N/A"},8,16,{"$f":"IF(Saisie!AU21=0,#N/A,Saisie!AU21)","v":{"$error":"#N/A"}},50,104,{"$f":"IF(Saisie!BL21=0,#N/A,Saisie!BL21)","v":{"$error":"#N/A"}},5,{"$f":"IF(Saisie!AG21=0,#N/A,Saisie!AG21)","v":{"$error":"#N/A"}},1500,4000,{"$f":"IF(Saisie!V21=0,#N/A,Saisie!V21)","v":{"$error":"#N/A"}},1800,7000,{"$f":"IF(Saisie!R21=0,#N/A,Saisie!R21)","v":{"$error":"#N/A"}},{"$error":"#N/A"}]
[null,null,{"$f":"IF(Saisie!D22=0,\"\",Saisie!D22)","v":""},{"$f":"IF(Saisie!Q22=0,\"\",Saisie!Q22)","v":""},{"$f":"IF(Saisie!G22=0,\"\",Saisie!G22)","v":""},{"$f":"IF(Saisie!AV22=0,\"\",Saisie!AV22)","v":""},{"$f":"IF(Saisie!N22=0,\"\",Saisie!N22)","v":""},"",{"$f":"IF(Saisie!AU22=0,\"\",Saisie!AU22)","v":""},{"$f":"IF(Saisie!BL22=0,\"\",Saisie!BL22)","v":""},{"$f":"IF(Saisie!AG22=0,\"\",Saisie!AG22)","v":""},{"$f":"IF(Saisie!V22=0,\"\",Saisie!V22)","v":""},{"$f":"IF(Saisie!R22=0,\"\",Saisie!R22)","v":""},{"$f":"IF(Saisie!C22=0,\"\",Saisie!C22)","v":""},{"$f":"IF(Saisie!FC22=0,\"\",Saisie!FC22)","v":""},{"$f":"IF(Saisie!FD22=0,\"\",Saisie!FD22)","v":""},null,{"$error":"#N/A"},"",{"$f":"IF(Saisie!AM22>Saisie!$AM$15,Saisie!AM22,IF(Saisie!AO22>Saisie!$AO$15,Saisie!AO22,#N/A))","v":{"$error":"#N/A"}},{"$f":"IF(Saisie!AQ22>Saisie!$AQ$15,Saisie!AQ22,IF(Saisie!AS22>Saisie!$AS$15,Saisie!AS22,#N/A))","v":{"$error":"#N/A"}},null,4000,10000,{"$f":"IF(Saisie!Q22=0,#N/A,Saisie!Q22)","v":{"$error":"#N/A"}},12,16,{"$f":"IF(Saisie!G22=0,#N/A,Saisie!G22)","v":{"$error":"#N/A"}},{"$f":"IF(Saisie!AV22=0,#N/A,Saisie!AV22)","v":{"$error":"#N/A"}},150,400,{"$f":"IF(Saisie!N22=0,#N/A,Saisie!N22)","v":{"$error":"#N/A"}},{"$error":"#N/A"},8,16,{"$f":"IF(Saisie!AU22=0,#N/A,Saisie!AU22)","v":{"$error":"#N/A"}},50,104,{"$f":"IF(Saisie!BL22=0,#N/A,Saisie!BL22)","v":{"$error":"#N/A"}},5,{"$f":"IF(Saisie!AG22=0,#N/A,Saisie!AG22)","v":{"$error":"#N/A"}},1500,4000,{"$f":"IF(Saisie!V22=0,#N/A,Saisie!V22)","v":{"$error":"#N/A"}},1800,7000,{"$f":"IF(Saisie!R22=0,#N/A,Saisie!R22)","v":{"$error":"#N/A"}},{"$error":"#N/A"}]
[null,null,{"$f":"IF(Saisie!D23=0,\"\",Saisie!D23)","v":""},{"$f":"IF(Saisie!Q23=0,\"\",Saisie!Q23)","v":""},{"$f":"IF(Saisie!G23=0,\"\",Saisie!G23)","v":""},{"$f":"IF(Saisie!AV23=0,\"\",Saisie!AV23)","v":""},{"$f":"IF(Saisie!N23=0,\"\",Saisie!N23)","v":""},"",{"$f":"IF(Saisie!AU23=0,\"\",Saisie!AU23)","v":""},{"$f":"IF(Saisie!BL23=0,\"\",Saisie!BL23)","v":""},{"$f":"IF(Saisie!AG23=0,\"\",Saisie!AG23)","v":""},{"$f":"IF(Saisie!V23=0,\"\",Saisie!V23)","v":""},{"$f":"IF(Saisie!R23=0,\"\",Saisie!R23)","v":""},{"$f":"IF(Saisie!C23=0,\"\",Saisie!C23)","v":""},{"$f":"IF(Saisie!FC23=0,\"\",Saisie!FC23)","v":""},{"$f":"IF(Saisie!FD23=0,\"\",Saisie!FD23)","v":""},null,{"$error":"#N/A"},"",{"$f":"IF(Saisie!AM23>Saisie!$AM$15,Saisie!AM23,IF(Saisie!AO23>Saisie!$AO$15,Saisie!AO23,#N/A))","v":{"$error":"#N/A"}},{"$f":"IF(Saisie!AQ23>Saisie!$AQ$15,Saisie!AQ23,IF(Saisie!AS23>Saisie!$AS$15,Saisie!AS23,#N/A))","v":{"$error":"#N/A"}},null,4000,10000,{"$f":"IF(Saisie!Q23=0,#N/A,Saisie!Q23)","v":{"$error":"#N/A"}},12,16,{"$f":"IF(Saisie!G23=0,#N/A,Saisie!G23)","v":{"$error":"#N/A"}},{"$f":"IF(Saisie!AV23=0,#N/A,Saisie!AV23)","v":{"$error":"#N/A"}},150,400,{"$f":"IF(Saisie!N23=0,#N/A,Saisie!N23)","v":{"$error":"#N/A"}},{"$error":"#N/A"},8,16,{"$f":"IF(Saisie!AU23=0,#N/A,Saisie!AU23)","v":{"$error":"#N/A"}},50,104,{"$f":"IF(Saisie!BL23=0,#N/A,Saisie!BL23)","v":{"$error":"#N/A"}},5,{"$f":"IF(Saisie!AG23=0,#N/A,Saisie!AG23)","v":{"$error":"#N/A"}},1500,4000,{"$f":"IF(Saisie!V23=0,#N/A,Saisie!V23)","v":{"$error":"#N/A"}},1800,7000,{"$f":"IF(Saisie!R23=0,#N/A,Saisie!R23)","v":{"$error":"#N/A"}},{"$error":"#N/A"}]
[null,null,{"$f":"IF(Saisie!D24=0,\"\",Saisie!D24)","v":""},{"$f":"IF(Saisie!Q24=0,\"\",Saisie!Q24)","v":""},{"$f":"IF(Saisie!G24=0,\"\",Saisie!G24)","v":""},{"$f":"IF(Saisie!AV24=0,\"\",Saisie!AV24)","v":""},{"$f":"IF(Saisie!N24=0,\"\",Saisie!N24)","v":""},"",{"$f":"IF(Saisie!AU24=0,\"\",Saisie!AU24)","v":""},{"$f":"IF(Saisie!BL24=0,\"\",Saisie!BL24)","v":""},{"$f":"IF(Saisie!AG24=0,\"\",Saisie!AG24)","v":""},{"$f":"IF(Saisie!V24=0,\"\",Saisie!V24)","v":""},{"$f":"IF(Saisie!R24=0,\"\",Saisie!R24)","v":""},{"$f":"IF(Saisie!C24=0,\"\",Saisie!C24)","v":""},{"$f":"IF(Saisie!FC24=0,\"\",Saisie!FC24)","v":""},{"$f":"IF(Saisie!FD24=0,\"\",Saisie!FD24)","v":""},null,{"$error":"#N/A"},"",{"$f":"IF(Saisie!AM24>Saisie!$AM$15,Saisie!AM24,IF(Saisie!AO24>Saisie!$AO$15,Saisie!AO24,#N/A))","v":{"$error":"#N/A"}},{"$f":"IF(Saisie!AQ24>Saisie!$AQ$15,Saisie!AQ24,IF(Saisie!AS24>Saisie!$AS$15,Saisie!AS24,#N/A))","v":{"$error":"#N/A"}},null,4000,10000,{"$f":"IF(Saisie!Q24=0,#N/A,Saisie!Q24)","v":{"$error":"#N/A"}},12,16,{"$f":"IF(Saisie!G24=0,#N/A,Saisie!G24)","v":{"$error":"#N/A"}},{"$f":"IF(Saisie!AV24=0,#N/A,Saisie!AV24)","v":{"$error":"#N/A"}},150,400,{"$f":"IF(Saisie!N24=0,#N/A,Saisie!N24)","v":{"$error":"#N/A"}},{"$error":"#N/A"},8,16,{"$f":"IF(Saisie!AU24=0,#N/A,Saisie!AU24)","v":{"$error":"#N/A"}},50,104,{"$f":"IF(Saisie!BL24=0,#N/A,Saisie!BL24)","v":{"$error":"#N/A"}},5,{"$f":"IF(Saisie!AG24=0,#N/A,Saisie!AG24)","v":{"$error":"#N/A"}},1500,4000,{"$f":"IF(Saisie!V24=0,#N/A,Saisie!V24)","v":{"$error":"#N/A"}},1800,7000,{"$f":"IF(Saisie!R24=0,#N/A,Saisie!R24)","v":{"$error":"#N/A"}},{"$error":"#N/A"}]
[null,null,{"$f":"IF(Saisie!D25=0,\"\",Saisie!D25)","v":""},{"$f":"IF(Saisie!Q25=0,\"\",Saisie!Q25)","v":""},{"$f":"IF(Saisie!G25=0,\"\",Saisie!G25)","v":""},{"$f":"IF(Saisie!AV25=0,\"\",Saisie!AV25)","v":""},{"$f":"IF(Saisie!N25=0,\"\",Saisie!N25)","v":""},"",{"$f":"IF(Saisie!AU25=0,\"\",Saisie!AU25)","v":""},{"$f":"IF(Saisie!BL25=0,\"\",Saisie!BL25)","v":""},{"$f":"IF(Saisie!AG25=0,\"\",Saisie!AG25)","v":""},{"$f":"IF(Saisie!V25=0,\"\",Saisie!V25)","v":""},{"$f":"IF(Saisie!R25=0,\"\",Saisie!R25)","v":""},{"$f":"IF(Saisie!C25=0,\"\",Saisie!C25)","v":""},{"$f":"IF(Saisie!FC25=0,\"\",Saisie!FC25)","v":""},{"$f":"IF(Saisie!FD25=0,\"\",Saisie!FD25)","v":""},null,{"$error":"#N/A"},"",{"$f":"IF(Saisie!AM25>Saisie!$AM$15,Saisie!AM25,IF(Saisie!AO25>Saisie!$AO$15,Saisie!AO25,#N/A))","v":{"$error":"#N/A"}},{"$f":"IF(Saisie!AQ25>Saisie!$AQ$15,Saisie!AQ25,IF(Saisie!AS25>Saisie!$AS$15,Saisie!AS25,#N/A))","v":{"$error":"#N/A"}},null,4000,10000,{"$f":"IF(Saisie!Q25=0,#N/A,Saisie!Q25)","v":{"$error":"#N/A"}},12,16,{"$f":"IF(Saisie!G25=0,#N/A,Saisie!G25)","v":{"$error":"#N/A"}},{"$f":"IF(Saisie!AV25=0,#N/A,Saisie!AV25)","v":{"$error":"#N/A"}},150,400,{"$f":"IF(Saisie!N25=0,#N/A,Saisie!N25)","v":{"$error":"#N/A"}},{"$error":"#N/A"},8,16,{"$f":"IF(Saisie!AU25=0,#N/A,Saisie!AU25)","v":{"$error":"#N/A"}},50,104,{"$f":"IF(Saisie!BL25=0,#N/A,Saisie!BL25)","v":{"$error":"#N/A"}},5,{"$f":"IF(Saisie!AG25=0,#N/A,Saisie!AG25)","v":{"$error":"#N/A"}},1500,4000,{"$f":"IF(Saisie!V25=0,#N/A,Saisie!V25)","v":{"$error":"#N/A"}},1800,7000,{"$f":"IF(Saisie!R25=0,#N/A,Saisie!R25)","v":{"$error":"#N/A"}},{"$error":"#N/A"}]
[null,null,{"$f":"IF(Saisie!D26=0,\"\",Saisie!D26)","v":""},{"$f":"IF(Saisie!Q26=0,\"\",Saisie!Q26)","v":""},{"$f":"IF(Saisie!G26=0,\"\",Saisie!G26)","v":""},{"$f":"IF(Saisie!AV26=0,\"\",Saisie!AV26)","v":""},{"$f":"IF(Saisie!N26=0,\"\",Saisie!N26)","v":""},"",{"$f":"IF(Saisie!AU26=0,\"\",Saisie!AU26)","v":""},{"$f":"IF(Saisie!BL26=0,\"\",Saisie!BL26)","v":""},{"$f":"IF(Saisie!AG26=0,\"\",Saisie!AG26)","v":""},{"$f":"IF(Saisie!V26=0,\"\",Saisie!V26)","v":""},{"$f":"IF(Saisie!R26=0,\"\",Saisie!R26)","v":""},{"$f":"IF(Saisie!C26=0,\"\",Saisie!C26)","v":""},{"$f":"IF(Saisie!FC26=0,\"\",Saisie!FC26)","v":""},{"$f":"IF(Saisie!FD26=0,\"\",Saisie!FD26)","v":""},null,{"$error":"#N/A"},"",{"$f":"IF(Saisie!AM26>Saisie!$AM$15,Saisie!AM26,IF(Saisie!AO26>Saisie!$AO$15,Saisie!AO26,#N/A))","v":{"$error":"#N/A"}},{"$f":"IF(Saisie!AQ26>Saisie!$AQ$15,Saisie!AQ26,IF(Saisie!AS26>Saisie!$AS$15,Saisie!AS26,#N/A))","v":{"$error":"#N/A"}},null,4000,10000,{"$f":"IF(Saisie!Q26=0,#N/A,Saisie!Q26)","v":{"$error":"#N/A"}},12,16,{"$f":"IF(Saisie!G26=0,#N/A,Saisie!G26)","v":{"$error":"#N/A"}},{"$f":"IF(Saisie!AV26=0,#N/A,Saisie!AV26)","v":{"$error":"#N/A"}},150,400,{"$f":"IF(Saisie!N26=0,#N/A,Saisie!N26)","v":{"$error":"#N/A"}},{"$error":"#N/A"},8,16,{"$f":"IF(Saisie!AU26=0,#N/A,Saisie!AU26)","v":{"$error":"#N/A"}},50,104,{"$f":"IF(Saisie!BL26=0,#N/A,Saisie!BL26)","v":{"$error":"#N/A"}},5,{"$f":"IF(Saisie!AG26=0,#N/A,Saisie!AG26)","v":{"$error":"#N/A"}},1500,4000,{"$f":"IF(Saisie!V26=0,#N/A,Saisie!V26)","v":{"$error":"#N/A"}},1800,7000,{"$f":"IF(Saisie!R26=0,#N/A,Saisie!R26)","v":{"$error":"#N/A"}},{"$error":"#N/A"}]
[null,null,{"$f":"IF(Saisie!D27=0,\"\",Saisie!D27)","v":""},{"$f":"IF(Saisie!Q27=0,\"\",Saisie!Q27)","v":""},{"$f":"IF(Saisie!G27=0,\"\",Saisie!G27)","v":""},{"$f":"IF(Saisie!AV27=0,\"\",Saisie!AV27)","v":""},{"$f":"IF(Saisie!N27=0,\"\",Saisie!N27)","v":""},"",{"$f":"IF(Saisie!AU27=0,\"\",Saisie!AU27)","v":""},{"$f":"IF(Saisie!BL27=0,\"\",Saisie!BL27)","v":""},{"$f":"IF(Saisie!AG27=0,\"\",Saisie!AG27)","v":""},{"$f":"IF(Saisie!V27=0,\"\",Saisie!V27)","v":""},{"$f":"IF(Saisie!R27=0,\"\",Saisie!R27)","v":""},{"$f":"IF(Saisie!C27=0,\"\",Saisie!C27)","v":""},{"$f":"IF(Saisie!FC27=0,\"\",Saisie!FC27)","v":""},{"$f":"IF(Saisie!FD27=0,\"\",Saisie!FD27)","v":""},null,{"$error":"#N/A"},"",{"$f":"IF(Saisie!AM27>Saisie!$AM$15,Saisie!AM27,IF(Saisie!AO27>Saisie!$AO$15,Saisie!AO27,#N/A))","v":{"$error":"#N/A"}},{"$f":"IF(Saisie!AQ27>Saisie!$AQ$15,Saisie!AQ27,IF(Saisie!AS27>Saisie!$AS$15,Saisie!AS27,#N/A))","v":{"$error":"#N/A"}},null,4000,10000,{"$f":"IF(Saisie!Q27=0,#N/A,Saisie!Q27)","v":{"$error":"#N/A"}},12,16,{"$f":"IF(Saisie!G27=0,#N/A,Saisie!G27)","v":{"$error":"#N/A"}},{"$f":"IF(Saisie!AV27=0,#N/A,Saisie!AV27)","v":{"$error":"#N/A"}},150,400,{"$f":"IF(Saisie!N27=0,#N/A,Saisie!N27)","v":{"$error":"#N/A"}},{"$error":"#N/A"},8,16,{"$f":"IF(Saisie!AU27=0,#N/A,Saisie!AU27)","v":{"$error":"#N/A"}},50,104,{"$f":"IF(Saisie!BL27=0,#N/A,Saisie!BL27)","v":{"$error":"#N/A"}},5,{"$f":"IF(Saisie!AG27=0,#N/A,Saisie!AG27)","v":{"$error":"#N/A"}},1500,4000,{"$f":"IF(Saisie!V27=0,#N/A,Saisie!V27)","v":{"$error":"#N/A"}},1800,7000,{"$f":"IF(Saisie!R27=0,#N/A,Saisie!R27)","v":{"$error":"#N/A"}},{"$error":"#N/A"}]
[null,null,{"$f":"IF(Saisie!D28=0,\"\",Saisie!D28)","v":""},{"$f":"IF(Saisie!Q28=0,\"\",Saisie!Q28)","v":""},{"$f":"IF(Saisie!G28=0,\"\",Saisie!G28)","v":""},{"$f":"IF(Saisie!AV28=0,\"\",Saisie!AV28)","v":""},{"$f":"IF(Saisie!N28=0,\"\",Saisie!N28)","v":""},"",{"$f":"IF(Saisie!AU28=0,\"\",Saisie!AU28)","v":""},{"$f":"IF(Saisie!BL28=0,\"\",Saisie!BL28)","v":""},{"$f":"IF(Saisie!AG28=0,\"\",Saisie!AG28)","v":""},{"$f":"IF(Saisie!V28=0,\"\",Saisie!V28)","v":""},{"$f":"IF(Saisie!R28=0,\"\",Saisie!R28)","v":""},{"$f":"IF(Saisie!C28=0,\"\",Saisie!C28)","v":""},{"$f":"IF(Saisie!FC28=0,\"\",Saisie!FC28)","v":""},{"$f":"IF(Saisie!FD28=0,\"\",Saisie!FD28)","v":""},null,{"$error":"#N/A"},"",{"$f":"IF(Saisie!AM28>Saisie!$AM$15,Saisie!AM28,IF(Saisie!AO28>Saisie!$AO$15,Saisie!AO28,#N/A))","v":{"$error":"#N/A"}},{"$f":"IF(Saisie!AQ28>Saisie!$AQ$15,Saisie!AQ28,IF(Saisie!AS28>Saisie!$AS$15,Saisie!AS28,#N/A))","v":{"$error":"#N/A"}},null,4000,10000,{"$f":"IF(Saisie!Q28=0,#N/A,Saisie!Q28)","v":{"$error":"#N/A"}},12,16,{"$f":"IF(Saisie!G28=0,#N/A,Saisie!G28)","v":{"$error":"#N/A"}},{"$f":"IF(Saisie!AV28=0,#N/A,Saisie!AV28)","v":{"$error":"#N/A"}},150,400,{"$f":"IF(Saisie!N28=0,#N/A,Saisie!N28)","v":{"$error":"#N/A"}},{"$error":"#N/A"},8,16,{"$f":"IF(Saisie!AU28=0,#N/A,Saisie!AU28)","v":{"$error":"#N/A"}},50,104,{"$f":"IF(Saisie!BL28=0,#N/A,Saisie!BL28)","v":{"$error":"#N/A"}},5,{"$f":"IF(Saisie!AG28=0,#N/A,Saisie!AG28)","v":{"$error":"#N/A"}},1500,4000,{"$f":"IF(Saisie!V28=0,#N/A,Saisie!V28)","v":{"$error":"#N/A"}},1800,7000,{"$f":"IF(Saisie!R28=0,#N/A,Saisie!R28)","v":{"$error":"#N/A"}},{"$error":"#N/A"}]
[null,null,{"$f":"IF(Saisie!D29=0,\"\",Saisie!D29)","v":""},{"$f":"IF(Saisie!Q29=0,\"\",Saisie!Q29)","v":""},{"$f":"IF(Saisie!G29=0,\"\",Saisie!G29)","v":""},{"$f":"IF(Saisie!AV29=0,\"\",Saisie!AV29)","v":""},{"$f":"IF(Saisie!N29=0,\"\",Saisie!N29)","v":""},"",{"$f":"IF(Saisie!AU29=0,\"\",Saisie!AU29)","v":""},{"$f":"IF(Saisie!BL29=0,\"\",Saisie!BL29)","v":""},{"$f":"IF(Saisie!AG29=0,\"\",Saisie!AG29)","v":""},{"$f":"IF(Saisie!V29=0,\"\",Saisie!V29)","v":""},{"$f":"IF(Saisie!R29=0,\"\",Saisie!R29)","v":""},{"$f":"IF(Saisie!C29=0,\"\",Saisie!C29)","v":""},{"$f":"IF(Saisie!FC29=0,\"\",Saisie!FC29)","v":""},{"$f":"IF(Saisie!FD29=0,\"\",Saisie!FD29)","v":""},null,{"$error":"#N/A"},"",{"$f":"IF(Saisie!AM29>Saisie!$AM$15,Saisie!AM29,IF(Saisie!AO29>Saisie!$AO$15,Saisie!AO29,#N/A))","v":{"$error":"#N/A"}},{"$f":"IF(Saisie!AQ29>Saisie!$AQ$15,Saisie!AQ29,IF(Saisie!AS29>Saisie!$AS$15,Saisie!AS29,#N/A))","v":{"$error":"#N/A"}},null,4000,10000,{"$f":"IF(Saisie!Q29=0,#N/A,Saisie!Q29)","v":{"$error":"#N/A"}},12,16,{"$f":"IF(Saisie!G29=0,#N/A,Saisie!G29)","v":{"$error":"#N/A"}},{"$f":"IF(Saisie!AV29=0,#N/A,Saisie!AV29)","v":{"$error":"#N/A"}},150,400,{"$f":"IF(Saisie!N29=0,#N/A,Saisie!N29)","v":{"$error":"#N/A"}},{"$error":"#N/A"},8,16,{"$f":"IF(Saisie!AU29=0,#N/A,Saisie!AU29)","v":{"$error":"#N/A"}},50,104,{"$f":"IF(Saisie!BL29=0,#N/A,Saisie!BL29)","v":{"$error":"#N/A"}},5,{"$f":"IF(Saisie!AG29=0,#N/A,Saisie!AG29)","v":{"$error":"#N/A"}},1500,4000,{"$f":"IF(Saisie!V29=0,#N/A,Saisie!V29)","v":{"$error":"#N/A"}},1800,7000,{"$f":"IF(Saisie!R29=0,#N/A,Saisie!R29)","v":{"$error":"#N/A"}},{"$error":"#N/A"}]
[null,null,{"$f":"IF(Saisie!D30=0,\"\",Saisie!D30)","v":""},{"$f":"IF(Saisie!Q30=0,\"\",Saisie!Q30)","v":""},{"$f":"IF(Saisie!G30=0,\"\",Saisie!G30)","v":""},{"$f":"IF(Saisie!AV30=0,\"\",Saisie!AV30)","v":""},{"$f":"IF(Saisie!N30=0,\"\",Saisie!N30)","v":""},"",{"$f":"IF(Saisie!AU30=0,\"\",Saisie!AU30)","v":""},{"$f":"IF(Saisie!BL30=0,\"\",Saisie!BL30)","v":""},{"$f":"IF(Saisie!AG30=0,\"\",Saisie!AG30)","v":""},{"$f":"IF(Saisie!V30=0,\"\",Saisie!V30)","v":""},{"$f":"IF(Saisie!R30=0,\"\",Saisie!R30)","v":""},{"$f":"IF(Saisie!C30=0,\"\",Saisie!C30)","v":""},{"$f":"IF(Saisie!FC30=0,\"\",Saisie!FC30)","v":""},{"$f":"IF(Saisie!FD30=0,\"\",Saisie!FD30)","v":""},null,{"$error":"#N/A"},"",{"$f":"IF(Saisie!AM30>Saisie!$AM$15,Saisie!AM30,IF(Saisie!AO30>Saisie!$AO$15,Saisie!AO30,#N/A))","v":{"$error":"#N/A"}},{"$f":"IF(Saisie!AQ30>Saisie!$AQ$15,Saisie!AQ30,IF(Saisie!AS30>Saisie!$AS$15,Saisie!AS30,#N/A))","v":{"$error":"#N/A"}},null,4000,10000,{"$f":"IF(Saisie!Q30=0,#N/A,Saisie!Q30)","v":{"$error":"#N/A"}},12,16,{"$f":"IF(Saisie!G30=0,#N/A,Saisie!G30)","v":{"$error":"#N/A"}},{"$f":"IF(Saisie!AV30=0,#N/A,Saisie!AV30)","v":{"$error":"#N/A"}},150,400,{"$f":"IF(Saisie!N30=0,#N/A,Saisie!N30)","v":{"$error":"#N/A"}},{"$error":"#N/A"},8,16,{"$f":"IF(Saisie!AU30=0,#N/A,Saisie!AU30)","v":{"$error":"#N/A"}},50,104,{"$f":"IF(Saisie!BL30=0,#N/A,Saisie!BL30)","v":{"$error":"#N/A"}},5,{"$f":"IF(Saisie!AG30=0,#N/A,Saisie!AG30)","v":{"$error":"#N/A"}},1500,4000,{"$f":"IF(Saisie!V30=0,#N/A,Saisie!V30)","v":{"$error":"#N/A"}},1800,7000,{"$f":"IF(Saisie!R30=0,#N/A,Saisie!R30)","v":{"$error":"#N/A"}},{"$error":"#N/A"}]
[null,null,{"$f":"IF(Saisie!D31=0,\"\",Saisie!D31)","v":""},{"$f":"IF(Saisie!Q31=0,\"\",Saisie!Q31)","v":""},{"$f":"IF(Saisie!G31=0,\"\",Saisie!G31)","v":""},{"$f":"IF(Saisie!AV31=0,\"\",Saisie!AV31)","v":""},{"$f":"IF(Saisie!N31=0,\"\",Saisie!N31)","v":""},"",{"$f":"IF(Saisie!AU31=0,\"\",Saisie!AU31)","v":""},{"$f":"IF(Saisie!BL31=0,\"\",Saisie!BL31)","v":""},{"$f":"IF(Saisie!AG31=0,\"\",Saisie!AG31)","v":""},{"$f":"IF(Saisie!V31=0,\"\",Saisie!V31)","v":""},{"$f":"IF(Saisie!R31=0,\"\",Saisie!R31)","v":""},{"$f":"IF(Saisie!C31=0,\"\",Saisie!C31)","v":""},{"$f":"IF(Saisie!FC31=0,\"\",Saisie!FC31)","v":""},{"$f":"IF(Saisie!FD31=0,\"\",Saisie!FD31)","v":""},null,{"$error":"#N/A"},"",{"$f":"IF(Saisie!AM31>Saisie!$AM$15,Saisie!AM31,IF(Saisie!AO31>Saisie!$AO$15,Saisie!AO31,#N/A))","v":{"$error":"#N/A"}},{"$f":"IF(Saisie!AQ31>Saisie!$AQ$15,Saisie!AQ31,IF(Saisie!AS31>Saisie!$AS$15,Saisie!AS31,#N/A))","v":{"$error":"#N/A"}},null,4000,10000,{"$f":"IF(Saisie!Q31=0,#N/A,Saisie!Q31)","v":{"$error":"#N/A"}},12,16,{"$f":"IF(Saisie!G31=0,#N/A,Saisie!G31)","v":{"$error":"#N/A"}},{"$f":"IF(Saisie!AV31=0,#N/A,Saisie!AV31)","v":{"$error":"#N/A"}},150,400,{"$f":"IF(Saisie!N31=0,#N/A,Saisie!N31)","v":{"$error":"#N/A"}},{"$error":"#N/A"},8,16,{"$f":"IF(Saisie!AU31=0,#N/A,Saisie!AU31)","v":{"$error":"#N/A"}},50,104,{"$f":"IF(Saisie!BL31=0,#N/A,Saisie!BL31)","v":{"$error":"#N/A"}},5,{"$f":"IF(Saisie!AG31=0,#N/A,Saisie!AG31)","v":{"$error":"#N/A"}},1500,4000,{"$f":"IF(Saisie!V31=0,#N/A,Saisie!V31)","v":{"$error":"#N/A"}},1800,7000,{"$f":"IF(Saisie!R31=0,#N/A,Saisie!R31)","v":{"$error":"#N/A"}},{"$error":"#N/A"}]
[null,null,{"$f":"IF(Saisie!D32=0,\"\",Saisie!D32)","v":""},{"$f":"IF(Saisie!Q32=0,\"\",Saisie!Q32)","v":""},{"$f":"IF(Saisie!G32=0,\"\",Saisie!G32)","v":""},{"$f":"IF(Saisie!AV32=0,\"\",Saisie!AV32)","v":""},{"$f":"IF(Saisie!N32=0,\"\",Saisie!N32)","v":""},"",{"$f":"IF(Saisie!AU32=0,\"\",Saisie!AU32)","v":""},{"$f":"IF(Saisie!BL32=0,\"\",Saisie!BL32)","v":""},{"$f":"IF(Saisie!AG32=0,\"\",Saisie!AG32)","v":""},{"$f":"IF(Saisie!V32=0,\"\",Saisie!V32)","v":""},{"$f":"IF(Saisie!R32=0,\"\",Saisie!R32)","v":""},{"$f":"IF(Saisie!C32=0,\"\",Saisie!C32)","v":""},{"$f":"IF(Saisie!FC32=0,\"\",Saisie!FC32)","v":""},{"$f":"IF(Saisie!FD32=0,\"\",Saisie!FD32)","v":""},null,{"$error":"#N/A"},"",{"$f":"IF(Saisie!AM32>Saisie!$AM$15,Saisie!AM32,IF(Saisie!AO32>Saisie!$AO$15,Saisie!AO32,#N/A))","v":{"$error":"#N/A"}},{"$f":"IF(Saisie!AQ32>Saisie!$AQ$15,Saisie!AQ32,IF(Saisie!AS32>Saisie!$AS$15,Saisie!AS32,#N/A))","v":{"$error":"#N/A"}},null,4000,10000,{"$f":"IF(Saisie!Q32=0,#N/A,Saisie!Q32)","v":{"$error":"#N/A"}},12,16,{"$f":"IF(Saisie!G32=0,#N/A,Saisie!G32)","v":{"$error":"#N/A"}},{"$f":"IF(Saisie!AV32=0,#N/A,Saisie!AV32)","v":{"$error":"#N/A"}},150,400,{"$f":"IF(Saisie!N32=0,#N/A,Saisie!N32)","v":{"$error":"#N/A"}},{"$error":"#N/A"},8,16,{"$f":"IF(Saisie!AU32=0,#N/A,Saisie!AU32)","v":{"$error":"#N/A"}},50,104,{"$f":"IF(Saisie!BL32=0,#N/A,Saisie!BL32)","v":{"$error":"#N/A"}},5,{"$f":"IF(Saisie!AG32=0,#N/A,Saisie!AG32)","v":{"$error":"#N/A"}},1500,4000,{"$f":"IF(Saisie!V32=0,#N/A,Saisie!V32)","v":{"$error":"#N/A"}},1800,7000,{"$f":"IF(Saisie!R32=0,#N/A,Saisie!R32)","v":{"$error":"#N/A"}},{"$error":"#N/A"}]
[null,null,{"$f":"IF(Saisie!D33=0,\"\",Saisie!D33)","v":""},{"$f":"IF(Saisie!Q33=0,\"\",Saisie!Q33)","v":""},{"$f":"IF(Saisie!G33=0,\"\",Saisie!G33)","v":""},{"$f":"IF(Saisie!AV33=0,\"\",Saisie!AV33)","v":""},{"$f":"IF(Saisie!N33=0,\"\",Saisie!N33)","v":""},"",{"$f":"IF(Saisie!AU33=0,\"\",Saisie!AU33)","v":""},{"$f":"IF(Saisie!BL33=0,\"\",Saisie!BL33)","v":""},{"$f":"IF(Saisie!AG33=0,\"\",Saisie!AG33)","v":""},{"$f":"IF(Saisie!V33=0,\"\",Saisie!V33)","v":""},{"$f":"IF(Saisie!R33=0,\"\",Saisie!R33)","v":""},{"$f":"IF(Saisie!C33=0,\"\",Saisie!C33)","v":""},{"$f":"IF(Saisie!FC33=0,\"\",Saisie!FC33)","v":""},{"$f":"IF(Saisie!FD33=0,\"\",Saisie!FD33)","v":""},null,{"$error":"#N/A"},"",{"$f":"IF(Saisie!AM33>Saisie!$AM$15,Saisie!AM33,IF(Saisie!AO33>Saisie!$AO$15,Saisie!AO33,#N/A))","v":{"$error":"#N/A"}},{"$f":"IF(Saisie!AQ33>Saisie!$AQ$15,Saisie!AQ33,IF(Saisie!AS33>Saisie!$AS$15,Saisie!AS33,#N/A))","v":{"$error":"#N/A"}},null,4000,10000,{"$f":"IF(Saisie!Q33=0,#N/A,Saisie!Q33)","v":{"$error":"#N/A"}},12,16,{"$f":"IF(Saisie!G33=0,#N/A,Saisie!G33)","v":{"$error":"#N/A"}},{"$f":"IF(Saisie!AV33=0,#N/A,Saisie!AV33)","v":{"$error":"#N/A"}},150,400,{"$f":"IF(Saisie!N33=0,#N/A,Saisie!N33)","v":{"$error":"#N/A"}},{"$error":"#N/A"},8,16,{"$f":"IF(Saisie!AU33=0,#N/A,Saisie!AU33)","v":{"$error":"#N/A"}},50,104,{"$f":"IF(Saisie!BL33=0,#N/A,Saisie!BL33)","v":{"$error":"#N/A"}},5,{"$f":"IF(Saisie!AG33=0,#N/A,Saisie!AG33)","v":{"$error":"#N/A"}},1500,4000,{"$f":"IF(Saisie!V33=0,#N/A,Saisie!V33)","v":{"$error":"#N/A"}},1800,7000,{"$f":"IF(Saisie!R33=0,#N/A,Saisie!R33)","v":{"$error":"#N/A"}},{"$error":"#N/A"}]
[null,null,{"$f":"IF(Saisie!D34=0,\"\",Saisie!D34)","v":""},{"$f":"IF(Saisie!Q34=0,\"\",Saisie!Q34)","v":""},{"$f":"IF(Saisie!G34=0,\"\",Saisie!G34)","v":""},{"$f":"IF(Saisie!AV34=0,\"\",Saisie!AV34)","v":""},{"$f":"IF(Saisie!N34=0,\"\",Saisie!N34)","v":""},"",{"$f":"IF(Saisie!AU34=0,\"\",Saisie!AU34)","v":""},{"$f":"IF(Saisie!BL34=0,\"\",Saisie!BL34)","v":""},{"$f":"IF(Saisie!AG34=0,\"\",Saisie!AG34)","v":""},{"$f":"IF(Saisie!V34=0,\"\",Saisie!V34)","v":""},{"$f":"IF(Saisie!R34=0,\"\",Saisie!R34)","v":""},{"$f":"IF(Saisie!C34=0,\"\",Saisie!C34)","v":""},{"$f":"IF(Saisie!FC34=0,\"\",Saisie!FC34)","v":""},{"$f":"IF(Saisie!FD34=0,\"\",Saisie!FD34)","v":""},null,{"$error":"#N/A"},"",{"$f":"IF(Saisie!AM34>Saisie!$AM$15,Saisie!AM34,IF(Saisie!AO34>Saisie!$AO$15,Saisie!AO34,#N/A))","v":{"$error":"#N/A"}},{"$f":"IF(Saisie!AQ34>Saisie!$AQ$15,Saisie!AQ34,IF(Saisie!AS34>Saisie!$AS$15,Saisie!AS34,#N/A))","v":{"$error":"#N/A"}},null,4000,10000,{"$f":"IF(Saisie!Q34=0,#N/A,Saisie!Q34)","v":{"$error":"#N/A"}},12,16,{"$f":"IF(Saisie!G34=0,#N/A,Saisie!G34)","v":{"$error":"#N/A"}},{"$f":"IF(Saisie!AV34=0,#N/A,Saisie!AV34)","v":{"$error":"#N/A"}},150,400,{"$f":"IF(Saisie!N34=0,#N/A,Saisie!N34)","v":{"$error":"#N/A"}},{"$error":"#N/A"},8,16,{"$f":"IF(Saisie!AU34=0,#N/A,Saisie!AU34)","v":{"$error":"#N/A"}},50,104,{"$f":"IF(Saisie!BL34=0,#N/A,Saisie!BL34)","v":{"$error":"#N/A"}},5,{"$f":"IF(Saisie!AG34=0,#N/A,Saisie!AG34)","v":{"$error":"#N/A"}},1500,4000,{"$f":"IF(Saisie!V34=0,#N/A,Saisie!V34)","v":{"$error":"#N/A"}},1800,7000,{"$f":"IF(Saisie!R34=0,#N/A,Saisie!R34)","v":{"$error":"#N/A"}},{"$error":"#N/A"}]
[null,null,{"$f":"IF(Saisie!D35=0,\"\",Saisie!D35)","v":""},{"$f":"IF(Saisie!Q35=0,\"\",Saisie!Q35)","v":""},{"$f":"IF(Saisie!G35=0,\"\",Saisie!G35)","v":""},{"$f":"IF(Saisie!AV35=0,\"\",Saisie!AV35)","v":""},{"$f":"IF(Saisie!N35=0,\"\",Saisie!N35)","v":""},"",{"$f":"IF(Saisie!AU35=0,\"\",Saisie!AU35)","v":""},{"$f":"IF(Saisie!BL35=0,\"\",Saisie!BL35)","v":""},{"$f":"IF(Saisie!AG35=0,\"\",Saisie!AG35)","v":""},{"$f":"IF(Saisie!V35=0,\"\",Saisie!V35)","v":""},{"$f":"IF(Saisie!R35=0,\"\",Saisie!R35)","v":""},{"$f":"IF(Saisie!C35=0,\"\",Saisie!C35)","v":""},{"$f":"IF(Saisie!FC35=0,\"\",Saisie!FC35)","v":""},{"$f":"IF(Saisie!FD35=0,\"\",Saisie!FD35)","v":""},null,{"$error":"#N/A"},"",{"$f":"IF(Saisie!AM35>Saisie!$AM$15,Saisie!AM35,IF(Saisie!AO35>Saisie!$AO$15,Saisie!AO35,#N/A))","v":{"$error":"#N/A"}},{"$f":"IF(Saisie!AQ35>Saisie!$AQ$15,Saisie!AQ35,IF(Saisie!AS35>Saisie!$AS$15,Saisie!AS35,#N/A))","v":{"$error":"#N/A"}},null,4000,10000,{"$f":"IF(Saisie!Q35=0,#N/A,Saisie!Q35)","v":{"$error":"#N/A"}},12,16,{"$f":"IF(Saisie!G35=0,#N/A,Saisie!G35)","v":{"$error":"#N/A"}},{"$f":"IF(Saisie!AV35=0,#N/A,Saisie!AV35)","v":{"$error":"#N/A"}},150,400,{"$f":"IF(Saisie!N35=0,#N/A,Saisie!N35)","v":{"$error":"#N/A"}},{"$error":"#N/A"},8,16,{"$f":"IF(Saisie!AU35=0,#N/A,Saisie!AU35)","v":{"$error":"#N/A"}},50,104,{"$f":"IF(Saisie!BL35=0,#N/A,Saisie!BL35)","v":{"$error":"#N/A"}},5,{"$f":"IF(Saisie!AG35=0,#N/A,Saisie!AG35)","v":{"$error":"#N/A"}},1500,4000,{"$f":"IF(Saisie!V35=0,#N/A,Saisie!V35)","v":{"$error":"#N/A"}},1800,7000,{"$f":"IF(Saisie!R35=0,#N/A,Saisie!R35)","v":{"$error":"#N/A"}},{"$error":"#N/A"}]
[null,null,{"$f":"IF(Saisie!D36=0,\"\",Saisie!D36)","v":""},{"$f":"IF(Saisie!Q36=0,\"\",Saisie!Q36)","v":""},{"$f":"IF(Saisie!G36=0,\"\",Saisie!G36)","v":""},{"$f":"IF(Saisie!AV36=0,\"\",Saisie!AV36)","v":""},{"$f":"IF(Saisie!N36=0,\"\",Saisie!N36)","v":""},"",{"$f":"IF(Saisie!AU36=0,\"\",Saisie!AU36)","v":""},{"$f":"IF(Saisie!BL36=0,\"\",Saisie!BL36)","v":""},{"$f":"IF(Saisie!AG36=0,\"\",Saisie!AG36)","v":""},{"$f":"IF(Saisie!V36=0,\"\",Saisie!V36)","v":""},{"$f":"IF(Saisie!R36=0,\"\",Saisie!R36)","v":""},{"$f":"IF(Saisie!C36=0,\"\",Saisie!C36)","v":""},{"$f":"IF(Saisie!FC36=0,\"\",Saisie!FC36)","v":""},{"$f":"IF(Saisie!FD36=0,\"\",Saisie!FD36)","v":""},null,{"$error":"#N/A"},"",{"$f":"IF(Saisie!AM36>Saisie!$AM$15,Saisie!AM36,IF(Saisie!AO36>Saisie!$AO$15,Saisie!AO36,#N/A))","v":{"$error":"#N/A"}},{"$f":"IF(Saisie!AQ36>Saisie!$AQ$15,Saisie!AQ36,IF(Saisie!AS36>Saisie!$AS$15,Saisie!AS36,#N/A))","v":{"$error":"#N/A"}},null,4000,10000,{"$f":"IF(Saisie!Q36=0,#N/A,Saisie!Q36)","v":{"$error":"#N/A"}},12,16,{"$f":"IF(Saisie!G36=0,#N/A,Saisie!G36)","v":{"$error":"#N/A"}},{"$f":"IF(Saisie!AV36=0,#N/A,Saisie!AV36)","v":{"$error":"#N/A"}},150,400,{"$f":"IF(Saisie!N36=0,#N/A,Saisie!N36)","v":{"$error":"#N/A"}},{"$error":"#N/A"},8,16,{"$f":"IF(Saisie!AU36=0,#N/A,Saisie!AU36)","v":{"$error":"#N/A"}},50,104,{"$f":"IF(Saisie!BL36=0,#N/A,Saisie!BL36)","v":{"$error":"#N/A"}},5,{"$f":"IF(Saisie!AG36=0,#N/A,Saisie!AG36)","v":{"$error":"#N/A"}},1500,4000,{"$f":"IF(Saisie!V36=0,#N/A,Saisie!V36)","v":{"$error":"#N/A"}},1800,7000,{"$f":"IF(Saisie!R36=0,#N/A,Saisie!R36)","v":{"$error":"#N/A"}},{"$error":"#N/A"}]
[null,null,{"$f":"IF(Saisie!D37=0,\"\",Saisie!D37)","v":""},{"$f":"IF(Saisie!Q37=0,\"\",Saisie!Q37)","v":""},{"$f":"IF(Saisie!G37=0,\"\",Saisie!G37)","v":""},{"$f":"IF(Saisie!AV37=0,\"\",Saisie!AV37)","v":""},{"$f":"IF(Saisie!N37=0,\"\",Saisie!N37)","v":""},"",{"$f":"IF(Saisie!AU37=0,\"\",Saisie!AU37)","v":""},{"$f":"IF(Saisie!BL37=0,\"\",Saisie!BL37)","v":""},{"$f":"IF(Saisie!AG37=0,\"\",Saisie!AG37)","v":""},{"$f":"IF(Saisie!V37=0,\"\",Saisie!V37)","v":""},{"$f":"IF(Saisie!R37=0,\"\",Saisie!R37)","v":""},{"$f":"IF(Saisie!C37=0,\"\",Saisie!C37)","v":""},{"$f":"IF(Saisie!FC37=0,\"\",Saisie!FC37)","v":""},{"$f":"IF(Saisie!FD37=0,\"\",Saisie!FD37)","v":""},null,{"$error":"#N/A"},"",{"$f":"IF(Saisie!AM37>Saisie!$AM$15,Saisie!AM37,IF(Saisie!AO37>Saisie!$AO$15,Saisie!AO37,#N/A))","v":{"$error":"#N/A"}},{"$f":"IF(Saisie!AQ37>Saisie!$AQ$15,Saisie!AQ37,IF(Saisie!AS37>Saisie!$AS$15,Saisie!AS37,#N/A))","v":{"$error":"#N/A"}},null,4000,10000,{"$f":"IF(Saisie!Q37=0,#N/A,Saisie!Q37)","v":{"$error":"#N/A"}},12,16,{"$f":"IF(Saisie!G37=0,#N/A,Saisie!G37)","v":{"$error":"#N/A"}},{"$f":"IF(Saisie!AV37=0,#N/A,Saisie!AV37)","v":{"$error":"#N/A"}},150,400,{"$f":"IF(Saisie!N37=0,#N/A,Saisie!N37)","v":{"$error":"#N/A"}},{"$error":"#N/A"},8,16,{"$f":"IF(Saisie!AU37=0,#N/A,Saisie!AU37)","v":{"$error":"#N/A"}},50,104,{"$f":"IF(Saisie!BL37=0,#N/A,Saisie!BL37)","v":{"$error":"#N/A"}},5,{"$f":"IF(Saisie!AG37=0,#N/A,Saisie!AG37)","v":{"$error":"#N/A"}},1500,4000,{"$f":"IF(Saisie!V37=0,#N/A,Saisie!V37)","v":{"$error":"#N/A"}},1800,7000,{"$f":"IF(Saisie!R37=0,#N/A,Saisie!R37)","v":{"$error":"#N/A"}},{"$error":"#N/A"}]
[null,null,{"$f":"IF(Saisie!D38=0,\"\",Saisie!D38)","v":""},{"$f":"IF(Saisie!Q38=0,\"\",Saisie!Q38)","v":""},{"$f":"IF(Saisie!G38=0,\"\",Saisie!G38)","v":""},{"$f":"IF(Saisie!AV38=0,\"\",Saisie!AV38)","v":""},{"$f":"IF(Saisie!N38=0,\"\",Saisie!N38)","v":""},"",{"$f":"IF(Saisie!AU38=0,\"\",Saisie!AU38)","v":""},{"$f":"IF(Saisie!BL38=0,\"\",Saisie!BL38)","v":""},{"$f":"IF(Saisie!AG38=0,\"\",Saisie!AG38)","v":""},{"$f":"IF(Saisie!V38=0,\"\",Saisie!V38)","v":""},{"$f":"IF(Saisie!R38=0,\"\",Saisie!R38)","v":""},{"$f":"IF(Saisie!C38=0,\"\",Saisie!C38)","v":""},{"$f":"IF(Saisie!FC38=0,\"\",Saisie!FC38)","v":""},{"$f":"IF(Saisie!FD38=0,\"\",Saisie!FD38)","v":""},null,{"$error":"#N/A"},"",{"$f":"IF(Saisie!AM38>Saisie!$AM$15,Saisie!AM38,IF(Saisie!AO38>Saisie!$AO$15,Saisie!AO38,#N/A))","v":{"$error":"#N/A"}},{"$f":"IF(Saisie!AQ38>Saisie!$AQ$15,Saisie!AQ38,IF(Saisie!AS38>Saisie!$AS$15,Saisie!AS38,#N/A))","v":{"$error":"#N/A"}},null,4000,10000,{"$f":"IF(Saisie!Q38=0,#N/A,Saisie!Q38)","v":{"$error":"#N/A"}},12,16,{"$f":"IF(Saisie!G38=0,#N/A,Saisie!G38)","v":{"$error":"#N/A"}},{"$f":"IF(Saisie!AV38=0,#N/A,Saisie!AV38)","v":{"$error":"#N/A"}},150,400,{"$f":"IF(Saisie!N38=0,#N/A,Saisie!N38)","v":{"$error":"#N/A"}},{"$error":"#N/A"},8,16,{"$f":"IF(Saisie!AU38=0,#N/A,Saisie!AU38)","v":{"$error":"#N/A"}},50,104,{"$f":"IF(Saisie!BL38=0,#N/A,Saisie!BL38)","v":{"$error":"#N/A"}},5,{"$f":"IF(Saisie!AG38=0,#N/A,Saisie!AG38)","v":{"$error":"#N/A"}},1500,4000,{"$f":"IF(Saisie!V38=0,#N/A,Saisie!V38)","v":{"$error":"#N/A"}},1800,7000,{"$f":"IF(Saisie!R38=0,#N/A,Saisie!R38)","v":{"$error":"#N/A"}},{"$error":"#N/A"}]
[null,null,{"$f":"IF(Saisie!D39=0,\"\",Saisie!D39)","v":""},{"$f":"IF(Saisie!Q39=0,\"\",Saisie!Q39)","v":""},{"$f":"IF(Saisie!G39=0,\"\",Saisie!G39)","v":""},{"$f":"IF(Saisie!AV39=0,\"\",Saisie!AV39)","v":""},{"$f":"IF(Saisie!N39=0,\"\",Saisie!N39)","v":""},"",{"$f":"IF(Saisie!AU39=0,\"\",Saisie!AU39)","v":""},{"$f":"IF(Saisie!BL39=0,\"\",Saisie!BL39)","v":""},{"$f":"IF(Saisie!AG39=0,\"\",Saisie!AG39)","v":""},{"$f":"IF(Saisie!V39=0,\"\",Saisie!V39)","v":""},{"$f":"IF(Saisie!R39=0,\"\",Saisie!R39)","v":""},{"$f":"IF(Saisie!C39=0,\"\",Saisie!C39)","v":""},{"$f":"IF(Saisie!FC39=0,\"\",Saisie!FC39)","v":""},{"$f":"IF(Saisie!FD39=0,\"\",Saisie!FD39)","v":""},null,{"$error":"#N/A"},"",{"$f":"IF(Saisie!AM39>Saisie!$AM$15,Saisie!AM39,IF(Saisie!AO39>Saisie!$AO$15,Saisie!AO39,#N/A))","v":{"$error":"#N/A"}},{"$f":"IF(Saisie!AQ39>Saisie!$AQ$15,Saisie!AQ39,IF(Saisie!AS39>Saisie!$AS$15,Saisie!AS39,#N/A))","v":{"$error":"#N/A"}},null,4000,10000,{"$f":"IF(Saisie!Q39=0,#N/A,Saisie!Q39)","v":{"$error":"#N/A"}},12,16,{"$f":"IF(Saisie!G39=0,#N/A,Saisie!G39)","v":{"$error":"#N/A"}},{"$f":"IF(Saisie!AV39=0,#N/A,Saisie!AV39)","v":{"$error":"#N/A"}},150,400,{"$f":"IF(Saisie!N39=0,#N/A,Saisie!N39)","v":{"$error":"#N/A"}},{"$error":"#N/A"},8,16,{"$f":"IF(Saisie!AU39=0,#N/A,Saisie!AU39)","v":{"$error":"#N/A"}},50,104,{"$f":"IF(Saisie!BL39=0,#N/A,Saisie!BL39)","v":{"$error":"#N/A"}},5,{"$f":"IF(Saisie!AG39=0,#N/A,Saisie!AG39)","v":{"$error":"#N/A"}},1500,4000,{"$f":"IF(Saisie!V39=0,#N/A,Saisie!V39)","v":{"$error":"#N/A"}},1800,7000,{"$f":"IF(Saisie!R39=0,#N/A,Saisie!R39)","v":{"$error":"#N/A"}},{"$error":"#N/A"}]
[null,null,{"$f":"IF(Saisie!D40=0,\"\",Saisie!D40)","v":""},{"$f":"IF(Saisie!Q40=0,\"\",Saisie!Q40)","v":""},{"$f":"IF(Saisie!G40=0,\"\",Saisie!G40)","v":""},{"$f":"IF(Saisie!AV40=0,\"\",Saisie!AV40)","v":""},{"$f":"IF(Saisie!N40=0,\"\",Saisie!N40)","v":""},"",{"$f":"IF(Saisie!AU40=0,\"\",Saisie!AU40)","v":""},{"$f":"IF(Saisie!BL40=0,\"\",Saisie!BL40)","v":""},{"$f":"IF(Saisie!AG40=0,\"\",Saisie!AG40)","v":""},{"$f":"IF(Saisie!V40=0,\"\",Saisie!V40)","v":""},{"$f":"IF(Saisie!R40=0,\"\",Saisie!R40)","v":""},{"$f":"IF(Saisie!C40=0,\"\",Saisie!C40)","v":""},{"$f":"IF(Saisie!FC40=0,\"\",Saisie!FC40)","v":""},{"$f":"IF(Saisie!FD40=0,\"\",Saisie!FD40)","v":""},null,{"$error":"#N/A"},"",{"$f":"IF(Saisie!AM40>Saisie!$AM$15,Saisie!AM40,IF(Saisie!AO40>Saisie!$AO$15,Saisie!AO40,#N/A))","v":{"$error":"#N/A"}},{"$f":"IF(Saisie!AQ40>Saisie!$AQ$15,Saisie!AQ40,IF(Saisie!AS40>Saisie!$AS$15,Saisie!AS40,#N/A))","v":{"$error":"#N/A"}},null,4000,10000,{"$f":"IF(Saisie!Q40=0,#N/A,Saisie!Q40)","v":{"$error":"#N/A"}},12,16,{"$f":"IF(Saisie!G40=0,#N/A,Saisie!G40)","v":{"$error":"#N/A"}},{"$f":"IF(Saisie!AV40=0,#N/A,Saisie!AV40)","v":{"$error":"#N/A"}},150,400,{"$f":"IF(Saisie!N40=0,#N/A,Saisie!N40)","v":{"$error":"#N/A"}},{"$error":"#N/A"},8,16,{"$f":"IF(Saisie!AU40=0,#N/A,Saisie!AU40)","v":{"$error":"#N/A"}},50,104,{"$f":"IF(Saisie!BL40=0,#N/A,Saisie!BL40)","v":{"$error":"#N/A"}},5,{"$f":"IF(Saisie!AG40=0,#N/A,Saisie!AG40)","v":{"$error":"#N/A"}},1500,4000,{"$f":"IF(Saisie!V40=0,#N/A,Saisie!V40)","v":{"$error":"#N/A"}},1800,7000,{"$f":"IF(Saisie!R40=0,#N/A,Saisie!R40)","v":{"$error":"#N/A"}},{"$error":"#N/A"}]
[null,null,{"$f":"IF(Saisie!D41=0,\"\",Saisie!D41)","v":""},{"$f":"IF(Saisie!Q41=0,\"\",Saisie!Q41)","v":""},{"$f":"IF(Saisie!G41=0,\"\",Saisie!G41)","v":""},{"$f":"IF(Saisie!AV41=0,\"\",Saisie!AV41)","v":""},{"$f":"IF(Saisie!N41=0,\"\",Saisie!N41)","v":""},"",{"$f":"IF(Saisie!AU41=0,\"\",Saisie!AU41)","v":""},{"$f":"IF(Saisie!BL41=0,\"\",Saisie!BL41)","v":""},{"$f":"IF(Saisie!AG41=0,\"\",Saisie!AG41)","v":""},{"$f":"IF(Saisie!V41=0,\"\",Saisie!V41)","v":""},{"$f":"IF(Saisie!R41=0,\"\",Saisie!R41)","v":""},{"$f":"IF(Saisie!C41=0,\"\",Saisie!C41)","v":""},{"$f":"IF(Saisie!FC41=0,\"\",Saisie!FC41)","v":""},{"$f":"IF(Saisie!FD41=0,\"\",Saisie!FD41)","v":""},null,{"$error":"#N/A"},"",{"$f":"IF(Saisie!AM41>Saisie!$AM$15,Saisie!AM41,IF(Saisie!AO41>Saisie!$AO$15,Saisie!AO41,#N/A))","v":{"$error":"#N/A"}},{"$f":"IF(Saisie!AQ41>Saisie!$AQ$15,Saisie!AQ41,IF(Saisie!AS41>Saisie!$AS$15,Saisie!AS41,#N/A))","v":{"$error":"#N/A"}},null,4000,10000,{"$f":"IF(Saisie!Q41=0,#N/A,Saisie!Q41)","v":{"$error":"#N/A"}},12,16,{"$f":"IF(Saisie!G41=0,#N/A,Saisie!G41)","v":{"$error":"#N/A"}},{"$f":"IF(Saisie!AV41=0,#N/A,Saisie!AV41)","v":{"$error":"#N/A"}},150,400,{"$f":"IF(Saisie!N41=0,#N/A,Saisie!N41)","v":{"$error":"#N/A"}},{"$error":"#N/A"},8,16,{"$f":"IF(Saisie!AU41=0,#N/A,Saisie!AU41)","v":{"$error":"#N/A"}},50,104,{"$f":"IF(Saisie!BL41=0,#N/A,Saisie!BL41)","v":{"$error":"#N/A"}},5,{"$f":"IF(Saisie!AG41=0,#N/A,Saisie!AG41)","v":{"$error":"#N/A"}},1500,4000,{"$f":"IF(Saisie!V41=0,#N/A,Saisie!V41)","v":{"$error":"#N/A"}},1800,7000,{"$f":"IF(Saisie!R41=0,#N/A,Saisie!R41)","v":{"$error":"#N/A"}},{"$error":"#N/A"}]
[null,null,{"$f":"IF(Saisie!D42=0,\"\",Saisie!D42)","v":""},{"$f":"IF(Saisie!Q42=0,\"\",Saisie!Q42)","v":""},{"$f":"IF(Saisie!G42=0,\"\",Saisie!G42)","v":""},{"$f":"IF(Saisie!AV42=0,\"\",Saisie!AV42)","v":""},{"$f":"IF(Saisie!N42=0,\"\",Saisie!N42)","v":""},"",{"$f":"IF(Saisie!AU42=0,\"\",Saisie!AU42)","v":""},{"$f":"IF(Saisie!BL42=0,\"\",Saisie!BL42)","v":""},{"$f":"IF(Saisie!AG42=0,\"\",Saisie!AG42)","v":""},{"$f":"IF(Saisie!V42=0,\"\",Saisie!V42)","v":""},{"$f":"IF(Saisie!R42=0,\"\",Saisie!R42)","v":""},{"$f":"IF(Saisie!C42=0,\"\",Saisie!C42)","v":""},{"$f":"IF(Saisie!FC42=0,\"\",Saisie!FC42)","v":""},{"$f":"IF(Saisie!FD42=0,\"\",Saisie!FD42)","v":""},null,{"$error":"#N/A"},"",{"$f":"IF(Saisie!AM42>Saisie!$AM$15,Saisie!AM42,IF(Saisie!AO42>Saisie!$AO$15,Saisie!AO42,#N/A))","v":{"$error":"#N/A"}},{"$f":"IF(Saisie!AQ42>Saisie!$AQ$15,Saisie!AQ42,IF(Saisie!AS42>Saisie!$AS$15,Saisie!AS42,#N/A))","v":{"$error":"#N/A"}},null,4000,10000,{"$f":"IF(Saisie!Q42=0,#N/A,Saisie!Q42)","v":{"$error":"#N/A"}},12,16,{"$f":"IF(Saisie!G42=0,#N/A,Saisie!G42)","v":{"$error":"#N/A"}},{"$f":"IF(Saisie!AV42=0,#N/A,Saisie!AV42)","v":{"$error":"#N/A"}},150,400,{"$f":"IF(Saisie!N42=0,#N/A,Saisie!N42)","v":{"$error":"#N/A"}},{"$error":"#N/A"},8,16,{"$f":"IF(Saisie!AU42=0,#N/A,Saisie!AU42)","v":{"$error":"#N/A"}},50,104,{"$f":"IF(Saisie!BL42=0,#N/A,Saisie!BL42)","v":{"$error":"#N/A"}},5,{"$f":"IF(Saisie!AG42=0,#N/A,Saisie!AG42)","v":{"$error":"#N/A"}},1500,4000,{"$f":"IF(Saisie!V42=0,#N/A,Saisie!V42)","v":{"$error":"#N/A"}},1800,7000,{"$f":"IF(Saisie!R42=0,#N/A,Saisie!R42)","v":{"$error":"#N/A"}},{"$error":"#N/A"}]
[null,null,{"$f":"IF(Saisie!D43=0,\"\",Saisie!D43)","v":""},{"$f":"IF(Saisie!Q43=0,\"\",Saisie!Q43)","v":""},{"$f":"IF(Saisie!G43=0,\"\",Saisie!G43)","v":""},{"$f":"IF(Saisie!AV43=0,\"\",Saisie!AV43)","v":""},{"$f":"IF(Saisie!N43=0,\"\",Saisie!N43)","v":""},"",{"$f":"IF(Saisie!AU43=0,\"\",Saisie!AU43)","v":""},{"$f":"IF(Saisie!BL43=0,\"\",Saisie!BL43)","v":""},{"$f":"IF(Saisie!AG43=0,\"\",Saisie!AG43)","v":""},{"$f":"IF(Saisie!V43=0,\"\",Saisie!V43)","v":""},{"$f":"IF(Saisie!R43=0,\"\",Saisie!R43)","v":""},{"$f":"IF(Saisie!C43=0,\"\",Saisie!C43)","v":""},{"$f":"IF(Saisie!FC43=0,\"\",Saisie!FC43)","v":""},{"$f":"IF(Saisie!FD43=0,\"\",Saisie!FD43)","v":""},null,{"$error":"#N/A"},"",{"$f":"IF(Saisie!AM43>Saisie!$AM$15,Saisie!AM43,IF(Saisie!AO43>Saisie!$AO$15,Saisie!AO43,#N/A))","v":{"$error":"#N/A"}},{"$f":"IF(Saisie!AQ43>Saisie!$AQ$15,Saisie!AQ43,IF(Saisie!AS43>Saisie!$AS$15,Saisie!AS43,#N/A))","v":{"$error":"#N/A"}},null,4000,10000,{"$f":"IF(Saisie!Q43=0,#N/A,Saisie!Q43)","v":{"$error":"#N/A"}},12,16,{"$f":"IF(Saisie!G43=0,#N/A,Saisie!G43)","v":{"$error":"#N/A"}},{"$f":"IF(Saisie!AV43=0,#N/A,Saisie!AV43)","v":{"$error":"#N/A"}},150,400,{"$f":"IF(Saisie!N43=0,#N/A,Saisie!N43)","v":{"$error":"#N/A"}},{"$error":"#N/A"},8,16,{"$f":"IF(Saisie!AU43=0,#N/A,Saisie!AU43)","v":{"$error":"#N/A"}},50,104,{"$f":"IF(Saisie!BL43=0,#N/A,Saisie!BL43)","v":{"$error":"#N/A"}},5,{"$f":"IF(Saisie!AG43=0,#N/A,Saisie!AG43)","v":{"$error":"#N/A"}},1500,4000,{"$f":"IF(Saisie!V43=0,#N/A,Saisie!V43)","v":{"$error":"#N/A"}},1800,7000,{"$f":"IF(Saisie!R43=0,#N/A,Saisie!R43)","v":{"$error":"#N/A"}},{"$error":"#N/A"}]
[null,null,{"$f":"IF(Saisie!D44=0,\"\",Saisie!D44)","v":""},{"$f":"IF(Saisie!Q44=0,\"\",Saisie!Q44)","v":""},{"$f":"IF(Saisie!G44=0,\"\",Saisie!G44)","v":""},{"$f":"IF(Saisie!AV44=0,\"\",Saisie!AV44)","v":""},{"$f":"IF(Saisie!N44=0,\"\",Saisie!N44)","v":""},"",{"$f":"IF(Saisie!AU44=0,\"\",Saisie!AU44)","v":""},{"$f":"IF(Saisie!BL44=0,\"\",Saisie!BL44)","v":""},{"$f":"IF(Saisie!AG44=0,\"\",Saisie!AG44)","v":""},{"$f":"IF(Saisie!V44=0,\"\",Saisie!V44)","v":""},{"$f":"IF(Saisie!R44=0,\"\",Saisie!R44)","v":""},{"$f":"IF(Saisie!C44=0,\"\",Saisie!C44)","v":""},{"$f":"IF(Saisie!FC44=0,\"\",Saisie!FC44)","v":""},{"$f":"IF(Saisie!FD44=0,\"\",Saisie!FD44)","v":""},null,{"$error":"#N/A"},"",{"$f":"IF(Saisie!AM44>Saisie!$AM$15,Saisie!AM44,IF(Saisie!AO44>Saisie!$AO$15,Saisie!AO44,#N/A))","v":{"$error":"#N/A"}},{"$f":"IF(Saisie!AQ44>Saisie!$AQ$15,Saisie!AQ44,IF(Saisie!AS44>Saisie!$AS$15,Saisie!AS44,#N/A))","v":{"$error":"#N/A"}},null,4000,10000,{"$f":"IF(Saisie!Q44=0,#N/A,Saisie!Q44)","v":{"$error":"#N/A"}},12,16,{"$f":"IF(Saisie!G44=0,#N/A,Saisie!G44)","v":{"$error":"#N/A"}},{"$f":"IF(Saisie!AV44=0,#N/A,Saisie!AV44)","v":{"$error":"#N/A"}},150,400,{"$f":"IF(Saisie!N44=0,#N/A,Saisie!N44)","v":{"$error":"#N/A"}},{"$error":"#N/A"},8,16,{"$f":"IF(Saisie!AU44=0,#N/A,Saisie!AU44)","v":{"$error":"#N/A"}},50,104,{"$f":"IF(Saisie!BL44=0,#N/A,Saisie!BL44)","v":{"$error":"#N/A"}},5,{"$f":"IF(Saisie!AG44=0,#N/A,Saisie!AG44)","v":{"$error":"#N/A"}},1500,4000,{"$f":"IF(Saisie!V44=0,#N/A,Saisie!V44)","v":{"$error":"#N/A"}},1800,7000,{"$f":"IF(Saisie!R44=0,#N/A,Saisie!R44)","v":{"$error":"#N/A"}},{"$error":"#N/A"}]
[null,null,{"$f":"IF(Saisie!D45=0,\"\",Saisie!D45)","v":""},{"$f":"IF(Saisie!Q45=0,\"\",Saisie!Q45)","v":""},{"$f":"IF(Saisie!G45=0,\"\",Saisie!G45)","v":""},{"$f":"IF(Saisie!AV45=0,\"\",Saisie!AV45)","v":""},{"$f":"IF(Saisie!N45=0,\"\",Saisie!N45)","v":""},"",{"$f":"IF(Saisie!AU45=0,\"\",Saisie!AU45)","v":""},{"$f":"IF(Saisie!BL45=0,\"\",Saisie!BL45)","v":""},{"$f":"IF(Saisie!AG45=0,\"\",Saisie!AG45)","v":""},{"$f":"IF(Saisie!V45=0,\"\",Saisie!V45)","v":""},{"$f":"IF(Saisie!R45=0,\"\",Saisie!R45)","v":""},{"$f":"IF(Saisie!C45=0,\"\",Saisie!C45)","v":""},{"$f":"IF(Saisie!FC45=0,\"\",Saisie!FC45)","v":""},{"$f":"IF(Saisie!FD45=0,\"\",Saisie!FD45)","v":""},null,{"$error":"#N/A"},"",{"$f":"IF(Saisie!AM45>Saisie!$AM$15,Saisie!AM45,IF(Saisie!AO45>Saisie!$AO$15,Saisie!AO45,#N/A))","v":{"$error":"#N/A"}},{"$f":"IF(Saisie!AQ45>Saisie!$AQ$15,Saisie!AQ45,IF(Saisie!AS45>Saisie!$AS$15,Saisie!AS45,#N/A))","v":{"$error":"#N/A"}},null,4000,10000,{"$f":"IF(Saisie!Q45=0,#N/A,Saisie!Q45)","v":{"$error":"#N/A"}},12,16,{"$f":"IF(Saisie!G45=0,#N/A,Saisie!G45)","v":{"$error":"#N/A"}},{"$f":"IF(Saisie!AV45=0,#N/A,Saisie!AV45)","v":{"$error":"#N/A"}},150,400,{"$f":"IF(Saisie!N45=0,#N/A,Saisie!N45)","v":{"$error":"#N/A"}},{"$error":"#N/A"},8,16,{"$f":"IF(Saisie!AU45=0,#N/A,Saisie!AU45)","v":{"$error":"#N/A"}},50,104,{"$f":"IF(Saisie!BL45=0,#N/A,Saisie!BL45)","v":{"$error":"#N/A"}},5,{"$f":"IF(Saisie!AG45=0,#N/A,Saisie!AG45)","v":{"$error":"#N/A"}},1500,4000,{"$f":"IF(Saisie!V45=0,#N/A,Saisie!V45)","v":{"$error":"#N/A"}},1800,7000,{"$f":"IF(Saisie!R45=0,#N/A,Saisie!R45)","v":{"$error":"#N/A"}},{"$error":"#N/A"}]
[null,null,{"$f":"IF(Saisie!D46=0,\"\",Saisie!D46)","v":""},{"$f":"IF(Saisie!Q46=0,\"\",Saisie!Q46)","v":""},{"$f":"IF(Saisie!G46=0,\"\",Saisie!G46)","v":""},{"$f":"IF(Saisie!AV46=0,\"\",Saisie!AV46)","v":""},{"$f":"IF(Saisie!N46=0,\"\",Saisie!N46)","v":""},"",{"$f":"IF(Saisie!AU46=0,\"\",Saisie!AU46)","v":""},{"$f":"IF(Saisie!BL46=0,\"\",Saisie!BL46)","v":""},{"$f":"IF(Saisie!AG46=0,\"\",Saisie!AG46)","v":""},{"$f":"IF(Saisie!V46=0,\"\",Saisie!V46)","v":""},{"$f":"IF(Saisie!R46=0,\"\",Saisie!R46)","v":""},{"$f":"IF(Saisie!C46=0,\"\",Saisie!C46)","v":""},{"$f":"IF(Saisie!FC46=0,\"\",Saisie!FC46)","v":""},{"$f":"IF(Saisie!FD46=0,\"\",Saisie!FD46)","v":""},null,{"$error":"#N/A"},"",{"$f":"IF(Saisie!AM46>Saisie!$AM$15,Saisie!AM46,IF(Saisie!AO46>Saisie!$AO$15,Saisie!AO46,#N/A))","v":{"$error":"#N/A"}},{"$f":"IF(Saisie!AQ46>Saisie!$AQ$15,Saisie!AQ46,IF(Saisie!AS46>Saisie!$AS$15,Saisie!AS46,#N/A))","v":{"$error":"#N/A"}},null,4000,10000,{"$f":"IF(Saisie!Q46=0,#N/A,Saisie!Q46)","v":{"$error":"#N/A"}},12,16,{"$f":"IF(Saisie!G46=0,#N/A,Saisie!G46)","v":{"$error":"#N/A"}},{"$f":"IF(Saisie!AV46=0,#N/A,Saisie!AV46)","v":{"$error":"#N/A"}},150,400,{"$f":"IF(Saisie!N46=0,#N/A,Saisie!N46)","v":{"$error":"#N/A"}},{"$error":"#N/A"},8,16,{"$f":"IF(Saisie!AU46=0,#N/A,Saisie!AU46)","v":{"$error":"#N/A"}},50,104,{"$f":"IF(Saisie!BL46=0,#N/A,Saisie!BL46)","v":{"$error":"#N/A"}},5,{"$f":"IF(Saisie!AG46=0,#N/A,Saisie!AG46)","v":{"$error":"#N/A"}},1500,4000,{"$f":"IF(Saisie!V46=0,#N/A,Saisie!V46)","v":{"$error":"#N/A"}},1800,7000,{"$f":"IF(Saisie!R46=0,#N/A,Saisie!R46)","v":{"$error":"#N/A"}},{"$error":"#N/A"}]
[null,null,{"$f":"IF(Saisie!D47=0,\"\",Saisie!D47)","v":""},{"$f":"IF(Saisie!Q47=0,\"\",Saisie!Q47)","v":""},{"$f":"IF(Saisie!G47=0,\"\",Saisie!G47)","v":""},{"$f":"IF(Saisie!AV47=0,\"\",Saisie!AV47)","v":""},{"$f":"IF(Saisie!N47=0,\"\",Saisie!N47)","v":""},"",{"$f":"IF(Saisie!AU47=0,\"\",Saisie!AU47)","v":""},{"$f":"IF(Saisie!BL47=0,\"\",Saisie!BL47)","v":""},{"$f":"IF(Saisie!AG47=0,\"\",Saisie!AG47)","v":""},{"$f":"IF(Saisie!V47=0,\"\",Saisie!V47)","v":""},{"$f":"IF(Saisie!R47=0,\"\",Saisie!R47)","v":""},{"$f":"IF(Saisie!C47=0,\"\",Saisie!C47)","v":""},{"$f":"IF(Saisie!FC47=0,\"\",Saisie!FC47)","v":""},{"$f":"IF(Saisie!FD47=0,\"\",Saisie!FD47)","v":""},null,{"$error":"#N/A"},"",{"$f":"IF(Saisie!AM47>Saisie!$AM$15,Saisie!AM47,IF(Saisie!AO47>Saisie!$AO$15,Saisie!AO47,#N/A))","v":{"$error":"#N/A"}},{"$f":"IF(Saisie!AQ47>Saisie!$AQ$15,Saisie!AQ47,IF(Saisie!AS47>Saisie!$AS$15,Saisie!AS47,#N/A))","v":{"$error":"#N/A"}},null,4000,10000,{"$f":"IF(Saisie!Q47=0,#N/A,Saisie!Q47)","v":{"$error":"#N/A"}},12,16,{"$f":"IF(Saisie!G47=0,#N/A,Saisie!G47)","v":{"$error":"#N/A"}},{"$f":"IF(Saisie!AV47=0,#N/A,Saisie!AV47)","v":{"$error":"#N/A"}},150,400,{"$f":"IF(Saisie!N47=0,#N/A,Saisie!N47)","v":{"$error":"#N/A"}},{"$error":"#N/A"},8,16,{"$f":"IF(Saisie!AU47=0,#N/A,Saisie!AU47)","v":{"$error":"#N/A"}},50,104,{"$f":"IF(Saisie!BL47=0,#N/A,Saisie!BL47)","v":{"$error":"#N/A"}},5,{"$f":"IF(Saisie!AG47=0,#N/A,Saisie!AG47)","v":{"$error":"#N/A"}},1500,4000,{"$f":"IF(Saisie!V47=0,#N/A,Saisie!V47)","v":{"$error":"#N/A"}},1800,7000,{"$f":"IF(Saisie!R47=0,#N/A,Saisie!R47)","v":{"$error":"#N/A"}},{"$error":"#N/A"}]
[null,null,{"$f":"IF(Saisie!D48=0,\"\",Saisie!D48)","v":""},{"$f":"IF(Saisie!Q48=0,\"\",Saisie!Q48)","v":""},{"$f":"IF(Saisie!G48=0,\"\",Saisie!G48)","v":""},{"$f":"IF(Saisie!AV48=0,\"\",Saisie!AV48)","v":""},{"$f":"IF(Saisie!N48=0,\"\",Saisie!N48)","v":""},"",{"$f":"IF(Saisie!AU48=0,\"\",Saisie!AU48)","v":""},{"$f":"IF(Saisie!BL48=0,\"\",Saisie!BL48)","v":""},{"$f":"IF(Saisie!AG48=0,\"\",Saisie!AG48)","v":""},{"$f":"IF(Saisie!V48=0,\"\",Saisie!V48)","v":""},{"$f":"IF(Saisie!R48=0,\"\",Saisie!R48)","v":""},{"$f":"IF(Saisie!C48=0,\"\",Saisie!C48)","v":""},{"$f":"IF(Saisie!FC48=0,\"\",Saisie!FC48)","v":""},{"$f":"IF(Saisie!FD48=0,\"\",Saisie!FD48)","v":""},null,{"$error":"#N/A"},"",{"$f":"IF(Saisie!AM48>Saisie!$AM$15,Saisie!AM48,IF(Saisie!AO48>Saisie!$AO$15,Saisie!AO48,#N/A))","v":{"$error":"#N/A"}},{"$f":"IF(Saisie!AQ48>Saisie!$AQ$15,Saisie!AQ48,IF(Saisie!AS48>Saisie!$AS$15,Saisie!AS48,#N/A))","v":{"$error":"#N/A"}},null,4000,10000,{"$f":"IF(Saisie!Q48=0,#N/A,Saisie!Q48)","v":{"$error":"#N/A"}},12,16,{"$f":"IF(Saisie!G48=0,#N/A,Saisie!G48)","v":{"$error":"#N/A"}},{"$f":"IF(Saisie!AV48=0,#N/A,Saisie!AV48)","v":{"$error":"#N/A"}},150,400,{"$f":"IF(Saisie!N48=0,#N/A,Saisie!N48)","v":{"$error":"#N/A"}},{"$error":"#N/A"},8,16,{"$f":"IF(Saisie!AU48=0,#N/A,Saisie!AU48)","v":{"$error":"#N/A"}},50,104,{"$f":"IF(Saisie!BL48=0,#N/A,Saisie!BL48)","v":{"$error":"#N/A"}},5,{"$f":"IF(Saisie!AG48=0,#N/A,Saisie!AG48)","v":{"$error":"#N/A"}},1500,4000,{"$f":"IF(Saisie!V48=0,#N/A,Saisie!V48)","v":{"$error":"#N/A"}},1800,7000,{"$f":"IF(Saisie!R48=0,#N/A,Saisie!R48)","v":{"$error":"#N/A"}},{"$error":"#N/A"}]
[null,null,{"$f":"IF(Saisie!D49=0,\"\",Saisie!D49)","v":""},{"$f":"IF(Saisie!Q49=0,\"\",Saisie!Q49)","v":""},{"$f":"IF(Saisie!G49=0,\"\",Saisie!G49)","v":""},{"$f":"IF(Saisie!AV49=0,\"\",Saisie!AV49)","v":""},{"$f":"IF(Saisie!N49=0,\"\",Saisie!N49)","v":""},"",{"$f":"IF(Saisie!AU49=0,\"\",Saisie!AU49)","v":""},{"$f":"IF(Saisie!BL49=0,\"\",Saisie!BL49)","v":""},{"$f":"IF(Saisie!AG49=0,\"\",Saisie!AG49)","v":""},{"$f":"IF(Saisie!V49=0,\"\",Saisie!V49)","v":""},{"$f":"IF(Saisie!R49=0,\"\",Saisie!R49)","v":""},{"$f":"IF(Saisie!C49=0,\"\",Saisie!C49)","v":""},{"$f":"IF(Saisie!FC49=0,\"\",Saisie!FC49)","v":""},{"$f":"IF(Saisie!FD49=0,\"\",Saisie!FD49)","v":""},null,{"$error":"#N/A"},"",{"$f":"IF(Saisie!AM49>Saisie!$AM$15,Saisie!AM49,IF(Saisie!AO49>Saisie!$AO$15,Saisie!AO49,#N/A))","v":{"$error":"#N/A"}},{"$f":"IF(Saisie!AQ49>Saisie!$AQ$15,Saisie!AQ49,IF(Saisie!AS49>Saisie!$AS$15,Saisie!AS49,#N/A))","v":{"$error":"#N/A"}},null,4000,10000,{"$f":"IF(Saisie!Q49=0,#N/A,Saisie!Q49)","v":{"$error":"#N/A"}},12,16,{"$f":"IF(Saisie!G49=0,#N/A,Saisie!G49)","v":{"$error":"#N/A"}},{"$f":"IF(Saisie!AV49=0,#N/A,Saisie!AV49)","v":{"$error":"#N/A"}},150,400,{"$f":"IF(Saisie!N49=0,#N/A,Saisie!N49)","v":{"$error":"#N/A"}},{"$error":"#N/A"},8,16,{"$f":"IF(Saisie!AU49=0,#N/A,Saisie!AU49)","v":{"$error":"#N/A"}},50,104,{"$f":"IF(Saisie!BL49=0,#N/A,Saisie!BL49)","v":{"$error":"#N/A"}},5,{"$f":"IF(Saisie!AG49=0,#N/A,Saisie!AG49)","v":{"$error":"#N/A"}},1500,4000,{"$f":"IF(Saisie!V49=0,#N/A,Saisie!V49)","v":{"$error":"#N/A"}},1800,7000,{"$f":"IF(Saisie!R49=0,#N/A,Saisie!R49)","v":{"$error":"#N/A"}},{"$error":"#N/A"}]
[null,null,{"$f":"IF(Saisie!D50=0,\"\",Saisie!D50)","v":""},{"$f":"IF(Saisie!Q50=0,\"\",Saisie!Q50)","v":""},{"$f":"IF(Saisie!G50=0,\"\",Saisie!G50)","v":""},{"$f":"IF(Saisie!AV50=0,\"\",Saisie!AV50)","v":""},{"$f":"IF(Saisie!N50=0,\"\",Saisie!N50)","v":""},"",{"$f":"IF(Saisie!AU50=0,\"\",Saisie!AU50)","v":""},{"$f":"IF(Saisie!BL50=0,\"\",Saisie!BL50)","v":""},{"$f":"IF(Saisie!AG50=0,\"\",Saisie!AG50)","v":""},{"$f":"IF(Saisie!V50=0,\"\",Saisie!V50)","v":""},{"$f":"IF(Saisie!R50=0,\"\",Saisie!R50)","v":""},{"$f":"IF(Saisie!C50=0,\"\",Saisie!C50)","v":""},{"$f":"IF(Saisie!FC50=0,\"\",Saisie!FC50)","v":""},{"$f":"IF(Saisie!FD50=0,\"\",Saisie!FD50)","v":""},null,{"$error":"#N/A"},"",{"$f":"IF(Saisie!AM50>Saisie!$AM$15,Saisie!AM50,IF(Saisie!AO50>Saisie!$AO$15,Saisie!AO50,#N/A))","v":{"$error":"#N/A"}},{"$f":"IF(Saisie!AQ50>Saisie!$AQ$15,Saisie!AQ50,IF(Saisie!AS50>Saisie!$AS$15,Saisie!AS50,#N/A))","v":{"$error":"#N/A"}},null,4000,10000,{"$f":"IF(Saisie!Q50=0,#N/A,Saisie!Q50)","v":{"$error":"#N/A"}},12,16,{"$f":"IF(Saisie!G50=0,#N/A,Saisie!G50)","v":{"$error":"#N/A"}},{"$f":"IF(Saisie!AV50=0,#N/A,Saisie!AV50)","v":{"$error":"#N/A"}},150,400,{"$f":"IF(Saisie!N50=0,#N/A,Saisie!N50)","v":{"$error":"#N/A"}},{"$error":"#N/A"},8,16,{"$f":"IF(Saisie!AU50=0,#N/A,Saisie!AU50)","v":{"$error":"#N/A"}},50,104,{"$f":"IF(Saisie!BL50=0,#N/A,Saisie!BL50)","v":{"$error":"#N/A"}},5,{"$f":"IF(Saisie!AG50=0,#N/A,Saisie!AG50)","v":{"$error":"#N/A"}},1500,4000,{"$f":"IF(Saisie!V50=0,#N/A,Saisie!V50)","v":{"$error":"#N/A"}},1800,7000,{"$f":"IF(Saisie!R50=0,#N/A,Saisie!R50)","v":{"$error":"#N/A"}},{"$error":"#N/A"}]
[null,null,{"$f":"IF(Saisie!D51=0,\"\",Saisie!D51)","v":""},{"$f":"IF(Saisie!Q51=0,\"\",Saisie!Q51)","v":""},{"$f":"IF(Saisie!G51=0,\"\",Saisie!G51)","v":""},{"$f":"IF(Saisie!AV51=0,\"\",Saisie!AV51)","v":""},{"$f":"IF(Saisie!N51=0,\"\",Saisie!N51)","v":""},"",{"$f":"IF(Saisie!AU51=0,\"\",Saisie!AU51)","v":""},{"$f":"IF(Saisie!BL51=0,\"\",Saisie!BL51)","v":""},{"$f":"IF(Saisie!AG51=0,\"\",Saisie!AG51)","v":""},{"$f":"IF(Saisie!V51=0,\"\",Saisie!V51)","v":""},{"$f":"IF(Saisie!R51=0,\"\",Saisie!R51)","v":""},{"$f":"IF(Saisie!C51=0,\"\",Saisie!C51)","v":""},{"$f":"IF(Saisie!FC51=0,\"\",Saisie!FC51)","v":""},{"$f":"IF(Saisie!FD51=0,\"\",Saisie!FD51)","v":""},null,{"$error":"#N/A"},"",{"$f":"IF(Saisie!AM51>Saisie!$AM$15,Saisie!AM51,IF(Saisie!AO51>Saisie!$AO$15,Saisie!AO51,#N/A))","v":{"$error":"#N/A"}},{"$f":"IF(Saisie!AQ51>Saisie!$AQ$15,Saisie!AQ51,IF(Saisie!AS51>Saisie!$AS$15,Saisie!AS51,#N/A))","v":{"$error":"#N/A"}},null,4000,10000,{"$f":"IF(Saisie!Q51=0,#N/A,Saisie!Q51)","v":{"$error":"#N/A"}},12,16,{"$f":"IF(Saisie!G51=0,#N/A,Saisie!G51)","v":{"$error":"#N/A"}},{"$f":"IF(Saisie!AV51=0,#N/A,Saisie!AV51)","v":{"$error":"#N/A"}},150,400,{"$f":"IF(Saisie!N51=0,#N/A,Saisie!N51)","v":{"$error":"#N/A"}},{"$error":"#N/A"},8,16,{"$f":"IF(Saisie!AU51=0,#N/A,Saisie!AU51)","v":{"$error":"#N/A"}},50,104,{"$f":"IF(Saisie!BL51=0,#N/A,Saisie!BL51)","v":{"$error":"#N/A"}},5,{"$f":"IF(Saisie!AG51=0,#N/A,Saisie!AG51)","v":{"$error":"#N/A"}},1500,4000,{"$f":"IF(Saisie!V51=0,#N/A,Saisie!V51)","v":{"$error":"#N/A"}},1800,7000,{"$f":"IF(Saisie!R51=0,#N/A,Saisie!R51)","v":{"$error":"#N/A"}},{"$error":"#N/A"}]
[null,null,{"$f":"IF(Saisie!D52=0,\"\",Saisie!D52)","v":""},{"$f":"IF(Saisie!Q52=0,\"\",Saisie!Q52)","v":""},{"$f":"IF(Saisie!G52=0,\"\",Saisie!G52)","v":""},{"$f":"IF(Saisie!AV52=0,\"\",Saisie!AV52)","v":""},{"$f":"IF(Saisie!N52=0,\"\",Saisie!N52)","v":""},"",{"$f":"IF(Saisie!AU52=0,\"\",Saisie!AU52)","v":""},{"$f":"IF(Saisie!BL52=0,\"\",Saisie!BL52)","v":""},{"$f":"IF(Saisie!AG52=0,\"\",Saisie!AG52)","v":""},{"$f":"IF(Saisie!V52=0,\"\",Saisie!V52)","v":""},{"$f":"IF(Saisie!R52=0,\"\",Saisie!R52)","v":""},{"$f":"IF(Saisie!C52=0,\"\",Saisie!C52)","v":""},{"$f":"IF(Saisie!FC52=0,\"\",Saisie!FC52)","v":""},{"$f":"IF(Saisie!FD52=0,\"\",Saisie!FD52)","v":""},null,{"$error":"#N/A"},"",{"$f":"IF(Saisie!AM52>Saisie!$AM$15,Saisie!AM52,IF(Saisie!AO52>Saisie!$AO$15,Saisie!AO52,#N/A))","v":{"$error":"#N/A"}},{"$f":"IF(Saisie!AQ52>Saisie!$AQ$15,Saisie!AQ52,IF(Saisie!AS52>Saisie!$AS$15,Saisie!AS52,#N/A))","v":{"$error":"#N/A"}},null,4000,10000,{"$f":"IF(Saisie!Q52=0,#N/A,Saisie!Q52)","v":{"$error":"#N/A"}},12,16,{"$f":"IF(Saisie!G52=0,#N/A,Saisie!G52)","v":{"$error":"#N/A"}},{"$f":"IF(Saisie!AV52=0,#N/A,Saisie!AV52)","v":{"$error":"#N/A"}},150,400,{"$f":"IF(Saisie!N52=0,#N/A,Saisie!N52)","v":{"$error":"#N/A"}},{"$error":"#N/A"},8,16,{"$f":"IF(Saisie!AU52=0,#N/A,Saisie!AU52)","v":{"$error":"#N/A"}},50,104,{"$f":"IF(Saisie!BL52=0,#N/A,Saisie!BL52)","v":{"$error":"#N/A"}},5,{"$f":"IF(Saisie!AG52=0,#N/A,Saisie!AG52)","v":{"$error":"#N/A"}},1500,4000,{"$f":"IF(Saisie!V52=0,#N/A,Saisie!V52)","v":{"$error":"#N/A"}},1800,7000,{"$f":"IF(Saisie!R52=0,#N/A,Saisie!R52)","v":{"$error":"#N/A"}},{"$error":"#N/A"}]
[null,null,{"$f":"IF(Saisie!D53=0,\"\",Saisie!D53)","v":""},{"$f":"IF(Saisie!Q53=0,\"\",Saisie!Q53)","v":""},{"$f":"IF(Saisie!G53=0,\"\",Saisie!G53)","v":""},{"$f":"IF(Saisie!AV53=0,\"\",Saisie!AV53)","v":""},{"$f":"IF(Saisie!N53=0,\"\",Saisie!N53)","v":""},"",{"$f":"IF(Saisie!AU53=0,\"\",Saisie!AU53)","v":""},{"$f":"IF(Saisie!BL53=0,\"\",Saisie!BL53)","v":""},{"$f":"IF(Saisie!AG53=0,\"\",Saisie!AG53)","v":""},{"$f":"IF(Saisie!V53=0,\"\",Saisie!V53)","v":""},{"$f":"IF(Saisie!R53=0,\"\",Saisie!R53)","v":""},{"$f":"IF(Saisie!C53=0,\"\",Saisie!C53)","v":""},{"$f":"IF(Saisie!FC53=0,\"\",Saisie!FC53)","v":""},{"$f":"IF(Saisie!FD53=0,\"\",Saisie!FD53)","v":""},null,{"$error":"#N/A"},"",{"$f":"IF(Saisie!AM53>Saisie!$AM$15,Saisie!AM53,IF(Saisie!AO53>Saisie!$AO$15,Saisie!AO53,#N/A))","v":{"$error":"#N/A"}},{"$f":"IF(Saisie!AQ53>Saisie!$AQ$15,Saisie!AQ53,IF(Saisie!AS53>Saisie!$AS$15,Saisie!AS53,#N/A))","v":{"$error":"#N/A"}},null,4000,10000,{"$f":"IF(Saisie!Q53=0,#N/A,Saisie!Q53)","v":{"$error":"#N/A"}},12,16,{"$f":"IF(Saisie!G53=0,#N/A,Saisie!G53)","v":{"$error":"#N/A"}},{"$f":"IF(Saisie!AV53=0,#N/A,Saisie!AV53)","v":{"$error":"#N/A"}},150,400,{"$f":"IF(Saisie!N53=0,#N/A,Saisie!N53)","v":{"$error":"#N/A"}},{"$error":"#N/A"},8,16,{"$f":"IF(Saisie!AU53=0,#N/A,Saisie!AU53)","v":{"$error":"#N/A"}},50,104,{"$f":"IF(Saisie!BL53=0,#N/A,Saisie!BL53)","v":{"$error":"#N/A"}},5,{"$f":"IF(Saisie!AG53=0,#N/A,Saisie!AG53)","v":{"$error":"#N/A"}},1500,4000,{"$f":"IF(Saisie!V53=0,#N/A,Saisie!V53)","v":{"$error":"#N/A"}},1800,7000,{"$f":"IF(Saisie!R53=0,#N/A,Saisie!R53)","v":{"$error":"#N/A"}},{"$error":"#N/A"}]
[null,null,{"$f":"IF(Saisie!D54=0,\"\",Saisie!D54)","v":""},{"$f":"IF(Saisie!Q54=0,\"\",Saisie!Q54)","v":""},{"$f":"IF(Saisie!G54=0,\"\",Saisie!G54)","v":""},{"$f":"IF(Saisie!AV54=0,\"\",Saisie!AV54)","v":""},{"$f":"IF(Saisie!N54=0,\"\",Saisie!N54)","v":""},"",{"$f":"IF(Saisie!AU54=0,\"\",Saisie!AU54)","v":""},{"$f":"IF(Saisie!BL54=0,\"\",Saisie!BL54)","v":""},{"$f":"IF(Saisie!AG54=0,\"\",Saisie!AG54)","v":""},{"$f":"IF(Saisie!V54=0,\"\",Saisie!V54)","v":""},{"$f":"IF(Saisie!R54=0,\"\",Saisie!R54)","v":""},{"$f":"IF(Saisie!C54=0,\"\",Saisie!C54)","v":""},{"$f":"IF(Saisie!FC54=0,\"\",Saisie!FC54)","v":""},{"$f":"IF(Saisie!FD54=0,\"\",Saisie!FD54)","v":""},null,{"$error":"#N/A"},"",{"$f":"IF(Saisie!AM54>Saisie!$AM$15,Saisie!AM54,IF(Saisie!AO54>Saisie!$AO$15,Saisie!AO54,#N/A))","v":{"$error":"#N/A"}},{"$f":"IF(Saisie!AQ54>Saisie!$AQ$15,Saisie!AQ54,IF(Saisie!AS54>Saisie!$AS$15,Saisie!AS54,#N/A))","v":{"$error":"#N/A"}},null,4000,10000,{"$f":"IF(Saisie!Q54=0,#N/A,Saisie!Q54)","v":{"$error":"#N/A"}},12,16,{"$f":"IF(Saisie!G54=0,#N/A,Saisie!G54)","v":{"$error":"#N/A"}},{"$f":"IF(Saisie!AV54=0,#N/A,Saisie!AV54)","v":{"$error":"#N/A"}},150,400,{"$f":"IF(Saisie!N54=0,#N/A,Saisie!N54)","v":{"$error":"#N/A"}},{"$error":"#N/A"},8,16,{"$f":"IF(Saisie!AU54=0,#N/A,Saisie!AU54)","v":{"$error":"#N/A"}},50,104,{"$f":"IF(Saisie!BL54=0,#N/A,Saisie!BL54)","v":{"$error":"#N/A"}},5,{"$f":"IF(Saisie!AG54=0,#N/A,Saisie!AG54)","v":{"$error":"#N/A"}},1500,4000,{"$f":"IF(Saisie!V54=0,#N/A,Saisie!V54)","v":{"$error":"#N/A"}},1800,7000,{"$f":"IF(Saisie!R54=0,#N/A,Saisie!R54)","v":{"$error":"#N/A"}},{"$error":"#N/A"}]
[null,null,{"$f":"IF(Saisie!D55=0,\"\",Saisie!D55)","v":""},{"$f":"IF(Saisie!Q55=0,\"\",Saisie!Q55)","v":""},{"$f":"IF(Saisie!G55=0,\"\",Saisie!G55)","v":""},{"$f":"IF(Saisie!AV55=0,\"\",Saisie!AV55)","v":""},{"$f":"IF(Saisie!N55=0,\"\",Saisie!N55)","v":""},"",{"$f":"IF(Saisie!AU55=0,\"\",Saisie!AU55)","v":""},{"$f":"IF(Saisie!BL55=0,\"\",Saisie!BL55)","v":""},{"$f":"IF(Saisie!AG55=0,\"\",Saisie!AG55)","v":""},{"$f":"IF(Saisie!V55=0,\"\",Saisie!V55)","v":""},{"$f":"IF(Saisie!R55=0,\"\",Saisie!R55)","v":""},{"$f":"IF(Saisie!C55=0,\"\",Saisie!C55)","v":""},{"$f":"IF(Saisie!FC55=0,\"\",Saisie!FC55)","v":""},{"$f":"IF(Saisie!FD55=0,\"\",Saisie!FD55)","v":""},null,{"$error":"#N/A"},"",{"$f":"IF(Saisie!AM55>Saisie!$AM$15,Saisie!AM55,IF(Saisie!AO55>Saisie!$AO$15,Saisie!AO55,#N/A))","v":{"$error":"#N/A"}},{"$f":"IF(Saisie!AQ55>Saisie!$AQ$15,Saisie!AQ55,IF(Saisie!AS55>Saisie!$AS$15,Saisie!AS55,#N/A))","v":{"$error":"#N/A"}},null,4000,10000,{"$f":"IF(Saisie!Q55=0,#N/A,Saisie!Q55)","v":{"$error":"#N/A"}},12,16,{"$f":"IF(Saisie!G55=0,#N/A,Saisie!G55)","v":{"$error":"#N/A"}},{"$f":"IF(Saisie!AV55=0,#N/A,Saisie!AV55)","v":{"$error":"#N/A"}},150,400,{"$f":"IF(Saisie!N55=0,#N/A,Saisie!N55)","v":{"$error":"#N/A"}},{"$error":"#N/A"},8,16,{"$f":"IF(Saisie!AU55=0,#N/A,Saisie!AU55)","v":{"$error":"#N/A"}},50,104,{"$f":"IF(Saisie!BL55=0,#N/A,Saisie!BL55)","v":{"$error":"#N/A"}},5,{"$f":"IF(Saisie!AG55=0,#N/A,Saisie!AG55)","v":{"$error":"#N/A"}},1500,4000,{"$f":"IF(Saisie!V55=0,#N/A,Saisie!V55)","v":{"$error":"#N/A"}},1800,7000,{"$f":"IF(Saisie!R55=0,#N/A,Saisie!R55)","v":{"$error":"#N/A"}},{"$error":"#N/A"}]
[null,null,{"$f":"IF(Saisie!D56=0,\"\",Saisie!D56)","v":""},{"$f":"IF(Saisie!Q56=0,\"\",Saisie!Q56)","v":""},{"$f":"IF(Saisie!G56=0,\"\",Saisie!G56)","v":""},{"$f":"IF(Saisie!AV56=0,\"\",Saisie!AV56)","v":""},{"$f":"IF(Saisie!N56=0,\"\",Saisie!N56)","v":""},"",{"$f":"IF(Saisie!AU56=0,\"\",Saisie!AU56)","v":""},{"$f":"IF(Saisie!BL56=0,\"\",Saisie!BL56)","v":""},{"$f":"IF(Saisie!AG56=0,\"\",Saisie!AG56)","v":""},{"$f":"IF(Saisie!V56=0,\"\",Saisie!V56)","v":""},{"$f":"IF(Saisie!R56=0,\"\",Saisie!R56)","v":""},{"$f":"IF(Saisie!C56=0,\"\",Saisie!C56)","v":""},{"$f":"IF(Saisie!FC56=0,\"\",Saisie!FC56)","v":""},{"$f":"IF(Saisie!FD56=0,\"\",Saisie!FD56)","v":""},null,{"$error":"#N/A"},"",{"$f":"IF(Saisie!AM56>Saisie!$AM$15,Saisie!AM56,IF(Saisie!AO56>Saisie!$AO$15,Saisie!AO56,#N/A))","v":{"$error":"#N/A"}},{"$f":"IF(Saisie!AQ56>Saisie!$AQ$15,Saisie!AQ56,IF(Saisie!AS56>Saisie!$AS$15,Saisie!AS56,#N/A))","v":{"$error":"#N/A"}},null,4000,10000,{"$f":"IF(Saisie!Q56=0,#N/A,Saisie!Q56)","v":{"$error":"#N/A"}},12,16,{"$f":"IF(Saisie!G56=0,#N/A,Saisie!G56)","v":{"$error":"#N/A"}},{"$f":"IF(Saisie!AV56=0,#N/A,Saisie!AV56)","v":{"$error":"#N/A"}},150,400,{"$f":"IF(Saisie!N56=0,#N/A,Saisie!N56)","v":{"$error":"#N/A"}},{"$error":"#N/A"},8,16,{"$f":"IF(Saisie!AU56=0,#N/A,Saisie!AU56)","v":{"$error":"#N/A"}},50,104,{"$f":"IF(Saisie!BL56=0,#N/A,Saisie!BL56)","v":{"$error":"#N/A"}},5,{"$f":"IF(Saisie!AG56=0,#N/A,Saisie!AG56)","v":{"$error":"#N/A"}},1500,4000,{"$f":"IF(Saisie!V56=0,#N/A,Saisie!V56)","v":{"$error":"#N/A"}},1800,7000,{"$f":"IF(Saisie!R56=0,#N/A,Saisie!R56)","v":{"$error":"#N/A"}},{"$error":"#N/A"}]
[null,null,{"$f":"IF(Saisie!D57=0,\"\",Saisie!D57)","v":""},{"$f":"IF(Saisie!Q57=0,\"\",Saisie!Q57)","v":""},{"$f":"IF(Saisie!G57=0,\"\",Saisie!G57)","v":""},{"$f":"IF(Saisie!AV57=0,\"\",Saisie!AV57)","v":""},{"$f":"IF(Saisie!N57=0,\"\",Saisie!N57)","v":""},"",{"$f":"IF(Saisie!AU57=0,\"\",Saisie!AU57)","v":""},{"$f":"IF(Saisie!BL57=0,\"\",Saisie!BL57)","v":""},{"$f":"IF(Saisie!AG57=0,\"\",Saisie!AG57)","v":""},{"$f":"IF(Saisie!V57=0,\"\",Saisie!V57)","v":""},{"$f":"IF(Saisie!R57=0,\"\",Saisie!R57)","v":""},{"$f":"IF(Saisie!C57=0,\"\",Saisie!C57)","v":""},{"$f":"IF(Saisie!FC57=0,\"\",Saisie!FC57)","v":""},{"$f":"IF(Saisie!FD57=0,\"\",Saisie!FD57)","v":""},null,{"$error":"#N/A"},"",{"$f":"IF(Saisie!AM57>Saisie!$AM$15,Saisie!AM57,IF(Saisie!AO57>Saisie!$AO$15,Saisie!AO57,#N/A))","v":{"$error":"#N/A"}},{"$f":"IF(Saisie!AQ57>Saisie!$AQ$15,Saisie!AQ57,IF(Saisie!AS57>Saisie!$AS$15,Saisie!AS57,#N/A))","v":{"$error":"#N/A"}},null,4000,10000,{"$f":"IF(Saisie!Q57=0,#N/A,Saisie!Q57)","v":{"$error":"#N/A"}},12,16,{"$f":"IF(Saisie!G57=0,#N/A,Saisie!G57)","v":{"$error":"#N/A"}},{"$f":"IF(Saisie!AV57=0,#N/A,Saisie!AV57)","v":{"$error":"#N/A"}},150,400,{"$f":"IF(Saisie!N57=0,#N/A,Saisie!N57)","v":{"$error":"#N/A"}},{"$error":"#N/A"},8,16,{"$f":"IF(Saisie!AU57=0,#N/A,Saisie!AU57)","v":{"$error":"#N/A"}},50,104,{"$f":"IF(Saisie!BL57=0,#N/A,Saisie!BL57)","v":{"$error":"#N/A"}},5,{"$f":"IF(Saisie!AG57=0,#N/A,Saisie!AG57)","v":{"$error":"#N/A"}},1500,4000,{"$f":"IF(Saisie!V57=0,#N/A,Saisie!V57)","v":{"$error":"#N/A"}},1800,7000,{"$f":"IF(Saisie!R57=0,#N/A,Saisie!R57)","v":{"$error":"#N/A"}},{"$error":"#N/A"}]
[null,null,{"$f":"IF(Saisie!D58=0,\"\",Saisie!D58)","v":""},{"$f":"IF(Saisie!Q58=0,\"\",Saisie!Q58)","v":""},{"$f":"IF(Saisie!G58=0,\"\",Saisie!G58)","v":""},{"$f":"IF(Saisie!AV58=0,\"\",Saisie!AV58)","v":""},{"$f":"IF(Saisie!N58=0,\"\",Saisie!N58)","v":""},"",{"$f":"IF(Saisie!AU58=0,\"\",Saisie!AU58)","v":""},{"$f":"IF(Saisie!BL58=0,\"\",Saisie!BL58)","v":""},{"$f":"IF(Saisie!AG58=0,\"\",Saisie!AG58)","v":""},{"$f":"IF(Saisie!V58=0,\"\",Saisie!V58)","v":""},{"$f":"IF(Saisie!R58=0,\"\",Saisie!R58)","v":""},{"$f":"IF(Saisie!C58=0,\"\",Saisie!C58)","v":""},{"$f":"IF(Saisie!FC58=0,\"\",Saisie!FC58)","v":""},{"$f":"IF(Saisie!FD58=0,\"\",Saisie!FD58)","v":""},null,{"$error":"#N/A"},"",{"$f":"IF(Saisie!AM58>Saisie!$AM$15,Saisie!AM58,IF(Saisie!AO58>Saisie!$AO$15,Saisie!AO58,#N/A))","v":{"$error":"#N/A"}},{"$f":"IF(Saisie!AQ58>Saisie!$AQ$15,Saisie!AQ58,IF(Saisie!AS58>Saisie!$AS$15,Saisie!AS58,#N/A))","v":{"$error":"#N/A"}},null,4000,10000,{"$f":"IF(Saisie!Q58=0,#N/A,Saisie!Q58)","v":{"$error":"#N/A"}},12,16,{"$f":"IF(Saisie!G58=0,#N/A,Saisie!G58)","v":{"$error":"#N/A"}},{"$f":"IF(Saisie!AV58=0,#N/A,Saisie!AV58)","v":{"$error":"#N/A"}},150,400,{"$f":"IF(Saisie!N58=0,#N/A,Saisie!N58)","v":{"$error":"#N/A"}},{"$error":"#N/A"},8,16,{"$f":"IF(Saisie!AU58=0,#N/A,Saisie!AU58)","v":{"$error":"#N/A"}},50,104,{"$f":"IF(Saisie!BL58=0,#N/A,Saisie!BL58)","v":{"$error":"#N/A"}},5,{"$f":"IF(Saisie!AG58=0,#N/A,Saisie!AG58)","v":{"$error":"#N/A"}},1500,4000,{"$f":"IF(Saisie!V58=0,#N/A,Saisie!V58)","v":{"$error":"#N/A"}},1800,7000,{"$f":"IF(Saisie!R58=0,#N/A,Saisie!R58)","v":{"$error":"#N/A"}},{"$error":"#N/A"}]
[null,null,{"$f":"IF(Saisie!D59=0,\"\",Saisie!D59)","v":""},{"$f":"IF(Saisie!Q59=0,\"\",Saisie!Q59)","v":""},{"$f":"IF(Saisie!G59=0,\"\",Saisie!G59)","v":""},{"$f":"IF(Saisie!AV59=0,\"\",Saisie!AV59)","v":""},{"$f":"IF(Saisie!N59=0,\"\",Saisie!N59)","v":""},"",{"$f":"IF(Saisie!AU59=0,\"\",Saisie!AU59)","v":""},{"$f":"IF(Saisie!BL59=0,\"\",Saisie!BL59)","v":""},{"$f":"IF(Saisie!AG59=0,\"\",Saisie!AG59)","v":""},{"$f":"IF(Saisie!V59=0,\"\",Saisie!V59)","v":""},{"$f":"IF(Saisie!R59=0,\"\",Saisie!R59)","v":""},{"$f":"IF(Saisie!C59=0,\"\",Saisie!C59)","v":""},{"$f":"IF(Saisie!FC59=0,\"\",Saisie!FC59)","v":""},{"$f":"IF(Saisie!FD59=0,\"\",Saisie!FD59)","v":""},null,{"$error":"#N/A"},"",{"$f":"IF(Saisie!AM59>Saisie!$AM$15,Saisie!AM59,IF(Saisie!AO59>Saisie!$AO$15,Saisie!AO59,#N/A))","v":{"$error":"#N/A"}},{"$f":"IF(Saisie!AQ59>Saisie!$AQ$15,Saisie!AQ59,IF(Saisie!AS59>Saisie!$AS$15,Saisie!AS59,#N/A))","v":{"$error":"#N/A"}},null,4000,10000,{"$f":"IF(Saisie!Q59=0,#N/A,Saisie!Q59)","v":{"$error":"#N/A"}},12,16,{"$f":"IF(Saisie!G59=0,#N/A,Saisie!G59)","v":{"$error":"#N/A"}},{"$f":"IF(Saisie!AV59=0,#N/A,Saisie!AV59)","v":{"$error":"#N/A"}},150,400,{"$f":"IF(Saisie!N59=0,#N/A,Saisie!N59)","v":{"$error":"#N/A"}},{"$error":"#N/A"},8,16,{"$f":"IF(Saisie!AU59=0,#N/A,Saisie!AU59)","v":{"$error":"#N/A"}},50,104,{"$f":"IF(Saisie!BL59=0,#N/A,Saisie!BL59)","v":{"$error":"#N/A"}},5,{"$f":"IF(Saisie!AG59=0,#N/A,Saisie!AG59)","v":{"$error":"#N/A"}},1500,4000,{"$f":"IF(Saisie!V59=0,#N/A,Saisie!V59)","v":{"$error":"#N/A"}},1800,7000,{"$f":"IF(Saisie!R59=0,#N/A,Saisie!R59)","v":{"$error":"#N/A"}},{"$error":"#N/A"}]
[null,null,{"$f":"IF(Saisie!D60=0,\"\",Saisie!D60)","v":""},{"$f":"IF(Saisie!Q60=0,\"\",Saisie!Q60)","v":""},{"$f":"IF(Saisie!G60=0,\"\",Saisie!G60)","v":""},{"$f":"IF(Saisie!AV60=0,\"\",Saisie!AV60)","v":""},{"$f":"IF(Saisie!N60=0,\"\",Saisie!N60)","v":""},"",{"$f":"IF(Saisie!AU60=0,\"\",Saisie!AU60)","v":""},{"$f":"IF(Saisie!BL60=0,\"\",Saisie!BL60)","v":""},{"$f":"IF(Saisie!AG60=0,\"\",Saisie!AG60)","v":""},{"$f":"IF(Saisie!V60=0,\"\",Saisie!V60)","v":""},{"$f":"IF(Saisie!R60=0,\"\",Saisie!R60)","v":""},{"$f":"IF(Saisie!C60=0,\"\",Saisie!C60)","v":""},{"$f":"IF(Saisie!FC60=0,\"\",Saisie!FC60)","v":""},{"$f":"IF(Saisie!FD60=0,\"\",Saisie!FD60)","v":""},null,{"$error":"#N/A"},"",{"$f":"IF(Saisie!AM60>Saisie!$AM$15,Saisie!AM60,IF(Saisie!AO60>Saisie!$AO$15,Saisie!AO60,#N/A))","v":{"$error":"#N/A"}},{"$f":"IF(Saisie!AQ60>Saisie!$AQ$15,Saisie!AQ60,IF(Saisie!AS60>Saisie!$AS$15,Saisie!AS60,#N/A))","v":{"$error":"#N/A"}},null,4000,10000,{"$f":"IF(Saisie!Q60=0,#N/A,Saisie!Q60)","v":{"$error":"#N/A"}},12,16,{"$f":"IF(Saisie!G60=0,#N/A,Saisie!G60)","v":{"$error":"#N/A"}},{"$f":"IF(Saisie!AV60=0,#N/A,Saisie!AV60)","v":{"$error":"#N/A"}},150,400,{"$f":"IF(Saisie!N60=0,#N/A,Saisie!N60)","v":{"$error":"#N/A"}},{"$error":"#N/A"},8,16,{"$f":"IF(Saisie!AU60=0,#N/A,Saisie!AU60)","v":{"$error":"#N/A"}},50,104,{"$f":"IF(Saisie!BL60=0,#N/A,Saisie!BL60)","v":{"$error":"#N/A"}},5,{"$f":"IF(Saisie!AG60=0,#N/A,Saisie!AG60)","v":{"$error":"#N/A"}},1500,4000,{"$f":"IF(Saisie!V60=0,#N/A,Saisie!V60)","v":{"$error":"#N/A"}},1800,7000,{"$f":"IF(Saisie!R60=0,#N/A,Saisie!R60)","v":{"$error":"#N/A"}},{"$error":"#N/A"}]
[null,null,{"$f":"IF(Saisie!D61=0,\"\",Saisie!D61)","v":""},{"$f":"IF(Saisie!Q61=0,\"\",Saisie!Q61)","v":""},{"$f":"IF(Saisie!G61=0,\"\",Saisie!G61)","v":""},{"$f":"IF(Saisie!AV61=0,\"\",Saisie!AV61)","v":""},{"$f":"IF(Saisie!N61=0,\"\",Saisie!N61)","v":""},"",{"$f":"IF(Saisie!AU61=0,\"\",Saisie!AU61)","v":""},{"$f":"IF(Saisie!BL61=0,\"\",Saisie!BL61)","v":""},{"$f":"IF(Saisie!AG61=0,\"\",Saisie!AG61)","v":""},{"$f":"IF(Saisie!V61=0,\"\",Saisie!V61)","v":""},{"$f":"IF(Saisie!R61=0,\"\",Saisie!R61)","v":""},{"$f":"IF(Saisie!C61=0,\"\",Saisie!C61)","v":""},{"$f":"IF(Saisie!FC61=0,\"\",Saisie!FC61)","v":""},{"$f":"IF(Saisie!FD61=0,\"\",Saisie!FD61)","v":""},null,{"$error":"#N/A"},"",{"$f":"IF(Saisie!AM61>Saisie!$AM$15,Saisie!AM61,IF(Saisie!AO61>Saisie!$AO$15,Saisie!AO61,#N/A))","v":{"$error":"#N/A"}},{"$f":"IF(Saisie!AQ61>Saisie!$AQ$15,Saisie!AQ61,IF(Saisie!AS61>Saisie!$AS$15,Saisie!AS61,#N/A))","v":{"$error":"#N/A"}},null,4000,10000,{"$f":"IF(Saisie!Q61=0,#N/A,Saisie!Q61)","v":{"$error":"#N/A"}},12,16,{"$f":"IF(Saisie!G61=0,#N/A,Saisie!G61)","v":{"$error":"#N/A"}},{"$f":"IF(Saisie!AV61=0,#N/A,Saisie!AV61)","v":{"$error":"#N/A"}},150,400,{"$f":"IF(Saisie!N61=0,#N/A,Saisie!N61)","v":{"$error":"#N/A"}},{"$error":"#N/A"},8,16,{"$f":"IF(Saisie!AU61=0,#N/A,Saisie!AU61)","v":{"$error":"#N/A"}},50,104,{"$f":"IF(Saisie!BL61=0,#N/A,Saisie!BL61)","v":{"$error":"#N/A"}},5,{"$f":"IF(Saisie!AG61=0,#N/A,Saisie!AG61)","v":{"$error":"#N/A"}},1500,4000,{"$f":"IF(Saisie!V61=0,#N/A,Saisie!V61)","v":{"$error":"#N/A"}},1800,7000,{"$f":"IF(Saisie!R61=0,#N/A,Saisie!R61)","v":{"$error":"#N/A"}},{"$error":"#N/A"}]
[null,null,{"$f":"IF(Saisie!D62=0,\"\",Saisie!D62)","v":""},{"$f":"IF(Saisie!Q62=0,\"\",Saisie!Q62)","v":""},{"$f":"IF(Saisie!G62=0,\"\",Saisie!G62)","v":""},{"$f":"IF(Saisie!AV62=0,\"\",Saisie!AV62)","v":""},{"$f":"IF(Saisie!N62=0,\"\",Saisie!N62)","v":""},"",{"$f":"IF(Saisie!AU62=0,\"\",Saisie!AU62)","v":""},{"$f":"IF(Saisie!BL62=0,\"\",Saisie!BL62)","v":""},{"$f":"IF(Saisie!AG62=0,\"\",Saisie!AG62)","v":""},{"$f":"IF(Saisie!V62=0,\"\",Saisie!V62)","v":""},{"$f":"IF(Saisie!R62=0,\"\",Saisie!R62)","v":""},{"$f":"IF(Saisie!C62=0,\"\",Saisie!C62)","v":""},{"$f":"IF(Saisie!FC62=0,\"\",Saisie!FC62)","v":""},{"$f":"IF(Saisie!FD62=0,\"\",Saisie!FD62)","v":""},null,{"$error":"#N/A"},"",{"$f":"IF(Saisie!AM62>Saisie!$AM$15,Saisie!AM62,IF(Saisie!AO62>Saisie!$AO$15,Saisie!AO62,#N/A))","v":{"$error":"#N/A"}},{"$f":"IF(Saisie!AQ62>Saisie!$AQ$15,Saisie!AQ62,IF(Saisie!AS62>Saisie!$AS$15,Saisie!AS62,#N/A))","v":{"$error":"#N/A"}},null,4000,10000,{"$f":"IF(Saisie!Q62=0,#N/A,Saisie!Q62)","v":{"$error":"#N/A"}},12,16,{"$f":"IF(Saisie!G62=0,#N/A,Saisie!G62)","v":{"$error":"#N/A"}},{"$f":"IF(Saisie!AV62=0,#N/A,Saisie!AV62)","v":{"$error":"#N/A"}},150,400,{"$f":"IF(Saisie!N62=0,#N/A,Saisie!N62)","v":{"$error":"#N/A"}},{"$error":"#N/A"},8,16,{"$f":"IF(Saisie!AU62=0,#N/A,Saisie!AU62)","v":{"$error":"#N/A"}},50,104,{"$f":"IF(Saisie!BL62=0,#N/A,Saisie!BL62)","v":{"$error":"#N/A"}},5,{"$f":"IF(Saisie!AG62=0,#N/A,Saisie!AG62)","v":{"$error":"#N/A"}},1500,4000,{"$f":"IF(Saisie!V62=0,#N/A,Saisie!V62)","v":{"$error":"#N/A"}},1800,7000,{"$f":"IF(Saisie!R62=0,#N/A,Saisie!R62)","v":{"$error":"#N/A"}},{"$error":"#N/A"}]
[null,null,{"$f":"IF(Saisie!D63=0,\"\",Saisie!D63)","v":""},{"$f":"IF(Saisie!Q63=0,\"\",Saisie!Q63)","v":""},{"$f":"IF(Saisie!G63=0,\"\",Saisie!G63)","v":""},{"$f":"IF(Saisie!AV63=0,\"\",Saisie!AV63)","v":""},{"$f":"IF(Saisie!N63=0,\"\",Saisie!N63)","v":""},"",{"$f":"IF(Saisie!AU63=0,\"\",Saisie!AU63)","v":""},{"$f":"IF(Saisie!BL63=0,\"\",Saisie!BL63)","v":""},{"$f":"IF(Saisie!AG63=0,\"\",Saisie!AG63)","v":""},{"$f":"IF(Saisie!V63=0,\"\",Saisie!V63)","v":""},{"$f":"IF(Saisie!R63=0,\"\",Saisie!R63)","v":""},{"$f":"IF(Saisie!C63=0,\"\",Saisie!C63)","v":""},{"$f":"IF(Saisie!FC63=0,\"\",Saisie!FC63)","v":""},{"$f":"IF(Saisie!FD63=0,\"\",Saisie!FD63)","v":""},null,{"$error":"#N/A"},"",{"$f":"IF(Saisie!AM63>Saisie!$AM$15,Saisie!AM63,IF(Saisie!AO63>Saisie!$AO$15,Saisie!AO63,#N/A))","v":{"$error":"#N/A"}},{"$f":"IF(Saisie!AQ63>Saisie!$AQ$15,Saisie!AQ63,IF(Saisie!AS63>Saisie!$AS$15,Saisie!AS63,#N/A))","v":{"$error":"#N/A"}},null,4000,10000,{"$f":"IF(Saisie!Q63=0,#N/A,Saisie!Q63)","v":{"$error":"#N/A"}},12,16,{"$f":"IF(Saisie!G63=0,#N/A,Saisie!G63)","v":{"$error":"#N/A"}},{"$f":"IF(Saisie!AV63=0,#N/A,Saisie!AV63)","v":{"$error":"#N/A"}},150,400,{"$f":"IF(Saisie!N63=0,#N/A,Saisie!N63)","v":{"$error":"#N/A"}},{"$error":"#N/A"},8,16,{"$f":"IF(Saisie!AU63=0,#N/A,Saisie!AU63)","v":{"$error":"#N/A"}},50,104,{"$f":"IF(Saisie!BL63=0,#N/A,Saisie!BL63)","v":{"$error":"#N/A"}},5,{"$f":"IF(Saisie!AG63=0,#N/A,Saisie!AG63)","v":{"$error":"#N/A"}},1500,4000,{"$f":"IF(Saisie!V63=0,#N/A,Saisie!V63)","v":{"$error":"#N/A"}},1800,7000,{"$f":"IF(Saisie!R63=0,#N/A,Saisie!R63)","v":{"$error":"#N/A"}},{"$error":"#N/A"}]
[null,null,{"$f":"IF(Saisie!D64=0,\"\",Saisie!D64)","v":""},{"$f":"IF(Saisie!Q64=0,\"\",Saisie!Q64)","v":""},{"$f":"IF(Saisie!G64=0,\"\",Saisie!G64)","v":""},{"$f":"IF(Saisie!AV64=0,\"\",Saisie!AV64)","v":""},{"$f":"IF(Saisie!N64=0,\"\",Saisie!N64)","v":""},"",{"$f":"IF(Saisie!AU64=0,\"\",Saisie!AU64)","v":""},{"$f":"IF(Saisie!BL64=0,\"\",Saisie!BL64)","v":""},{"$f":"IF(Saisie!AG64=0,\"\",Saisie!AG64)","v":""},{"$f":"IF(Saisie!V64=0,\"\",Saisie!V64)","v":""},{"$f":"IF(Saisie!R64=0,\"\",Saisie!R64)","v":""},{"$f":"IF(Saisie!C64=0,\"\",Saisie!C64)","v":""},{"$f":"IF(Saisie!FC64=0,\"\",Saisie!FC64)","v":""},{"$f":"IF(Saisie!FD64=0,\"\",Saisie!FD64)","v":""},null,{"$error":"#N/A"},"",{"$f":"IF(Saisie!AM64>Saisie!$AM$15,Saisie!AM64,IF(Saisie!AO64>Saisie!$AO$15,Saisie!AO64,#N/A))","v":{"$error":"#N/A"}},{"$f":"IF(Saisie!AQ64>Saisie!$AQ$15,Saisie!AQ64,IF(Saisie!AS64>Saisie!$AS$15,Saisie!AS64,#N/A))","v":{"$error":"#N/A"}},null,4000,10000,{"$f":"IF(Saisie!Q64=0,#N/A,Saisie!Q64)","v":{"$error":"#N/A"}},12,16,{"$f":"IF(Saisie!G64=0,#N/A,Saisie!G64)","v":{"$error":"#N/A"}},{"$f":"IF(Saisie!AV64=0,#N/A,Saisie!AV64)","v":{"$error":"#N/A"}},150,400,{"$f":"IF(Saisie!N64=0,#N/A,Saisie!N64)","v":{"$error":"#N/A"}},{"$error":"#N/A"},8,16,{"$f":"IF(Saisie!AU64=0,#N/A,Saisie!AU64)","v":{"$error":"#N/A"}},50,104,{"$f":"IF(Saisie!BL64=0,#N/A,Saisie!BL64)","v":{"$error":"#N/A"}},5,{"$f":"IF(Saisie!AG64=0,#N/A,Saisie!AG64)","v":{"$error":"#N/A"}},1500,4000,{"$f":"IF(Saisie!V64=0,#N/A,Saisie!V64)","v":{"$error":"#N/A"}},1800,7000,{"$f":"IF(Saisie!R64=0,#N/A,Saisie!R64)","v":{"$error":"#N/A"}},{"$error":"#N/A"}]
[null,null,{"$f":"IF(Saisie!D65=0,\"\",Saisie!D65)","v":""},{"$f":"IF(Saisie!Q65=0,\"\",Saisie!Q65)","v":""},{"$f":"IF(Saisie!G65=0,\"\",Saisie!G65)","v":""},{"$f":"IF(Saisie!AV65=0,\"\",Saisie!AV65)","v":""},{"$f":"IF(Saisie!N65=0,\"\",Saisie!N65)","v":""},"",{"$f":"IF(Saisie!AU65=0,\"\",Saisie!AU65)","v":""},{"$f":"IF(Saisie!BL65=0,\"\",Saisie!BL65)","v":""},{"$f":"IF(Saisie!AG65=0,\"\",Saisie!AG65)","v":""},{"$f":"IF(Saisie!V65=0,\"\",Saisie!V65)","v":""},{"$f":"IF(Saisie!R65=0,\"\",Saisie!R65)","v":""},{"$f":"IF(Saisie!C65=0,\"\",Saisie!C65)","v":""},{"$f":"IF(Saisie!FC65=0,\"\",Saisie!FC65)","v":""},{"$f":"IF(Saisie!FD65=0,\"\",Saisie!FD65)","v":""},null,{"$error":"#N/A"},"",{"$f":"IF(Saisie!AM65>Saisie!$AM$15,Saisie!AM65,IF(Saisie!AO65>Saisie!$AO$15,Saisie!AO65,#N/A))","v":{"$error":"#N/A"}},{"$f":"IF(Saisie!AQ65>Saisie!$AQ$15,Saisie!AQ65,IF(Saisie!AS65>Saisie!$AS$15,Saisie!AS65,#N/A))","v":{"$error":"#N/A"}},null,4000,10000,{"$f":"IF(Saisie!Q65=0,#N/A,Saisie!Q65)","v":{"$error":"#N/A"}},12,16,{"$f":"IF(Saisie!G65=0,#N/A,Saisie!G65)","v":{"$error":"#N/A"}},{"$f":"IF(Saisie!AV65=0,#N/A,Saisie!AV65)","v":{"$error":"#N/A"}},150,400,{"$f":"IF(Saisie!N65=0,#N/A,Saisie!N65)","v":{"$error":"#N/A"}},{"$error":"#N/A"},8,16,{"$f":"IF(Saisie!AU65=0,#N/A,Saisie!AU65)","v":{"$error":"#N/A"}},50,104,{"$f":"IF(Saisie!BL65=0,#N/A,Saisie!BL65)","v":{"$error":"#N/A"}},5,{"$f":"IF(Saisie!AG65=0,#N/A,Saisie!AG65)","v":{"$error":"#N/A"}},1500,4000,{"$f":"IF(Saisie!V65=0,#N/A,Saisie!V65)","v":{"$error":"#N/A"}},1800,7000,{"$f":"IF(Saisie!R65=0,#N/A,Saisie!R65)","v":{"$error":"#N/A"}},{"$error":"#N/A"}]
[null,null,{"$f":"IF(Saisie!D66=0,\"\",Saisie!D66)","v":""},{"$f":"IF(Saisie!Q66=0,\"\",Saisie!Q66)","v":""},{"$f":"IF(Saisie!G66=0,\"\",Saisie!G66)","v":""},{"$f":"IF(Saisie!AV66=0,\"\",Saisie!AV66)","v":""},{"$f":"IF(Saisie!N66=0,\"\",Saisie!N66)","v":""},"",{"$f":"IF(Saisie!AU66=0,\"\",Saisie!AU66)","v":""},{"$f":"IF(Saisie!BL66=0,\"\",Saisie!BL66)","v":""},{"$f":"IF(Saisie!AG66=0,\"\",Saisie!AG66)","v":""},{"$f":"IF(Saisie!V66=0,\"\",Saisie!V66)","v":""},{"$f":"IF(Saisie!R66=0,\"\",Saisie!R66)","v":""},{"$f":"IF(Saisie!C66=0,\"\",Saisie!C66)","v":""},{"$f":"IF(Saisie!FC66=0,\"\",Saisie!FC66)","v":""},{"$f":"IF(Saisie!FD66=0,\"\",Saisie!FD66)","v":""},null,{"$error":"#N/A"},"",{"$f":"IF(Saisie!AM66>Saisie!$AM$15,Saisie!AM66,IF(Saisie!AO66>Saisie!$AO$15,Saisie!AO66,#N/A))","v":{"$error":"#N/A"}},{"$f":"IF(Saisie!AQ66>Saisie!$AQ$15,Saisie!AQ66,IF(Saisie!AS66>Saisie!$AS$15,Saisie!AS66,#N/A))","v":{"$error":"#N/A"}},null,4000,10000,{"$f":"IF(Saisie!Q66=0,#N/A,Saisie!Q66)","v":{"$error":"#N/A"}},12,16,{"$f":"IF(Saisie!G66=0,#N/A,Saisie!G66)","v":{"$error":"#N/A"}},{"$f":"IF(Saisie!AV66=0,#N/A,Saisie!AV66)","v":{"$error":"#N/A"}},150,400,{"$f":"IF(Saisie!N66=0,#N/A,Saisie!N66)","v":{"$error":"#N/A"}},{"$error":"#N/A"},8,16,{"$f":"IF(Saisie!AU66=0,#N/A,Saisie!AU66)","v":{"$error":"#N/A"}},50,104,{"$f":"IF(Saisie!BL66=0,#N/A,Saisie!BL66)","v":{"$error":"#N/A"}},5,{"$f":"IF(Saisie!AG66=0,#N/A,Saisie!AG66)","v":{"$error":"#N/A"}},1500,4000,{"$f":"IF(Saisie!V66=0,#N/A,Saisie!V66)","v":{"$error":"#N/A"}},1800,7000,{"$f":"IF(Saisie!R66=0,#N/A,Saisie!R66)","v":{"$error":"#N/A"}},{"$error":"#N/A"}]
[null,null,{"$f":"IF(Saisie!D67=0,\"\",Saisie!D67)","v":""},{"$f":"IF(Saisie!Q67=0,\"\",Saisie!Q67)","v":""},{"$f":"IF(Saisie!G67=0,\"\",Saisie!G67)","v":""},{"$f":"IF(Saisie!AV67=0,\"\",Saisie!AV67)","v":""},{"$f":"IF(Saisie!N67=0,\"\",Saisie!N67)","v":""},"",{"$f":"IF(Saisie!AU67=0,\"\",Saisie!AU67)","v":""},{"$f":"IF(Saisie!BL67=0,\"\",Saisie!BL67)","v":""},{"$f":"IF(Saisie!AG67=0,\"\",Saisie!AG67)","v":""},{"$f":"IF(Saisie!V67=0,\"\",Saisie!V67)","v":""},{"$f":"IF(Saisie!R67=0,\"\",Saisie!R67)","v":""},{"$f":"IF(Saisie!C67=0,\"\",Saisie!C67)","v":""},{"$f":"IF(Saisie!FC67=0,\"\",Saisie!FC67)","v":""},{"$f":"IF(Saisie!FD67=0,\"\",Saisie!FD67)","v":""},null,{"$error":"#N/A"},"",{"$f":"IF(Saisie!AM67>Saisie!$AM$15,Saisie!AM67,IF(Saisie!AO67>Saisie!$AO$15,Saisie!AO67,#N/A))","v":{"$error":"#N/A"}},{"$f":"IF(Saisie!AQ67>Saisie!$AQ$15,Saisie!AQ67,IF(Saisie!AS67>Saisie!$AS$15,Saisie!AS67,#N/A))","v":{"$error":"#N/A"}},null,4000,10000,{"$f":"IF(Saisie!Q67=0,#N/A,Saisie!Q67)","v":{"$error":"#N/A"}},12,16,{"$f":"IF(Saisie!G67=0,#N/A,Saisie!G67)","v":{"$error":"#N/A"}},{"$f":"IF(Saisie!AV67=0,#N/A,Saisie!AV67)","v":{"$error":"#N/A"}},150,400,{"$f":"IF(Saisie!N67=0,#N/A,Saisie!N67)","v":{"$error":"#N/A"}},{"$error":"#N/A"},8,16,{"$f":"IF(Saisie!AU67=0,#N/A,Saisie!AU67)","v":{"$error":"#N/A"}},50,104,{"$f":"IF(Saisie!BL67=0,#N/A,Saisie!BL67)","v":{"$error":"#N/A"}},5,{"$f":"IF(Saisie!AG67=0,#N/A,Saisie!AG67)","v":{"$error":"#N/A"}},1500,4000,{"$f":"IF(Saisie!V67=0,#N/A,Saisie!V67)","v":{"$error":"#N/A"}},1800,7000,{"$f":"IF(Saisie!R67=0,#N/A,Saisie!R67)","v":{"$error":"#N/A"}},{"$error":"#N/A"}]
[null,null,{"$f":"IF(Saisie!D68=0,\"\",Saisie!D68)","v":""},{"$f":"IF(Saisie!Q68=0,\"\",Saisie!Q68)","v":""},{"$f":"IF(Saisie!G68=0,\"\",Saisie!G68)","v":""},{"$f":"IF(Saisie!AV68=0,\"\",Saisie!AV68)","v":""},{"$f":"IF(Saisie!N68=0,\"\",Saisie!N68)","v":""},"",{"$f":"IF(Saisie!AU68=0,\"\",Saisie!AU68)","v":""},{"$f":"IF(Saisie!BL68=0,\"\",Saisie!BL68)","v":""},{"$f":"IF(Saisie!AG68=0,\"\",Saisie!AG68)","v":""},{"$f":"IF(Saisie!V68=0,\"\",Saisie!V68)","v":""},{"$f":"IF(Saisie!R68=0,\"\",Saisie!R68)","v":""},{"$f":"IF(Saisie!C68=0,\"\",Saisie!C68)","v":""},{"$f":"IF(Saisie!FC68=0,\"\",Saisie!FC68)","v":""},{"$f":"IF(Saisie!FD68=0,\"\",Saisie!FD68)","v":""},null,{"$error":"#N/A"},"",{"$f":"IF(Saisie!AM68>Saisie!$AM$15,Saisie!AM68,IF(Saisie!AO68>Saisie!$AO$15,Saisie!AO68,#N/A))","v":{"$error":"#N/A"}},{"$f":"IF(Saisie!AQ68>Saisie!$AQ$15,Saisie!AQ68,IF(Saisie!AS68>Saisie!$AS$15,Saisie!AS68,#N/A))","v":{"$error":"#N/A"}},null,4000,10000,{"$f":"IF(Saisie!Q68=0,#N/A,Saisie!Q68)","v":{"$error":"#N/A"}},12,16,{"$f":"IF(Saisie!G68=0,#N/A,Saisie!G68)","v":{"$error":"#N/A"}},{"$f":"IF(Saisie!AV68=0,#N/A,Saisie!AV68)","v":{"$error":"#N/A"}},150,400,{"$f":"IF(Saisie!N68=0,#N/A,Saisie!N68)","v":{"$error":"#N/A"}},{"$error":"#N/A"},8,16,{"$f":"IF(Saisie!AU68=0,#N/A,Saisie!AU68)","v":{"$error":"#N/A"}},50,104,{"$f":"IF(Saisie!BL68=0,#N/A,Saisie!BL68)","v":{"$error":"#N/A"}},5,{"$f":"IF(Saisie!AG68=0,#N/A,Saisie!AG68)","v":{"$error":"#N/A"}},1500,4000,{"$f":"IF(Saisie!V68=0,#N/A,Saisie!V68)","v":{"$error":"#N/A"}},1800,7000,{"$f":"IF(Saisie!R68=0,#N/A,Saisie!R68)","v":{"$error":"#N/A"}},{"$error":"#N/A"}]
[null,null,{"$f":"IF(Saisie!D69=0,\"\",Saisie!D69)","v":""},{"$f":"IF(Saisie!Q69=0,\"\",Saisie!Q69)","v":""},{"$f":"IF(Saisie!G69=0,\"\",Saisie!G69)","v":""},{"$f":"IF(Saisie!AV69=0,\"\",Saisie!AV69)","v":""},{"$f":"IF(Saisie!N69=0,\"\",Saisie!N69)","v":""},"",{"$f":"IF(Saisie!AU69=0,\"\",Saisie!AU69)","v":""},{"$f":"IF(Saisie!BL69=0,\"\",Saisie!BL69)","v":""},{"$f":"IF(Saisie!AG69=0,\"\",Saisie!AG69)","v":""},{"$f":"IF(Saisie!V69=0,\"\",Saisie!V69)","v":""},{"$f":"IF(Saisie!R69=0,\"\",Saisie!R69)","v":""},{"$f":"IF(Saisie!C69=0,\"\",Saisie!C69)","v":""},{"$f":"IF(Saisie!FC69=0,\"\",Saisie!FC69)","v":""},{"$f":"IF(Saisie!FD69=0,\"\",Saisie!FD69)","v":""},null,{"$error":"#N/A"},"",{"$f":"IF(Saisie!AM69>Saisie!$AM$15,Saisie!AM69,IF(Saisie!AO69>Saisie!$AO$15,Saisie!AO69,#N/A))","v":{"$error":"#N/A"}},{"$f":"IF(Saisie!AQ69>Saisie!$AQ$15,Saisie!AQ69,IF(Saisie!AS69>Saisie!$AS$15,Saisie!AS69,#N/A))","v":{"$error":"#N/A"}},null,4000,10000,{"$f":"IF(Saisie!Q69=0,#N/A,Saisie!Q69)","v":{"$error":"#N/A"}},12,16,{"$f":"IF(Saisie!G69=0,#N/A,Saisie!G69)","v":{"$error":"#N/A"}},{"$f":"IF(Saisie!AV69=0,#N/A,Saisie!AV69)","v":{"$error":"#N/A"}},150,400,{"$f":"IF(Saisie!N69=0,#N/A,Saisie!N69)","v":{"$error":"#N/A"}},{"$error":"#N/A"},8,16,{"$f":"IF(Saisie!AU69=0,#N/A,Saisie!AU69)","v":{"$error":"#N/A"}},50,104,{"$f":"IF(Saisie!BL69=0,#N/A,Saisie!BL69)","v":{"$error":"#N/A"}},5,{"$f":"IF(Saisie!AG69=0,#N/A,Saisie!AG69)","v":{"$error":"#N/A"}},1500,4000,{"$f":"IF(Saisie!V69=0,#N/A,Saisie!V69)","v":{"$error":"#N/A"}},1800,7000,{"$f":"IF(Saisie!R69=0,#N/A,Saisie!R69)","v":{"$error":"#N/A"}},{"$error":"#N/A"}]
[null,null,{"$f":"IF(Saisie!D70=0,\"\",Saisie!D70)","v":""},{"$f":"IF(Saisie!Q70=0,\"\",Saisie!Q70)","v":""},{"$f":"IF(Saisie!G70=0,\"\",Saisie!G70)","v":""},{"$f":"IF(Saisie!AV70=0,\"\",Saisie!AV70)","v":""},{"$f":"IF(Saisie!N70=0,\"\",Saisie!N70)","v":""},"",{"$f":"IF(Saisie!AU70=0,\"\",Saisie!AU70)","v":""},{"$f":"IF(Saisie!BL70=0,\"\",Saisie!BL70)","v":""},{"$f":"IF(Saisie!AG70=0,\"\",Saisie!AG70)","v":""},{"$f":"IF(Saisie!V70=0,\"\",Saisie!V70)","v":""},{"$f":"IF(Saisie!R70=0,\"\",Saisie!R70)","v":""},{"$f":"IF(Saisie!C70=0,\"\",Saisie!C70)","v":""},{"$f":"IF(Saisie!FC70=0,\"\",Saisie!FC70)","v":""},{"$f":"IF(Saisie!FD70=0,\"\",Saisie!FD70)","v":""},null,{"$error":"#N/A"},"",{"$f":"IF(Saisie!AM70>Saisie!$AM$15,Saisie!AM70,IF(Saisie!AO70>Saisie!$AO$15,Saisie!AO70,#N/A))","v":{"$error":"#N/A"}},{"$f":"IF(Saisie!AQ70>Saisie!$AQ$15,Saisie!AQ70,IF(Saisie!AS70>Saisie!$AS$15,Saisie!AS70,#N/A))","v":{"$error":"#N/A"}},null,4000,10000,{"$f":"IF(Saisie!Q70=0,#N/A,Saisie!Q70)","v":{"$error":"#N/A"}},12,16,{"$f":"IF(Saisie!G70=0,#N/A,Saisie!G70)","v":{"$error":"#N/A"}},{"$f":"IF(Saisie!AV70=0,#N/A,Saisie!AV70)","v":{"$error":"#N/A"}},150,400,{"$f":"IF(Saisie!N70=0,#N/A,Saisie!N70)","v":{"$error":"#N/A"}},{"$error":"#N/A"},8,16,{"$f":"IF(Saisie!AU70=0,#N/A,Saisie!AU70)","v":{"$error":"#N/A"}},50,104,{"$f":"IF(Saisie!BL70=0,#N/A,Saisie!BL70)","v":{"$error":"#N/A"}},5,{"$f":"IF(Saisie!AG70=0,#N/A,Saisie!AG70)","v":{"$error":"#N/A"}},1500,4000,{"$f":"IF(Saisie!V70=0,#N/A,Saisie!V70)","v":{"$error":"#N/A"}},1800,7000,{"$f":"IF(Saisie!R70=0,#N/A,Saisie!R70)","v":{"$error":"#N/A"}},{"$error":"#N/A"}]
[null,null,{"$f":"IF(Saisie!D71=0,\"\",Saisie!D71)","v":""},{"$f":"IF(Saisie!Q71=0,\"\",Saisie!Q71)","v":""},{"$f":"IF(Saisie!G71=0,\"\",Saisie!G71)","v":""},{"$f":"IF(Saisie!AV71=0,\"\",Saisie!AV71)","v":""},{"$f":"IF(Saisie!N71=0,\"\",Saisie!N71)","v":""},"",{"$f":"IF(Saisie!AU71=0,\"\",Saisie!AU71)","v":""},{"$f":"IF(Saisie!BL71=0,\"\",Saisie!BL71)","v":""},{"$f":"IF(Saisie!AG71=0,\"\",Saisie!AG71)","v":""},{"$f":"IF(Saisie!V71=0,\"\",Saisie!V71)","v":""},{"$f":"IF(Saisie!R71=0,\"\",Saisie!R71)","v":""},{"$f":"IF(Saisie!C71=0,\"\",Saisie!C71)","v":""},{"$f":"IF(Saisie!FC71=0,\"\",Saisie!FC71)","v":""},{"$f":"IF(Saisie!FD71=0,\"\",Saisie!FD71)","v":""},null,{"$error":"#N/A"},"",{"$f":"IF(Saisie!AM71>Saisie!$AM$15,Saisie!AM71,IF(Saisie!AO71>Saisie!$AO$15,Saisie!AO71,#N/A))","v":{"$error":"#N/A"}},{"$f":"IF(Saisie!AQ71>Saisie!$AQ$15,Saisie!AQ71,IF(Saisie!AS71>Saisie!$AS$15,Saisie!AS71,#N/A))","v":{"$error":"#N/A"}},null,4000,10000,{"$f":"IF(Saisie!Q71=0,#N/A,Saisie!Q71)","v":{"$error":"#N/A"}},12,16,{"$f":"IF(Saisie!G71=0,#N/A,Saisie!G71)","v":{"$error":"#N/A"}},{"$f":"IF(Saisie!AV71=0,#N/A,Saisie!AV71)","v":{"$error":"#N/A"}},150,400,{"$f":"IF(Saisie!N71=0,#N/A,Saisie!N71)","v":{"$error":"#N/A"}},{"$error":"#N/A"},8,16,{"$f":"IF(Saisie!AU71=0,#N/A,Saisie!AU71)","v":{"$error":"#N/A"}},50,104,{"$f":"IF(Saisie!BL71=0,#N/A,Saisie!BL71)","v":{"$error":"#N/A"}},5,{"$f":"IF(Saisie!AG71=0,#N/A,Saisie!AG71)","v":{"$error":"#N/A"}},1500,4000,{"$f":"IF(Saisie!V71=0,#N/A,Saisie!V71)","v":{"$error":"#N/A"}},1800,7000,{"$f":"IF(Saisie!R71=0,#N/A,Saisie!R71)","v":{"$error":"#N/A"}},{"$error":"#N/A"}]
[null,null,{"$f":"IF(Saisie!D72=0,\"\",Saisie!D72)","v":""},{"$f":"IF(Saisie!Q72=0,\"\",Saisie!Q72)","v":""},{"$f":"IF(Saisie!G72=0,\"\",Saisie!G72)","v":""},{"$f":"IF(Saisie!AV72=0,\"\",Saisie!AV72)","v":""},{"$f":"IF(Saisie!N72=0,\"\",Saisie!N72)","v":""},"",{"$f":"IF(Saisie!AU72=0,\"\",Saisie!AU72)","v":""},{"$f":"IF(Saisie!BL72=0,\"\",Saisie!BL72)","v":""},{"$f":"IF(Saisie!AG72=0,\"\",Saisie!AG72)","v":""},{"$f":"IF(Saisie!V72=0,\"\",Saisie!V72)","v":""},{"$f":"IF(Saisie!R72=0,\"\",Saisie!R72)","v":""},{"$f":"IF(Saisie!C72=0,\"\",Saisie!C72)","v":""},{"$f":"IF(Saisie!FC72=0,\"\",Saisie!FC72)","v":""},{"$f":"IF(Saisie!FD72=0,\"\",Saisie!FD72)","v":""},null,{"$error":"#N/A"},"",{"$f":"IF(Saisie!AM72>Saisie!$AM$15,Saisie!AM72,IF(Saisie!AO72>Saisie!$AO$15,Saisie!AO72,#N/A))","v":{"$error":"#N/A"}},{"$f":"IF(Saisie!AQ72>Saisie!$AQ$15,Saisie!AQ72,IF(Saisie!AS72>Saisie!$AS$15,Saisie!AS72,#N/A))","v":{"$error":"#N/A"}},null,4000,10000,{"$f":"IF(Saisie!Q72=0,#N/A,Saisie!Q72)","v":{"$error":"#N/A"}},12,16,{"$f":"IF(Saisie!G72=0,#N/A,Saisie!G72)","v":{"$error":"#N/A"}},{"$f":"IF(Saisie!AV72=0,#N/A,Saisie!AV72)","v":{"$error":"#N/A"}},150,400,{"$f":"IF(Saisie!N72=0,#N/A,Saisie!N72)","v":{"$error":"#N/A"}},{"$error":"#N/A"},8,16,{"$f":"IF(Saisie!AU72=0,#N/A,Saisie!AU72)","v":{"$error":"#N/A"}},50,104,{"$f":"IF(Saisie!BL72=0,#N/A,Saisie!BL72)","v":{"$error":"#N/A"}},5,{"$f":"IF(Saisie!AG72=0,#N/A,Saisie!AG72)","v":{"$error":"#N/A"}},1500,4000,{"$f":"IF(Saisie!V72=0,#N/A,Saisie!V72)","v":{"$error":"#N/A"}},1800,7000,{"$f":"IF(Saisie!R72=0,#N/A,Saisie!R72)","v":{"$error":"#N/A"}},{"$error":"#N/A"}]
[null,null,{"$f":"IF(Saisie!D73=0,\"\",Saisie!D73)","v":""},{"$f":"IF(Saisie!Q73=0,\"\",Saisie!Q73)","v":""},{"$f":"IF(Saisie!G73=0,\"\",Saisie!G73)","v":""},{"$f":"IF(Saisie!AV73=0,\"\",Saisie!AV73)","v":""},{"$f":"IF(Saisie!N73=0,\"\",Saisie!N73)","v":""},"",{"$f":"IF(Saisie!AU73=0,\"\",Saisie!AU73)","v":""},{"$f":"IF(Saisie!BL73=0,\"\",Saisie!BL73)","v":""},{"$f":"IF(Saisie!AG73=0,\"\",Saisie!AG73)","v":""},{"$f":"IF(Saisie!V73=0,\"\",Saisie!V73)","v":""},{"$f":"IF(Saisie!R73=0,\"\",Saisie!R73)","v":""},{"$f":"IF(Saisie!C73=0,\"\",Saisie!C73)","v":""},{"$f":"IF(Saisie!FC73=0,\"\",Saisie!FC73)","v":""},{"$f":"IF(Saisie!FD73=0,\"\",Saisie!FD73)","v":""},null,{"$error":"#N/A"},"",{"$f":"IF(Saisie!AM73>Saisie!$AM$15,Saisie!AM73,IF(Saisie!AO73>Saisie!$AO$15,Saisie!AO73,#N/A))","v":{"$error":"#N/A"}},{"$f":"IF(Saisie!AQ73>Saisie!$AQ$15,Saisie!AQ73,IF(Saisie!AS73>Saisie!$AS$15,Saisie!AS73,#N/A))","v":{"$error":"#N/A"}},null,4000,10000,{"$f":"IF(Saisie!Q73=0,#N/A,Saisie!Q73)","v":{"$error":"#N/A"}},12,16,{"$f":"IF(Saisie!G73=0,#N/A,Saisie!G73)","v":{"$error":"#N/A"}},{"$f":"IF(Saisie!AV73=0,#N/A,Saisie!AV73)","v":{"$error":"#N/A"}},150,400,{"$f":"IF(Saisie!N73=0,#N/A,Saisie!N73)","v":{"$error":"#N/A"}},{"$error":"#N/A"},8,16,{"$f":"IF(Saisie!AU73=0,#N/A,Saisie!AU73)","v":{"$error":"#N/A"}},50,104,{"$f":"IF(Saisie!BL73=0,#N/A,Saisie!BL73)","v":{"$error":"#N/A"}},5,{"$f":"IF(Saisie!AG73=0,#N/A,Saisie!AG73)","v":{"$error":"#N/A"}},1500,4000,{"$f":"IF(Saisie!V73=0,#N/A,Saisie!V73)","v":{"$error":"#N/A"}},1800,7000,{"$f":"IF(Saisie!R73=0,#N/A,Saisie!R73)","v":{"$error":"#N/A"}},{"$error":"#N/A"}]
[null,null,{"$f":"IF(Saisie!D74=0,\"\",Saisie!D74)","v":""},{"$f":"IF(Saisie!Q74=0,\"\",Saisie!Q74)","v":""},{"$f":"IF(Saisie!G74=0,\"\",Saisie!G74)","v":""},{"$f":"IF(Saisie!AV74=0,\"\",Saisie!AV74)","v":""},{"$f":"IF(Saisie!N74=0,\"\",Saisie!N74)","v":""},"",{"$f":"IF(Saisie!AU74=0,\"\",Saisie!AU74)","v":""},{"$f":"IF(Saisie!BL74=0,\"\",Saisie!BL74)","v":""},{"$f":"IF(Saisie!AG74=0,\"\",Saisie!AG74)","v":""},{"$f":"IF(Saisie!V74=0,\"\",Saisie!V74)","v":""},{"$f":"IF(Saisie!R74=0,\"\",Saisie!R74)","v":""},{"$f":"IF(Saisie!C74=0,\"\",Saisie!C74)","v":""},{"$f":"IF(Saisie!FC74=0,\"\",Saisie!FC74)","v":""},{"$f":"IF(Saisie!FD74=0,\"\",Saisie!FD74)","v":""},null,{"$error":"#N/A"},"",{"$f":"IF(Saisie!AM74>Saisie!$AM$15,Saisie!AM74,IF(Saisie!AO74>Saisie!$AO$15,Saisie!AO74,#N/A))","v":{"$error":"#N/A"}},{"$f":"IF(Saisie!AQ74>Saisie!$AQ$15,Saisie!AQ74,IF(Saisie!AS74>Saisie!$AS$15,Saisie!AS74,#N/A))","v":{"$error":"#N/A"}},null,4000,10000,{"$f":"IF(Saisie!Q74=0,#N/A,Saisie!Q74)","v":{"$error":"#N/A"}},12,16,{"$f":"IF(Saisie!G74=0,#N/A,Saisie!G74)","v":{"$error":"#N/A"}},{"$f":"IF(Saisie!AV74=0,#N/A,Saisie!AV74)","v":{"$error":"#N/A"}},150,400,{"$f":"IF(Saisie!N74=0,#N/A,Saisie!N74)","v":{"$error":"#N/A"}},{"$error":"#N/A"},8,16,{"$f":"IF(Saisie!AU74=0,#N/A,Saisie!AU74)","v":{"$error":"#N/A"}},50,104,{"$f":"IF(Saisie!BL74=0,#N/A,Saisie!BL74)","v":{"$error":"#N/A"}},5,{"$f":"IF(Saisie!AG74=0,#N/A,Saisie!AG74)","v":{"$error":"#N/A"}},1500,4000,{"$f":"IF(Saisie!V74=0,#N/A,Saisie!V74)","v":{"$error":"#N/A"}},1800,7000,{"$f":"IF(Saisie!R74=0,#N/A,Saisie!R74)","v":{"$error":"#N/A"}},{"$error":"#N/A"}]
[null,null,{"$f":"IF(Saisie!D75=0,\"\",Saisie!D75)","v":""},{"$f":"IF(Saisie!Q75=0,\"\",Saisie!Q75)","v":""},{"$f":"IF(Saisie!G75=0,\"\",Saisie!G75)","v":""},{"$f":"IF(Saisie!AV75=0,\"\",Saisie!AV75)","v":""},{"$f":"IF(Saisie!N75=0,\"\",Saisie!N75)","v":""},"",{"$f":"IF(Saisie!AU75=0,\"\",Saisie!AU75)","v":""},{"$f":"IF(Saisie!BL75=0,\"\",Saisie!BL75)","v":""},{"$f":"IF(Saisie!AG75=0,\"\",Saisie!AG75)","v":""},{"$f":"IF(Saisie!V75=0,\"\",Saisie!V75)","v":""},{"$f":"IF(Saisie!R75=0,\"\",Saisie!R75)","v":""},{"$f":"IF(Saisie!C75=0,\"\",Saisie!C75)","v":""},{"$f":"IF(Saisie!FC75=0,\"\",Saisie!FC75)","v":""},{"$f":"IF(Saisie!FD75=0,\"\",Saisie!FD75)","v":""},null,{"$error":"#N/A"},"",{"$f":"IF(Saisie!AM75>Saisie!$AM$15,Saisie!AM75,IF(Saisie!AO75>Saisie!$AO$15,Saisie!AO75,#N/A))","v":{"$error":"#N/A"}},{"$f":"IF(Saisie!AQ75>Saisie!$AQ$15,Saisie!AQ75,IF(Saisie!AS75>Saisie!$AS$15,Saisie!AS75,#N/A))","v":{"$error":"#N/A"}},null,4000,10000,{"$f":"IF(Saisie!Q75=0,#N/A,Saisie!Q75)","v":{"$error":"#N/A"}},12,16,{"$f":"IF(Saisie!G75=0,#N/A,Saisie!G75)","v":{"$error":"#N/A"}},{"$f":"IF(Saisie!AV75=0,#N/A,Saisie!AV75)","v":{"$error":"#N/A"}},150,400,{"$f":"IF(Saisie!N75=0,#N/A,Saisie!N75)","v":{"$error":"#N/A"}},{"$error":"#N/A"},8,16,{"$f":"IF(Saisie!AU75=0,#N/A,Saisie!AU75)","v":{"$error":"#N/A"}},50,104,{"$f":"IF(Saisie!BL75=0,#N/A,Saisie!BL75)","v":{"$error":"#N/A"}},5,{"$f":"IF(Saisie!AG75=0,#N/A,Saisie!AG75)","v":{"$error":"#N/A"}},1500,4000,{"$f":"IF(Saisie!V75=0,#N/A,Saisie!V75)","v":{"$error":"#N/A"}},1800,7000,{"$f":"IF(Saisie!R75=0,#N/A,Saisie!R75)","v":{"$error":"#N/A"}},{"$error":"#N/A"}]
[null,null,{"$f":"IF(Saisie!D76=0,\"\",Saisie!D76)","v":""},{"$f":"IF(Saisie!Q76=0,\"\",Saisie!Q76)","v":""},{"$f":"IF(Saisie!G76=0,\"\",Saisie!G76)","v":""},{"$f":"IF(Saisie!AV76=0,\"\",Saisie!AV76)","v":""},{"$f":"IF(Saisie!N76=0,\"\",Saisie!N76)","v":""},"",{"$f":"IF(Saisie!AU76=0,\"\",Saisie!AU76)","v":""},{"$f":"IF(Saisie!BL76=0,\"\",Saisie!BL76)","v":""},{"$f":"IF(Saisie!AG76=0,\"\",Saisie!AG76)","v":""},{"$f":"IF(Saisie!V76=0,\"\",Saisie!V76)","v":""},{"$f":"IF(Saisie!R76=0,\"\",Saisie!R76)","v":""},{"$f":"IF(Saisie!C76=0,\"\",Saisie!C76)","v":""},{"$f":"IF(Saisie!FC76=0,\"\",Saisie!FC76)","v":""},{"$f":"IF(Saisie!FD76=0,\"\",Saisie!FD76)","v":""},null,{"$error":"#N/A"},"",{"$f":"IF(Saisie!AM76>Saisie!$AM$15,Saisie!AM76,IF(Saisie!AO76>Saisie!$AO$15,Saisie!AO76,#N/A))","v":{"$error":"#N/A"}},{"$f":"IF(Saisie!AQ76>Saisie!$AQ$15,Saisie!AQ76,IF(Saisie!AS76>Saisie!$AS$15,Saisie!AS76,#N/A))","v":{"$error":"#N/A"}},null,4000,10000,{"$f":"IF(Saisie!Q76=0,#N/A,Saisie!Q76)","v":{"$error":"#N/A"}},12,16,{"$f":"IF(Saisie!G76=0,#N/A,Saisie!G76)","v":{"$error":"#N/A"}},{"$f":"IF(Saisie!AV76=0,#N/A,Saisie!AV76)","v":{"$error":"#N/A"}},150,400,{"$f":"IF(Saisie!N76=0,#N/A,Saisie!N76)","v":{"$error":"#N/A"}},{"$error":"#N/A"},8,16,{"$f":"IF(Saisie!AU76=0,#N/A,Saisie!AU76)","v":{"$error":"#N/A"}},50,104,{"$f":"IF(Saisie!BL76=0,#N/A,Saisie!BL76)","v":{"$error":"#N/A"}},5,{"$f":"IF(Saisie!AG76=0,#N/A,Saisie!AG76)","v":{"$error":"#N/A"}},1500,4000,{"$f":"IF(Saisie!V76=0,#N/A,Saisie!V76)","v":{"$error":"#N/A"}},1800,7000,{"$f":"IF(Saisie!R76=0,#N/A,Saisie!R76)","v":{"$error":"#N/A"}},{"$error":"#N/A"}]
[null,null,{"$f":"IF(Saisie!D77=0,\"\",Saisie!D77)","v":""},{"$f":"IF(Saisie!Q77=0,\"\",Saisie!Q77)","v":""},{"$f":"IF(Saisie!G77=0,\"\",Saisie!G77)","v":""},{"$f":"IF(Saisie!AV77=0,\"\",Saisie!AV77)","v":""},{"$f":"IF(Saisie!N77=0,\"\",Saisie!N77)","v":""},"",{"$f":"IF(Saisie!AU77=0,\"\",Saisie!AU77)","v":""},{"$f":"IF(Saisie!BL77=0,\"\",Saisie!BL77)","v":""},{"$f":"IF(Saisie!AG77=0,\"\",Saisie!AG77)","v":""},{"$f":"IF(Saisie!V77=0,\"\",Saisie!V77)","v":""},{"$f":"IF(Saisie!R77=0,\"\",Saisie!R77)","v":""},{"$f":"IF(Saisie!C77=0,\"\",Saisie!C77)","v":""},{"$f":"IF(Saisie!FC77=0,\"\",Saisie!FC77)","v":""},{"$f":"IF(Saisie!FD77=0,\"\",Saisie!FD77)","v":""},null,{"$error":"#N/A"},"",{"$f":"IF(Saisie!AM77>Saisie!$AM$15,Saisie!AM77,IF(Saisie!AO77>Saisie!$AO$15,Saisie!AO77,#N/A))","v":{"$error":"#N/A"}},{"$f":"IF(Saisie!AQ77>Saisie!$AQ$15,Saisie!AQ77,IF(Saisie!AS77>Saisie!$AS$15,Saisie!AS77,#N/A))","v":{"$error":"#N/A"}},null,4000,10000,{"$f":"IF(Saisie!Q77=0,#N/A,Saisie!Q77)","v":{"$error":"#N/A"}},12,16,{"$f":"IF(Saisie!G77=0,#N/A,Saisie!G77)","v":{"$error":"#N/A"}},{"$f":"IF(Saisie!AV77=0,#N/A,Saisie!AV77)","v":{"$error":"#N/A"}},150,400,{"$f":"IF(Saisie!N77=0,#N/A,Saisie!N77)","v":{"$error":"#N/A"}},{"$error":"#N/A"},8,16,{"$f":"IF(Saisie!AU77=0,#N/A,Saisie!AU77)","v":{"$error":"#N/A"}},50,104,{"$f":"IF(Saisie!BL77=0,#N/A,Saisie!BL77)","v":{"$error":"#N/A"}},5,{"$f":"IF(Saisie!AG77=0,#N/A,Saisie!AG77)","v":{"$error":"#N/A"}},1500,4000,{"$f":"IF(Saisie!V77=0,#N/A,Saisie!V77)","v":{"$error":"#N/A"}},1800,7000,{"$f":"IF(Saisie!R77=0,#N/A,Saisie!R77)","v":{"$error":"#N/A"}},{"$error":"#N/A"}]
[null,null,{"$f":"IF(Saisie!D78=0,\"\",Saisie!D78)","v":""},{"$f":"IF(Saisie!Q78=0,\"\",Saisie!Q78)","v":""},{"$f":"IF(Saisie!G78=0,\"\",Saisie!G78)","v":""},{"$f":"IF(Saisie!AV78=0,\"\",Saisie!AV78)","v":""},{"$f":"IF(Saisie!N78=0,\"\",Saisie!N78)","v":""},"",{"$f":"IF(Saisie!AU78=0,\"\",Saisie!AU78)","v":""},{"$f":"IF(Saisie!BL78=0,\"\",Saisie!BL78)","v":""},{"$f":"IF(Saisie!AG78=0,\"\",Saisie!AG78)","v":""},{"$f":"IF(Saisie!V78=0,\"\",Saisie!V78)","v":""},{"$f":"IF(Saisie!R78=0,\"\",Saisie!R78)","v":""},{"$f":"IF(Saisie!C78=0,\"\",Saisie!C78)","v":""},{"$f":"IF(Saisie!FC78=0,\"\",Saisie!FC78)","v":""},{"$f":"IF(Saisie!FD78=0,\"\",Saisie!FD78)","v":""},null,{"$error":"#N/A"},"",{"$f":"IF(Saisie!AM78>Saisie!$AM$15,Saisie!AM78,IF(Saisie!AO78>Saisie!$AO$15,Saisie!AO78,#N/A))","v":{"$error":"#N/A"}},{"$f":"IF(Saisie!AQ78>Saisie!$AQ$15,Saisie!AQ78,IF(Saisie!AS78>Saisie!$AS$15,Saisie!AS78,#N/A))","v":{"$error":"#N/A"}},null,4000,10000,{"$f":"IF(Saisie!Q78=0,#N/A,Saisie!Q78)","v":{"$error":"#N/A"}},12,16,{"$f":"IF(Saisie!G78=0,#N/A,Saisie!G78)","v":{"$error":"#N/A"}},{"$f":"IF(Saisie!AV78=0,#N/A,Saisie!AV78)","v":{"$error":"#N/A"}},150,400,{"$f":"IF(Saisie!N78=0,#N/A,Saisie!N78)","v":{"$error":"#N/A"}},{"$error":"#N/A"},8,16,{"$f":"IF(Saisie!AU78=0,#N/A,Saisie!AU78)","v":{"$error":"#N/A"}},50,104,{"$f":"IF(Saisie!BL78=0,#N/A,Saisie!BL78)","v":{"$error":"#N/A"}},5,{"$f":"IF(Saisie!AG78=0,#N/A,Saisie!AG78)","v":{"$error":"#N/A"}},1500,4000,{"$f":"IF(Saisie!V78=0,#N/A,Saisie!V78)","v":{"$error":"#N/A"}},1800,7000,{"$f":"IF(Saisie!R78=0,#N/A,Saisie!R78)","v":{"$error":"#N/A"}},{"$error":"#N/A"}]
[null,null,{"$f":"IF(Saisie!D79=0,\"\",Saisie!D79)","v":""},{"$f":"IF(Saisie!Q79=0,\"\",Saisie!Q79)","v":""},{"$f":"IF(Saisie!G79=0,\"\",Saisie!G79)","v":""},{"$f":"IF(Saisie!AV79=0,\"\",Saisie!AV79)","v":""},{"$f":"IF(Saisie!N79=0,\"\",Saisie!N79)","v":""},"",{"$f":"IF(Saisie!AU79=0,\"\",Saisie!AU79)","v":""},{"$f":"IF(Saisie!BL79=0,\"\",Saisie!BL79)","v":""},{"$f":"IF(Saisie!AG79=0,\"\",Saisie!AG79)","v":""},{"$f":"IF(Saisie!V79=0,\"\",Saisie!V79)","v":""},{"$f":"IF(Saisie!R79=0,\"\",Saisie!R79)","v":""},{"$f":"IF(Saisie!C79=0,\"\",Saisie!C79)","v":""},{"$f":"IF(Saisie!FC79=0,\"\",Saisie!FC79)","v":""},{"$f":"IF(Saisie!FD79=0,\"\",Saisie!FD79)","v":""},null,{"$error":"#N/A"},"",{"$f":"IF(Saisie!AM79>Saisie!$AM$15,Saisie!AM79,IF(Saisie!AO79>Saisie!$AO$15,Saisie!AO79,#N/A))","v":{"$error":"#N/A"}},{"$f":"IF(Saisie!AQ79>Saisie!$AQ$15,Saisie!AQ79,IF(Saisie!AS79>Saisie!$AS$15,Saisie!AS79,#N/A))","v":{"$error":"#N/A"}},null,4000,10000,{"$f":"IF(Saisie!Q79=0,#N/A,Saisie!Q79)","v":{"$error":"#N/A"}},12,16,{"$f":"IF(Saisie!G79=0,#N/A,Saisie!G79)","v":{"$error":"#N/A"}},{"$f":"IF(Saisie!AV79=0,#N/A,Saisie!AV79)","v":{"$error":"#N/A"}},150,400,{"$f":"IF(Saisie!N79=0,#N/A,Saisie!N79)","v":{"$error":"#N/A"}},{"$error":"#N/A"},8,16,{"$f":"IF(Saisie!AU79=0,#N/A,Saisie!AU79)","v":{"$error":"#N/A"}},50,104,{"$f":"IF(Saisie!BL79=0,#N/A,Saisie!BL79)","v":{"$error":"#N/A"}},5,{"$f":"IF(Saisie!AG79=0,#N/A,Saisie!AG79)","v":{"$error":"#N/A"}},1500,4000,{"$f":"IF(Saisie!V79=0,#N/A,Saisie!V79)","v":{"$error":"#N/A"}},1800,7000,{"$f":"IF(Saisie!R79=0,#N/A,Saisie!R79)","v":{"$error":"#N/A"}},{"$error":"#N/A"}]
[null,null,{"$f":"IF(Saisie!D80=0,\"\",Saisie!D80)","v":""},{"$f":"IF(Saisie!Q80=0,\"\",Saisie!Q80)","v":""},{"$f":"IF(Saisie!G80=0,\"\",Saisie!G80)","v":""},{"$f":"IF(Saisie!AV80=0,\"\",Saisie!AV80)","v":""},{"$f":"IF(Saisie!N80=0,\"\",Saisie!N80)","v":""},"",{"$f":"IF(Saisie!AU80=0,\"\",Saisie!AU80)","v":""},{"$f":"IF(Saisie!BL80=0,\"\",Saisie!BL80)","v":""},{"$f":"IF(Saisie!AG80=0,\"\",Saisie!AG80)","v":""},{"$f":"IF(Saisie!V80=0,\"\",Saisie!V80)","v":""},{"$f":"IF(Saisie!R80=0,\"\",Saisie!R80)","v":""},{"$f":"IF(Saisie!C80=0,\"\",Saisie!C80)","v":""},{"$f":"IF(Saisie!FC80=0,\"\",Saisie!FC80)","v":""},{"$f":"IF(Saisie!FD80=0,\"\",Saisie!FD80)","v":""},null,{"$error":"#N/A"},"",{"$f":"IF(Saisie!AM80>Saisie!$AM$15,Saisie!AM80,IF(Saisie!AO80>Saisie!$AO$15,Saisie!AO80,#N/A))","v":{"$error":"#N/A"}},{"$f":"IF(Saisie!AQ80>Saisie!$AQ$15,Saisie!AQ80,IF(Saisie!AS80>Saisie!$AS$15,Saisie!AS80,#N/A))","v":{"$error":"#N/A"}},null,4000,10000,{"$f":"IF(Saisie!Q80=0,#N/A,Saisie!Q80)","v":{"$error":"#N/A"}},12,16,{"$f":"IF(Saisie!G80=0,#N/A,Saisie!G80)","v":{"$error":"#N/A"}},{"$f":"IF(Saisie!AV80=0,#N/A,Saisie!AV80)","v":{"$error":"#N/A"}},150,400,{"$f":"IF(Saisie!N80=0,#N/A,Saisie!N80)","v":{"$error":"#N/A"}},{"$error":"#N/A"},8,16,{"$f":"IF(Saisie!AU80=0,#N/A,Saisie!AU80)","v":{"$error":"#N/A"}},50,104,{"$f":"IF(Saisie!BL80=0,#N/A,Saisie!BL80)","v":{"$error":"#N/A"}},5,{"$f":"IF(Saisie!AG80=0,#N/A,Saisie!AG80)","v":{"$error":"#N/A"}},1500,4000,{"$f":"IF(Saisie!V80=0,#N/A,Saisie!V80)","v":{"$error":"#N/A"}},1800,7000,{"$f":"IF(Saisie!R80=0,#N/A,Saisie!R80)","v":{"$error":"#N/A"}},{"$error":"#N/A"}]
[null,null,{"$f":"IF(Saisie!D81=0,\"\",Saisie!D81)","v":""},{"$f":"IF(Saisie!Q81=0,\"\",Saisie!Q81)","v":""},{"$f":"IF(Saisie!G81=0,\"\",Saisie!G81)","v":""},{"$f":"IF(Saisie!AV81=0,\"\",Saisie!AV81)","v":""},{"$f":"IF(Saisie!N81=0,\"\",Saisie!N81)","v":""},{"$f":"S77","v":""},{"$f":"IF(Saisie!AU81=0,\"\",Saisie!AU81)","v":""},{"$f":"IF(Saisie!BL81=0,\"\",Saisie!BL81)","v":""},{"$f":"IF(Saisie!AG81=0,\"\",Saisie!AG81)","v":""},{"$f":"IF(Saisie!V81=0,\"\",Saisie!V81)","v":""},{"$f":"IF(Saisie!R81=0,\"\",Saisie!R81)","v":""},{"$f":"IF(Saisie!C81=0,\"\",Saisie!C81)","v":""},{"$f":"IF(Saisie!FC81=0,\"\",Saisie!FC81)","v":""},{"$f":"IF(Saisie!FD81=0,\"\",Saisie!FD81)","v":""},null,{"$f":"IF(S77=\"\",#N/A,S77)","v":{"$error":"#N/A"}},"",{"$f":"IF(Saisie!AM81>Saisie!$AM$15,Saisie!AM81,IF(Saisie!AO81>Saisie!$AO$15,Saisie!AO81,#N/A))","v":{"$error":"#N/A"}},{"$f":"IF(Saisie!AQ81>Saisie!$AQ$15,Saisie!AQ81,IF(Saisie!AS81>Saisie!$AS$15,Saisie!AS81,#N/A))","v":{"$error":"#N/A"}},null,{"$f":"$Y$10","v":4000},{"$f":"$Y$11","v":10000},{"$f":"IF(Saisie!Q81=0,#N/A,Saisie!Q81)","v":{"$error":"#N/A"}},{"$f":"$AB$10","v":12},{"$f":"$AB$11","v":16},{"$f":"IF(Saisie!G81=0,#N/A,Saisie!G81)","v":{"$error":"#N/A"}},{"$f":"IF(Saisie!AV81=0,#N/A,Saisie!AV81)","v":{"$error":"#N/A"}},{"$f":"$AF$10","v":150},{"$f":"$AF$11","v":400},{"$f":"IF(Saisie!N81=0,#N/A,Saisie!N81)","v":{"$error":"#N/A"}},{"$f":"IF(T77<>\"#N/A\",T77,IF(U77<>\"#N/A\",U77,\"\"))","v":{"$error":"#N/A"}},{"$f":"$AJ$10","v":8},{"$f":"$AJ$11","v":16},{"$f":"IF(Saisie!AU81=0,#N/A,Saisie!AU81)","v":{"$error":"#N/A"}},{"$f":"$AM$10","v":50},{"$f":"$AM$11","v":104},{"$f":"IF(Saisie!BL81=0,#N/A,Saisie!BL81)","v":{"$error":"#N/A"}},{"$f":"$AO$11","v":5},{"$f":"IF(Saisie!AG81=0,#N/A,Saisie!AG81)","v":{"$error":"#N/A"}},{"$f":"$AR$10","v":1500},{"$f":"$AR$11","v":4000},{"$f":"IF(Saisie!V81=0,#N/A,Saisie!V81)","v":{"$error":"#N/A"}},{"$f":"$AU$10","v":1800},{"$f":"$AU$11","v":7000},{"$f":"IF(Saisie!R81=0,#N/A,Saisie!R81)","v":{"$error":"#N/A"}},{"$f":"IF(C77=\"\",#N/A,C77)","v":{"$error":"#N/A"}}]
[null,null,{"$f":"IF(Saisie!D82=0,\"\",Saisie!D82)","v":""},{"$f":"IF(Saisie!Q82=0,\"\",Saisie!Q82)","v":""},{"$f":"IF(Saisie!G82=0,\"\",Saisie!G82)","v":""},{"$f":"IF(Saisie!AV82=0,\"\",Saisie!AV82)","v":""},{"$f":"IF(Saisie!N82=0,\"\",Saisie!N82)","v":""},"",{"$f":"IF(Saisie!AU82=0,\"\",Saisie!AU82)","v":""},{"$f":"IF(Saisie!BL82=0,\"\",Saisie!BL82)","v":""},{"$f":"IF(Saisie!AG82=0,\"\",Saisie!AG82)","v":""},{"$f":"IF(Saisie!V82=0,\"\",Saisie!V82)","v":""},{"$f":"IF(Saisie!R82=0,\"\",Saisie!R82)","v":""},{"$f":"IF(Saisie!C82=0,\"\",Saisie!C82)","v":""},{"$f":"IF(Saisie!FC82=0,\"\",Saisie!FC82)","v":""},{"$f":"IF(Saisie!FD82=0,\"\",Saisie!FD82)","v":""},null,{"$error":"#N/A"},{"$f":"IF(ISNA(T78), IF(ISNA(U78),\"\",U78),T78)","v":""},{"$f":"IF(Saisie!AM82>Saisie!$AM$15,Saisie!AM82,IF(Saisie!AO82>Saisie!$AO$15,Saisie!AO82,#N/A))","v":{"$error":"#N/A"}},{"$f":"IF(Saisie!AQ82>Saisie!$AQ$15,Saisie!AQ82,IF(Saisie!AS82>Saisie!$AS$15,Saisie!AS82,#N/A))","v":{"$error":"#N/A"}},null,4000,10000,{"$f":"IF(Saisie!Q82=0,#N/A,Saisie!Q82)","v":{"$error":"#N/A"}},12,16,{"$f":"IF(Saisie!G82=0,#N/A,Saisie!G82)","v":{"$error":"#N/A"}},{"$f":"IF(Saisie!AV82=0,#N/A,Saisie!AV82)","v":{"$error":"#N/A"}},150,400,{"$f":"IF(Saisie!N82=0,#N/A,Saisie!N82)","v":{"$error":"#N/A"}},{"$error":"#N/A"},8,16,{"$f":"IF(Saisie!AU82=0,#N/A,Saisie!AU82)","v":{"$error":"#N/A"}},50,104,{"$f":"IF(Saisie!BL82=0,#N/A,Saisie!BL82)","v":{"$error":"#N/A"}},5,{"$f":"IF(Saisie!AG82=0,#N/A,Saisie!AG82)","v":{"$error":"#N/A"}},1500,4000,{"$f":"IF(Saisie!V82=0,#N/A,Saisie!V82)","v":{"$error":"#N/A"}},1800,7000,{"$f":"IF(Saisie!R82=0,#N/A,Saisie!R82)","v":{"$error":"#N/A"}},{"$error":"#N/A"}]
[null,null,{"$f":"IF(Saisie!D83=0,\"\",Saisie!D83)","v":""},{"$f":"IF(Saisie!Q83=0,\"\",Saisie!Q83)","v":""},{"$f":"IF(Saisie!G83=0,\"\",Saisie!G83)","v":""},{"$f":"IF(Saisie!AV83=0,\"\",Saisie!AV83)","v":""},{"$f":"IF(Saisie!N83=0,\"\",Saisie!N83)","v":""},"",{"$f":"IF(Saisie!AU83=0,\"\",Saisie!AU83)","v":""},{"$f":"IF(Saisie!BL83=0,\"\",Saisie!BL83)","v":""},{"$f":"IF(Saisie!AG83=0,\"\",Saisie!AG83)","v":""},{"$f":"IF(Saisie!V83=0,\"\",Saisie!V83)","v":""},{"$f":"IF(Saisie!R83=0,\"\",Saisie!R83)","v":""},{"$f":"IF(Saisie!C83=0,\"\",Saisie!C83)","v":""},{"$f":"IF(Saisie!FC83=0,\"\",Saisie!FC83)","v":""},{"$f":"IF(Saisie!FD83=0,\"\",Saisie!FD83)","v":""},null,{"$error":"#N/A"},"",{"$f":"IF(Saisie!AM83>Saisie!$AM$15,Saisie!AM83,IF(Saisie!AO83>Saisie!$AO$15,Saisie!AO83,#N/A))","v":{"$error":"#N/A"}},{"$f":"IF(Saisie!AQ83>Saisie!$AQ$15,Saisie!AQ83,IF(Saisie!AS83>Saisie!$AS$15,Saisie!AS83,#N/A))","v":{"$error":"#N/A"}},null,4000,10000,{"$f":"IF(Saisie!Q83=0,#N/A,Saisie!Q83)","v":{"$error":"#N/A"}},12,16,{"$f":"IF(Saisie!G83=0,#N/A,Saisie!G83)","v":{"$error":"#N/A"}},{"$f":"IF(Saisie!AV83=0,#N/A,Saisie!AV83)","v":{"$error":"#N/A"}},150,400,{"$f":"IF(Saisie!N83=0,#N/A,Saisie!N83)","v":{"$error":"#N/A"}},{"$error":"#N/A"},8,16,{"$f":"IF(Saisie!AU83=0,#N/A,Saisie!AU83)","v":{"$error":"#N/A"}},50,104,{"$f":"IF(Saisie!BL83=0,#N/A,Saisie!BL83)","v":{"$error":"#N/A"}},5,{"$f":"IF(Saisie!AG83=0,#N/A,Saisie!AG83)","v":{"$error":"#N/A"}},1500,4000,{"$f":"IF(Saisie!V83=0,#N/A,Saisie!V83)","v":{"$error":"#N/A"}},1800,7000,{"$f":"IF(Saisie!R83=0,#N/A,Saisie!R83)","v":{"$error":"#N/A"}},{"$error":"#N/A"}]
[null,null,{"$f":"IF(Saisie!D84=0,\"\",Saisie!D84)","v":""},{"$f":"IF(Saisie!Q84=0,\"\",Saisie!Q84)","v":""},{"$f":"IF(Saisie!G84=0,\"\",Saisie!G84)","v":""},{"$f":"IF(Saisie!AV84=0,\"\",Saisie!AV84)","v":""},{"$f":"IF(Saisie!N84=0,\"\",Saisie!N84)","v":""},"",{"$f":"IF(Saisie!AU84=0,\"\",Saisie!AU84)","v":""},{"$f":"IF(Saisie!BL84=0,\"\",Saisie!BL84)","v":""},{"$f":"IF(Saisie!AG84=0,\"\",Saisie!AG84)","v":""},{"$f":"IF(Saisie!V84=0,\"\",Saisie!V84)","v":""},{"$f":"IF(Saisie!R84=0,\"\",Saisie!R84)","v":""},{"$f":"IF(Saisie!C84=0,\"\",Saisie!C84)","v":""},{"$f":"IF(Saisie!FC84=0,\"\",Saisie!FC84)","v":""},{"$f":"IF(Saisie!FD84=0,\"\",Saisie!FD84)","v":""},null,{"$error":"#N/A"},"",{"$f":"IF(Saisie!AM84>Saisie!$AM$15,Saisie!AM84,IF(Saisie!AO84>Saisie!$AO$15,Saisie!AO84,#N/A))","v":{"$error":"#N/A"}},{"$f":"IF(Saisie!AQ84>Saisie!$AQ$15,Saisie!AQ84,IF(Saisie!AS84>Saisie!$AS$15,Saisie!AS84,#N/A))","v":{"$error":"#N/A"}},null,4000,10000,{"$f":"IF(Saisie!Q84=0,#N/A,Saisie!Q84)","v":{"$error":"#N/A"}},12,16,{"$f":"IF(Saisie!G84=0,#N/A,Saisie!G84)","v":{"$error":"#N/A"}},{"$f":"IF(Saisie!AV84=0,#N/A,Saisie!AV84)","v":{"$error":"#N/A"}},150,400,{"$f":"IF(Saisie!N84=0,#N/A,Saisie!N84)","v":{"$error":"#N/A"}},{"$error":"#N/A"},8,16,{"$f":"IF(Saisie!AU84=0,#N/A,Saisie!AU84)","v":{"$error":"#N/A"}},50,104,{"$f":"IF(Saisie!BL84=0,#N/A,Saisie!BL84)","v":{"$error":"#N/A"}},5,{"$f":"IF(Saisie!AG84=0,#N/A,Saisie!AG84)","v":{"$error":"#N/A"}},1500,4000,{"$f":"IF(Saisie!V84=0,#N/A,Saisie!V84)","v":{"$error":"#N/A"}},1800,7000,{"$f":"IF(Saisie!R84=0,#N/A,Saisie!R84)","v":{"$error":"#N/A"}},{"$error":"#N/A"}]
[null,null,{"$f":"IF(Saisie!D85=0,\"\",Saisie!D85)","v":""},{"$f":"IF(Saisie!Q85=0,\"\",Saisie!Q85)","v":""},{"$f":"IF(Saisie!G85=0,\"\",Saisie!G85)","v":""},{"$f":"IF(Saisie!AV85=0,\"\",Saisie!AV85)","v":""},{"$f":"IF(Saisie!N85=0,\"\",Saisie!N85)","v":""},"",{"$f":"IF(Saisie!AU85=0,\"\",Saisie!AU85)","v":""},{"$f":"IF(Saisie!BL85=0,\"\",Saisie!BL85)","v":""},{"$f":"IF(Saisie!AG85=0,\"\",Saisie!AG85)","v":""},{"$f":"IF(Saisie!V85=0,\"\",Saisie!V85)","v":""},{"$f":"IF(Saisie!R85=0,\"\",Saisie!R85)","v":""},{"$f":"IF(Saisie!C85=0,\"\",Saisie!C85)","v":""},{"$f":"IF(Saisie!FC85=0,\"\",Saisie!FC85)","v":""},{"$f":"IF(Saisie!FD85=0,\"\",Saisie!FD85)","v":""},null,{"$error":"#N/A"},"",{"$f":"IF(Saisie!AM85>Saisie!$AM$15,Saisie!AM85,IF(Saisie!AO85>Saisie!$AO$15,Saisie!AO85,#N/A))","v":{"$error":"#N/A"}},{"$f":"IF(Saisie!AQ85>Saisie!$AQ$15,Saisie!AQ85,IF(Saisie!AS85>Saisie!$AS$15,Saisie!AS85,#N/A))","v":{"$error":"#N/A"}},null,4000,10000,{"$f":"IF(Saisie!Q85=0,#N/A,Saisie!Q85)","v":{"$error":"#N/A"}},12,16,{"$f":"IF(Saisie!G85=0,#N/A,Saisie!G85)","v":{"$error":"#N/A"}},{"$f":"IF(Saisie!AV85=0,#N/A,Saisie!AV85)","v":{"$error":"#N/A"}},150,400,{"$f":"IF(Saisie!N85=0,#N/A,Saisie!N85)","v":{"$error":"#N/A"}},{"$error":"#N/A"},8,16,{"$f":"IF(Saisie!AU85=0,#N/A,Saisie!AU85)","v":{"$error":"#N/A"}},50,104,{"$f":"IF(Saisie!BL85=0,#N/A,Saisie!BL85)","v":{"$error":"#N/A"}},5,{"$f":"IF(Saisie!AG85=0,#N/A,Saisie!AG85)","v":{"$error":"#N/A"}},1500,4000,{"$f":"IF(Saisie!V85=0,#N/A,Saisie!V85)","v":{"$error":"#N/A"}},1800,7000,{"$f":"IF(Saisie!R85=0,#N/A,Saisie!R85)","v":{"$error":"#N/A"}},{"$error":"#N/A"}]
[null,null,{"$f":"IF(Saisie!D86=0,\"\",Saisie!D86)","v":""},{"$f":"IF(Saisie!Q86=0,\"\",Saisie!Q86)","v":""},{"$f":"IF(Saisie!G86=0,\"\",Saisie!G86)","v":""},{"$f":"IF(Saisie!AV86=0,\"\",Saisie!AV86)","v":""},{"$f":"IF(Saisie!N86=0,\"\",Saisie!N86)","v":""},"",{"$f":"IF(Saisie!AU86=0,\"\",Saisie!AU86)","v":""},{"$f":"IF(Saisie!BL86=0,\"\",Saisie!BL86)","v":""},{"$f":"IF(Saisie!AG86=0,\"\",Saisie!AG86)","v":""},{"$f":"IF(Saisie!V86=0,\"\",Saisie!V86)","v":""},{"$f":"IF(Saisie!R86=0,\"\",Saisie!R86)","v":""},{"$f":"IF(Saisie!C86=0,\"\",Saisie!C86)","v":""},{"$f":"IF(Saisie!FC86=0,\"\",Saisie!FC86)","v":""},{"$f":"IF(Saisie!FD86=0,\"\",Saisie!FD86)","v":""},null,{"$error":"#N/A"},"",{"$f":"IF(Saisie!AM86>Saisie!$AM$15,Saisie!AM86,IF(Saisie!AO86>Saisie!$AO$15,Saisie!AO86,#N/A))","v":{"$error":"#N/A"}},{"$f":"IF(Saisie!AQ86>Saisie!$AQ$15,Saisie!AQ86,IF(Saisie!AS86>Saisie!$AS$15,Saisie!AS86,#N/A))","v":{"$error":"#N/A"}},null,4000,10000,{"$f":"IF(Saisie!Q86=0,#N/A,Saisie!Q86)","v":{"$error":"#N/A"}},12,16,{"$f":"IF(Saisie!G86=0,#N/A,Saisie!G86)","v":{"$error":"#N/A"}},{"$f":"IF(Saisie!AV86=0,#N/A,Saisie!AV86)","v":{"$error":"#N/A"}},150,400,{"$f":"IF(Saisie!N86=0,#N/A,Saisie!N86)","v":{"$error":"#N/A"}},{"$error":"#N/A"},8,16,{"$f":"IF(Saisie!AU86=0,#N/A,Saisie!AU86)","v":{"$error":"#N/A"}},50,104,{"$f":"IF(Saisie!BL86=0,#N/A,Saisie!BL86)","v":{"$error":"#N/A"}},5,{"$f":"IF(Saisie!AG86=0,#N/A,Saisie!AG86)","v":{"$error":"#N/A"}},1500,4000,{"$f":"IF(Saisie!V86=0,#N/A,Saisie!V86)","v":{"$error":"#N/A"}},1800,7000,{"$f":"IF(Saisie!R86=0,#N/A,Saisie!R86)","v":{"$error":"#N/A"}},{"$error":"#N/A"}]
[null,null,{"$f":"IF(Saisie!D87=0,\"\",Saisie!D87)","v":""},{"$f":"IF(Saisie!Q87=0,\"\",Saisie!Q87)","v":""},{"$f":"IF(Saisie!G87=0,\"\",Saisie!G87)","v":""},{"$f":"IF(Saisie!AV87=0,\"\",Saisie!AV87)","v":""},{"$f":"IF(Saisie!N87=0,\"\",Saisie!N87)","v":""},"",{"$f":"IF(Saisie!AU87=0,\"\",Saisie!AU87)","v":""},{"$f":"IF(Saisie!BL87=0,\"\",Saisie!BL87)","v":""},{"$f":"IF(Saisie!AG87=0,\"\",Saisie!AG87)","v":""},{"$f":"IF(Saisie!V87=0,\"\",Saisie!V87)","v":""},{"$f":"IF(Saisie!R87=0,\"\",Saisie!R87)","v":""},{"$f":"IF(Saisie!C87=0,\"\",Saisie!C87)","v":""},{"$f":"IF(Saisie!FC87=0,\"\",Saisie!FC87)","v":""},{"$f":"IF(Saisie!FD87=0,\"\",Saisie!FD87)","v":""},null,{"$error":"#N/A"},"",{"$f":"IF(Saisie!AM87>Saisie!$AM$15,Saisie!AM87,IF(Saisie!AO87>Saisie!$AO$15,Saisie!AO87,#N/A))","v":{"$error":"#N/A"}},{"$f":"IF(Saisie!AQ87>Saisie!$AQ$15,Saisie!AQ87,IF(Saisie!AS87>Saisie!$AS$15,Saisie!AS87,#N/A))","v":{"$error":"#N/A"}},null,4000,10000,{"$f":"IF(Saisie!Q87=0,#N/A,Saisie!Q87)","v":{"$error":"#N/A"}},12,16,{"$f":"IF(Saisie!G87=0,#N/A,Saisie!G87)","v":{"$error":"#N/A"}},{"$f":"IF(Saisie!AV87=0,#N/A,Saisie!AV87)","v":{"$error":"#N/A"}},150,400,{"$f":"IF(Saisie!N87=0,#N/A,Saisie!N87)","v":{"$error":"#N/A"}},{"$error":"#N/A"},8,16,{"$f":"IF(Saisie!AU87=0,#N/A,Saisie!AU87)","v":{"$error":"#N/A"}},50,104,{"$f":"IF(Saisie!BL87=0,#N/A,Saisie!BL87)","v":{"$error":"#N/A"}},5,{"$f":"IF(Saisie!AG87=0,#N/A,Saisie!AG87)","v":{"$error":"#N/A"}},1500,4000,{"$f":"IF(Saisie!V87=0,#N/A,Saisie!V87)","v":{"$error":"#N/A"}},1800,7000,{"$f":"IF(Saisie!R87=0,#N/A,Saisie!R87)","v":{"$error":"#N/A"}},{"$error":"#N/A"}]
[null,null,{"$f":"IF(Saisie!D88=0,\"\",Saisie!D88)","v":""},{"$f":"IF(Saisie!Q88=0,\"\",Saisie!Q88)","v":""},{"$f":"IF(Saisie!G88=0,\"\",Saisie!G88)","v":""},{"$f":"IF(Saisie!AV88=0,\"\",Saisie!AV88)","v":""},{"$f":"IF(Saisie!N88=0,\"\",Saisie!N88)","v":""},"",{"$f":"IF(Saisie!AU88=0,\"\",Saisie!AU88)","v":""},{"$f":"IF(Saisie!BL88=0,\"\",Saisie!BL88)","v":""},{"$f":"IF(Saisie!AG88=0,\"\",Saisie!AG88)","v":""},{"$f":"IF(Saisie!V88=0,\"\",Saisie!V88)","v":""},{"$f":"IF(Saisie!R88=0,\"\",Saisie!R88)","v":""},{"$f":"IF(Saisie!C88=0,\"\",Saisie!C88)","v":""},{"$f":"IF(Saisie!FC88=0,\"\",Saisie!FC88)","v":""},{"$f":"IF(Saisie!FD88=0,\"\",Saisie!FD88)","v":""},null,{"$error":"#N/A"},"",{"$f":"IF(Saisie!AM88>Saisie!$AM$15,Saisie!AM88,IF(Saisie!AO88>Saisie!$AO$15,Saisie!AO88,#N/A))","v":{"$error":"#N/A"}},{"$f":"IF(Saisie!AQ88>Saisie!$AQ$15,Saisie!AQ88,IF(Saisie!AS88>Saisie!$AS$15,Saisie!AS88,#N/A))","v":{"$error":"#N/A"}},null,4000,10000,{"$f":"IF(Saisie!Q88=0,#N/A,Saisie!Q88)","v":{"$error":"#N/A"}},12,16,{"$f":"IF(Saisie!G88=0,#N/A,Saisie!G88)","v":{"$error":"#N/A"}},{"$f":"IF(Saisie!AV88=0,#N/A,Saisie!AV88)","v":{"$error":"#N/A"}},150,400,{"$f":"IF(Saisie!N88=0,#N/A,Saisie!N88)","v":{"$error":"#N/A"}},{"$error":"#N/A"},8,16,{"$f":"IF(Saisie!AU88=0,#N/A,Saisie!AU88)","v":{"$error":"#N/A"}},50,104,{"$f":"IF(Saisie!BL88=0,#N/A,Saisie!BL88)","v":{"$error":"#N/A"}},5,{"$f":"IF(Saisie!AG88=0,#N/A,Saisie!AG88)","v":{"$error":"#N/A"}},1500,4000,{"$f":"IF(Saisie!V88=0,#N/A,Saisie!V88)","v":{"$error":"#N/A"}},1800,7000,{"$f":"IF(Saisie!R88=0,#N/A,Saisie!R88)","v":{"$error":"#N/A"}},{"$error":"#N/A"}]
[null,null,{"$f":"IF(Saisie!D89=0,\"\",Saisie!D89)","v":""},{"$f":"IF(Saisie!Q89=0,\"\",Saisie!Q89)","v":""},{"$f":"IF(Saisie!G89=0,\"\",Saisie!G89)","v":""},{"$f":"IF(Saisie!AV89=0,\"\",Saisie!AV89)","v":""},{"$f":"IF(Saisie!N89=0,\"\",Saisie!N89)","v":""},"",{"$f":"IF(Saisie!AU89=0,\"\",Saisie!AU89)","v":""},{"$f":"IF(Saisie!BL89=0,\"\",Saisie!BL89)","v":""},{"$f":"IF(Saisie!AG89=0,\"\",Saisie!AG89)","v":""},{"$f":"IF(Saisie!V89=0,\"\",Saisie!V89)","v":""},{"$f":"IF(Saisie!R89=0,\"\",Saisie!R89)","v":""},{"$f":"IF(Saisie!C89=0,\"\",Saisie!C89)","v":""},{"$f":"IF(Saisie!FC89=0,\"\",Saisie!FC89)","v":""},{"$f":"IF(Saisie!FD89=0,\"\",Saisie!FD89)","v":""},null,{"$error":"#N/A"},"",{"$f":"IF(Saisie!AM89>Saisie!$AM$15,Saisie!AM89,IF(Saisie!AO89>Saisie!$AO$15,Saisie!AO89,#N/A))","v":{"$error":"#N/A"}},{"$f":"IF(Saisie!AQ89>Saisie!$AQ$15,Saisie!AQ89,IF(Saisie!AS89>Saisie!$AS$15,Saisie!AS89,#N/A))","v":{"$error":"#N/A"}},null,4000,10000,{"$f":"IF(Saisie!Q89=0,#N/A,Saisie!Q89)","v":{"$error":"#N/A"}},12,16,{"$f":"IF(Saisie!G89=0,#N/A,Saisie!G89)","v":{"$error":"#N/A"}},{"$f":"IF(Saisie!AV89=0,#N/A,Saisie!AV89)","v":{"$error":"#N/A"}},150,400,{"$f":"IF(Saisie!N89=0,#N/A,Saisie!N89)","v":{"$error":"#N/A"}},{"$error":"#N/A"},8,16,{"$f":"IF(Saisie!AU89=0,#N/A,Saisie!AU89)","v":{"$error":"#N/A"}},50,104,{"$f":"IF(Saisie!BL89=0,#N/A,Saisie!BL89)","v":{"$error":"#N/A"}},5,{"$f":"IF(Saisie!AG89=0,#N/A,Saisie!AG89)","v":{"$error":"#N/A"}},1500,4000,{"$f":"IF(Saisie!V89=0,#N/A,Saisie!V89)","v":{"$error":"#N/A"}},1800,7000,{"$f":"IF(Saisie!R89=0,#N/A,Saisie!R89)","v":{"$error":"#N/A"}},{"$error":"#N/A"}]
[null,null,{"$f":"IF(Saisie!D90=0,\"\",Saisie!D90)","v":""},{"$f":"IF(Saisie!Q90=0,\"\",Saisie!Q90)","v":""},{"$f":"IF(Saisie!G90=0,\"\",Saisie!G90)","v":""},{"$f":"IF(Saisie!AV90=0,\"\",Saisie!AV90)","v":""},{"$f":"IF(Saisie!N90=0,\"\",Saisie!N90)","v":""},"",{"$f":"IF(Saisie!AU90=0,\"\",Saisie!AU90)","v":""},{"$f":"IF(Saisie!BL90=0,\"\",Saisie!BL90)","v":""},{"$f":"IF(Saisie!AG90=0,\"\",Saisie!AG90)","v":""},{"$f":"IF(Saisie!V90=0,\"\",Saisie!V90)","v":""},{"$f":"IF(Saisie!R90=0,\"\",Saisie!R90)","v":""},{"$f":"IF(Saisie!C90=0,\"\",Saisie!C90)","v":""},{"$f":"IF(Saisie!FC90=0,\"\",Saisie!FC90)","v":""},{"$f":"IF(Saisie!FD90=0,\"\",Saisie!FD90)","v":""},null,{"$error":"#N/A"},"",{"$f":"IF(Saisie!AM90>Saisie!$AM$15,Saisie!AM90,IF(Saisie!AO90>Saisie!$AO$15,Saisie!AO90,#N/A))","v":{"$error":"#N/A"}},{"$f":"IF(Saisie!AQ90>Saisie!$AQ$15,Saisie!AQ90,IF(Saisie!AS90>Saisie!$AS$15,Saisie!AS90,#N/A))","v":{"$error":"#N/A"}},null,4000,10000,{"$f":"IF(Saisie!Q90=0,#N/A,Saisie!Q90)","v":{"$error":"#N/A"}},12,16,{"$f":"IF(Saisie!G90=0,#N/A,Saisie!G90)","v":{"$error":"#N/A"}},{"$f":"IF(Saisie!AV90=0,#N/A,Saisie!AV90)","v":{"$error":"#N/A"}},150,400,{"$f":"IF(Saisie!N90=0,#N/A,Saisie!N90)","v":{"$error":"#N/A"}},{"$error":"#N/A"},8,16,{"$f":"IF(Saisie!AU90=0,#N/A,Saisie!AU90)","v":{"$error":"#N/A"}},50,104,{"$f":"IF(Saisie!BL90=0,#N/A,Saisie!BL90)","v":{"$error":"#N/A"}},5,{"$f":"IF(Saisie!AG90=0,#N/A,Saisie!AG90)","v":{"$error":"#N/A"}},1500,4000,{"$f":"IF(Saisie!V90=0,#N/A,Saisie!V90)","v":{"$error":"#N/A"}},1800,7000,{"$f":"IF(Saisie!R90=0,#N/A,Saisie!R90)","v":{"$error":"#N/A"}},{"$error":"#N/A"}]
[null,null,{"$f":"IF(Saisie!D91=0,\"\",Saisie!D91)","v":""},{"$f":"IF(Saisie!Q91=0,\"\",Saisie!Q91)","v":""},{"$f":"IF(Saisie!G91=0,\"\",Saisie!G91)","v":""},{"$f":"IF(Saisie!AV91=0,\"\",Saisie!AV91)","v":""},{"$f":"IF(Saisie!N91=0,\"\",Saisie!N91)","v":""},"",{"$f":"IF(Saisie!AU91=0,\"\",Saisie!AU91)","v":""},{"$f":"IF(Saisie!BL91=0,\"\",Saisie!BL91)","v":""},{"$f":"IF(Saisie!AG91=0,\"\",Saisie!AG91)","v":""},{"$f":"IF(Saisie!V91=0,\"\",Saisie!V91)","v":""},{"$f":"IF(Saisie!R91=0,\"\",Saisie!R91)","v":""},{"$f":"IF(Saisie!C91=0,\"\",Saisie!C91)","v":""},{"$f":"IF(Saisie!FC91=0,\"\",Saisie!FC91)","v":""},{"$f":"IF(Saisie!FD91=0,\"\",Saisie!FD91)","v":""},null,{"$error":"#N/A"},"",{"$f":"IF(Saisie!AM91>Saisie!$AM$15,Saisie!AM91,IF(Saisie!AO91>Saisie!$AO$15,Saisie!AO91,#N/A))","v":{"$error":"#N/A"}},{"$f":"IF(Saisie!AQ91>Saisie!$AQ$15,Saisie!AQ91,IF(Saisie!AS91>Saisie!$AS$15,Saisie!AS91,#N/A))","v":{"$error":"#N/A"}},null,4000,10000,{"$f":"IF(Saisie!Q91=0,#N/A,Saisie!Q91)","v":{"$error":"#N/A"}},12,16,{"$f":"IF(Saisie!G91=0,#N/A,Saisie!G91)","v":{"$error":"#N/A"}},{"$f":"IF(Saisie!AV91=0,#N/A,Saisie!AV91)","v":{"$error":"#N/A"}},150,400,{"$f":"IF(Saisie!N91=0,#N/A,Saisie!N91)","v":{"$error":"#N/A"}},{"$error":"#N/A"},8,16,{"$f":"IF(Saisie!AU91=0,#N/A,Saisie!AU91)","v":{"$error":"#N/A"}},50,104,{"$f":"IF(Saisie!BL91=0,#N/A,Saisie!BL91)","v":{"$error":"#N/A"}},5,{"$f":"IF(Saisie!AG91=0,#N/A,Saisie!AG91)","v":{"$error":"#N/A"}},1500,4000,{"$f":"IF(Saisie!V91=0,#N/A,Saisie!V91)","v":{"$error":"#N/A"}},1800,7000,{"$f":"IF(Saisie!R91=0,#N/A,Saisie!R91)","v":{"$error":"#N/A"}},{"$error":"#N/A"}]
[null,null,{"$f":"IF(Saisie!D92=0,\"\",Saisie!D92)","v":""},{"$f":"IF(Saisie!Q92=0,\"\",Saisie!Q92)","v":""},{"$f":"IF(Saisie!G92=0,\"\",Saisie!G92)","v":""},{"$f":"IF(Saisie!AV92=0,\"\",Saisie!AV92)","v":""},{"$f":"IF(Saisie!N92=0,\"\",Saisie!N92)","v":""},"",{"$f":"IF(Saisie!AU92=0,\"\",Saisie!AU92)","v":""},{"$f":"IF(Saisie!BL92=0,\"\",Saisie!BL92)","v":""},{"$f":"IF(Saisie!AG92=0,\"\",Saisie!AG92)","v":""},{"$f":"IF(Saisie!V92=0,\"\",Saisie!V92)","v":""},{"$f":"IF(Saisie!R92=0,\"\",Saisie!R92)","v":""},{"$f":"IF(Saisie!C92=0,\"\",Saisie!C92)","v":""},{"$f":"IF(Saisie!FC92=0,\"\",Saisie!FC92)","v":""},{"$f":"IF(Saisie!FD92=0,\"\",Saisie!FD92)","v":""},null,{"$error":"#N/A"},"",{"$f":"IF(Saisie!AM92>Saisie!$AM$15,Saisie!AM92,IF(Saisie!AO92>Saisie!$AO$15,Saisie!AO92,#N/A))","v":{"$error":"#N/A"}},{"$f":"IF(Saisie!AQ92>Saisie!$AQ$15,Saisie!AQ92,IF(Saisie!AS92>Saisie!$AS$15,Saisie!AS92,#N/A))","v":{"$error":"#N/A"}},null,4000,10000,{"$f":"IF(Saisie!Q92=0,#N/A,Saisie!Q92)","v":{"$error":"#N/A"}},12,16,{"$f":"IF(Saisie!G92=0,#N/A,Saisie!G92)","v":{"$error":"#N/A"}},{"$f":"IF(Saisie!AV92=0,#N/A,Saisie!AV92)","v":{"$error":"#N/A"}},150,400,{"$f":"IF(Saisie!N92=0,#N/A,Saisie!N92)","v":{"$error":"#N/A"}},{"$error":"#N/A"},8,16,{"$f":"IF(Saisie!AU92=0,#N/A,Saisie!AU92)","v":{"$error":"#N/A"}},50,104,{"$f":"IF(Saisie!BL92=0,#N/A,Saisie!BL92)","v":{"$error":"#N/A"}},5,{"$f":"IF(Saisie!AG92=0,#N/A,Saisie!AG92)","v":{"$error":"#N/A"}},1500,4000,{"$f":"IF(Saisie!V92=0,#N/A,Saisie!V92)","v":{"$error":"#N/A"}},1800,7000,{"$f":"IF(Saisie!R92=0,#N/A,Saisie!R92)","v":{"$error":"#N/A"}},{"$error":"#N/A"}]
[null,null,{"$f":"IF(Saisie!D93=0,\"\",Saisie!D93)","v":""},{"$f":"IF(Saisie!Q93=0,\"\",Saisie!Q93)","v":""},{"$f":"IF(Saisie!G93=0,\"\",Saisie!G93)","v":""},{"$f":"IF(Saisie!AV93=0,\"\",Saisie!AV93)","v":""},{"$f":"IF(Saisie!N93=0,\"\",Saisie!N93)","v":""},"",{"$f":"IF(Saisie!AU93=0,\"\",Saisie!AU93)","v":""},{"$f":"IF(Saisie!BL93=0,\"\",Saisie!BL93)","v":""},{"$f":"IF(Saisie!AG93=0,\"\",Saisie!AG93)","v":""},{"$f":"IF(Saisie!V93=0,\"\",Saisie!V93)","v":""},{"$f":"IF(Saisie!R93=0,\"\",Saisie!R93)","v":""},{"$f":"IF(Saisie!C93=0,\"\",Saisie!C93)","v":""},{"$f":"IF(Saisie!FC93=0,\"\",Saisie!FC93)","v":""},{"$f":"IF(Saisie!FD93=0,\"\",Saisie!FD93)","v":""},null,{"$error":"#N/A"},"",{"$f":"IF(Saisie!AM93>Saisie!$AM$15,Saisie!AM93,IF(Saisie!AO93>Saisie!$AO$15,Saisie!AO93,#N/A))","v":{"$error":"#N/A"}},{"$f":"IF(Saisie!AQ93>Saisie!$AQ$15,Saisie!AQ93,IF(Saisie!AS93>Saisie!$AS$15,Saisie!AS93,#N/A))","v":{"$error":"#N/A"}},null,4000,10000,{"$f":"IF(Saisie!Q93=0,#N/A,Saisie!Q93)","v":{"$error":"#N/A"}},12,16,{"$f":"IF(Saisie!G93=0,#N/A,Saisie!G93)","v":{"$error":"#N/A"}},{"$f":"IF(Saisie!AV93=0,#N/A,Saisie!AV93)","v":{"$error":"#N/A"}},150,400,{"$f":"IF(Saisie!N93=0,#N/A,Saisie!N93)","v":{"$error":"#N/A"}},{"$error":"#N/A"},8,16,{"$f":"IF(Saisie!AU93=0,#N/A,Saisie!AU93)","v":{"$error":"#N/A"}},50,104,{"$f":"IF(Saisie!BL93=0,#N/A,Saisie!BL93)","v":{"$error":"#N/A"}},5,{"$f":"IF(Saisie!AG93=0,#N/A,Saisie!AG93)","v":{"$error":"#N/A"}},1500,4000,{"$f":"IF(Saisie!V93=0,#N/A,Saisie!V93)","v":{"$error":"#N/A"}},1800,7000,{"$f":"IF(Saisie!R93=0,#N/A,Saisie!R93)","v":{"$error":"#N/A"}},{"$error":"#N/A"}]
[null,null,{"$f":"IF(Saisie!D94=0,\"\",Saisie!D94)","v":""},{"$f":"IF(Saisie!Q94=0,\"\",Saisie!Q94)","v":""},{"$f":"IF(Saisie!G94=0,\"\",Saisie!G94)","v":""},{"$f":"IF(Saisie!AV94=0,\"\",Saisie!AV94)","v":""},{"$f":"IF(Saisie!N94=0,\"\",Saisie!N94)","v":""},"",{"$f":"IF(Saisie!AU94=0,\"\",Saisie!AU94)","v":""},{"$f":"IF(Saisie!BL94=0,\"\",Saisie!BL94)","v":""},{"$f":"IF(Saisie!AG94=0,\"\",Saisie!AG94)","v":""},{"$f":"IF(Saisie!V94=0,\"\",Saisie!V94)","v":""},{"$f":"IF(Saisie!R94=0,\"\",Saisie!R94)","v":""},{"$f":"IF(Saisie!C94=0,\"\",Saisie!C94)","v":""},{"$f":"IF(Saisie!FC94=0,\"\",Saisie!FC94)","v":""},{"$f":"IF(Saisie!FD94=0,\"\",Saisie!FD94)","v":""},null,{"$error":"#N/A"},"",{"$f":"IF(Saisie!AM94>Saisie!$AM$15,Saisie!AM94,IF(Saisie!AO94>Saisie!$AO$15,Saisie!AO94,#N/A))","v":{"$error":"#N/A"}},{"$f":"IF(Saisie!AQ94>Saisie!$AQ$15,Saisie!AQ94,IF(Saisie!AS94>Saisie!$AS$15,Saisie!AS94,#N/A))","v":{"$error":"#N/A"}},null,4000,10000,{"$f":"IF(Saisie!Q94=0,#N/A,Saisie!Q94)","v":{"$error":"#N/A"}},12,16,{"$f":"IF(Saisie!G94=0,#N/A,Saisie!G94)","v":{"$error":"#N/A"}},{"$f":"IF(Saisie!AV94=0,#N/A,Saisie!AV94)","v":{"$error":"#N/A"}},150,400,{"$f":"IF(Saisie!N94=0,#N/A,Saisie!N94)","v":{"$error":"#N/A"}},{"$error":"#N/A"},8,16,{"$f":"IF(Saisie!AU94=0,#N/A,Saisie!AU94)","v":{"$error":"#N/A"}},50,104,{"$f":"IF(Saisie!BL94=0,#N/A,Saisie!BL94)","v":{"$error":"#N/A"}},5,{"$f":"IF(Saisie!AG94=0,#N/A,Saisie!AG94)","v":{"$error":"#N/A"}},1500,4000,{"$f":"IF(Saisie!V94=0,#N/A,Saisie!V94)","v":{"$error":"#N/A"}},1800,7000,{"$f":"IF(Saisie!R94=0,#N/A,Saisie!R94)","v":{"$error":"#N/A"}},{"$error":"#N/A"}]
[null,null,{"$f":"IF(Saisie!D95=0,\"\",Saisie!D95)","v":""},{"$f":"IF(Saisie!Q95=0,\"\",Saisie!Q95)","v":""},{"$f":"IF(Saisie!G95=0,\"\",Saisie!G95)","v":""},{"$f":"IF(Saisie!AV95=0,\"\",Saisie!AV95)","v":""},{"$f":"IF(Saisie!N95=0,\"\",Saisie!N95)","v":""},"",{"$f":"IF(Saisie!AU95=0,\"\",Saisie!AU95)","v":""},{"$f":"IF(Saisie!BL95=0,\"\",Saisie!BL95)","v":""},{"$f":"IF(Saisie!AG95=0,\"\",Saisie!AG95)","v":""},{"$f":"IF(Saisie!V95=0,\"\",Saisie!V95)","v":""},{"$f":"IF(Saisie!R95=0,\"\",Saisie!R95)","v":""},{"$f":"IF(Saisie!C95=0,\"\",Saisie!C95)","v":""},{"$f":"IF(Saisie!FC95=0,\"\",Saisie!FC95)","v":""},{"$f":"IF(Saisie!FD95=0,\"\",Saisie!FD95)","v":""},null,{"$error":"#N/A"},"",{"$f":"IF(Saisie!AM95>Saisie!$AM$15,Saisie!AM95,IF(Saisie!AO95>Saisie!$AO$15,Saisie!AO95,#N/A))","v":{"$error":"#N/A"}},{"$f":"IF(Saisie!AQ95>Saisie!$AQ$15,Saisie!AQ95,IF(Saisie!AS95>Saisie!$AS$15,Saisie!AS95,#N/A))","v":{"$error":"#N/A"}},null,4000,10000,{"$f":"IF(Saisie!Q95=0,#N/A,Saisie!Q95)","v":{"$error":"#N/A"}},12,16,{"$f":"IF(Saisie!G95=0,#N/A,Saisie!G95)","v":{"$error":"#N/A"}},{"$f":"IF(Saisie!AV95=0,#N/A,Saisie!AV95)","v":{"$error":"#N/A"}},150,400,{"$f":"IF(Saisie!N95=0,#N/A,Saisie!N95)","v":{"$error":"#N/A"}},{"$error":"#N/A"},8,16,{"$f":"IF(Saisie!AU95=0,#N/A,Saisie!AU95)","v":{"$error":"#N/A"}},50,104,{"$f":"IF(Saisie!BL95=0,#N/A,Saisie!BL95)","v":{"$error":"#N/A"}},5,{"$f":"IF(Saisie!AG95=0,#N/A,Saisie!AG95)","v":{"$error":"#N/A"}},1500,4000,{"$f":"IF(Saisie!V95=0,#N/A,Saisie!V95)","v":{"$error":"#N/A"}},1800,7000,{"$f":"IF(Saisie!R95=0,#N/A,Saisie!R95)","v":{"$error":"#N/A"}},{"$error":"#N/A"}]
[null,null,{"$f":"IF(Saisie!D96=0,\"\",Saisie!D96)","v":""},{"$f":"IF(Saisie!Q96=0,\"\",Saisie!Q96)","v":""},{"$f":"IF(Saisie!G96=0,\"\",Saisie!G96)","v":""},{"$f":"IF(Saisie!AV96=0,\"\",Saisie!AV96)","v":""},{"$f":"IF(Saisie!N96=0,\"\",Saisie!N96)","v":""},"",{"$f":"IF(Saisie!AU96=0,\"\",Saisie!AU96)","v":""},{"$f":"IF(Saisie!BL96=0,\"\",Saisie!BL96)","v":""},{"$f":"IF(Saisie!AG96=0,\"\",Saisie!AG96)","v":""},{"$f":"IF(Saisie!V96=0,\"\",Saisie!V96)","v":""},{"$f":"IF(Saisie!R96=0,\"\",Saisie!R96)","v":""},{"$f":"IF(Saisie!C96=0,\"\",Saisie!C96)","v":""},{"$f":"IF(Saisie!FC96=0,\"\",Saisie!FC96)","v":""},{"$f":"IF(Saisie!FD96=0,\"\",Saisie!FD96)","v":""},null,{"$error":"#N/A"},"",{"$f":"IF(Saisie!AM96>Saisie!$AM$15,Saisie!AM96,IF(Saisie!AO96>Saisie!$AO$15,Saisie!AO96,#N/A))","v":{"$error":"#N/A"}},{"$f":"IF(Saisie!AQ96>Saisie!$AQ$15,Saisie!AQ96,IF(Saisie!AS96>Saisie!$AS$15,Saisie!AS96,#N/A))","v":{"$error":"#N/A"}},null,4000,10000,{"$f":"IF(Saisie!Q96=0,#N/A,Saisie!Q96)","v":{"$error":"#N/A"}},12,16,{"$f":"IF(Saisie!G96=0,#N/A,Saisie!G96)","v":{"$error":"#N/A"}},{"$f":"IF(Saisie!AV96=0,#N/A,Saisie!AV96)","v":{"$error":"#N/A"}},150,400,{"$f":"IF(Saisie!N96=0,#N/A,Saisie!N96)","v":{"$error":"#N/A"}},{"$error":"#N/A"},8,16,{"$f":"IF(Saisie!AU96=0,#N/A,Saisie!AU96)","v":{"$error":"#N/A"}},50,104,{"$f":"IF(Saisie!BL96=0,#N/A,Saisie!BL96)","v":{"$error":"#N/A"}},5,{"$f":"IF(Saisie!AG96=0,#N/A,Saisie!AG96)","v":{"$error":"#N/A"}},1500,4000,{"$f":"IF(Saisie!V96=0,#N/A,Saisie!V96)","v":{"$error":"#N/A"}},1800,7000,{"$f":"IF(Saisie!R96=0,#N/A,Saisie!R96)","v":{"$error":"#N/A"}},{"$error":"#N/A"}]
[null,null,{"$f":"IF(Saisie!D97=0,\"\",Saisie!D97)","v":""},{"$f":"IF(Saisie!Q97=0,\"\",Saisie!Q97)","v":""},{"$f":"IF(Saisie!G97=0,\"\",Saisie!G97)","v":""},{"$f":"IF(Saisie!AV97=0,\"\",Saisie!AV97)","v":""},{"$f":"IF(Saisie!N97=0,\"\",Saisie!N97)","v":""},"",{"$f":"IF(Saisie!AU97=0,\"\",Saisie!AU97)","v":""},{"$f":"IF(Saisie!BL97=0,\"\",Saisie!BL97)","v":""},{"$f":"IF(Saisie!AG97=0,\"\",Saisie!AG97)","v":""},{"$f":"IF(Saisie!V97=0,\"\",Saisie!V97)","v":""},{"$f":"IF(Saisie!R97=0,\"\",Saisie!R97)","v":""},{"$f":"IF(Saisie!C97=0,\"\",Saisie!C97)","v":""},{"$f":"IF(Saisie!FC97=0,\"\",Saisie!FC97)","v":""},{"$f":"IF(Saisie!FD97=0,\"\",Saisie!FD97)","v":""},null,{"$error":"#N/A"},"",{"$f":"IF(Saisie!AM97>Saisie!$AM$15,Saisie!AM97,IF(Saisie!AO97>Saisie!$AO$15,Saisie!AO97,#N/A))","v":{"$error":"#N/A"}},{"$f":"IF(Saisie!AQ97>Saisie!$AQ$15,Saisie!AQ97,IF(Saisie!AS97>Saisie!$AS$15,Saisie!AS97,#N/A))","v":{"$error":"#N/A"}},null,4000,10000,{"$f":"IF(Saisie!Q97=0,#N/A,Saisie!Q97)","v":{"$error":"#N/A"}},12,16,{"$f":"IF(Saisie!G97=0,#N/A,Saisie!G97)","v":{"$error":"#N/A"}},{"$f":"IF(Saisie!AV97=0,#N/A,Saisie!AV97)","v":{"$error":"#N/A"}},150,400,{"$f":"IF(Saisie!N97=0,#N/A,Saisie!N97)","v":{"$error":"#N/A"}},{"$error":"#N/A"},8,16,{"$f":"IF(Saisie!AU97=0,#N/A,Saisie!AU97)","v":{"$error":"#N/A"}},50,104,{"$f":"IF(Saisie!BL97=0,#N/A,Saisie!BL97)","v":{"$error":"#N/A"}},5,{"$f":"IF(Saisie!AG97=0,#N/A,Saisie!AG97)","v":{"$error":"#N/A"}},1500,4000,{"$f":"IF(Saisie!V97=0,#N/A,Saisie!V97)","v":{"$error":"#N/A"}},1800,7000,{"$f":"IF(Saisie!R97=0,#N/A,Saisie!R97)","v":{"$error":"#N/A"}},{"$error":"#N/A"}]
[null,null,{"$f":"IF(Saisie!D98=0,\"\",Saisie!D98)","v":""},{"$f":"IF(Saisie!Q98=0,\"\",Saisie!Q98)","v":""},{"$f":"IF(Saisie!G98=0,\"\",Saisie!G98)","v":""},{"$f":"IF(Saisie!AV98=0,\"\",Saisie!AV98)","v":""},{"$f":"IF(Saisie!N98=0,\"\",Saisie!N98)","v":""},"",{"$f":"IF(Saisie!AU98=0,\"\",Saisie!AU98)","v":""},{"$f":"IF(Saisie!BL98=0,\"\",Saisie!BL98)","v":""},{"$f":"IF(Saisie!AG98=0,\"\",Saisie!AG98)","v":""},{"$f":"IF(Saisie!V98=0,\"\",Saisie!V98)","v":""},{"$f":"IF(Saisie!R98=0,\"\",Saisie!R98)","v":""},{"$f":"IF(Saisie!C98=0,\"\",Saisie!C98)","v":""},{"$f":"IF(Saisie!FC98=0,\"\",Saisie!FC98)","v":""},{"$f":"IF(Saisie!FD98=0,\"\",Saisie!FD98)","v":""},null,{"$error":"#N/A"},"",{"$f":"IF(Saisie!AM98>Saisie!$AM$15,Saisie!AM98,IF(Saisie!AO98>Saisie!$AO$15,Saisie!AO98,#N/A))","v":{"$error":"#N/A"}},{"$f":"IF(Saisie!AQ98>Saisie!$AQ$15,Saisie!AQ98,IF(Saisie!AS98>Saisie!$AS$15,Saisie!AS98,#N/A))","v":{"$error":"#N/A"}},null,4000,10000,{"$f":"IF(Saisie!Q98=0,#N/A,Saisie!Q98)","v":{"$error":"#N/A"}},12,16,{"$f":"IF(Saisie!G98=0,#N/A,Saisie!G98)","v":{"$error":"#N/A"}},{"$f":"IF(Saisie!AV98=0,#N/A,Saisie!AV98)","v":{"$error":"#N/A"}},150,400,{"$f":"IF(Saisie!N98=0,#N/A,Saisie!N98)","v":{"$error":"#N/A"}},{"$error":"#N/A"},8,16,{"$f":"IF(Saisie!AU98=0,#N/A,Saisie!AU98)","v":{"$error":"#N/A"}},50,104,{"$f":"IF(Saisie!BL98=0,#N/A,Saisie!BL98)","v":{"$error":"#N/A"}},5,{"$f":"IF(Saisie!AG98=0,#N/A,Saisie!AG98)","v":{"$error":"#N/A"}},1500,4000,{"$f":"IF(Saisie!V98=0,#N/A,Saisie!V98)","v":{"$error":"#N/A"}},1800,7000,{"$f":"IF(Saisie!R98=0,#N/A,Saisie!R98)","v":{"$error":"#N/A"}},{"$error":"#N/A"}]
[null,null,{"$f":"IF(Saisie!D99=0,\"\",Saisie!D99)","v":""},{"$f":"IF(Saisie!Q99=0,\"\",Saisie!Q99)","v":""},{"$f":"IF(Saisie!G99=0,\"\",Saisie!G99)","v":""},{"$f":"IF(Saisie!AV99=0,\"\",Saisie!AV99)","v":""},{"$f":"IF(Saisie!N99=0,\"\",Saisie!N99)","v":""},"",{"$f":"IF(Saisie!AU99=0,\"\",Saisie!AU99)","v":""},{"$f":"IF(Saisie!BL99=0,\"\",Saisie!BL99)","v":""},{"$f":"IF(Saisie!AG99=0,\"\",Saisie!AG99)","v":""},{"$f":"IF(Saisie!V99=0,\"\",Saisie!V99)","v":""},{"$f":"IF(Saisie!R99=0,\"\",Saisie!R99)","v":""},{"$f":"IF(Saisie!C99=0,\"\",Saisie!C99)","v":""},{"$f":"IF(Saisie!FC99=0,\"\",Saisie!FC99)","v":""},{"$f":"IF(Saisie!FD99=0,\"\",Saisie!FD99)","v":""},null,{"$error":"#N/A"},"",{"$f":"IF(Saisie!AM99>Saisie!$AM$15,Saisie!AM99,IF(Saisie!AO99>Saisie!$AO$15,Saisie!AO99,#N/A))","v":{"$error":"#N/A"}},{"$f":"IF(Saisie!AQ99>Saisie!$AQ$15,Saisie!AQ99,IF(Saisie!AS99>Saisie!$AS$15,Saisie!AS99,#N/A))","v":{"$error":"#N/A"}},null,4000,10000,{"$f":"IF(Saisie!Q99=0,#N/A,Saisie!Q99)","v":{"$error":"#N/A"}},12,16,{"$f":"IF(Saisie!G99=0,#N/A,Saisie!G99)","v":{"$error":"#N/A"}},{"$f":"IF(Saisie!AV99=0,#N/A,Saisie!AV99)","v":{"$error":"#N/A"}},150,400,{"$f":"IF(Saisie!N99=0,#N/A,Saisie!N99)","v":{"$error":"#N/A"}},{"$error":"#N/A"},8,16,{"$f":"IF(Saisie!AU99=0,#N/A,Saisie!AU99)","v":{"$error":"#N/A"}},50,104,{"$f":"IF(Saisie!BL99=0,#N/A,Saisie!BL99)","v":{"$error":"#N/A"}},5,{"$f":"IF(Saisie!AG99=0,#N/A,Saisie!AG99)","v":{"$error":"#N/A"}},1500,4000,{"$f":"IF(Saisie!V99=0,#N/A,Saisie!V99)","v":{"$error":"#N/A"}},1800,7000,{"$f":"IF(Saisie!R99=0,#N/A,Saisie!R99)","v":{"$error":"#N/A"}},{"$error":"#N/A"}]
[null,null,{"$f":"IF(Saisie!D100=0,\"\",Saisie!D100)","v":""},{"$f":"IF(Saisie!Q100=0,\"\",Saisie!Q100)","v":""},{"$f":"IF(Saisie!G100=0,\"\",Saisie!G100)","v":""},{"$f":"IF(Saisie!AV100=0,\"\",Saisie!AV100)","v":""},{"$f":"IF(Saisie!N100=0,\"\",Saisie!N100)","v":""},"",{"$f":"IF(Saisie!AU100=0,\"\",Saisie!AU100)","v":""},{"$f":"IF(Saisie!BL100=0,\"\",Saisie!BL100)","v":""},{"$f":"IF(Saisie!AG100=0,\"\",Saisie!AG100)","v":""},{"$f":"IF(Saisie!V100=0,\"\",Saisie!V100)","v":""},{"$f":"IF(Saisie!R100=0,\"\",Saisie!R100)","v":""},{"$f":"IF(Saisie!C100=0,\"\",Saisie!C100)","v":""},{"$f":"IF(Saisie!FC100=0,\"\",Saisie!FC100)","v":""},{"$f":"IF(Saisie!FD100=0,\"\",Saisie!FD100)","v":""},null,{"$error":"#N/A"},"",{"$f":"IF(Saisie!AM100>Saisie!$AM$15,Saisie!AM100,IF(Saisie!AO100>Saisie!$AO$15,Saisie!AO100,#N/A))","v":{"$error":"#N/A"}},{"$f":"IF(Saisie!AQ100>Saisie!$AQ$15,Saisie!AQ100,IF(Saisie!AS100>Saisie!$AS$15,Saisie!AS100,#N/A))","v":{"$error":"#N/A"}},null,4000,10000,{"$f":"IF(Saisie!Q100=0,#N/A,Saisie!Q100)","v":{"$error":"#N/A"}},12,16,{"$f":"IF(Saisie!G100=0,#N/A,Saisie!G100)","v":{"$error":"#N/A"}},{"$f":"IF(Saisie!AV100=0,#N/A,Saisie!AV100)","v":{"$error":"#N/A"}},150,400,{"$f":"IF(Saisie!N100=0,#N/A,Saisie!N100)","v":{"$error":"#N/A"}},{"$error":"#N/A"},8,16,{"$f":"IF(Saisie!AU100=0,#N/A,Saisie!AU100)","v":{"$error":"#N/A"}},50,104,{"$f":"IF(Saisie!BL100=0,#N/A,Saisie!BL100)","v":{"$error":"#N/A"}},5,{"$f":"IF(Saisie!AG100=0,#N/A,Saisie!AG100)","v":{"$error":"#N/A"}},1500,4000,{"$f":"IF(Saisie!V100=0,#N/A,Saisie!V100)","v":{"$error":"#N/A"}},1800,7000,{"$f":"IF(Saisie!R100=0,#N/A,Saisie!R100)","v":{"$error":"#N/A"}},{"$error":"#N/A"}]
[null,null,{"$f":"IF(Saisie!D101=0,\"\",Saisie!D101)","v":""},{"$f":"IF(Saisie!Q101=0,\"\",Saisie!Q101)","v":""},{"$f":"IF(Saisie!G101=0,\"\",Saisie!G101)","v":""},{"$f":"IF(Saisie!AV101=0,\"\",Saisie!AV101)","v":""},{"$f":"IF(Saisie!N101=0,\"\",Saisie!N101)","v":""},"",{"$f":"IF(Saisie!AU101=0,\"\",Saisie!AU101)","v":""},{"$f":"IF(Saisie!BL101=0,\"\",Saisie!BL101)","v":""},{"$f":"IF(Saisie!AG101=0,\"\",Saisie!AG101)","v":""},{"$f":"IF(Saisie!V101=0,\"\",Saisie!V101)","v":""},{"$f":"IF(Saisie!R101=0,\"\",Saisie!R101)","v":""},{"$f":"IF(Saisie!C101=0,\"\",Saisie!C101)","v":""},{"$f":"IF(Saisie!FC101=0,\"\",Saisie!FC101)","v":""},{"$f":"IF(Saisie!FD101=0,\"\",Saisie!FD101)","v":""},null,{"$error":"#N/A"},"",{"$f":"IF(Saisie!AM101>Saisie!$AM$15,Saisie!AM101,IF(Saisie!AO101>Saisie!$AO$15,Saisie!AO101,#N/A))","v":{"$error":"#N/A"}},{"$f":"IF(Saisie!AQ101>Saisie!$AQ$15,Saisie!AQ101,IF(Saisie!AS101>Saisie!$AS$15,Saisie!AS101,#N/A))","v":{"$error":"#N/A"}},null,4000,10000,{"$f":"IF(Saisie!Q101=0,#N/A,Saisie!Q101)","v":{"$error":"#N/A"}},12,16,{"$f":"IF(Saisie!G101=0,#N/A,Saisie!G101)","v":{"$error":"#N/A"}},{"$f":"IF(Saisie!AV101=0,#N/A,Saisie!AV101)","v":{"$error":"#N/A"}},150,400,{"$f":"IF(Saisie!N101=0,#N/A,Saisie!N101)","v":{"$error":"#N/A"}},{"$error":"#N/A"},8,16,{"$f":"IF(Saisie!AU101=0,#N/A,Saisie!AU101)","v":{"$error":"#N/A"}},50,104,{"$f":"IF(Saisie!BL101=0,#N/A,Saisie!BL101)","v":{"$error":"#N/A"}},5,{"$f":"IF(Saisie!AG101=0,#N/A,Saisie!AG101)","v":{"$error":"#N/A"}},1500,4000,{"$f":"IF(Saisie!V101=0,#N/A,Saisie!V101)","v":{"$error":"#N/A"}},1800,7000,{"$f":"IF(Saisie!R101=0,#N/A,Saisie!R101)","v":{"$error":"#N/A"}},{"$error":"#N/A"}]
[null,null,{"$f":"IF(Saisie!D102=0,\"\",Saisie!D102)","v":""},{"$f":"IF(Saisie!Q102=0,\"\",Saisie!Q102)","v":""},{"$f":"IF(Saisie!G102=0,\"\",Saisie!G102)","v":""},{"$f":"IF(Saisie!AV102=0,\"\",Saisie!AV102)","v":""},{"$f":"IF(Saisie!N102=0,\"\",Saisie!N102)","v":""},"",{"$f":"IF(Saisie!AU102=0,\"\",Saisie!AU102)","v":""},{"$f":"IF(Saisie!BL102=0,\"\",Saisie!BL102)","v":""},{"$f":"IF(Saisie!AG102=0,\"\",Saisie!AG102)","v":""},{"$f":"IF(Saisie!V102=0,\"\",Saisie!V102)","v":""},{"$f":"IF(Saisie!R102=0,\"\",Saisie!R102)","v":""},{"$f":"IF(Saisie!C102=0,\"\",Saisie!C102)","v":""},{"$f":"IF(Saisie!FC102=0,\"\",Saisie!FC102)","v":""},{"$f":"IF(Saisie!FD102=0,\"\",Saisie!FD102)","v":""},null,{"$error":"#N/A"},"",{"$f":"IF(Saisie!AM102>Saisie!$AM$15,Saisie!AM102,IF(Saisie!AO102>Saisie!$AO$15,Saisie!AO102,#N/A))","v":{"$error":"#N/A"}},{"$f":"IF(Saisie!AQ102>Saisie!$AQ$15,Saisie!AQ102,IF(Saisie!AS102>Saisie!$AS$15,Saisie!AS102,#N/A))","v":{"$error":"#N/A"}},null,4000,10000,{"$f":"IF(Saisie!Q102=0,#N/A,Saisie!Q102)","v":{"$error":"#N/A"}},12,16,{"$f":"IF(Saisie!G102=0,#N/A,Saisie!G102)","v":{"$error":"#N/A"}},{"$f":"IF(Saisie!AV102=0,#N/A,Saisie!AV102)","v":{"$error":"#N/A"}},150,400,{"$f":"IF(Saisie!N102=0,#N/A,Saisie!N102)","v":{"$error":"#N/A"}},{"$error":"#N/A"},8,16,{"$f":"IF(Saisie!AU102=0,#N/A,Saisie!AU102)","v":{"$error":"#N/A"}},50,104,{"$f":"IF(Saisie!BL102=0,#N/A,Saisie!BL102)","v":{"$error":"#N/A"}},5,{"$f":"IF(Saisie!AG102=0,#N/A,Saisie!AG102)","v":{"$error":"#N/A"}},1500,4000,{"$f":"IF(Saisie!V102=0,#N/A,Saisie!V102)","v":{"$error":"#N/A"}},1800,7000,{"$f":"IF(Saisie!R102=0,#N/A,Saisie!R102)","v":{"$error":"#N/A"}},{"$error":"#N/A"}]
[null,null,{"$f":"IF(Saisie!D103=0,\"\",Saisie!D103)","v":""},{"$f":"IF(Saisie!Q103=0,\"\",Saisie!Q103)","v":""},{"$f":"IF(Saisie!G103=0,\"\",Saisie!G103)","v":""},{"$f":"IF(Saisie!AV103=0,\"\",Saisie!AV103)","v":""},{"$f":"IF(Saisie!N103=0,\"\",Saisie!N103)","v":""},"",{"$f":"IF(Saisie!AU103=0,\"\",Saisie!AU103)","v":""},{"$f":"IF(Saisie!BL103=0,\"\",Saisie!BL103)","v":""},{"$f":"IF(Saisie!AG103=0,\"\",Saisie!AG103)","v":""},{"$f":"IF(Saisie!V103=0,\"\",Saisie!V103)","v":""},{"$f":"IF(Saisie!R103=0,\"\",Saisie!R103)","v":""},{"$f":"IF(Saisie!C103=0,\"\",Saisie!C103)","v":""},{"$f":"IF(Saisie!FC103=0,\"\",Saisie!FC103)","v":""},{"$f":"IF(Saisie!FD103=0,\"\",Saisie!FD103)","v":""},null,{"$error":"#N/A"},"",{"$f":"IF(Saisie!AM103>Saisie!$AM$15,Saisie!AM103,IF(Saisie!AO103>Saisie!$AO$15,Saisie!AO103,#N/A))","v":{"$error":"#N/A"}},{"$f":"IF(Saisie!AQ103>Saisie!$AQ$15,Saisie!AQ103,IF(Saisie!AS103>Saisie!$AS$15,Saisie!AS103,#N/A))","v":{"$error":"#N/A"}},null,4000,10000,{"$f":"IF(Saisie!Q103=0,#N/A,Saisie!Q103)","v":{"$error":"#N/A"}},12,16,{"$f":"IF(Saisie!G103=0,#N/A,Saisie!G103)","v":{"$error":"#N/A"}},{"$f":"IF(Saisie!AV103=0,#N/A,Saisie!AV103)","v":{"$error":"#N/A"}},150,400,{"$f":"IF(Saisie!N103=0,#N/A,Saisie!N103)","v":{"$error":"#N/A"}},{"$error":"#N/A"},8,16,{"$f":"IF(Saisie!AU103=0,#N/A,Saisie!AU103)","v":{"$error":"#N/A"}},50,104,{"$f":"IF(Saisie!BL103=0,#N/A,Saisie!BL103)","v":{"$error":"#N/A"}},5,{"$f":"IF(Saisie!AG103=0,#N/A,Saisie!AG103)","v":{"$error":"#N/A"}},1500,4000,{"$f":"IF(Saisie!V103=0,#N/A,Saisie!V103)","v":{"$error":"#N/A"}},1800,7000,{"$f":"IF(Saisie!R103=0,#N/A,Saisie!R103)","v":{"$error":"#N/A"}},{"$error":"#N/A"}]
[null,null,{"$f":"IF(Saisie!D104=0,\"\",Saisie!D104)","v":""},{"$f":"IF(Saisie!Q104=0,\"\",Saisie!Q104)","v":""},{"$f":"IF(Saisie!G104=0,\"\",Saisie!G104)","v":""},{"$f":"IF(Saisie!AV104=0,\"\",Saisie!AV104)","v":""},{"$f":"IF(Saisie!N104=0,\"\",Saisie!N104)","v":""},"",{"$f":"IF(Saisie!AU104=0,\"\",Saisie!AU104)","v":""},{"$f":"IF(Saisie!BL104=0,\"\",Saisie!BL104)","v":""},{"$f":"IF(Saisie!AG104=0,\"\",Saisie!AG104)","v":""},{"$f":"IF(Saisie!V104=0,\"\",Saisie!V104)","v":""},{"$f":"IF(Saisie!R104=0,\"\",Saisie!R104)","v":""},{"$f":"IF(Saisie!C104=0,\"\",Saisie!C104)","v":""},{"$f":"IF(Saisie!FC104=0,\"\",Saisie!FC104)","v":""},{"$f":"IF(Saisie!FD104=0,\"\",Saisie!FD104)","v":""},null,{"$error":"#N/A"},"",{"$f":"IF(Saisie!AM104>Saisie!$AM$15,Saisie!AM104,IF(Saisie!AO104>Saisie!$AO$15,Saisie!AO104,#N/A))","v":{"$error":"#N/A"}},{"$f":"IF(Saisie!AQ104>Saisie!$AQ$15,Saisie!AQ104,IF(Saisie!AS104>Saisie!$AS$15,Saisie!AS104,#N/A))","v":{"$error":"#N/A"}},null,4000,10000,{"$f":"IF(Saisie!Q104=0,#N/A,Saisie!Q104)","v":{"$error":"#N/A"}},12,16,{"$f":"IF(Saisie!G104=0,#N/A,Saisie!G104)","v":{"$error":"#N/A"}},{"$f":"IF(Saisie!AV104=0,#N/A,Saisie!AV104)","v":{"$error":"#N/A"}},150,400,{"$f":"IF(Saisie!N104=0,#N/A,Saisie!N104)","v":{"$error":"#N/A"}},{"$error":"#N/A"},8,16,{"$f":"IF(Saisie!AU104=0,#N/A,Saisie!AU104)","v":{"$error":"#N/A"}},50,104,{"$f":"IF(Saisie!BL104=0,#N/A,Saisie!BL104)","v":{"$error":"#N/A"}},5,{"$f":"IF(Saisie!AG104=0,#N/A,Saisie!AG104)","v":{"$error":"#N/A"}},1500,4000,{"$f":"IF(Saisie!V104=0,#N/A,Saisie!V104)","v":{"$error":"#N/A"}},1800,7000,{"$f":"IF(Saisie!R104=0,#N/A,Saisie!R104)","v":{"$error":"#N/A"}},{"$error":"#N/A"}]
[null,null,{"$f":"IF(Saisie!D105=0,\"\",Saisie!D105)","v":""},{"$f":"IF(Saisie!Q105=0,\"\",Saisie!Q105)","v":""},{"$f":"IF(Saisie!G105=0,\"\",Saisie!G105)","v":""},{"$f":"IF(Saisie!AV105=0,\"\",Saisie!AV105)","v":""},{"$f":"IF(Saisie!N105=0,\"\",Saisie!N105)","v":""},"",{"$f":"IF(Saisie!AU105=0,\"\",Saisie!AU105)","v":""},{"$f":"IF(Saisie!BL105=0,\"\",Saisie!BL105)","v":""},{"$f":"IF(Saisie!AG105=0,\"\",Saisie!AG105)","v":""},{"$f":"IF(Saisie!V105=0,\"\",Saisie!V105)","v":""},{"$f":"IF(Saisie!R105=0,\"\",Saisie!R105)","v":""},{"$f":"IF(Saisie!C105=0,\"\",Saisie!C105)","v":""},{"$f":"IF(Saisie!FC105=0,\"\",Saisie!FC105)","v":""},{"$f":"IF(Saisie!FD105=0,\"\",Saisie!FD105)","v":""},null,{"$error":"#N/A"},"",{"$f":"IF(Saisie!AM105>Saisie!$AM$15,Saisie!AM105,IF(Saisie!AO105>Saisie!$AO$15,Saisie!AO105,#N/A))","v":{"$error":"#N/A"}},{"$f":"IF(Saisie!AQ105>Saisie!$AQ$15,Saisie!AQ105,IF(Saisie!AS105>Saisie!$AS$15,Saisie!AS105,#N/A))","v":{"$error":"#N/A"}},null,4000,10000,{"$f":"IF(Saisie!Q105=0,#N/A,Saisie!Q105)","v":{"$error":"#N/A"}},12,16,{"$f":"IF(Saisie!G105=0,#N/A,Saisie!G105)","v":{"$error":"#N/A"}},{"$f":"IF(Saisie!AV105=0,#N/A,Saisie!AV105)","v":{"$error":"#N/A"}},150,400,{"$f":"IF(Saisie!N105=0,#N/A,Saisie!N105)","v":{"$error":"#N/A"}},{"$error":"#N/A"},8,16,{"$f":"IF(Saisie!AU105=0,#N/A,Saisie!AU105)","v":{"$error":"#N/A"}},50,104,{"$f":"IF(Saisie!BL105=0,#N/A,Saisie!BL105)","v":{"$error":"#N/A"}},5,{"$f":"IF(Saisie!AG105=0,#N/A,Saisie!AG105)","v":{"$error":"#N/A"}},1500,4000,{"$f":"IF(Saisie!V105=0,#N/A,Saisie!V105)","v":{"$error":"#N/A"}},1800,7000,{"$f":"IF(Saisie!R105=0,#N/A,Saisie!R105)","v":{"$error":"#N/A"}},{"$error":"#N/A"}]
[null,null,{"$f":"IF(Saisie!D106=0,\"\",Saisie!D106)","v":""},{"$f":"IF(Saisie!Q106=0,\"\",Saisie!Q106)","v":""},{"$f":"IF(Saisie!G106=0,\"\",Saisie!G106)","v":""},{"$f":"IF(Saisie!AV106=0,\"\",Saisie!AV106)","v":""},{"$f":"IF(Saisie!N106=0,\"\",Saisie!N106)","v":""},"",{"$f":"IF(Saisie!AU106=0,\"\",Saisie!AU106)","v":""},{"$f":"IF(Saisie!BL106=0,\"\",Saisie!BL106)","v":""},{"$f":"IF(Saisie!AG106=0,\"\",Saisie!AG106)","v":""},{"$f":"IF(Saisie!V106=0,\"\",Saisie!V106)","v":""},{"$f":"IF(Saisie!R106=0,\"\",Saisie!R106)","v":""},{"$f":"IF(Saisie!C106=0,\"\",Saisie!C106)","v":""},{"$f":"IF(Saisie!FC106=0,\"\",Saisie!FC106)","v":""},{"$f":"IF(Saisie!FD106=0,\"\",Saisie!FD106)","v":""},null,{"$error":"#N/A"},"",{"$f":"IF(Saisie!AM106>Saisie!$AM$15,Saisie!AM106,IF(Saisie!AO106>Saisie!$AO$15,Saisie!AO106,#N/A))","v":{"$error":"#N/A"}},{"$f":"IF(Saisie!AQ106>Saisie!$AQ$15,Saisie!AQ106,IF(Saisie!AS106>Saisie!$AS$15,Saisie!AS106,#N/A))","v":{"$error":"#N/A"}},null,4000,10000,{"$f":"IF(Saisie!Q106=0,#N/A,Saisie!Q106)","v":{"$error":"#N/A"}},12,16,{"$f":"IF(Saisie!G106=0,#N/A,Saisie!G106)","v":{"$error":"#N/A"}},{"$f":"IF(Saisie!AV106=0,#N/A,Saisie!AV106)","v":{"$error":"#N/A"}},150,400,{"$f":"IF(Saisie!N106=0,#N/A,Saisie!N106)","v":{"$error":"#N/A"}},{"$error":"#N/A"},8,16,{"$f":"IF(Saisie!AU106=0,#N/A,Saisie!AU106)","v":{"$error":"#N/A"}},50,104,{"$f":"IF(Saisie!BL106=0,#N/A,Saisie!BL106)","v":{"$error":"#N/A"}},5,{"$f":"IF(Saisie!AG106=0,#N/A,Saisie!AG106)","v":{"$error":"#N/A"}},1500,4000,{"$f":"IF(Saisie!V106=0,#N/A,Saisie!V106)","v":{"$error":"#N/A"}},1800,7000,{"$f":"IF(Saisie!R106=0,#N/A,Saisie!R106)","v":{"$error":"#N/A"}},{"$error":"#N/A"}]
[null,null,{"$f":"IF(Saisie!D107=0,\"\",Saisie!D107)","v":""},{"$f":"IF(Saisie!Q107=0,\"\",Saisie!Q107)","v":""},{"$f":"IF(Saisie!G107=0,\"\",Saisie!G107)","v":""},{"$f":"IF(Saisie!AV107=0,\"\",Saisie!AV107)","v":""},{"$f":"IF(Saisie!N107=0,\"\",Saisie!N107)","v":""},"",{"$f":"IF(Saisie!AU107=0,\"\",Saisie!AU107)","v":""},{"$f":"IF(Saisie!BL107=0,\"\",Saisie!BL107)","v":""},{"$f":"IF(Saisie!AG107=0,\"\",Saisie!AG107)","v":""},{"$f":"IF(Saisie!V107=0,\"\",Saisie!V107)","v":""},{"$f":"IF(Saisie!R107=0,\"\",Saisie!R107)","v":""},{"$f":"IF(Saisie!C107=0,\"\",Saisie!C107)","v":""},{"$f":"IF(Saisie!FC107=0,\"\",Saisie!FC107)","v":""},{"$f":"IF(Saisie!FD107=0,\"\",Saisie!FD107)","v":""},null,{"$error":"#N/A"},"",{"$f":"IF(Saisie!AM107>Saisie!$AM$15,Saisie!AM107,IF(Saisie!AO107>Saisie!$AO$15,Saisie!AO107,#N/A))","v":{"$error":"#N/A"}},{"$f":"IF(Saisie!AQ107>Saisie!$AQ$15,Saisie!AQ107,IF(Saisie!AS107>Saisie!$AS$15,Saisie!AS107,#N/A))","v":{"$error":"#N/A"}},null,4000,10000,{"$f":"IF(Saisie!Q107=0,#N/A,Saisie!Q107)","v":{"$error":"#N/A"}},12,16,{"$f":"IF(Saisie!G107=0,#N/A,Saisie!G107)","v":{"$error":"#N/A"}},{"$f":"IF(Saisie!AV107=0,#N/A,Saisie!AV107)","v":{"$error":"#N/A"}},150,400,{"$f":"IF(Saisie!N107=0,#N/A,Saisie!N107)","v":{"$error":"#N/A"}},{"$error":"#N/A"},8,16,{"$f":"IF(Saisie!AU107=0,#N/A,Saisie!AU107)","v":{"$error":"#N/A"}},50,104,{"$f":"IF(Saisie!BL107=0,#N/A,Saisie!BL107)","v":{"$error":"#N/A"}},5,{"$f":"IF(Saisie!AG107=0,#N/A,Saisie!AG107)","v":{"$error":"#N/A"}},1500,4000,{"$f":"IF(Saisie!V107=0,#N/A,Saisie!V107)","v":{"$error":"#N/A"}},1800,7000,{"$f":"IF(Saisie!R107=0,#N/A,Saisie!R107)","v":{"$error":"#N/A"}},{"$error":"#N/A"}]
[null,null,{"$f":"IF(Saisie!D108=0,\"\",Saisie!D108)","v":""},{"$f":"IF(Saisie!Q108=0,\"\",Saisie!Q108)","v":""},{"$f":"IF(Saisie!G108=0,\"\",Saisie!G108)","v":""},{"$f":"IF(Saisie!AV108=0,\"\",Saisie!AV108)","v":""},{"$f":"IF(Saisie!N108=0,\"\",Saisie!N108)","v":""},"",{"$f":"IF(Saisie!AU108=0,\"\",Saisie!AU108)","v":""},{"$f":"IF(Saisie!BL108=0,\"\",Saisie!BL108)","v":""},{"$f":"IF(Saisie!AG108=0,\"\",Saisie!AG108)","v":""},{"$f":"IF(Saisie!V108=0,\"\",Saisie!V108)","v":""},{"$f":"IF(Saisie!R108=0,\"\",Saisie!R108)","v":""},{"$f":"IF(Saisie!C108=0,\"\",Saisie!C108)","v":""},{"$f":"IF(Saisie!FC108=0,\"\",Saisie!FC108)","v":""},{"$f":"IF(Saisie!FD108=0,\"\",Saisie!FD108)","v":""},null,{"$error":"#N/A"},"",{"$f":"IF(Saisie!AM108>Saisie!$AM$15,Saisie!AM108,IF(Saisie!AO108>Saisie!$AO$15,Saisie!AO108,#N/A))","v":{"$error":"#N/A"}},{"$f":"IF(Saisie!AQ108>Saisie!$AQ$15,Saisie!AQ108,IF(Saisie!AS108>Saisie!$AS$15,Saisie!AS108,#N/A))","v":{"$error":"#N/A"}},null,4000,10000,{"$f":"IF(Saisie!Q108=0,#N/A,Saisie!Q108)","v":{"$error":"#N/A"}},12,16,{"$f":"IF(Saisie!G108=0,#N/A,Saisie!G108)","v":{"$error":"#N/A"}},{"$f":"IF(Saisie!AV108=0,#N/A,Saisie!AV108)","v":{"$error":"#N/A"}},150,400,{"$f":"IF(Saisie!N108=0,#N/A,Saisie!N108)","v":{"$error":"#N/A"}},{"$error":"#N/A"},8,16,{"$f":"IF(Saisie!AU108=0,#N/A,Saisie!AU108)","v":{"$error":"#N/A"}},50,104,{"$f":"IF(Saisie!BL108=0,#N/A,Saisie!BL108)","v":{"$error":"#N/A"}},5,{"$f":"IF(Saisie!AG108=0,#N/A,Saisie!AG108)","v":{"$error":"#N/A"}},1500,4000,{"$f":"IF(Saisie!V108=0,#N/A,Saisie!V108)","v":{"$error":"#N/A"}},1800,7000,{"$f":"IF(Saisie!R108=0,#N/A,Saisie!R108)","v":{"$error":"#N/A"}},{"$error":"#N/A"}]
[null,null,{"$f":"IF(Saisie!D109=0,\"\",Saisie!D109)","v":""},{"$f":"IF(Saisie!Q109=0,\"\",Saisie!Q109)","v":""},{"$f":"IF(Saisie!G109=0,\"\",Saisie!G109)","v":""},{"$f":"IF(Saisie!AV109=0,\"\",Saisie!AV109)","v":""},{"$f":"IF(Saisie!N109=0,\"\",Saisie!N109)","v":""},"",{"$f":"IF(Saisie!AU109=0,\"\",Saisie!AU109)","v":""},{"$f":"IF(Saisie!BL109=0,\"\",Saisie!BL109)","v":""},{"$f":"IF(Saisie!AG109=0,\"\",Saisie!AG109)","v":""},{"$f":"IF(Saisie!V109=0,\"\",Saisie!V109)","v":""},{"$f":"IF(Saisie!R109=0,\"\",Saisie!R109)","v":""},{"$f":"IF(Saisie!C109=0,\"\",Saisie!C109)","v":""},{"$f":"IF(Saisie!FC109=0,\"\",Saisie!FC109)","v":""},{"$f":"IF(Saisie!FD109=0,\"\",Saisie!FD109)","v":""},null,{"$error":"#N/A"},"",{"$f":"IF(Saisie!AM109>Saisie!$AM$15,Saisie!AM109,IF(Saisie!AO109>Saisie!$AO$15,Saisie!AO109,#N/A))","v":{"$error":"#N/A"}},{"$f":"IF(Saisie!AQ109>Saisie!$AQ$15,Saisie!AQ109,IF(Saisie!AS109>Saisie!$AS$15,Saisie!AS109,#N/A))","v":{"$error":"#N/A"}},null,4000,10000,{"$f":"IF(Saisie!Q109=0,#N/A,Saisie!Q109)","v":{"$error":"#N/A"}},12,16,{"$f":"IF(Saisie!G109=0,#N/A,Saisie!G109)","v":{"$error":"#N/A"}},{"$f":"IF(Saisie!AV109=0,#N/A,Saisie!AV109)","v":{"$error":"#N/A"}},150,400,{"$f":"IF(Saisie!N109=0,#N/A,Saisie!N109)","v":{"$error":"#N/A"}},{"$error":"#N/A"},8,16,{"$f":"IF(Saisie!AU109=0,#N/A,Saisie!AU109)","v":{"$error":"#N/A"}},50,104,{"$f":"IF(Saisie!BL109=0,#N/A,Saisie!BL109)","v":{"$error":"#N/A"}},5,{"$f":"IF(Saisie!AG109=0,#N/A,Saisie!AG109)","v":{"$error":"#N/A"}},1500,4000,{"$f":"IF(Saisie!V109=0,#N/A,Saisie!V109)","v":{"$error":"#N/A"}},1800,7000,{"$f":"IF(Saisie!R109=0,#N/A,Saisie!R109)","v":{"$error":"#N/A"}},{"$error":"#N/A"}]
[null,null,{"$f":"IF(Saisie!D110=0,\"\",Saisie!D110)","v":""},{"$f":"IF(Saisie!Q110=0,\"\",Saisie!Q110)","v":""},{"$f":"IF(Saisie!G110=0,\"\",Saisie!G110)","v":""},{"$f":"IF(Saisie!AV110=0,\"\",Saisie!AV110)","v":""},{"$f":"IF(Saisie!N110=0,\"\",Saisie!N110)","v":""},"",{"$f":"IF(Saisie!AU110=0,\"\",Saisie!AU110)","v":""},{"$f":"IF(Saisie!BL110=0,\"\",Saisie!BL110)","v":""},{"$f":"IF(Saisie!AG110=0,\"\",Saisie!AG110)","v":""},{"$f":"IF(Saisie!V110=0,\"\",Saisie!V110)","v":""},{"$f":"IF(Saisie!R110=0,\"\",Saisie!R110)","v":""},{"$f":"IF(Saisie!C110=0,\"\",Saisie!C110)","v":""},{"$f":"IF(Saisie!FC110=0,\"\",Saisie!FC110)","v":""},{"$f":"IF(Saisie!FD110=0,\"\",Saisie!FD110)","v":""},null,{"$error":"#N/A"},"",{"$f":"IF(Saisie!AM110>Saisie!$AM$15,Saisie!AM110,IF(Saisie!AO110>Saisie!$AO$15,Saisie!AO110,#N/A))","v":{"$error":"#N/A"}},{"$f":"IF(Saisie!AQ110>Saisie!$AQ$15,Saisie!AQ110,IF(Saisie!AS110>Saisie!$AS$15,Saisie!AS110,#N/A))","v":{"$error":"#N/A"}},null,4000,10000,{"$f":"IF(Saisie!Q110=0,#N/A,Saisie!Q110)","v":{"$error":"#N/A"}},12,16,{"$f":"IF(Saisie!G110=0,#N/A,Saisie!G110)","v":{"$error":"#N/A"}},{"$f":"IF(Saisie!AV110=0,#N/A,Saisie!AV110)","v":{"$error":"#N/A"}},150,400,{"$f":"IF(Saisie!N110=0,#N/A,Saisie!N110)","v":{"$error":"#N/A"}},{"$error":"#N/A"},8,16,{"$f":"IF(Saisie!AU110=0,#N/A,Saisie!AU110)","v":{"$error":"#N/A"}},50,104,{"$f":"IF(Saisie!BL110=0,#N/A,Saisie!BL110)","v":{"$error":"#N/A"}},5,{"$f":"IF(Saisie!AG110=0,#N/A,Saisie!AG110)","v":{"$error":"#N/A"}},1500,4000,{"$f":"IF(Saisie!V110=0,#N/A,Saisie!V110)","v":{"$error":"#N/A"}},1800,7000,{"$f":"IF(Saisie!R110=0,#N/A,Saisie!R110)","v":{"$error":"#N/A"}},{"$error":"#N/A"}]
[null,null,{"$f":"IF(Saisie!D111=0,\"\",Saisie!D111)","v":""},{"$f":"IF(Saisie!Q111=0,\"\",Saisie!Q111)","v":""},{"$f":"IF(Saisie!G111=0,\"\",Saisie!G111)","v":""},{"$f":"IF(Saisie!AV111=0,\"\",Saisie!AV111)","v":""},{"$f":"IF(Saisie!N111=0,\"\",Saisie!N111)","v":""},"",{"$f":"IF(Saisie!AU111=0,\"\",Saisie!AU111)","v":""},{"$f":"IF(Saisie!BL111=0,\"\",Saisie!BL111)","v":""},{"$f":"IF(Saisie!AG111=0,\"\",Saisie!AG111)","v":""},{"$f":"IF(Saisie!V111=0,\"\",Saisie!V111)","v":""},{"$f":"IF(Saisie!R111=0,\"\",Saisie!R111)","v":""},{"$f":"IF(Saisie!C111=0,\"\",Saisie!C111)","v":""},{"$f":"IF(Saisie!FC111=0,\"\",Saisie!FC111)","v":""},{"$f":"IF(Saisie!FD111=0,\"\",Saisie!FD111)","v":""},null,{"$error":"#N/A"},"",{"$f":"IF(Saisie!AM111>Saisie!$AM$15,Saisie!AM111,IF(Saisie!AO111>Saisie!$AO$15,Saisie!AO111,#N/A))","v":{"$error":"#N/A"}},{"$f":"IF(Saisie!AQ111>Saisie!$AQ$15,Saisie!AQ111,IF(Saisie!AS111>Saisie!$AS$15,Saisie!AS111,#N/A))","v":{"$error":"#N/A"}},null,4000,10000,{"$f":"IF(Saisie!Q111=0,#N/A,Saisie!Q111)","v":{"$error":"#N/A"}},12,16,{"$f":"IF(Saisie!G111=0,#N/A,Saisie!G111)","v":{"$error":"#N/A"}},{"$f":"IF(Saisie!AV111=0,#N/A,Saisie!AV111)","v":{"$error":"#N/A"}},150,400,{"$f":"IF(Saisie!N111=0,#N/A,Saisie!N111)","v":{"$error":"#N/A"}},{"$error":"#N/A"},8,16,{"$f":"IF(Saisie!AU111=0,#N/A,Saisie!AU111)","v":{"$error":"#N/A"}},50,104,{"$f":"IF(Saisie!BL111=0,#N/A,Saisie!BL111)","v":{"$error":"#N/A"}},5,{"$f":"IF(Saisie!AG111=0,#N/A,Saisie!AG111)","v":{"$error":"#N/A"}},1500,4000,{"$f":"IF(Saisie!V111=0,#N/A,Saisie!V111)","v":{"$error":"#N/A"}},1800,7000,{"$f":"IF(Saisie!R111=0,#N/A,Saisie!R111)","v":{"$error":"#N/A"}},{"$error":"#N/A"}]
[null,null,{"$f":"IF(Saisie!D112=0,\"\",Saisie!D112)","v":""},{"$f":"IF(Saisie!Q112=0,\"\",Saisie!Q112)","v":""},{"$f":"IF(Saisie!G112=0,\"\",Saisie!G112)","v":""},{"$f":"IF(Saisie!AV112=0,\"\",Saisie!AV112)","v":""},{"$f":"IF(Saisie!N112=0,\"\",Saisie!N112)","v":""},"",{"$f":"IF(Saisie!AU112=0,\"\",Saisie!AU112)","v":""},{"$f":"IF(Saisie!BL112=0,\"\",Saisie!BL112)","v":""},{"$f":"IF(Saisie!AG112=0,\"\",Saisie!AG112)","v":""},{"$f":"IF(Saisie!V112=0,\"\",Saisie!V112)","v":""},{"$f":"IF(Saisie!R112=0,\"\",Saisie!R112)","v":""},{"$f":"IF(Saisie!C112=0,\"\",Saisie!C112)","v":""},{"$f":"IF(Saisie!FC112=0,\"\",Saisie!FC112)","v":""},{"$f":"IF(Saisie!FD112=0,\"\",Saisie!FD112)","v":""},null,{"$error":"#N/A"},"",{"$f":"IF(Saisie!AM112>Saisie!$AM$15,Saisie!AM112,IF(Saisie!AO112>Saisie!$AO$15,Saisie!AO112,#N/A))","v":{"$error":"#N/A"}},{"$f":"IF(Saisie!AQ112>Saisie!$AQ$15,Saisie!AQ112,IF(Saisie!AS112>Saisie!$AS$15,Saisie!AS112,#N/A))","v":{"$error":"#N/A"}},null,4000,10000,{"$f":"IF(Saisie!Q112=0,#N/A,Saisie!Q112)","v":{"$error":"#N/A"}},12,16,{"$f":"IF(Saisie!G112=0,#N/A,Saisie!G112)","v":{"$error":"#N/A"}},{"$f":"IF(Saisie!AV112=0,#N/A,Saisie!AV112)","v":{"$error":"#N/A"}},150,400,{"$f":"IF(Saisie!N112=0,#N/A,Saisie!N112)","v":{"$error":"#N/A"}},{"$error":"#N/A"},8,16,{"$f":"IF(Saisie!AU112=0,#N/A,Saisie!AU112)","v":{"$error":"#N/A"}},50,104,{"$f":"IF(Saisie!BL112=0,#N/A,Saisie!BL112)","v":{"$error":"#N/A"}},5,{"$f":"IF(Saisie!AG112=0,#N/A,Saisie!AG112)","v":{"$error":"#N/A"}},1500,4000,{"$f":"IF(Saisie!V112=0,#N/A,Saisie!V112)","v":{"$error":"#N/A"}},1800,7000,{"$f":"IF(Saisie!R112=0,#N/A,Saisie!R112)","v":{"$error":"#N/A"}},{"$error":"#N/A"}]
[null,null,{"$f":"IF(Saisie!D113=0,\"\",Saisie!D113)","v":""},{"$f":"IF(Saisie!Q113=0,\"\",Saisie!Q113)","v":""},{"$f":"IF(Saisie!G113=0,\"\",Saisie!G113)","v":""},{"$f":"IF(Saisie!AV113=0,\"\",Saisie!AV113)","v":""},{"$f":"IF(Saisie!N113=0,\"\",Saisie!N113)","v":""},"",{"$f":"IF(Saisie!AU113=0,\"\",Saisie!AU113)","v":""},{"$f":"IF(Saisie!BL113=0,\"\",Saisie!BL113)","v":""},{"$f":"IF(Saisie!AG113=0,\"\",Saisie!AG113)","v":""},{"$f":"IF(Saisie!V113=0,\"\",Saisie!V113)","v":""},{"$f":"IF(Saisie!R113=0,\"\",Saisie!R113)","v":""},{"$f":"IF(Saisie!C113=0,\"\",Saisie!C113)","v":""},{"$f":"IF(Saisie!FC113=0,\"\",Saisie!FC113)","v":""},{"$f":"IF(Saisie!FD113=0,\"\",Saisie!FD113)","v":""},null,{"$error":"#N/A"},"",{"$f":"IF(Saisie!AM113>Saisie!$AM$15,Saisie!AM113,IF(Saisie!AO113>Saisie!$AO$15,Saisie!AO113,#N/A))","v":{"$error":"#N/A"}},{"$f":"IF(Saisie!AQ113>Saisie!$AQ$15,Saisie!AQ113,IF(Saisie!AS113>Saisie!$AS$15,Saisie!AS113,#N/A))","v":{"$error":"#N/A"}},null,4000,10000,{"$f":"IF(Saisie!Q113=0,#N/A,Saisie!Q113)","v":{"$error":"#N/A"}},12,16,{"$f":"IF(Saisie!G113=0,#N/A,Saisie!G113)","v":{"$error":"#N/A"}},{"$f":"IF(Saisie!AV113=0,#N/A,Saisie!AV113)","v":{"$error":"#N/A"}},150,400,{"$f":"IF(Saisie!N113=0,#N/A,Saisie!N113)","v":{"$error":"#N/A"}},{"$error":"#N/A"},8,16,{"$f":"IF(Saisie!AU113=0,#N/A,Saisie!AU113)","v":{"$error":"#N/A"}},50,104,{"$f":"IF(Saisie!BL113=0,#N/A,Saisie!BL113)","v":{"$error":"#N/A"}},5,{"$f":"IF(Saisie!AG113=0,#N/A,Saisie!AG113)","v":{"$error":"#N/A"}},1500,4000,{"$f":"IF(Saisie!V113=0,#N/A,Saisie!V113)","v":{"$error":"#N/A"}},1800,7000,{"$f":"IF(Saisie!R113=0,#N/A,Saisie!R113)","v":{"$error":"#N/A"}},{"$error":"#N/A"}]
[null,null,{"$f":"IF(Saisie!D114=0,\"\",Saisie!D114)","v":""},{"$f":"IF(Saisie!Q114=0,\"\",Saisie!Q114)","v":""},{"$f":"IF(Saisie!G114=0,\"\",Saisie!G114)","v":""},{"$f":"IF(Saisie!AV114=0,\"\",Saisie!AV114)","v":""},{"$f":"IF(Saisie!N114=0,\"\",Saisie!N114)","v":""},"",{"$f":"IF(Saisie!AU114=0,\"\",Saisie!AU114)","v":""},{"$f":"IF(Saisie!BL114=0,\"\",Saisie!BL114)","v":""},{"$f":"IF(Saisie!AG114=0,\"\",Saisie!AG114)","v":""},{"$f":"IF(Saisie!V114=0,\"\",Saisie!V114)","v":""},{"$f":"IF(Saisie!R114=0,\"\",Saisie!R114)","v":""},{"$f":"IF(Saisie!C114=0,\"\",Saisie!C114)","v":""},{"$f":"IF(Saisie!FC114=0,\"\",Saisie!FC114)","v":""},{"$f":"IF(Saisie!FD114=0,\"\",Saisie!FD114)","v":""},null,{"$error":"#N/A"},"",{"$f":"IF(Saisie!AM114>Saisie!$AM$15,Saisie!AM114,IF(Saisie!AO114>Saisie!$AO$15,Saisie!AO114,#N/A))","v":{"$error":"#N/A"}},{"$f":"IF(Saisie!AQ114>Saisie!$AQ$15,Saisie!AQ114,IF(Saisie!AS114>Saisie!$AS$15,Saisie!AS114,#N/A))","v":{"$error":"#N/A"}},null,4000,10000,{"$f":"IF(Saisie!Q114=0,#N/A,Saisie!Q114)","v":{"$error":"#N/A"}},12,16,{"$f":"IF(Saisie!G114=0,#N/A,Saisie!G114)","v":{"$error":"#N/A"}},{"$f":"IF(Saisie!AV114=0,#N/A,Saisie!AV114)","v":{"$error":"#N/A"}},150,400,{"$f":"IF(Saisie!N114=0,#N/A,Saisie!N114)","v":{"$error":"#N/A"}},{"$error":"#N/A"},8,16,{"$f":"IF(Saisie!AU114=0,#N/A,Saisie!AU114)","v":{"$error":"#N/A"}},50,104,{"$f":"IF(Saisie!BL114=0,#N/A,Saisie!BL114)","v":{"$error":"#N/A"}},5,{"$f":"IF(Saisie!AG114=0,#N/A,Saisie!AG114)","v":{"$error":"#N/A"}},1500,4000,{"$f":"IF(Saisie!V114=0,#N/A,Saisie!V114)","v":{"$error":"#N/A"}},1800,7000,{"$f":"IF(Saisie!R114=0,#N/A,Saisie!R114)","v":{"$error":"#N/A"}},{"$error":"#N/A"}]
[null,null,{"$f":"IF(Saisie!D115=0,\"\",Saisie!D115)","v":""},{"$f":"IF(Saisie!Q115=0,\"\",Saisie!Q115)","v":""},{"$f":"IF(Saisie!G115=0,\"\",Saisie!G115)","v":""},{"$f":"IF(Saisie!AV115=0,\"\",Saisie!AV115)","v":""},{"$f":"IF(Saisie!N115=0,\"\",Saisie!N115)","v":""},"",{"$f":"IF(Saisie!AU115=0,\"\",Saisie!AU115)","v":""},{"$f":"IF(Saisie!BL115=0,\"\",Saisie!BL115)","v":""},{"$f":"IF(Saisie!AG115=0,\"\",Saisie!AG115)","v":""},{"$f":"IF(Saisie!V115=0,\"\",Saisie!V115)","v":""},{"$f":"IF(Saisie!R115=0,\"\",Saisie!R115)","v":""},{"$f":"IF(Saisie!C115=0,\"\",Saisie!C115)","v":""},{"$f":"IF(Saisie!FC115=0,\"\",Saisie!FC115)","v":""},{"$f":"IF(Saisie!FD115=0,\"\",Saisie!FD115)","v":""},null,{"$error":"#N/A"},"",{"$f":"IF(Saisie!AM115>Saisie!$AM$15,Saisie!AM115,IF(Saisie!AO115>Saisie!$AO$15,Saisie!AO115,#N/A))","v":{"$error":"#N/A"}},{"$f":"IF(Saisie!AQ115>Saisie!$AQ$15,Saisie!AQ115,IF(Saisie!AS115>Saisie!$AS$15,Saisie!AS115,#N/A))","v":{"$error":"#N/A"}},null,4000,10000,{"$f":"IF(Saisie!Q115=0,#N/A,Saisie!Q115)","v":{"$error":"#N/A"}},12,16,{"$f":"IF(Saisie!G115=0,#N/A,Saisie!G115)","v":{"$error":"#N/A"}},{"$f":"IF(Saisie!AV115=0,#N/A,Saisie!AV115)","v":{"$error":"#N/A"}},150,400,{"$f":"IF(Saisie!N115=0,#N/A,Saisie!N115)","v":{"$error":"#N/A"}},{"$error":"#N/A"},8,16,{"$f":"IF(Saisie!AU115=0,#N/A,Saisie!AU115)","v":{"$error":"#N/A"}},50,104,{"$f":"IF(Saisie!BL115=0,#N/A,Saisie!BL115)","v":{"$error":"#N/A"}},5,{"$f":"IF(Saisie!AG115=0,#N/A,Saisie!AG115)","v":{"$error":"#N/A"}},1500,4000,{"$f":"IF(Saisie!V115=0,#N/A,Saisie!V115)","v":{"$error":"#N/A"}},1800,7000,{"$f":"IF(Saisie!R115=0,#N/A,Saisie!R115)","v":{"$error":"#N/A"}},{"$error":"#N/A"}]
[null,null,{"$f":"IF(Saisie!D116=0,\"\",Saisie!D116)","v":""},{"$f":"IF(Saisie!Q116=0,\"\",Saisie!Q116)","v":""},{"$f":"IF(Saisie!G116=0,\"\",Saisie!G116)","v":""},{"$f":"IF(Saisie!AV116=0,\"\",Saisie!AV116)","v":""},{"$f":"IF(Saisie!N116=0,\"\",Saisie!N116)","v":""},"",{"$f":"IF(Saisie!AU116=0,\"\",Saisie!AU116)","v":""},{"$f":"IF(Saisie!BL116=0,\"\",Saisie!BL116)","v":""},{"$f":"IF(Saisie!AG116=0,\"\",Saisie!AG116)","v":""},{"$f":"IF(Saisie!V116=0,\"\",Saisie!V116)","v":""},{"$f":"IF(Saisie!R116=0,\"\",Saisie!R116)","v":""},{"$f":"IF(Saisie!C116=0,\"\",Saisie!C116)","v":""},{"$f":"IF(Saisie!FC116=0,\"\",Saisie!FC116)","v":""},{"$f":"IF(Saisie!FD116=0,\"\",Saisie!FD116)","v":""},null,{"$error":"#N/A"},"",{"$f":"IF(Saisie!AM116>Saisie!$AM$15,Saisie!AM116,IF(Saisie!AO116>Saisie!$AO$15,Saisie!AO116,#N/A))","v":{"$error":"#N/A"}},{"$f":"IF(Saisie!AQ116>Saisie!$AQ$15,Saisie!AQ116,IF(Saisie!AS116>Saisie!$AS$15,Saisie!AS116,#N/A))","v":{"$error":"#N/A"}},null,4000,10000,{"$f":"IF(Saisie!Q116=0,#N/A,Saisie!Q116)","v":{"$error":"#N/A"}},12,16,{"$f":"IF(Saisie!G116=0,#N/A,Saisie!G116)","v":{"$error":"#N/A"}},{"$f":"IF(Saisie!AV116=0,#N/A,Saisie!AV116)","v":{"$error":"#N/A"}},150,400,{"$f":"IF(Saisie!N116=0,#N/A,Saisie!N116)","v":{"$error":"#N/A"}},{"$error":"#N/A"},8,16,{"$f":"IF(Saisie!AU116=0,#N/A,Saisie!AU116)","v":{"$error":"#N/A"}},50,104,{"$f":"IF(Saisie!BL116=0,#N/A,Saisie!BL116)","v":{"$error":"#N/A"}},5,{"$f":"IF(Saisie!AG116=0,#N/A,Saisie!AG116)","v":{"$error":"#N/A"}},1500,4000,{"$f":"IF(Saisie!V116=0,#N/A,Saisie!V116)","v":{"$error":"#N/A"}},1800,7000,{"$f":"IF(Saisie!R116=0,#N/A,Saisie!R116)","v":{"$error":"#N/A"}},{"$error":"#N/A"}]
[null,null,{"$f":"IF(Saisie!D117=0,\"\",Saisie!D117)","v":""},{"$f":"IF(Saisie!Q117=0,\"\",Saisie!Q117)","v":""},{"$f":"IF(Saisie!G117=0,\"\",Saisie!G117)","v":""},{"$f":"IF(Saisie!AV117=0,\"\",Saisie!AV117)","v":""},{"$f":"IF(Saisie!N117=0,\"\",Saisie!N117)","v":""},"",{"$f":"IF(Saisie!AU117=0,\"\",Saisie!AU117)","v":""},{"$f":"IF(Saisie!BL117=0,\"\",Saisie!BL117)","v":""},{"$f":"IF(Saisie!AG117=0,\"\",Saisie!AG117)","v":""},{"$f":"IF(Saisie!V117=0,\"\",Saisie!V117)","v":""},{"$f":"IF(Saisie!R117=0,\"\",Saisie!R117)","v":""},{"$f":"IF(Saisie!C117=0,\"\",Saisie!C117)","v":""},{"$f":"IF(Saisie!FC117=0,\"\",Saisie!FC117)","v":""},{"$f":"IF(Saisie!FD117=0,\"\",Saisie!FD117)","v":""},null,{"$error":"#N/A"},"",{"$f":"IF(Saisie!AM117>Saisie!$AM$15,Saisie!AM117,IF(Saisie!AO117>Saisie!$AO$15,Saisie!AO117,#N/A))","v":{"$error":"#N/A"}},{"$f":"IF(Saisie!AQ117>Saisie!$AQ$15,Saisie!AQ117,IF(Saisie!AS117>Saisie!$AS$15,Saisie!AS117,#N/A))","v":{"$error":"#N/A"}},null,4000,10000,{"$f":"IF(Saisie!Q117=0,#N/A,Saisie!Q117)","v":{"$error":"#N/A"}},12,16,{"$f":"IF(Saisie!G117=0,#N/A,Saisie!G117)","v":{"$error":"#N/A"}},{"$f":"IF(Saisie!AV117=0,#N/A,Saisie!AV117)","v":{"$error":"#N/A"}},150,400,{"$f":"IF(Saisie!N117=0,#N/A,Saisie!N117)","v":{"$error":"#N/A"}},{"$error":"#N/A"},8,16,{"$f":"IF(Saisie!AU117=0,#N/A,Saisie!AU117)","v":{"$error":"#N/A"}},50,104,{"$f":"IF(Saisie!BL117=0,#N/A,Saisie!BL117)","v":{"$error":"#N/A"}},5,{"$f":"IF(Saisie!AG117=0,#N/A,Saisie!AG117)","v":{"$error":"#N/A"}},1500,4000,{"$f":"IF(Saisie!V117=0,#N/A,Saisie!V117)","v":{"$error":"#N/A"}},1800,7000,{"$f":"IF(Saisie!R117=0,#N/A,Saisie!R117)","v":{"$error":"#N/A"}},{"$error":"#N/A"}]
[null,null,{"$f":"IF(Saisie!D118=0,\"\",Saisie!D118)","v":""},{"$f":"IF(Saisie!Q118=0,\"\",Saisie!Q118)","v":""},{"$f":"IF(Saisie!G118=0,\"\",Saisie!G118)","v":""},{"$f":"IF(Saisie!AV118=0,\"\",Saisie!AV118)","v":""},{"$f":"IF(Saisie!N118=0,\"\",Saisie!N118)","v":""},"",{"$f":"IF(Saisie!AU118=0,\"\",Saisie!AU118)","v":""},{"$f":"IF(Saisie!BL118=0,\"\",Saisie!BL118)","v":""},{"$f":"IF(Saisie!AG118=0,\"\",Saisie!AG118)","v":""},{"$f":"IF(Saisie!V118=0,\"\",Saisie!V118)","v":""},{"$f":"IF(Saisie!R118=0,\"\",Saisie!R118)","v":""},{"$f":"IF(Saisie!C118=0,\"\",Saisie!C118)","v":""},{"$f":"IF(Saisie!FC118=0,\"\",Saisie!FC118)","v":""},{"$f":"IF(Saisie!FD118=0,\"\",Saisie!FD118)","v":""},null,{"$error":"#N/A"},"",{"$f":"IF(Saisie!AM118>Saisie!$AM$15,Saisie!AM118,IF(Saisie!AO118>Saisie!$AO$15,Saisie!AO118,#N/A))","v":{"$error":"#N/A"}},{"$f":"IF(Saisie!AQ118>Saisie!$AQ$15,Saisie!AQ118,IF(Saisie!AS118>Saisie!$AS$15,Saisie!AS118,#N/A))","v":{"$error":"#N/A"}},null,4000,10000,{"$f":"IF(Saisie!Q118=0,#N/A,Saisie!Q118)","v":{"$error":"#N/A"}},12,16,{"$f":"IF(Saisie!G118=0,#N/A,Saisie!G118)","v":{"$error":"#N/A"}},{"$f":"IF(Saisie!AV118=0,#N/A,Saisie!AV118)","v":{"$error":"#N/A"}},150,400,{"$f":"IF(Saisie!N118=0,#N/A,Saisie!N118)","v":{"$error":"#N/A"}},{"$error":"#N/A"},8,16,{"$f":"IF(Saisie!AU118=0,#N/A,Saisie!AU118)","v":{"$error":"#N/A"}},50,104,{"$f":"IF(Saisie!BL118=0,#N/A,Saisie!BL118)","v":{"$error":"#N/A"}},5,{"$f":"IF(Saisie!AG118=0,#N/A,Saisie!AG118)","v":{"$error":"#N/A"}},1500,4000,{"$f":"IF(Saisie!V118=0,#N/A,Saisie!V118)","v":{"$error":"#N/A"}},1800,7000,{"$f":"IF(Saisie!R118=0,#N/A,Saisie!R118)","v":{"$error":"#N/A"}},{"$error":"#N/A"}]
[null,null,{"$f":"IF(Saisie!D119=0,\"\",Saisie!D119)","v":""},{"$f":"IF(Saisie!Q119=0,\"\",Saisie!Q119)","v":""},{"$f":"IF(Saisie!G119=0,\"\",Saisie!G119)","v":""},{"$f":"IF(Saisie!AV119=0,\"\",Saisie!AV119)","v":""},{"$f":"IF(Saisie!N119=0,\"\",Saisie!N119)","v":""},"",{"$f":"IF(Saisie!AU119=0,\"\",Saisie!AU119)","v":""},{"$f":"IF(Saisie!BL119=0,\"\",Saisie!BL119)","v":""},{"$f":"IF(Saisie!AG119=0,\"\",Saisie!AG119)","v":""},{"$f":"IF(Saisie!V119=0,\"\",Saisie!V119)","v":""},{"$f":"IF(Saisie!R119=0,\"\",Saisie!R119)","v":""},{"$f":"IF(Saisie!C119=0,\"\",Saisie!C119)","v":""},{"$f":"IF(Saisie!FC119=0,\"\",Saisie!FC119)","v":""},{"$f":"IF(Saisie!FD119=0,\"\",Saisie!FD119)","v":""},null,{"$error":"#N/A"},"",{"$f":"IF(Saisie!AM119>Saisie!$AM$15,Saisie!AM119,IF(Saisie!AO119>Saisie!$AO$15,Saisie!AO119,#N/A))","v":{"$error":"#N/A"}},{"$f":"IF(Saisie!AQ119>Saisie!$AQ$15,Saisie!AQ119,IF(Saisie!AS119>Saisie!$AS$15,Saisie!AS119,#N/A))","v":{"$error":"#N/A"}},null,4000,10000,{"$f":"IF(Saisie!Q119=0,#N/A,Saisie!Q119)","v":{"$error":"#N/A"}},12,16,{"$f":"IF(Saisie!G119=0,#N/A,Saisie!G119)","v":{"$error":"#N/A"}},{"$f":"IF(Saisie!AV119=0,#N/A,Saisie!AV119)","v":{"$error":"#N/A"}},150,400,{"$f":"IF(Saisie!N119=0,#N/A,Saisie!N119)","v":{"$error":"#N/A"}},{"$error":"#N/A"},8,16,{"$f":"IF(Saisie!AU119=0,#N/A,Saisie!AU119)","v":{"$error":"#N/A"}},50,104,{"$f":"IF(Saisie!BL119=0,#N/A,Saisie!BL119)","v":{"$error":"#N/A"}},5,{"$f":"IF(Saisie!AG119=0,#N/A,Saisie!AG119)","v":{"$error":"#N/A"}},1500,4000,{"$f":"IF(Saisie!V119=0,#N/A,Saisie!V119)","v":{"$error":"#N/A"}},1800,7000,{"$f":"IF(Saisie!R119=0,#N/A,Saisie!R119)","v":{"$error":"#N/A"}},{"$error":"#N/A"}]
[null,null,{"$f":"IF(Saisie!D120=0,\"\",Saisie!D120)","v":""},{"$f":"IF(Saisie!Q120=0,\"\",Saisie!Q120)","v":""},{"$f":"IF(Saisie!G120=0,\"\",Saisie!G120)","v":""},{"$f":"IF(Saisie!AV120=0,\"\",Saisie!AV120)","v":""},{"$f":"IF(Saisie!N120=0,\"\",Saisie!N120)","v":""},"",{"$f":"IF(Saisie!AU120=0,\"\",Saisie!AU120)","v":""},{"$f":"IF(Saisie!BL120=0,\"\",Saisie!BL120)","v":""},{"$f":"IF(Saisie!AG120=0,\"\",Saisie!AG120)","v":""},{"$f":"IF(Saisie!V120=0,\"\",Saisie!V120)","v":""},{"$f":"IF(Saisie!R120=0,\"\",Saisie!R120)","v":""},{"$f":"IF(Saisie!C120=0,\"\",Saisie!C120)","v":""},{"$f":"IF(Saisie!FC120=0,\"\",Saisie!FC120)","v":""},{"$f":"IF(Saisie!FD120=0,\"\",Saisie!FD120)","v":""},null,{"$error":"#N/A"},"",{"$f":"IF(Saisie!AM120>Saisie!$AM$15,Saisie!AM120,IF(Saisie!AO120>Saisie!$AO$15,Saisie!AO120,#N/A))","v":{"$error":"#N/A"}},{"$f":"IF(Saisie!AQ120>Saisie!$AQ$15,Saisie!AQ120,IF(Saisie!AS120>Saisie!$AS$15,Saisie!AS120,#N/A))","v":{"$error":"#N/A"}},null,4000,10000,{"$f":"IF(Saisie!Q120=0,#N/A,Saisie!Q120)","v":{"$error":"#N/A"}},12,16,{"$f":"IF(Saisie!G120=0,#N/A,Saisie!G120)","v":{"$error":"#N/A"}},{"$f":"IF(Saisie!AV120=0,#N/A,Saisie!AV120)","v":{"$error":"#N/A"}},150,400,{"$f":"IF(Saisie!N120=0,#N/A,Saisie!N120)","v":{"$error":"#N/A"}},{"$error":"#N/A"},8,16,{"$f":"IF(Saisie!AU120=0,#N/A,Saisie!AU120)","v":{"$error":"#N/A"}},50,104,{"$f":"IF(Saisie!BL120=0,#N/A,Saisie!BL120)","v":{"$error":"#N/A"}},5,{"$f":"IF(Saisie!AG120=0,#N/A,Saisie!AG120)","v":{"$error":"#N/A"}},1500,4000,{"$f":"IF(Saisie!V120=0,#N/A,Saisie!V120)","v":{"$error":"#N/A"}},1800,7000,{"$f":"IF(Saisie!R120=0,#N/A,Saisie!R120)","v":{"$error":"#N/A"}},{"$error":"#N/A"}]
[null,null,{"$f":"IF(Saisie!D121=0,\"\",Saisie!D121)","v":""},{"$f":"IF(Saisie!Q121=0,\"\",Saisie!Q121)","v":""},{"$f":"IF(Saisie!G121=0,\"\",Saisie!G121)","v":""},{"$f":"IF(Saisie!AV121=0,\"\",Saisie!AV121)","v":""},{"$f":"IF(Saisie!N121=0,\"\",Saisie!N121)","v":""},"",{"$f":"IF(Saisie!AU121=0,\"\",Saisie!AU121)","v":""},{"$f":"IF(Saisie!BL121=0,\"\",Saisie!BL121)","v":""},{"$f":"IF(Saisie!AG121=0,\"\",Saisie!AG121)","v":""},{"$f":"IF(Saisie!V121=0,\"\",Saisie!V121)","v":""},{"$f":"IF(Saisie!R121=0,\"\",Saisie!R121)","v":""},{"$f":"IF(Saisie!C121=0,\"\",Saisie!C121)","v":""},{"$f":"IF(Saisie!FC121=0,\"\",Saisie!FC121)","v":""},{"$f":"IF(Saisie!FD121=0,\"\",Saisie!FD121)","v":""},null,{"$error":"#N/A"},"",{"$f":"IF(Saisie!AM121>Saisie!$AM$15,Saisie!AM121,IF(Saisie!AO121>Saisie!$AO$15,Saisie!AO121,#N/A))","v":{"$error":"#N/A"}},{"$f":"IF(Saisie!AQ121>Saisie!$AQ$15,Saisie!AQ121,IF(Saisie!AS121>Saisie!$AS$15,Saisie!AS121,#N/A))","v":{"$error":"#N/A"}},null,4000,10000,{"$f":"IF(Saisie!Q121=0,#N/A,Saisie!Q121)","v":{"$error":"#N/A"}},12,16,{"$f":"IF(Saisie!G121=0,#N/A,Saisie!G121)","v":{"$error":"#N/A"}},{"$f":"IF(Saisie!AV121=0,#N/A,Saisie!AV121)","v":{"$error":"#N/A"}},150,400,{"$f":"IF(Saisie!N121=0,#N/A,Saisie!N121)","v":{"$error":"#N/A"}},{"$error":"#N/A"},8,16,{"$f":"IF(Saisie!AU121=0,#N/A,Saisie!AU121)","v":{"$error":"#N/A"}},50,104,{"$f":"IF(Saisie!BL121=0,#N/A,Saisie!BL121)","v":{"$error":"#N/A"}},5,{"$f":"IF(Saisie!AG121=0,#N/A,Saisie!AG121)","v":{"$error":"#N/A"}},1500,4000,{"$f":"IF(Saisie!V121=0,#N/A,Saisie!V121)","v":{"$error":"#N/A"}},1800,7000,{"$f":"IF(Saisie!R121=0,#N/A,Saisie!R121)","v":{"$error":"#N/A"}},{"$error":"#N/A"}]
[null,null,{"$f":"IF(Saisie!D122=0,\"\",Saisie!D122)","v":""},{"$f":"IF(Saisie!Q122=0,\"\",Saisie!Q122)","v":""},{"$f":"IF(Saisie!G122=0,\"\",Saisie!G122)","v":""},{"$f":"IF(Saisie!AV122=0,\"\",Saisie!AV122)","v":""},{"$f":"IF(Saisie!N122=0,\"\",Saisie!N122)","v":""},"",{"$f":"IF(Saisie!AU122=0,\"\",Saisie!AU122)","v":""},{"$f":"IF(Saisie!BL122=0,\"\",Saisie!BL122)","v":""},{"$f":"IF(Saisie!AG122=0,\"\",Saisie!AG122)","v":""},{"$f":"IF(Saisie!V122=0,\"\",Saisie!V122)","v":""},{"$f":"IF(Saisie!R122=0,\"\",Saisie!R122)","v":""},{"$f":"IF(Saisie!C122=0,\"\",Saisie!C122)","v":""},{"$f":"IF(Saisie!FC122=0,\"\",Saisie!FC122)","v":""},{"$f":"IF(Saisie!FD122=0,\"\",Saisie!FD122)","v":""},null,{"$error":"#N/A"},"",{"$f":"IF(Saisie!AM122>Saisie!$AM$15,Saisie!AM122,IF(Saisie!AO122>Saisie!$AO$15,Saisie!AO122,#N/A))","v":{"$error":"#N/A"}},{"$f":"IF(Saisie!AQ122>Saisie!$AQ$15,Saisie!AQ122,IF(Saisie!AS122>Saisie!$AS$15,Saisie!AS122,#N/A))","v":{"$error":"#N/A"}},null,4000,10000,{"$f":"IF(Saisie!Q122=0,#N/A,Saisie!Q122)","v":{"$error":"#N/A"}},12,16,{"$f":"IF(Saisie!G122=0,#N/A,Saisie!G122)","v":{"$error":"#N/A"}},{"$f":"IF(Saisie!AV122=0,#N/A,Saisie!AV122)","v":{"$error":"#N/A"}},150,400,{"$f":"IF(Saisie!N122=0,#N/A,Saisie!N122)","v":{"$error":"#N/A"}},{"$error":"#N/A"},8,16,{"$f":"IF(Saisie!AU122=0,#N/A,Saisie!AU122)","v":{"$error":"#N/A"}},50,104,{"$f":"IF(Saisie!BL122=0,#N/A,Saisie!BL122)","v":{"$error":"#N/A"}},5,{"$f":"IF(Saisie!AG122=0,#N/A,Saisie!AG122)","v":{"$error":"#N/A"}},1500,4000,{"$f":"IF(Saisie!V122=0,#N/A,Saisie!V122)","v":{"$error":"#N/A"}},1800,7000,{"$f":"IF(Saisie!R122=0,#N/A,Saisie!R122)","v":{"$error":"#N/A"}},{"$error":"#N/A"}]
[null,null,{"$f":"IF(Saisie!D123=0,\"\",Saisie!D123)","v":""},{"$f":"IF(Saisie!Q123=0,\"\",Saisie!Q123)","v":""},{"$f":"IF(Saisie!G123=0,\"\",Saisie!G123)","v":""},{"$f":"IF(Saisie!AV123=0,\"\",Saisie!AV123)","v":""},{"$f":"IF(Saisie!N123=0,\"\",Saisie!N123)","v":""},"",{"$f":"IF(Saisie!AU123=0,\"\",Saisie!AU123)","v":""},{"$f":"IF(Saisie!BL123=0,\"\",Saisie!BL123)","v":""},{"$f":"IF(Saisie!AG123=0,\"\",Saisie!AG123)","v":""},{"$f":"IF(Saisie!V123=0,\"\",Saisie!V123)","v":""},{"$f":"IF(Saisie!R123=0,\"\",Saisie!R123)","v":""},{"$f":"IF(Saisie!C123=0,\"\",Saisie!C123)","v":""},{"$f":"IF(Saisie!FC123=0,\"\",Saisie!FC123)","v":""},{"$f":"IF(Saisie!FD123=0,\"\",Saisie!FD123)","v":""},null,{"$error":"#N/A"},"",{"$f":"IF(Saisie!AM123>Saisie!$AM$15,Saisie!AM123,IF(Saisie!AO123>Saisie!$AO$15,Saisie!AO123,#N/A))","v":{"$error":"#N/A"}},{"$f":"IF(Saisie!AQ123>Saisie!$AQ$15,Saisie!AQ123,IF(Saisie!AS123>Saisie!$AS$15,Saisie!AS123,#N/A))","v":{"$error":"#N/A"}},null,4000,10000,{"$f":"IF(Saisie!Q123=0,#N/A,Saisie!Q123)","v":{"$error":"#N/A"}},12,16,{"$f":"IF(Saisie!G123=0,#N/A,Saisie!G123)","v":{"$error":"#N/A"}},{"$f":"IF(Saisie!AV123=0,#N/A,Saisie!AV123)","v":{"$error":"#N/A"}},150,400,{"$f":"IF(Saisie!N123=0,#N/A,Saisie!N123)","v":{"$error":"#N/A"}},{"$error":"#N/A"},8,16,{"$f":"IF(Saisie!AU123=0,#N/A,Saisie!AU123)","v":{"$error":"#N/A"}},50,104,{"$f":"IF(Saisie!BL123=0,#N/A,Saisie!BL123)","v":{"$error":"#N/A"}},5,{"$f":"IF(Saisie!AG123=0,#N/A,Saisie!AG123)","v":{"$error":"#N/A"}},{"$f":"$AR$10","v":1500},{"$f":"$AR$11","v":4000},{"$f":"IF(Saisie!V123=0,#N/A,Saisie!V123)","v":{"$error":"#N/A"}},1800,7000,{"$f":"IF(Saisie!R123=0,#N/A,Saisie!R123)","v":{"$error":"#N/A"}},{"$error":"#N/A"}]
[null,null,{"$f":"IF(Saisie!D124=0,\"\",Saisie!D124)","v":""},{"$f":"IF(Saisie!Q124=0,\"\",Saisie!Q124)","v":""},{"$f":"IF(Saisie!G124=0,\"\",Saisie!G124)","v":""},{"$f":"IF(Saisie!AV124=0,\"\",Saisie!AV124)","v":""},{"$f":"IF(Saisie!N124=0,\"\",Saisie!N124)","v":""},"",{"$f":"IF(Saisie!AU124=0,\"\",Saisie!AU124)","v":""},{"$f":"IF(Saisie!BL124=0,\"\",Saisie!BL124)","v":""},{"$f":"IF(Saisie!AG124=0,\"\",Saisie!AG124)","v":""},{"$f":"IF(Saisie!V124=0,\"\",Saisie!V124)","v":""},{"$f":"IF(Saisie!R124=0,\"\",Saisie!R124)","v":""},{"$f":"IF(Saisie!C124=0,\"\",Saisie!C124)","v":""},{"$f":"IF(Saisie!FC124=0,\"\",Saisie!FC124)","v":""},{"$f":"IF(Saisie!FD124=0,\"\",Saisie!FD124)","v":""},null,{"$error":"#N/A"},"",{"$f":"IF(Saisie!AM124>Saisie!$AM$15,Saisie!AM124,IF(Saisie!AO124>Saisie!$AO$15,Saisie!AO124,#N/A))","v":{"$error":"#N/A"}},{"$f":"IF(Saisie!AQ124>Saisie!$AQ$15,Saisie!AQ124,IF(Saisie!AS124>Saisie!$AS$15,Saisie!AS124,#N/A))","v":{"$error":"#N/A"}},null,4000,10000,{"$f":"IF(Saisie!Q124=0,#N/A,Saisie!Q124)","v":{"$error":"#N/A"}},12,16,{"$f":"IF(Saisie!G124=0,#N/A,Saisie!G124)","v":{"$error":"#N/A"}},{"$f":"IF(Saisie!AV124=0,#N/A,Saisie!AV124)","v":{"$error":"#N/A"}},150,400,{"$f":"IF(Saisie!N124=0,#N/A,Saisie!N124)","v":{"$error":"#N/A"}},{"$error":"#N/A"},8,16,{"$f":"IF(Saisie!AU124=0,#N/A,Saisie!AU124)","v":{"$error":"#N/A"}},50,104,{"$f":"IF(Saisie!BL124=0,#N/A,Saisie!BL124)","v":{"$error":"#N/A"}},5,{"$f":"IF(Saisie!AG124=0,#N/A,Saisie!AG124)","v":{"$error":"#N/A"}},{"$f":"$AR$10","v":1500},{"$f":"$AR$11","v":4000},{"$f":"IF(Saisie!V124=0,#N/A,Saisie!V124)","v":{"$error":"#N/A"}},1800,7000,{"$f":"IF(Saisie!R124=0,#N/A,Saisie!R124)","v":{"$error":"#N/A"}},{"$error":"#N/A"}]

{"sheet":"Courbes","index":4,"n_rows":6,"n_cols":7,"rows_kept":6,"cut":false,"hidden":false,"merged":[]}
[]
[null,null,{"$f":"Accueil!C4","v":"identifiants patient :"},null,null,{"$f":"Accueil!G5","v":"Dossier hôpital :"},{"$f":"IF(Accueil!I5=\"\",\"\",Accueil!I5)","v":""}]
[null,null,{"$f":"Accueil!C5","v":"Prénom  Nom :"},{"$f":"IF(Accueil!D5=\"\",\"\",Accueil!D5)","v":""},null,{"$f":"Accueil!G6","v":"n°SS :"},{"$f":"IF(Accueil!I6=\"\",\"\",Accueil!I6)","v":""}]
[null,null,{"$f":"Accueil!C6","v":"Date naissance :"},{"$f":"IF(Accueil!D6=\"\",\"\",Accueil!D6)","v":""},null,{"$f":"Accueil!G7","v":"Diagnostiqué le :"},{"$f":"IF(Accueil!I7=\"\",\"\",Accueil!I7)","v":""}]
[null,null,{"$f":"Accueil!C7","v":"Oncologue :"},{"$f":"IF(Accueil!D7=\"\",\"\",Accueil!D7)","v":""},null,{"$f":"Accueil!G8","v":"Date dernier traitement :"},{"$f":"IF(Accueil!I8=\"\",\"\",Accueil!I8)","v":""}]
[null,null,null,null,null,null,{"$f":"IF(Accueil!I9=\"\",\"\",Accueil!I9)","v":""}]

{"sheet":"Explications des tests médicaux","index":5,"n_rows":123,"n_cols":7,"rows_kept":123,"cut":false,"hidden":false,"merged":[[0,1,4,4],[99,5,100,5],[121,5,122,5],[121,6,122,6],[47,5,48,5],[47,6,48,6]]}
[null,"Pour chercher une définition, vous pouvez utiliser la fonction recherche de Excel (jumelles) ou Crtl F (appuyez sur les touches CRTL et F en même temps) et saisir votre mot clé dans la fenêtre qui s'ouvre. Cliquez ensuite dans colonne H pour optenir une apparence normale de la page\nExemple : "]
[null,null,null,null,null,"Quelques ouvrages ou lien internet utiles sur les Test Médicaux : ","lien vers"]
[]
[null,null,null,null,null,"Booklet Tests Medicaux  IWMF traduit en français ","http://portail.waldenstromfrance.org/?wpdmdl=4983"]
[null,null,null,null,null,"lien convertisseur unités médicales : ","http://medicalcul.free.fr/conversions.html"]
[]
[null,null,null,null,null,"Explications des analyses par le laboratoire français BIOMNIS","https://www.biomnis.com/"]
[]
[]
["masqué dans Saisie","nom de l'analyse médicale","unités","min","max","explication médicale ","Lien vers des références externes"]
[null,"Hématies"," T/l équivaut à 1012/l",4.5,5.5,"Le rôle le plus vital des globules rouges consiste à transporter l’oxygène, depuis les poumons vers les tissus, puis à transporter les déchets gazeux des tissus vers les poumons, en vue de leur expulsion.\nPourquoi pratique-t-on ce test ? \n1. Pour évaluer le nombre et la/les taille(s) des globules rouges.\n2. Pour déterminer la teneur en hémoglobine et contrôler l’état des globules rouges.\n3. Pour faciliter le diagnostic des maladies liées au sang.\nQuels sont les résultats considérés comme normaux ?\n1. Hommes : 4,2 à 5,4 millions de GB par microlitre de sang (4,2 à 5,4 x 1012/l). Femmes : 3,6 à 5,0 millions de GB par microlitre de sang (3,6 à 5 x 1012/l).\nUne numération des globules rouges basse peut suggérer une anémie, une surcharge liquidienne, ou un saignement abondant."]
[null,"Hémoglobine","g/dl\nou\n g/l","12\nou\n120","16\nou\n160","La molécule appelée hémoglobine est une métalloprotéine contenant du fer contenue dans les globules rouges. C’est elle qui permet le transport de l’oxygène dans le sang. L’hémoglobine représente 97 % du poids sec des GB. La proportion d’hémoglobine indiquée dans la NFS permet de connaître la teneur en hémoglobine par volume de sang total.\nPourquoi pratique-t-on ce test ?\n1. Pour détecter une anémie ou une polycythémie, ou pour évaluer la réponse à tout un éventail de traitements.\n2. Pour faciliter le calcul de certaines données supplémentaires dans le cadre d’une numération-formule sanguine.\nQuels sont les résultats considérés comme normaux ?\n1. La concentration en hémoglobine varie quelque peu selon l’origine de l’échantillon prélevé (à partir des vaisseaux capillaires d’un doigt, d’un vaisseau majeur via une voie centrale ou, plus généralement, à partir d’une veine périphérique). Les valeurs de l’Hb dépendent également du sexe du patient et baissent au fur et à mesure qu’il vieillit.\n2. Hommes : 14 à 18 g/dl ou 140 à 180 g/l. Femmes : 12 à 16 g/dl ou 120 à 160 g/l.\nQuelles sont les implications éventuelles en cas de résultat anormal ?\n1. Une hémoglobine basse peut suggérer une anémie, une perte de sang récente, ou une surcharge liquidienne.\n2. L’hémoglobine est souvent élevée en cas de polycythémie ou de déshydratation."]
[null,"Hématocrite","%",40,55,"Ce test permet tout simplement de mesurer le pourcentage (%) de globules rouges dans un échantillon de sang. Les résultats varient selon le sexe et l’âge du patient ; ainsi, les nourrissons et les pré-adolescents présentent des valeurs plus basses.\nPourquoi pratique-t-on ce test ?\n1. Pour faciliter le diagnostic des troubles d’origine sanguine.\n2. Pour faciliter le calculer du volume et de la concentration en globules rouges.\nQuels sont les résultats considérés comme normaux ?\n1. Hommes : 42 % à 54%. Femmes : 38 à 46 %.\nQuelles sont les implications éventuelles en cas de résultat anormal ?\n1. Un % d’hématocrite faible peut suggérer une anémie, une surcharge liquidienne, ou une hémorragie massive.\n2. Un % d’hématocrite élevé peut suggérer une polycythémie, une déshydratation, ou d’autres pathologies."]
[null,"Vol. Globule. Moy. Ou V.G.M.","fl",85,95,"VGM - Volume Globulaire Moyen - désigne le ratio d’hématocrites par rapport à la numération des globules rouges :\n85 à 95 fl.\nLe VGM permet de calculer la taille moyenne des GB et indique s’il s’agit de microcytes (petite taille), de macrocytes (grande taille) ou de normocytes (taille normale). On détecte souvent des GB de petite taille en cas d’anémie ferriprive ; alors que les GB de grande taille sont typiques de certaines carences en vitamines. Le VGM est un paramètre clef dans le cadre de l’évaluation de l’anémie."]
[null,"C.C.M. Hb"," g/dl",30,36,"CCMH - Concentration Corpusculaire Moyenne en Hémoglobine - désigne la proportion d’hémoglobine, en %, dans un volume donné de globules rouges : 30 à 60  g/dl.\nLes valeurs de la CCMH permettent de distinguer les globules rouges normochromes (normalement colorés) des globules rouges hypochromes (pâles) ou hyperchromes (sombres) ; ce qui peut se produire avec certaines pathologies."]
[null,"T.C.M. Hb"," pg",27,32,"HGM - Hémoglobine Globulaire Moyenne - désigne le poids de l’hémoglobine dans un globule rouge moyen : 27 à 32 pg.\nL’HGM fournit bien souvent des preuves précieuses quant à l’état de la synthèse de l’hémoglobine. Des valeurs faibles apparaissent en cas de maladies chroniques, d’anémie ferriprive, etc."]
[null,"Indice de distrib. Des GR (anisocytose) ou IDR","%",11,16,"L’IDR permet d’obtenir une mesure quantitative de la variation de la taille des GR circulants.\nPourquoi pratique-t-on ce test ?\n1. Il s’agit d’un test relativement sophistiqué utilisé pour évaluer, dans les grandes lignes, quelle est la proportion de globules rouges en fonction de leur âge, car les GR jeunes sont plus gros que les GR plus anciens.\nQuels sont les résultats considérés comme normaux ?\n13,5 à 15,5 %.\nQuelles sont les implications éventuelles en cas de résultat anormal ?\n1. Un résultat élevé indique souvent une réponse au traitement contre l’anémie, car les GR jeunes (donc plus gros) sont générés à un rythme plus soutenu qu’à l’accoutumée.\n2. Un résultat faible suggère une population de GR statique, dont la taille (et l’âge) varie peu."]
[null,"Réticulocytes","109/l",20,120,"Les réticulocytes sont des globules rouges immatures. Ils sont généralement plus gros que les globules rouges matures. Il est possible d’évaluer s’il y a ou non production de GB en pratiquant une numération des réticulocytes. Le nombre de réticulocytes est exprimé sous la forme d’un pourcentage par rapport à la numération concernant la totalité des globules rouges. En général, plus la numération des réticulocytes est élevée, plus l’Indice de Distribution des globules Rouges (IDR) l’est aussi.\nPourquoi pratique-t-on ce test ?\n1. Pour détecter une anémie ou suivre les résultats du traitement.\n2. Pour faire la distinction entre différents types d’anémies.\n3. Pour faciliter l’évaluation des pertes sanguines ou de la réponse de la moelle osseuse à l’anémie.\nQuels sont les résultats considérés comme normaux ?\n1. Les réticulocytes représentent 0,5 à 2,0 % de la numération des globules rouges.\nQuelles sont les implications éventuelles en cas de résultat anormal ?\n1. Une numération réticulocytaire basse indique une faible production de nouveaux globules rouges, comme cela se produit en cas d’anémie hypoplasique ou pernicieuse. Un dysfonctionnement de la moelle osseuse, une anémie aplasique, et un syndrome myélodysplasique peuvent également entraîner une numération réticulocytaire basse.\n2. Une numération réticulocytaire élevée démontre la présence d’une réponse au traitement de l’anémie ou une réponse saine de la moelle osseuse à une anémie ou à une perte sanguine."]
[null,"Plaquettes"," giga/l equiv. 109/l\nou\nplaq/ɰL","150\n\n\nou\n150000","400\n\n\nou\n40000","Les plaquettes, ou thrombocytes, sont les plus petits éléments qui se forment dans le sang. Ils permettent au sang de coaguler en cas de blessure.\nPourquoi pratique-t-on ce test ?\n1. Pour contribuer à déterminer si le sang coagule normalement.\n2. Pour évaluer la fonction plaquettaire.\n3. Pour évaluer les effets d’une chimiothérapie ou d’une radiothérapie sur la production de plaquettes.\n4. Pour diagnostiquer puis contrôler une baisse ou une hausse accentuée de la numération plaquettaire.\nQuels sont les résultats considérés comme normaux ?\n1. Une numération plaquettaire normale se situe entre 130 000 et 400 000 plaquettes par mm3 de sang total (130 à 400x 109/l).\nQuelles sont les implications éventuelles en cas de résultat anormal ?\n1. Une numération plaquettaire basse (appelée « thrombocytopénie ») peut être due : à une aplasie médullaire provoquée par un cancer ou une infection ; à une carence en acide folique ou en vitamine B12 ; au blocage de plaquettes dans une rate hypertrophiée ; à une destruction accrue des plaquettes en raison de troubles immunitaires ; ou à une atteinte mécanique des plaquettes. Des saignements spontanés peuvent parfois apparaître quand la numération plaquettaire est inférieure à 20 000. À moins de 5000, elle peut entraîner une hémorragie mortelle dans le système nerveux central, ou une hémorragie massive dans l’appareil gastro-intestinal.\n2. Une numération plaquettaire élevée (appelée « thrombocytose ») peut être due à un saignement grave, une infection, un cancer, une anémie ferriprive, une intervention chirurgicale récente, une grossesse, ou à l’ablation de la rate. Elle peut également être due à des troubles inflammatoires."]
[null,"Volume Moyen Plaquettaire","Fl",8.6999999999999993,11.9,"Le Volume Plaquettaire Moyen (VPM) permet d’obtenir des informations complémentaires relatives à la fonction plaquettaire.\nPourquoi pratique-t-on ce test ?\n1. Mesurer la taille moyenne des plaquettes permet souvent d’obtenir une preuve indirecte de la pathogénèse d’une thrombocytopénie (numération plaquettaire basse).\nQuels sont les résultats considérés comme normaux ?\n1. Une plaquette normale mesure entre 7,2 et 11,1 fl.\nQuelles sont les implications éventuelles en cas de résultat anormal ?\n1. En cas de thrombocytopénie due à une destruction accrue de plaquettes, on retrouve de grandes plaquettes.\n2. Le volume moyen des plaquettes augmente parce que des plaquettes récemment générées, plus grosses, sont présentes en plus grande proportion dans les plaquettes circulantes.\n3. Chez un patient atteint de thrombocytopénie, un VPM identique au VPM d’une personne ne souffrant pas de thrombocytopénie, constitue un résultat anormal ; cela suggère que la production insuffisante de plaquettes a contribué de façon significative à la pathogénèse de la thrombocytopénie."]
[null,"leucocytes ou Globules blancs"," /mm3\nou\ngiga/l","4000\nou\n4","10000\nou\n10","Également appelée « numération leucocytaire », la Numération des Globules Blancs (NGB) permet d’établir combien il y a de globules blancs dans un volume de sang donné. En une seule journée, la NGB peut varier de l’ordre de 2000 unités, à cause d’une activité fatigante, du stress, ou d’une infection. Le nombre de globules blancs peut sensiblement augmenter ou baisser en raison de certaines pathologies mais, en tant qu’outil diagnostique, la NGB s’avère des plus utiles lorsqu’on tient également compte de la numération différentielle des leucocytes et de l’état de santé du patient.\nPourquoi pratique-t-on ce test ?\n1. Pour détecter une infection, une inflammation, ou certaines pathologies malignes d’origine sanguine.\n2. Pour déterminer si des évaluations complémentaires sont nécessaires ; par ex. : une numération différentielle des leucocytes ou un prélèvement de moelle osseuse par aspiration ou biopsie.\n3. Pour contrôler la réponse d’un patient à un traitement contre le cancer.\nQuels sont les résultats considérés comme normaux ?\n1. Une numération normale des globules blancs se situe entre 4000 et 10 000 GB par millimètre cube (mm3) de sang total (4 à 10 x 109/l).\nQuelles sont les implications éventuelles en cas de résultat anormal ?\n1. Une numération élevée des globules blancs, appelée leucocytose, indique souvent une infection. Des événements éprouvants, tels qu’un traumatisme, un AVC, ou une crise cardiaque, peuvent également entraîner une élévation transitoire des GB. Certaines pathologies hématologiques malignes se caractérisent par une numération élevée des globules blancs.\n2. Une numération basse des globules blancs, appelée leucopénie, indique souvent une pathologie de la moelle osseuse. Certains produits chimiques toxiques, ainsi que les infections virales, peuvent entraîner une baisse du nombre de GB. La leucopénie est l’une des caractéristiques spécifiques de la grippe ou d’autres pathologies"]
[null,"Polynucléaires neutrophiles"," /mm3\nou\ngiga/l","1800\nou\n1.8","7000\nou\n7","La numération différentielle des leucocytes est utilisée pour évaluer la proportion de chacun des cinq principaux types de globules blancs, ou leucocytes ; à savoir : neutrophiles, lymphocytes, monocytes, éosinophiles et basophiles.\nPourquoi pratique-t-on ce test ?\n1. Pour évaluer la capacité de l’organisme à résister et à vaincre une infection.\n2. Pour déterminer le stade et la gravité d’une infection.\n3. Pour détecter les infections d’origine parasitaire.\n4. Pour détecter et évaluer les réactions allergiques.\n5. Pour détecter et identifier divers types de leucémies et de lymphomes.\nQuels sont les résultats considérés comme normaux ?\nCertains laboratoires font figurer le terme « granulocytes » - cela désigne le nombre cumulé et/ou le pourcentage de globules blancs dont le cytoplasme contient des granulations. Ces globules blancs sont les neutrophiles, les éosinophiles et les basophiles.\nNeutrophiles :  % de cellules = 48 % à 77 %; Valeurs absolues=, 1,8 à 7,0 x 103/mm3 (x 109/litre)\nEn hausse en cas de : • Infections/• Traumatisme/• Troubles métaboliques/• Réponse à un stress/• Pathologie inflammatoire/• Leucémies\n En baisse en cas de : • Aplasie médullaire /• Infections//• Troubles hépatiques ou spléniques/• Pathologies vasculaires impliquant le collagène/• Carence en vitamines"]
[null,"Polynucléaires éosinophiles"," /mm3\nou\ngiga/l",null,"500\nou\n0.5","Éosinophiles : % de cellules  de 0,3 à 7 % ; Valeurs absolues de 0,0 à 0,8 x 103/mm3 (x 109/litre)\nEn hausse en cas de : • Troubles allergiques /• Infections parasitaires/• Pathologies cutanées/• Pathologie maligne/• Divers autres mécanismes\nEn baisse en cas de : • Réponse à un stress / • Traumatisme/• Syndrome de Cushing"]
[null,"Polynucléaires basophiles"," /mm3\nou\ngiga/l",null,"200\nou\n0.2","Basophiles : ¨% de cellules de  0,3 à 2 % ; Valeurs absolues de 0,0 à 0,2 x 103/mm3 (x 109/litre)\nEn hausse en cas de : • Leucémies / • Anémies hémolytiques/• Lymphome hodgkinien/• Pathologie inflammatoire chronique/ • Pathologie rénale\nEn baisse en cas de : • Hyperthyroïdie /• Ovulation/• Grossesse/• Stress"]
[null,"Lymphocytes"," /mm3\nou\ngiga/l","1500\nou\n1.5","4000\nou\n4","Lymphocytes : % de cellules de 16 à 43 % ; Valeurs absolues de 1.5 à 4,0 x 103/mm3 (x 109/litre)\nEn hausse en cas de : • Infections/• Troubles endocriniens/• Troubles immunitaires/• Leucémie lymphoïde chronique/• Pathologies inflammatoires\nEn baisse en cas de :  • Maladie grave /• Traitement par corticostéroïdes/• Immunosuppression/• Chimiothérapie/• Pathologie maligne"]
[null,"Monocytes"," /mm3\nou\ngiga/l","150\nou\n0.15","1000\nou\n1","Monocytes : % de cellules de 0,6 à 9,6 %; Valeurs absolues de 0,15 à 1,0 x 103/mm3 (x 109/litre)\nEn hausse en cas de : • Infections / • Pathologie vasculaire impliquant le collagène/• Leucémies/• Lymphomes\nEn basse en cas de : Immunosuppression"]
[null,"Myélocytes neutrophiles","%",null,1.4]
[null,"IRF","%",2,17,"IRF: Est la fraction immature des réticulocytes et permet de connaître très précocement (quelques jours) et très précisément l'intensité de la stimulation érythropoïétique.  Indication quant à la production des érythrocytes dans la moelle."]
[null,"HFR","%",null,3,"En fonction de l’intensité de la fluorescence, on peut déterminer si les réticulocytes sont très jeunes (HFR : high fluorescence red blood cells) et donc distinguer entre réticulocytose aiguë et chronique.\nSouvent, chez les patients âgés, une anémie peut avoir de multiples origines avec notamment la participation d’un syndrome myélodysplasique. La mesure de la crise réticulocytaire permet dès lors de confirmer la réponse à la vitaminothérapie. Généralement, on observe une augmentation des réticulocytes 48 heures après l’injection de vitamine B12. Dès les premières 24 heures, on pourra également observer une augmentation du pourcentage de réticulocytes immatures (HFR) (valeur normale < 3%)."]
[null,"Vitesse de sédimentation après 1h","mm",0,"Femme:\n jeune <20\n+ 65 ans <25 \n\nHomme :\njeune <15\n+65 ans <20","Ce test permet de mesurer la vitesse à laquelle les érythrocytes (globules rouges) se déposent au fond d’un tube à échantillon réservé au prélèvement sang, pendant une période prédéterminée. La VS, qui est un test sensible mais non spécifique, est bien souvent l’indicateur le plus précoce d’une maladie alors que d’autres tests ou signes physiques sont normaux. La VS augmente généralement de façon prononcée en cas de myélome multiple, de MW et de troubles inflammatoires étendus.\nPourquoi pratique-t-on ce test ?\n1. Pour évaluer l’état des globules rouges.\n2. Pour surveiller une pathologie inflammatoire ou maligne.\n3. Pour faciliter la détection et le diagnostic de pathologies telles que la polyarthrite rhumatoïde, le lupus érythémateux, ou toute autre pathologie des tissus conjonctifs.\nQuels sont les résultats considérés comme normaux ?\n1. La vitesse de sédimentation normale se situe dans une fourchette allant de 0 à 20 millimètres par heure.\n2. Cette vitesse augmente avec l’âge ; il n’est donc pas anormal d’obtenir un résultat de 30 à 40 chez un patient âgé de plus de 65 ans.\nQuelles sont les implications éventuelles en cas de résultat anormal ?\n1. La vitesse de sédimentation des érythrocytes augmente en cas de : myélome multiple, MW, autres cancers, grossesse, anémie et inflammation aiguë ou chronique.\n2. En cas de MW, la viscosité accrue du sérum, due à des concentrations élevées en IgM, peut accroître la VS de façon significative."]
[null,"Lactate Deshydrogenase (LDH)","UI/l",140,400,"La lactate déshydrogénase (LDH ou LD) est une enzyme  qui est retrouvée dans presque tous les tissus mais seule une petite quantité de LDH est  habituellement trouvée dans le sang. Elle reste généralement à l'intérieur des cellules des tissus. Cependant, quand les cellules sont abîmées ou détruites, elles libèrent leur LDH dans le torrent circulatoire sanguin, provoquant ainsi une augmentation de la concentration sanguine de LDH.\nHémolyse : En médecine, la LDH est souvent utilisée comme marqueur de dommage tissulaire. Comme la LDH est abondante dans les globules rouges, elle peut servir de marqueur de l'hémolyse. Un échantillon sanguin qui aurait été traité de façon incorrecte peut avoir des activités élevées faussement-positives de LDH à cause des dommages aux érythrocytes. Turnover (renouvellement) des tissus : D'autres applications du dosage de l'activité de la LDH concernent la destruction des tissus en général ; cela est possible s'il n'y a pas d'autres indices d'hémolyse. On l'utilise pour le suivi des patients cancéreux (en particulier en cas de lymphome ou de cancer du testicule), vu que les cellules cancéreuses se renouvellent rapidement, ce qui fait que les cellules détruites entraînent un taux élevé de LDH.","http://fr.wikipedia.org/wiki/Lactate_d%C3%A9shydrog%C3%A9nase"]
[null,"Protéine C réactive (CRP)","mg/l",null,5,"Le marqueur inflammatoire appelé « protéine C-réactive » (CRP) se situe dans la zone située entre les fractions bêta et gamma d'une Electrophorèse des Protéines Sériques EPPS"]
[null,"Bêta-2 microglobuline","mg/l",null,"<2.5","Les niveaux de microglobuline bêta 2 peuvent s'élever en cas de myélome multiple et de lymphome1.\nCette molécule est excrétée par le rein : en cas d'insuffisance rénale dialysée, son taux sanguin augmente de façon importante2. Elle peut se déposer alors dans différents organes formant une amylose3.\nLa béta-2 microglobuline (B2M) est une protéine retrouvée à la surface de la plupart des cellules et elle est sécrétée dans le sang principalement par les lymphocytes B et les cellules tumorales. Elle est présente dans la plupart des fluides corporels et sa concentration est augmentée par tout ce qui cause une élévation de la production et/ou la destruction cellulaire ainsi que par ce qui active le système immunitaire. Cet examen mesure donc la B2M dans le sang, les urines ou plus rarement le liquide céphalo-rachidien (LCR).\n La B2M sanguine est fréquemment élevée dans des cancers comme le myélome multiple, les leucémies, les lymphomes ainsi que dans les maladies auto-immunes et certaines infections (CMV, VIH…). Puisque la B2M est élevée en cas de cancer du sang, elle est utilisée comme marqueur tumoral. Cependant, elle peut aussi être utilisée comme marqueur de la fonction rénale. Cet article se concentre sur son usage en tant que marqueur tumoral.\n La concentration de B2M dans le LCR peut être élevée en cas de métastases méningées de cancers sanguins (leucémies, lymphomes …) mais peut l’être aussi en cas de sclérose en plaque, certaines infections…"]
[null,"Protéines totales","g/l",66,82,"L’électrophorèse des protéines est une méthode de séparation des protéines présentes dans le sang (sérum) ou les urines. Pendant le test, un courant électrique déplace les protéines à travers une fine couche de gel d’agarose (ou d’acétate de cellulose). La distance de déplacement de chacune des protéines dépend de sa taille, de sa forme et de sa charge électrique. Les protéines séparées peuvent être détectées par l’emploi d’un colorant qui se lie à toutes les protéines et révèle un profil caractéristique de bandes colorées.\n"]
["x","Albumine","%",55,65,"- diminuée dans la malnutrition protéique, les malabsorptions intestinales, la grossesse, certaines maladies rénales (en particulier le syndrome néphrotique), ou hépatiques (cirrhose ou cancer du foie), le syndrome inflammatoire, les fuites  (digestives, cutanées, urinaires) en protéines…\n- augmentée dans les déshydratations"]
[null,"Albumine sérique","g/l",36,50,"- diminuée dans la malnutrition protéique, les malabsorptions intestinales, la grossesse, certaines maladies rénales (en particulier le syndrome néphrotique), ou hépatiques (cirrhose ou cancer du foie), le syndrome inflammatoire, les fuites  (digestives, cutanées, urinaires) en protéines…\n- augmentée dans les déshydratations"]
["x","Alpha-1 globuline","%",1,4,"- diminuées dans l’emphysème (déficit en alpha1-antitrypsine, une maladie congénitale rare), les maladies du foie sévères…\n- augmentées dans les maladies inflammatoires aiguës ou chroniques"]
[null,"Alpha-1 globuline","g/l",1,5,"- diminuées dans l’emphysème (déficit en alpha1-antitrypsine, une maladie congénitale rare), les maladies du foie sévères…\n- augmentées dans les maladies inflammatoires aiguës ou chroniques"]
["x","Alpha-2 globuline","%",6,10]
[null,"Alpha-2 globuline","g/l",4,8,"- diminuées dans l’hyperthyroïdie et les maladies du foie sévères,\n- augmentées dans les maladies inflammatoires aiguës ou chroniques et le syndrome néphrotique"]
["x","Béta-1 globuline","%",5,7]
[null,"Béta-1 globuline","g/l",3,5.5,"Bêta-globulines:\n- diminuées dans la malnutrition\n- augmentées dans la cirrhose (bloc ßg), l’hyperlipémie (augmentation du cholestérol et des triglycérides) et quelques cas de myélomes multiples ou maladies apparentées"]
["x","Béta-2 globuline","%",3,6.5]
[null,"Béta-2 globuline","g/l",2,5,"Bêta-globulines:\n- diminuées dans la malnutrition\n- augmentées dans la cirrhose (bloc ßg), l’hyperlipémie (augmentation du cholestérol et des triglycérides) et quelques cas de myélomes multiples ou maladies apparentées"]
["x","Gamma - globuline","%",12,20,"Gamma-globulines:\n- diminuées dans des désordres immunitaires variés et des déficits immunitaires secondaires\n- augmentées et polyclonales dans des maladies inflammatoires chroniques, la polyarthrite rhumatoïde, le lupus érythémateux disséminé, une immunisation récente; augmentées et monoclonales dans le myélome multiple (maladie de Kahler), la macroglobulinémie de Waldenström, les gammapathies monoclonales de signification indéterminée…"]
[null,"Gamma - globuline","g/l",8,16,"Gamma-globulines:\n- diminuées dans des désordres immunitaires variés et des déficits immunitaires secondaires\n- augmentées et polyclonales dans des maladies inflammatoires chroniques, la polyarthrite rhumatoïde, le lupus érythémateux disséminé, une immunisation récente; augmentées et monoclonales dans le myélome multiple (maladie de Kahler), la macroglobulinémie de Waldenström, les gammapathies monoclonales de signification indéterminée…"]
[null,"estimation Pic monocl.","g/l",null,null,"estimation du Pic monoclonal \nla mesure par estimation sur l'electrophorèse du pic monoclonale est le mesure essentielle dans la MW -son suivi permet d'en voir l'évolution- il est souhaitable qu'elle soit faite dans le même labo "]
[null,"chaines libres immunoglobulines plasmatiques Kappa","mg/l","3,3","19,4","La mesure des différents taux de chaînes légères apporte une aide au diagnostic et au suivi des myélomes multiples, des néoplasmes lymphocytaires, des macroglobulinémies de Waldenstrom, des amyloses, des maladies de dépôt des chaînes légères et des maladies des tissus connectifs comme le lupus érythémateux disséminé. Elles ne peuvent cependant remplacer les tests classiques.","https://www.biomnis.com/referentiel/liendoc/precis/CHAINES_LEGERES_LIBRES.pdf"]
[null,"chaines libres immunoglobulines plasmatiques Lambda","mg/l","5,7","26,3"]
["x","IgM pondéral","g/l\nou\nmg/dl","0.4\nou\n40","2.3\nou\n230","Standard international : CRM 470\nMesure par néphélométrie\nLa néphélométrie est une technique permettant de mesurer l’aspect « trouble », ou turbidité, d’un liquide telle que\nl’eau potable. C’est cette turbidité qu’on analyse grâce au néphélomètre. Le néphélomètre mesure la quantité de\nlumière perdue en raison de sa diffusion lorsqu’elle passe à travers le liquide. La lumière est dispersée en raison des\nparticules ou des grosses molécules, telles que les IgM, présentes en suspension dans le sérum."]
["x","IgA pondéral","g/l\nou\nmg/dl","0.7\nou\n70","4\nou\n400","Standard international : CRM 470"]
["x","IgG pondéral","g/l\nou\nmg/dl","7\nou\n700","16\nou\n1600","Standard international : CRM 470"]
["x","Diurèse","l",null,null,"La diurèse est la production des urines dans son ensemble, de façon qualitative et quantitative, souvent par 24 heures."]
["x","Protéinurie","g/l",null,0.2," < 0.20 g /l  source Doctissimo , retiré de la liste de saisie","http://www.doctissimo.fr/html/sante/analyses/ana_proteines16.htm"]
[null,"Créatinine sanguine","µmol/l\nou\nmg/l","50\nou \nF : 4\nH:6","104\nou\nF : 10\nH : 12","La créatinine, issue de la dégradation de la créatine, est une molécule synthétisée par le foie, nécessaire à la production d’énergie au niveau des muscles. Lorsque tout fonctionne correctement, la créatinine (qui est un déchet organique) est véhiculée par le sang et éliminée dans les urines après avoir été filtrée au niveau rénal. Ainsi, une augmentation de créatinine dans le sang traduit un défaut d’élimination et donc un problème au niveau des reins (une insuffisance rénale le plus souvent). Pour évaluer ce qu’on appelle la clairance de la créatinine (la capacité à éliminer la créatinine), on utilise des formules médicales spécifiques."]
["x","Jaffe Cinétique compensée",null,null,null,"méthode de dosage de la créatine plasmatique"]
["x","Créatinine urinaire","µmol/l"]
["x","Clairance calculée","ml/s"]
["x","Clairance calculée","ml/min",null,null,"Clairance calculée\nMéthode Cockcroft moins utilisée. La méthode actuelle est le débit de filtration glomérulaire (DFG) calculée par l’équation CKD-EPI.\nPersonne en bonne santé : DFG > 70ml/mn/1,73m2 (surface corporelle moyenne)\n60-89 : maladie rénale chronique\n30-59 : insuffisance rénale modérée\n15-29 : insuffisance rénale sévère\n"]
["x","Surface corporelle","m²",null,null,"utilisation d'une ABAQUE: La surface corporelle est obtenue par l'intersection de l'échelle centrale avec la ligne joignant la taille et le poids. "]
["x","Clairance rapportée à 1,73 m²","ml/s",1.3,null,"La clairance de la créatinine mesure le rapport entre le débit d'élimination de la créatinine par les reins (à travers l'urine) et sa concentration dans le sang. La créatinine étant éliminée uniquement par filtration rénale, la mesure de sa clairance permet d'évaluer la vitesse de filtration des reins."]
[null,"Poids","kg"]
[null,"Taille","cm"]
[null,"IMC",null,18.5,25,"L'indice de masse corporelle (IMC) est une grandeur qui permet d'estimer la corpulence d'une personne."]
[null,"formule mdrd","ml/min/1.73m²",60,null,"Mesure de l'insuffisance rénale: \nFormule MDRD (Modification of the Diet in Renal Disease) (Levvey, 2000) :  \n186.3 × (créatininémie en µmol/L / 88.4)-1.154 × âge-0.203 (x 0,742 si sexe féminin, x 1,21 si peau noire)"]
[null,"formule CKD","ml/min/1.73m²",60,null,"Mesure de l'insuffisance rénale: \nFormule de Cockroft & Gault (1976) : \n[(140 - âge) x poids / créatininémie en µmol/L)] x k (avec k = 1,23 chez l'homme, k = 1,04 chez la femme)\nLa formule de Cockroft est de moins en moins utilisée compte-tenu de son inexactitude chez les sujets âgés et les sujets en surpoids notamment. Par exemple, chez le sujet âgé, cette formule sous-estime la fonction rénale, pouvant conclure à tort au diagnostic d'insuffisance rénale"]
[null,"Taux de Prothrombine","%",70,100,"Le taux de prothrombine permet de mesurer la vitesse de coagulation du sang (temps de Quick).  Le taux de prothrombine est la transformation d'un temps de coagulation (temps de Quick) en pourcentage"]
["x","Temps de Quick Malade","s",null,null,"Le taux de prothrombine permet de mesurer la vitesse de coagulation du sang (temps de Quick). Ce taux est exprimé en pourcentage ou en secondes. Chez les patients sous anticoagulants, les résultats sont exprimés en INR (International Normalised Ratio), un ratio qui donne des résultats du taux de prothrombine plus précis. "]
["x","Temps de Quick Témoin","s",null,null,"Le taux de prothrombine permet de mesurer la vitesse de coagulation du sang (temps de Quick). Ce taux est exprimé en pourcentage ou en secondes. Chez les patients sous anticoagulants, les résultats sont exprimés en INR (International Normalised Ratio), un ratio qui donne des résultats du taux de prothrombine plus précis. "]
["x","INR",null,null,null,"Le taux de prothrombine permet de mesurer la vitesse de coagulation du sang (temps de Quick). Ce taux est exprimé en pourcentage ou en secondes. Chez les patients sous anticoagulants, les résultats sont exprimés en INR (International Normalised Ratio), un ratio qui donne des résultats du taux de prothrombine plus précis. "]
["x","Temps de Céphaline Activée Malade","s",27,39,"TCA : Le temps de céphaline activée peut être demandé pour un patient qui souffre d'une thrombose ou de saignements anormaux. Cette analyse est également prescrite dans le cadre du suivi d'un traitement par héparine standard, visant à prévenir l'apparition de thromboses. Le temps de céphaline activée est alors mesuré régulièrement et peut donner lieu à des ajustements de posologie en fonction des résultats obtenus. Le temps de céphaline activée peut être demandé pour effectuer un bilan pré-opératoire, chez les patients qui présentent des tendances aux saignements et/ou si l'intervention risque de provoquer d'importantes pertes de sang. "]
["x","Temps de Céphaline Activée Témoin","s"]
["x","Rapport Malade/Témoin",null,null,1.2,"Le temps de céphaline activée est mesuré en secondes, et le résultat est interprété au moyen d'un témoin. Il est considéré comme normal lorsqu'il dure une trentaine de secondes. Le TCA est dit allongé lorsque le ratio patient/témoin est supérieur à 1,2. "]
["x","Fibrinogène","g/l",2,4,"Le fibrogène est une protéine soluble synthétisée par le foie. L'augmentation de son taux dans le sang indique des syndromes inflammatoires pouvant résulter de plusieurs maladies. Sa diminution traduit le plus souvent une insuffisance hépatique. Cette protéine est à surveiller car elle joue un rôle dans la formation de caillot. \nLa mesure du fibrinogène contribue à évaluer la capacité à former des caillots sanguins. Elle peut compléter un diagnostic lorsque d’autres tests de coagulation sont anormaux : taux de prothrombine (TP, INR), temps de céphaline (TCA), ou en cas de saignement inexpliqué ou anormalement long. Elle permet le diagnostic de coagulation intravasculaire disséminée (CIVD) ou \"syndrome de défibrination\", correspondant à une anomalie de la coagulation. \nCe dosage est également utile en cas de :\n·Syndromes inflammatoires ;\n·Insuffisance hépatique (entraînant une diminution du taux de fibrinogène) ;\n·Evaluation de l’effet d’un traitement \"fibrinolytique\", destiné à dissoudre un caillot sanguin en cas de thrombose."]
["x","Fer sérique","µmol/l",10.6,28.3,"Le fer sérique désigne le taux de fer qui n'est pas fixé aux globules rouges mais qui est en circulation dans le sérum sanguin (ou plasma). Ce taux peut varier dans certaines circonstances. Son dosage (suite à une prise de sang) permet de vérifier si la concentration sanguine en fer est normale. "]
["x","Colorimétrie Hitachi Roche Diagnostics","µg/100ml",59,158,"??"]
[null,"Ferritine","µg/l",30,300,"Glycoprotéine renfermant des atomes de fer sous forme ferrique. La ferritine est principalement intracellulaire où elle constitue une forme de réserve échangeable. Son taux sérique est directement corrélé avec les réserves en fer de l'organisme. La ferritine diminue dans les carences martiales. Elle augmente en cas de surcharge en fer, de syndrome inflammatoire, d'atteintes hépatiques et dans certaines néoplasies.","BIOMNIS"]
["x","Transferrine","g/l",1.9,3.04,"La transferrine, également dénommée sidérophiline, est une protéine contenue dans le sang qui a pour principale fonction de transporter le fer au niveau de l'organisme. Elle exerce un rôle modulateur et réajuste la quantité de fer circulant, en fonction des besoins de l'organisme. Habituellement, seulement un tiers de la transferrine sanguine circule couplée à une molécule de fer. Ainsi, le dosage d'un indicateur appelé taux de saturation de la transferrine, qui étudie sur un prélèvement sanguin le pourcentage de la transferrine associée au fer reflète la quantité de fer présente dans l'organisme. Si ce taux est abaissé, une carence en fer est suspectée et s'il est augmenté, d'autres pathologies sont évoquées, notamment l'hémochromatose, surcharge très importante du fer de l'organisme secondaire à une anomalie génétique. "]
["x","Capacité Totale de Fixation du fer","µmol/l",45,100]
["x","Coefficient de saturation",null,0.2,0.55000000000000004,"Avec la capacité totale de fixation de la transferrine, le coefficient de saturation désigne un marqueur du métabolisme du fer. Il permet de déterminer les réserves en fer d'une personne et d'adopter un traitement approprié en cas de surcharge ou de carence. "]
["x","Acide Folique","ng/ml",3,17,"La vitamine B9, autre nom de l’acide folique (folate, folacine ou vitamine M), est une vitamine hydrosoluble. Cette vitamine est nécessaire dans la fabrication des globules rouges. Elle est prescrite en cas d'hamolyse.\nL'acide folique est le précurseur métabolique d'une coenzyme, le tétrahydrofolate (FH4 ou THF4), impliquée notamment dans la synthèse des bases nucléiques, purines et pyrimidines, constituant les acides nucléiques (ADN et ARN) du matériel génétique. \n"]
["x","chimiluminescence DPC Immulite 2000","nmol/l",7,39,"dosage des IgE spécifiques ?"]
["x","Vitamine B12","pg/ml",193,982]
["x","chimiluminescence DPC Immulite 2000","pmol/l",142,723]
["x","Osmolarité calculée","mosmol/L",null,null,"L'osmolalité plasmatique est proportionnelle au nombre total d'ions et de particules non dissociées présentes dans le sang qui permettent d'exercer une pression qui retient une quantité raisonnable d'eau. En cas de déshydratation (fuite de l'eau), l'osmolalité augmente ; inversement l'osmolalité diminue en cas d'hyperhydratation \n280 - 303 mOsm / kg d'eau plasmatique. \nIl est également possible de déterminer l'osmolarité plasmatique, qui est la valeur exprimée en mOsm /l. "]
["x","Acide urique (sang)","µmol/L",null,null,"Le médecin prescrit un dosage sanguin (on parle d’uricémie) et/ou un dosage urinaire de l’acide urique pour :\n• détecter la goutte ;\n• évaluer le bon fonctionnement des reins ;\n• il peut aussi être demandé en cas de grossesse ;\n• ou chez les personnes en surpoids.\nNotons que l’analyse de la concentration d’acide urique dans l’urine permettra aussi de mieux comprendre l’origine d’un taux élevé d’acide urique dans le sang.\nDans le sang, la valeur normale d’acide urique est comprise entre 35 et 70mg/L."]
["x","CO2 Total","mmol/l",null,null,"Le dosage des gaz du sang permet d'apprécier la quantité d'oxygène et de gaz carbonique contenue dans le sang artériel et son équilibre acido-basique (taux d'acidité). Il permet d'évaluer l'efficacité des échanges pulmonaires (épuration en gaz carbonique et enrichissement en oxygène). \nLe maintien d'un taux d'acidité normal est fondamental pour le fonctionnement de tous les organes et en particulier le foie et le cerveau. La régulation est faite de manière instantanée par le poumon. \nLorsque tout fonctionne normalement, le poumon et le cœur permettent une adaptation immédiate et continue de l'apport de l'oxygène et de l'élimination du gaz carbonique. \nDosage des gaz du sang\nLe médecin prescrit une analyse des gaz du sang en cas de : •difficultés respiratoires, \n•essoufflement, \n•une respiration rapide (hyperventilation).\nC'est un examen essentiel pour la surveillance de l'insuffisance respiratoire. L'analyse des gaz du sang permet d'en suivre l'évolution et d'adapter au mieux le traitement. "]
["x","PSA","µg/l",null,4,"L'antigène prostatique spécifique, ou PSA (prostate specific antigen en anglais) est une protéine d'origine prostatique, fabriquée naturellement par la prostate, qui sert à la liquéfaction du liquide séminal, facilitant ainsi le déplacement des spermatozoïdes. Le dosage sanguin de l'antigène spécifique prostatique est utilisé pour le diagnostic du cancer de la prostate. Le PSA est dosé dans la mesure où il est un marqueur tumoral. Il peut aussi être utilisé dans le cadre d'une surveillance du cancer de la prostate, suite à la mise en place d'un traitement. "]
["x","TCK",null,null,null,"Le temps de céphaline activée (TCA, PTT ou APTT en anglais pour (activated) partial thromboplastin time) est un test semi-global de la coagulation sanguine, fait sur un prélèvement sanguin. Il s'agit de mesurer le temps de coagulation d'un plasma sanguin recalcifié en présence de céphaline (substitut plaquettaire) et d'un activateur particulaire (silice, kaolin, acide ellagique...).\nIl fait partie, avec le taux de prothrombine et la numération des plaquettes, des trois tests principaux de détection d'une anomalie de la coagulation, faits à la demande avant une intervention chirurgicale par exemple. Il sert également pour s'assurer de la bonne efficacité d'un traitement anti-coagulant par héparine.\nMesure du temps de céphaline activée:\nIl s'agit de mesurer le temps de coagulation d'un plasma sanguin recalcifié en présence de céphaline (substitut plaquettaire) et d'un activateur particulaire (silice, kaolin, acide ellagique...).\nLe résultat est exprimé en secondes ou sous forme d'un R a t i o = T C A p a t i e n t / T C A t e m o i n \nLe temps du témoin est déterminé en réalisant une moyenne d'une cinquantaine de patients normaux, ce temps pouvant varier d'un réactif à l'autre.\n Il n'est pas nécessaire d'être à jeun pour le prélèvement sanguin. C'est un test de réalisation rapide et peut donc être réalisé en urgences : le délai d'obtention du résultat est inférieur à une heure.\n"]
["x","Enzymatique Hexokinase","g/l",null,null,"Il s’agit d’un test enzymatique UV (méthode à l’héxokinase) utilisé dans la détermination quantitative du glucose dans le sérum, le plasma et l’urine."]
["x","FORMULE DE FRIEDWALD",null,null,null,"Elle permet de calculer le taux de LDL-cholestérol à partir du cholestérol total, du HDL et des triglycérides\nElle n'est applicable que si les TG < 4 g/l\n\n La formule de Friedwald initiale s'écrit : \nPour les g/l : LDL Chol = Chol total - HDL Chol - TG/5 \n Pour les moles/l : LDL Chol = Chol total - HDL Chol - TG/2"]
["x","TSH",null,null,null,"La TSH (thyréostimuline) est le nom d’une hormone sécrétée par l’hypophyse. Cette hormone est importante car elle stimule la glande thyroïde pour qu’elle produise et libère les hormones thyroïdiennes (la thyroxine ou T4 et la tri iodo thyronine ou T3), indispensables au bon fonctionnement de notre métabolisme. Lorsque le taux de la TSH augmente, les taux d’hormones thyroïdiennes diminuent, et vice-versa.  "]
["x","Vitamine D2/D3",null,null,null,"La vitamine D occupe une fonction essentielle dans le métabolisme osseux. Elle favorise l'absorption intestinale du calcium et du phosphore. Par son action, elle participe à la consolidation des os, à la bonne minéralisation des dents, et au renforcement musculaire. Elle joue notamment un rôle essentiel dans le traitement de l'ostéoporose. Selon différentes études, la vitamine D pourrait également jouer un rôle dans la prévention du cancer du sein et du cancer colorectal. \nVitamine D3\nLa vitamine D3 (cholécalciférol) est la principale forme de vitamine D chez l'homme : elle représente 80 à 90% des apports en vitamine D (à laquelle elle est souvent assimilée). \nVitamine D2\nL'autre forme de la vitamine D est la vitamine D2 (ergocalciférol). \nLa vitamine D3 est synthétisée par les cellules épidermiques de la peau, sous l'action des rayonnements UVB du soleil. L'exposition au soleil est donc la principale source d'apports en vitamine D. L'alimentation est une autre source d'apport en vitamine D3. Elle est notamment présente dans le jaune d'œuf, les poissons gras et l'huile de foie de morue. L'alimentation est également à l'origine des apports en vitamine D2, dans certains végétaux, ainsi que dans les comprimés vitaminés. "]
["x","vitamine B12",null,null,null,"La vitamine B12, également appelée cobalamine, est une vitamine hydrosoluble essentielle au fonctionnement normal du cerveau (elle participe à la synthèse des neurotransmetteurs), du système nerveux (elle est indispensable au maintien de l'intégrité du système nerveux et tout particulièrement de la gaine de myéline qui protège les nerfs et optimise leur fonctionnement) et à la formation du sang. C'est l'une des huit vitamines B. Elle est normalement impliquée comme cofacteur dans le métabolisme de chacune des cellules du corps humain, plus particulièrement dans la synthèse de l'ADN et sa régulation ainsi que dans la synthèse des acides gras et dans la production d'énergie.\nUn déficit en vitamine B12 entraîne une forme d'anémie dont l'une des caractéristiques est la présence de globules rouges fortement augmentés en taille (macrocytose).\n"]
["x","FSH",null,null,null,"L'hormone folliculo-stimulante, appelée hormone FSH est une hormone gonadotrophine qui, associée à l'hormone lutéinisante, agit sur la fonction des glandes sexuelles. Secrétée par la glande hypophyse (partie du cerveau). Elle intervient principalement dans la maturation des follicules ovariens chez la femme et dans la formation de spermatozoïdes dans les tubes séminifères chez l'homme. La FSH est la cause principale des bouffées de chaleur survenant lors de la ménopause en agissant sur le système cardio-vasculaire. "]
["x","LH",null,null,null,"L'hormone lutéinisante (LH plasmatique) est une des deux hormones gonadotrophines qui, associée à l'hormone folliculo-stimulante (FSH), agit sur la fonction des glandes sexuelles chez la femme et chez l'homme. Cette hormone est produite par les cellules gonadotropes du lobe antérieur de l'hypophyse (glande endocrine située à la base du cerveau). "]
["x","Prolactine",null,null,null,"La prolactine est une hormone peptidique sécrétée par les cellules lactotropes de la partie antérieure de l'hypophyse (adénohypophyse). Ses rôles sont multiples, elle intervient notamment dans la lactation, la reproduction, la croissance, l'immunité et le comportement."]
["x","Facteur Willebrand activité VWF",null,null,null,"Pour aider à déterminer la cause de saignements excessifs ou épisodiques, pour diagnostiquer une maladie de Willebrand et pour différencier les différents types de cette maladie.\nLa maladie de VW est le désordre hémorragique héréditaire le plus fréquent. C'est un groupe de maladies associées à des saignements prolongés liés à un déficit en FVW ou un FVW anormal"]
["x","Crosslaps",null,null,null,"Principales Indications :  Evaluation individuelle de la résorption osseuse : le test est utilisé comme aide au suivi de la réponse à un traitement anti-résorptif (traitement aux biphosphonates, traitement hormonal substitutif, par ex.) chez les femmes postménopausées et les personnes présentant une ostéopénie."]
[null,"Transaminase \nSGOT/ASAT","Ul/l",10,40,"Les transaminases sont des enzymes présentes à l’intérieur des cellules, en particulier au niveau du foie et des muscles. Elles interviennent dans une multitude de réactions biologiques.\nOn distingue deux types de transaminases :\n• les ASAT (aspartate aminotransférases), surtout présente dans le foie, les muscles, le cœur, les reins, le cerveau et le pancréas\n• les ALAT (alanine aminotransférases), relativement spécifiques du foie\n\nLe dosage de ces enzymes est utilisé pour détecter un problème au niveau du foie : leur augmentation dans le sang est due à une libération anormale par des cellules hépatiques endommagées, par exemple en raison d’une hépatite, d’une intoxication alcoolique ou médicamenteuse, etc."]
[null,"Transaminase \nSGPT/ALAT","Ul/l",10,41]
[null,"PAL (phosphatase \nalcaline)","U/L",40,150,"Les phosphatases alcalines (PAL) sont des enzymes qui se trouvent dans la plupart des tissus de l’organisme, en particulier les os, le foie, l’intestin, les reins, etc. Elles sont aussi présentes dans le placenta en cours de grossesse.\nLes taux de phosphatases alcalines augmentent naturellement pendant la croissance et pendant la grossesse. Une augmentation en dehors de ces périodes peut refléter la présence d’une maladie hépatique (cholestase) ou osseuse."]
[null,"GGT (Gamma GT)","U/L",10,60,"Les gamma GT (Gamma-Glutamyl transpeptidase) sont des protéines produites par les cellules de l'organisme, et notamment par les cellules du foie (les hépatocytes).\n Leur augmentation ou leur diminution dans l'organisme n'entraîne pas de conséquences directes (symptômes, douleurs, etc.) mais elle permet de souligner un dysfonctionnement du foie.\nLa mesure du taux de gamma-GT s'inscrit dans le cadre d'un bilan hépatique réalisé en routine, ou lorsque le médecin pense qu'il peut exister une maladie du foie ou des voies biliaires."]
[null,"Bilirubine totale","µmol/L",2,22,"La bilirubine est un pigment non soluble dans l’eau de couleur jaune, issu de la dégradation de l’hémoglobine. Elle est le principal colorant de la bile. Elle est produite dans les cellules de la rate et de la moelle osseuse, et est ensuite transportée dans la circulation sanguine par l’albumine pour rejoindre le foie. Une fois présente dans le foie, elle est conjuguée à l’acide gluconique et devient soluble dans l’eau. Dans les intestins, la bilirubine conjuguée donne la couleur brune aux selles. \n Le médecin prescrit un dosage de la bilirubine s’il suspecte par exemple :\n• des affections hépatobiliaires : affections qui touchent le foie (l’hépatite étant la plus fréquente) et/ou les voies biliaires\n• des syndromes hémolytiques (caractérisés par une destruction anormale des globules rouges)\n• ou encore un ictère du nouveau-né, appelé aussi jaunisse du nouveau-né."]
[null,"Haptoglobine","g/L",0.9,2.6,"L'haptoglobine est une protéine de la réaction inflammatoire, qui s'élève assez tardivement mais qui permet de suivre l'évolution d'une réaction inflammatoire. Elle permet également de suspecter un phénomène d'hémolyse intravasculaire, même minime (elle récupère le fer de l'hémoglobine lorsqu'il y a destruction des globules rouges)."]
[null,"Bicarbonate","mmol/l",22,30,"L'intérêt physiologique du dosage des bicarbonates est celui de tampon acide carbonique/bicarbonates. Ce tampon joue un rôle particulièrement important afin de maintenir le pH c'est-à-dire l'acidité sanguine ainsi que dans l'équilibre acido-basique.\nLes valeurs normales des bicarbonates dans le sang sont (les valeurs normales varient selon la méthode) :\n53,5-62,4 volumes pourcentage soit 24 à 28 mmol/L. (Pour des exemples, demander à son médecin !)"]
[null,"Sodium (sang)","mmol/l",135,145,"Le sodium est une substance minérale, dont le symbole chimique est Na. Il joue un rôle essentiel dans le maintien de l'hydratation des cellules et de l'organisme en entier."]
[null,"Potassium (sang)","mmol/l",3.5,5,"Le potassium est un minéral omniprésent dans l’organisme : c’est le principal ion présent à l’intérieur des cellules. Les trois quarts du potassium sont retrouvés au sein des cellules musculaires, dont les cellules cardiaques.\nIl intervient également dans de nombreux processus métaboliques, et dans la transmission des messages nerveux et la contraction des muscles.\nEn cas de valeur anormalement faible du potassium dans le sang, le médecin peut demander d’analyser le potassium urinaire (kaliurèse) pour voir si les reins l’éliminent de façon excessive ou si la perte est plutôt digestive.\nÀ titre indicatif, les concentrations sanguines normales de potassium sont comprises entre 3,5 et 5 mmol/L (millimoles par litre)."]
[null,"Chlore (sang)","mmol/l",95,105,"Le chlore est un électrolyte présent dans l’organisme (un élément chimique capable de transporter une charge électrique dans un liquide). Il se trouve dans les liquides extracellulaires de notre organisme, dont le sang. Il est apporté par l’alimentation, et notamment par le sel de cuisine et les aliments d’origine animale.\nLe chlore s’associe au sodium ou au potassium pour jouer les rôles suivants :\n• réguler la pression osmotique, soit l’équilibre entre les liquides extracellulaires et intracellulaires. Il permet donc de maintenir, avec le sodium, un bon état d’hydratation\n• maintenir l’équilibre acido-basique\n• favoriser, indirectement, le transport du CO2 dans le sang"]
[null,"Urée (sang)","mmol/l",2.5,7,"variabilité chez H/F et adulte < et  > à 55 ans :\nH < 55 ans : 3 à 7.5\nH > 55 ans : 3.3 à 8.3\nF < 55 ans: 2.5 à 7\nF > 55 ans : 3.3 à 8.3"]
["x","Trou anionique","mmol/l",null,16,"examen assez peu utilisé sauf en réa, analyse retirée de saisie"]
["x","Protéines (sang)","g/L",65,80,"Protéines TOTALES du sang déjà mesuré grace à l'electrophoère des protéines, analyse retirée de saisie"]
[null,"Calcium","mmol/l",2.1,2.75,"Le calcium est le minéral le plus commun dans le sang et il est aussi l’un des plus importants. Il est nécessaire au bon fonctionnement de toutes les cellules de l’organisme: il aide à construire des os et des dents solides, il est impliquée dans la fonction cardiaque, la contraction musculaire, la signalisation nerveuse ou encore la coagulation sanguine."]
[null,"Glycémie","g/l",0.7,1.1000000000000001,"La glycémie  est la concentration de glucose dans le sang, ou plus exactement dans le plasma sanguin. La régulation de la glycémie fait intervenir des hormones (insuline, glucagon) ainsi que divers organes (pancréas, foie, rein).\nLes valeurs de glycémie varient selon l’état nutritionnel et l’âge.\nUne glycémie à jeun est considérée normale si elle est comprise entre 0,74 g/l et 1,06 g/l (4,04 et 5.83 mmol/l) avec une moyenne de 0,83 g/l (4.565 mmol/l)."]
[null,"Cholestérol total","g/l",null,2,"Le cholestérol est un corps gras indispensable au fonctionnement de l’organisme. Il entre notamment dans la composition des membranes des cellules et sert, entre autres, de « matière première » à la synthèse de nombreuses hormones (stéroïdes).\nle cholestérol en excès peut être nuisible, car il a tendance à s’accumuler dans les vaisseaux sanguins et à former des plaques dites d’athérosclérose qui peuvent, à terme, augmenter le risque cardiovasculaire."]
[null,"Triglycérides","g/l",null,2]
[null,"HDL Cholestérol","g/l",0.4,null,"Le cholestérol n’est pas soluble dans le sang : il doit donc y être transporté par des protéines, avec qui il forme des complexes que l’on appelle lipoprotéines.\nLe cholestérol peut, dans le sang, être associé à plusieurs types de « transporteurs » :\n HDL (pour high-density lipoproteins) : le cholestérol-HDL est souvent désigné comme le « bon » cholestérol. En effet, les HDL ont pour fonction de « pomper » le cholestérol sanguin et de le transporter jusqu’au foie, où il est stocké. Elles ont donc pour effet de diminuer le taux de cholestérol dans le sang, et un taux élevé de HDL est associé à un risque cardiovasculaire plus faible."]
[null,"Rapport Cholestérol \ntotal/HDL",null,null,5,"< 5 Homme     <4,4 Femme"]
[null,"LDL Cholestérol","g/l",1.6,null,"LDL- cholestérol   (pour low-density lipoproteins) : \n Le cholestérol-LDL est considéré comme le « mauvais» cholestérol. La raison ? Les LDL amènent le cholestérol du foie vers le reste de l’organisme. Si le LDL-cholestérol est présent en trop grandes quantités, il est associé à un risque cardiovasculaire accru."]
[null,"Protéinurie","g/24h\nou\nmg/24h",0.05,"0.15\nou\n150","Une protéinurie est la présence de protéines dans l'urine, qu’elle soit physiologique ou pathologique. Elle peut être quantifiée en mg par 24 h. On parle parfois d'albuminurie, cette dernière étant la protéine la plus présente quantitativement.\n< 150 mg / 24 h source Doctissimo","http://www.doctissimo.fr/html/sante/analyses/ana_proteines16.htm"]
[null,"Albuminurie",null,null,null,"Définition du mot Albuminurie : Présence d’albumine dans les urines qui signe un trouble de la filtration rénale quel qu’il soit. ","https://fr.wikipedia.org/wiki/Prot%C3%A9inurie"]
[null,"chaines libres immunoglobulines urinaires Kappa","mg/l",null,10,"La présence, dans le sérum ou les urines, d'une immunoglobuline monoclonale définit les gammapathies monoclonales. Cette situation témoigne de l'émergence d'un clone de cellules B produisant des molécules d'immunoglobulines identiques sans préjuger du caractère bénin ou malin de ce clone. Il y a donc des gammapathies monoclonales traduisant une prolifération maligne, dont les principales sont myélome et macroglobulinémie de Waldenström, et d'autres \"bénignes\", mais pouvant représenter une phase \"pré-maligne\" à risque d'évolution maligne.","https://www.biomnis.com/referentiel/liendoc/precis/CHAINES_LEGERES_LIBRES.pdf"]
[null,"chaines libres immunoglobulines urinaires Lambda","mg/l",null,5]

{"sheet":"Guide utilisateur","index":6,"n_rows":110,"n_cols":2,"rows_kept":110,"cut":false,"hidden":false,"merged":[]}
[]
[null,"Guide utilisateur \n(outil de saisie et de présentation de vos données médicales à l'usage des patients de Waldenström)"]
[null,"Objectif de l’outil :"]
[null,"L’objectif de cet outil est de fournir au patient de Waldenström la possibilité de recueillir ses données médicales tout au long de sa pathologie dans un document informatique de type Excel ou LibreOffice Calc. "]
[null,"Les données seront des résultats d’analyses médicales ainsi que toute information jugée utile par le patient pour lui permettre de mesurer les évolutions de sa pathologie et les éventuelles corrélations avec des événements extérieurs (maladies, traitement,…). Le patient pourra ainsi personnaliser et partager ce recueil de données avec ses médecins."]
[null,"Cet outil a une dimension pédagogique et permet aux patients de se familiariser avec les particularités de sa pathologie."]
[null,"Sommaire du guide : cliquez sur les liens hypertextes ci-dessous pour aller directement au § du guide"]
[null,"-> Structure du document "]
[null,"-> Page d'Accueil"]
[null,"-> Page de Saisie"]
[null,"-> Page État de santé"]
[null,"-> Page Principaux résultats"]
[null,"-> Page Courbes"]
[null,"-> Logiciels, Support, Messages Alertes, Sauvegarde"]
[null,"-> Retour page Accueil"]
[]
[]
[null,"Structure du document :"]
[null,"La navigation entre les onglets se fait au moyen de boutons. Il vous suffit de cliquer sur ces boutons pour passer d'une page à une autre."]
[null,"À tout moment vous pouvez revenir sur la page d'accueil en cliquant sur le bouton :"]
[null,"Nota: Lorsque vous passez la souris sur un bouton votre curseur change d'aspect. Exemple : J"]
[null,"Vous ne pouvez selectionner que les cellules dans lesquelles vous pouvez entrer de l'information, les autres cellules sont verrouillées et inactives."]
[]
[]
[]
[]
[]
[]
[]
[]
[]
[]
[]
[]
[]
[]
[]
[]
[]
[]
[]
[]
[]
[]
[]
[]
[]
[]
[]
[]
[]
[]
[]
[null,"Page d'accueil"]
[null,"C'est la page qui vous permet de naviguer sur toutes les autres pages de ce fichier."]
[null,"Vous pouvez imprimer cette page."]
[null,"Commencez par renseigner vos identifiants personnels."]
[]
[null,"Page de saisie"]
[null,"Saisie : Pour chaque ligne de saisie commencez par entrer une date. Respectez le format date : JJ/MM/AAAA.  Exemple : 05/03/2015. Si le format date est incorrect, les tableaux et les graphiques ne peuvent se mettre à jour dans l'ordre chronologique. Les dates saisies devront être postérieures à 1980."]
[null,"Ne sautez pas de ligne et n'oubliez pas de saisir la date. Vous n'êtes pas obligé de saisir dans l'ordre chronologique. Entrez vos nouvelles valeurs dans une nouvelle ligne à la suite des lignes déjà complétées."]
[null,"Après la saise de vos données, cliquez sur le bouton 'Données ordre chrono'. Ceci permettra de les ranger dans l'ordre chronologique."]
[null,"La page 'Principaux résultats' et les graphiques de la page 'Courbes' se mettent automatiquement à jour."]
[null,"Navigation : Pour naviguer à l'intérieur de la page, vous pouvez utiliser les boutons à gauche de la page ou l'ascensseur et la barre de navigation horizontale."]
[null,"Les colonnes A à E sont figées. C'est normal, cela permet de voir en permanence la date et l'évènement correspondant à votre saisie. Les lignes 1 à 15 sont figées également afin de voir en permanence l'intitulé des analyses et leurs unités."]
[]
[null,"Page État de santé :"]
[]
[]
[null,"Page des Principaux résultats :"]
[null,"Cette page est une selection des principales analyses importantes dans le suivi de votre pathologie. Elle se met à jour automatiquement à partir des données que vous avez entrées dans la page 'Saisie'"]
[null,"Vous ne pouvez rien écrire dans cette page, seulement visualiser et imprimer"]
[null,"Vous pouvez imprimer les pages que vous souhaitez. La mise en page est déjà faite, il suffit de lancer l'impression"]
[null,"Personnalisez vos informations :"]
[null,"Si vous souhaitez retirer de cette page une ou plusieurs analyse(s) qui ne vous interesse(nt) pas pour le suivi de votre pathologie, vous pouvez la faire disparaitre en cliquant sur le bouton approprié. \nExemple :"]
[null,"Vous pouvez faire figurer dans le tableau uniquement les analyses que vous et votre médecin souhaitez suivre dans le temps. "]
[null,"À tout moment vous pouvez faire apparaitre tous les principaux résultats en cliquant sur : "]
[]
[]
[null,"Page Courbes : "]
[null,"Cette page affiche les graphiques correspondant aux principaux résultats."]
[null,"Vous ne pouvez rien écrire dans cette page, seulement visualiser et imprimer"]
[null,"Vous pouvez imprimer les pages que vous souhaitez. La mise en page est déjà faite, il suffit de lancer l'impression"]
[]
[]
[null,"Logiciels utilisés"]
[null,"Version Excel :"]
[null,"Cet outil a été developpé sur Excel 2016 pack office 365. Il est compatible avec les version d'Excel à partir de la verison 2010.  Cependant les macros peuvent être desactivées (voir problèmes et messages d'alerte). Les macros ne sont pas fonctionnelles avec Excel 2007."]
[null,"Version Libre Office Calc : developpement en cours"]
[]
[null,"Équipe support"]
[null,"Ce fichier a été dévelopé par Valérie Debaix sur la base d'un tableau fourni par François Soulié avec l'aide de Patrice Ostermann."]
[null,"En cas de problème vous pouvez contacter :"]
[null,"Valérie Debaix : valerie.debaix-politano@orange.fr"]
[null,"François Soulié : francois.soulie42@gmail.com"]
[null,"Patrice Ostermann : pat.ostermann@orange.fr"]
[]
[null,"Problèmes et messages d'alerte"]
[null,"Problème d'activation des macros dans les versions d'Excel antérieures à 2016"]
[null,"Si vous voyez le message suivant s'afficher :"]
[]
[null,"Cliquez sur le bouton Microsoft Office Image du bouton, puis Préparer puis Propriétés puis Activer les Macros."]
[]
[null,"Sauvegarde de votre fichier"]
[null,"Afin de de ne pas perdre vos données, il est nécessaire de faire une copie de sauvegarde de votre fichier. Procédez comme suit :"]
[null,"1- Enregistrez sous \"Analyses-medicales-Prenom-Nom.xls\" dans le répertoire de votre choix. Ceci sera votre fichier de travail à compléter au fur et à mesure."]
[null,"2- Régulièrement, enregistrez sous \"Archivage-analyses-médicales-prenom-nom.xls\". Ceci sera votre copie de sauvegarde en cas de problème. "]
[null,"Chaque fois que vous ferez cette opération le contenu du précédent fichier archive sera écrasé et remplacé par le contenu de votre fichier de travail."]
[null,"Attention : pour ajouter de nouvelles données travaillez toujours avec : \"Analyses-medicales-Prenom-Nom.xls\""]
[null,"Nous vous conseillons de créer un raccourci vers ce fichier visible sur votre bureau"]